Workbook

Sheet Info
C7: File name | D7: Front end Program Operațional Capital Uman
C8: Author | D8: Cambridge Econometrics
C9: Client | D9: Ministerul Investițiilor și Proiectelor Europene
C10: Project | D10: Evaluarea progresului în îndeplinirea indicatorilor din cadrul de performanță – Tema E
C12: Version | D12: 1
C13: Authorised for release by
C14: Last revised | D14: 2021-07-27
C15: Status | D15: Completed
C16: Source | D16: SMIS
C18: Purpose | D18: To provide forecasts on indicators relating to the Human Capital Operational Programme.
C22: Sheets in this file:
D24: Info | F24: This documentation sheet
D26: Projections | F26: Indicator projections
D28: Achievement_finalised | F28: Data underpinning the estimates of the achievement of finalised projects
D29: Achievement_to_date_ongoing | F29: Data underpinning the estimates of the achievement of ongoing projects
D30: Achievement_forecast_ongoing | F30: Estimates of the achievemnt of ongoing projects. Can be adjusted by the user.
D31: Project_characteristics | F31: Estimates of the average project characteristics and the number of projects starting in the future. Can be adjusted by the user.
D32: Achievement_forecasts_future | F32: Estimates of the achievement of projects starting in the future. Can be adjusted by the user.

Sheet Projections
H2: As percentage of target (%) | L2: Total | P2: Finalised | T2: Ongoing | X2: New
C3: PA | D3: PI | E3: Indicator | F3: Region | G3: Target | H3: 2020 | I3: =+H3+1 -> 2021 | J3: =+I3+1 -> 2022 | K3: 2023 | L3: 2020 | M3: =+L3+1 -> 2021 | N3: =+M3+1 -> 2022 | O3: 2023 | P3: 2020 | Q3: =+P3+1 -> 2021 | R3: =+Q3+1 -> 2022 | S3: 2023 | T3: 2020 | U3: =+T3+1 -> 2021 | V3: =+U3+1 -> 2022 | W3: 2023 | X3: 2020 | Y3: =+X3+1 -> 2021 | Z3: =+Y3+1 -> 2022 | AA3: 2023
C4: 1 | D4: All | E4: 4S1 | F4: All | G4: 84116 | H4: =L4/$G4*100 -> 9.753157817 | I4: =M4/$G4*100 -> 14.29368765 | J4: =N4/$G4*100 -> 33.163894 | K4: =O4/$G4*100 -> 46.09808578 | L4: =P4+T4+X4 -> 8203.966229 | M4: 12023.2783 | N4: 27896.14108 | O4: 38775.86584 | P4: =SUMIFS(Achievement_finalised!G$4:G$10000,Achievement_finalised!$D$4:$D$10000,Projections!$E4,Achievement_finalised!$B$4:$B$10000,Projections!$C4,Achievement_finalised!$E$4:$E$10000,Projections!$F4) -> 2138 | Q4: =P4 -> 2138 | R4: =Q4 -> 2138 | S4: 2138 | T4: =SUMIFS(Achievement_forecast_ongoing!G$6:G$9967,Achievement_forecast_ongoing!$E$6:$E$9967,Projections!$E4,Achievement_forecast_ongoing!$C$6:$C$9967,Projections!$C4,Achievement_forecast_ongoing!$F$6:$F$9967,Projections!$F4) -> 6065.966229 | U4: =SUMIFS(Achievement_forecast_ongoing!H$6:H$9967,Achievement_forecast_ongoing!$E$6:$E$9967,Projections!$E4,Achievement_forecast_ongoing!$C$6:$C$9967,Projections!$C4,Achievement_forecast_ongoing!$F$6:$F$9967,Projections!$F4) -> 9885.2783 | V4: =SUMIFS(Achievement_forecast_ongoing!I$6:I$9967,Achievement_forecast_ongoing!$E$6:$E$9967,Projections!$E4,Achievement_forecast_ongoing!$C$6:$C$9967,Projections!$C4,Achievement_forecast_ongoing!$F$6:$F$9967,Projections!$F4) -> 11233.2708 | W4: =SUMIFS(Achievement_forecast_ongoing!J$6:J$9967,Achievement_forecast_ongoing!$E$6:$E$9967,Projections!$E4,Achievement_forecast_ongoing!$C$6:$C$9967,Projections!$C4,Achievement_forecast_ongoing!$F$6:$F$9967,Projections!$F4) -> 11233.2708 | X4: =SUMIFS(Achievement_forecasts_future!G$4:G$146,Achievement_forecasts_future!$D$4:$D$146,Projections!$E4,Achievement_forecasts_future!$B$4:$B$146,Projections!$C4,Achievement_forecasts_future!$E$4:$E$146,Projections!$F4) -> 0 | Y4: =SUMIFS(Achievement_forecasts_future!H$4:H$146,Achievement_forecasts_future!$D$4:$D$146,Projections!$E4,Achievement_forecasts_future!$B$4:$B$146,Projections!$C4,Achievement_forecasts_future!$E$4:$E$146,Projections!$F4) -> 0 | Z4: =SUMIFS(Achievement_forecasts_future!I$4:I$146,Achievement_forecasts_future!$D$4:$D$146,Projections!$E4,Achievement_forecasts_future!$B$4:$B$146,Projections!$C4,Achievement_forecasts_future!$E$4:$E$146,Projections!$F4) -> 14524.87029 | AA4: =SUMIFS(Achievement_forecasts_future!J$4:J$146,Achievement_forecasts_future!$D$4:$D$146,Projections!$E4,Achievement_forecasts_future!$B$4:$B$146,Projections!$C4,Achievement_forecasts_future!$E$4:$E$146,Projections!$F4) -> 25404.59504
C5: 1 | D5: All | E5: O1 | F5: All | G5: =328905183.88*G49 -> 1619101549 | H5: =L5/$G5*100 -> 5.04190754 | I5: 7.816148255 | J5: 8.989831729 | K5: 11.58567334 | L5: 81633603.06 | M5: 126551377.4 | N5: 145554504.7 | O5: 187583816.4 | P5: =SUMIFS(Achievement_finalised!G$4:G$10000,Achievement_finalised!$D$4:$D$10000,Projections!$E5,Achievement_finalised!$B$4:$B$10000,Projections!$C5,Achievement_finalised!$E$4:$E$10000,Projections!$F5) -> 13238371.62 | Q5: =P5 -> 13238371.62 | R5: 13238371.62 | S5: 13238371.62 | T5: =SUMIFS(Achievement_forecast_ongoing!G$6:G$9967,Achievement_forecast_ongoing!$E$6:$E$9967,Projections!$E5,Achievement_forecast_ongoing!$C$6:$C$9967,Projections!$C5,Achievement_forecast_ongoing!$F$6:$F$9967,Projections!$F5) -> 68395231.44 | U5: =SUMIFS(Achievement_forecast_ongoing!H$6:H$9967,Achievement_forecast_ongoing!$E$6:$E$9967,Projections!$E5,Achievement_forecast_ongoing!$C$6:$C$9967,Projections!$C5,Achievement_forecast_ongoing!$F$6:$F$9967,Projections!$F5) -> 113313005.8 | V5: =SUMIFS(Achievement_forecast_ongoing!I$6:I$9967,Achievement_forecast_ongoing!$E$6:$E$9967,Projections!$E5,Achievement_forecast_ongoing!$C$6:$C$9967,Projections!$C5,Achievement_forecast_ongoing!$F$6:$F$9967,Projections!$F5) -> 132316133.1 | W5: =SUMIFS(Achievement_forecast_ongoing!J$6:J$9967,Achievement_forecast_ongoing!$E$6:$E$9967,Projections!$E5,Achievement_forecast_ongoing!$C$6:$C$9967,Projections!$C5,Achievement_forecast_ongoing!$F$6:$F$9967,Projections!$F5) -> 136088331.2 | X5: =SUMIFS(Achievement_forecasts_future!G$4:G$146,Achievement_forecasts_future!$D$4:$D$146,Projections!$E5,Achievement_forecasts_future!$B$4:$B$146,Projections!$C5,Achievement_forecasts_future!$E$4:$E$146,Projections!$F5) -> 0 | Y5: =SUMIFS(Achievement_forecasts_future!H$4:H$146,Achievement_forecasts_future!$D$4:$D$146,Projections!$E5,Achievement_forecasts_future!$B$4:$B$146,Projections!$C5,Achievement_forecasts_future!$E$4:$E$146,Projections!$F5) -> 0 | Z5: =SUMIFS(Achievement_forecasts_future!I$4:I$146,Achievement_forecasts_future!$D$4:$D$146,Projections!$E5,Achievement_forecasts_future!$B$4:$B$146,Projections!$C5,Achievement_forecasts_future!$E$4:$E$146,Projections!$F5) -> 0 | AA5: =SUMIFS(Achievement_forecasts_future!J$4:J$146,Achievement_forecasts_future!$D$4:$D$146,Projections!$E5,Achievement_forecasts_future!$B$4:$B$146,Projections!$C5,Achievement_forecasts_future!$E$4:$E$146,Projections!$F5) -> 38257113.57
C6: 2 | D6: All | E6: 4S1 | F6: Less developed | G6: 98317 | H6: 9.881480613 | I6: 12.34787354 | J6: 15.9730984 | K6: 18.75963238 | L6: 9715.175294 | M6: 12140.05882 | N6: 15704.27115 | O6: 18443.90777 | P6: =SUMIFS(Achievement_finalised!G$4:G$10000,Achievement_finalised!$D$4:$D$10000,Projections!$E6,Achievement_finalised!$B$4:$B$10000,Projections!$C6,Achievement_finalised!$E$4:$E$10000,Projections!$F6) -> 1080 | Q6: 1080 | R6: 1080 | S6: 1080 | T6: =SUMIFS(Achievement_forecast_ongoing!G$6:G$9967,Achievement_forecast_ongoing!$E$6:$E$9967,Projections!$E6,Achievement_forecast_ongoing!$C$6:$C$9967,Projections!$C6,Achievement_forecast_ongoing!$F$6:$F$9967,Projections!$F6) -> 8635.175294 | U6: =SUMIFS(Achievement_forecast_ongoing!H$6:H$9967,Achievement_forecast_ongoing!$E$6:$E$9967,Projections!$E6,Achievement_forecast_ongoing!$C$6:$C$9967,Projections!$C6,Achievement_forecast_ongoing!$F$6:$F$9967,Projections!$F6) -> 11060.05882 | V6: =SUMIFS(Achievement_forecast_ongoing!I$6:I$9967,Achievement_forecast_ongoing!$E$6:$E$9967,Projections!$E6,Achievement_forecast_ongoing!$C$6:$C$9967,Projections!$C6,Achievement_forecast_ongoing!$F$6:$F$9967,Projections!$F6) -> 11164.17647 | W6: =SUMIFS(Achievement_forecast_ongoing!J$6:J$9967,Achievement_forecast_ongoing!$E$6:$E$9967,Projections!$E6,Achievement_forecast_ongoing!$C$6:$C$9967,Projections!$C6,Achievement_forecast_ongoing!$F$6:$F$9967,Projections!$F6) -> 11164.17647 | X6: =SUMIFS(Achievement_forecasts_future!G$4:G$146,Achievement_forecasts_future!$D$4:$D$146,Projections!$E6,Achievement_forecasts_future!$B$4:$B$146,Projections!$C6,Achievement_forecasts_future!$E$4:$E$146,Projections!$F6) -> 0 | Y6: =SUMIFS(Achievement_forecasts_future!H$4:H$146,Achievement_forecasts_future!$D$4:$D$146,Projections!$E6,Achievement_forecasts_future!$B$4:$B$146,Projections!$C6,Achievement_forecasts_future!$E$4:$E$146,Projections!$F6) -> 0 | Z6: =SUMIFS(Achievement_forecasts_future!I$4:I$146,Achievement_forecasts_future!$D$4:$D$146,Projections!$E6,Achievement_forecasts_future!$B$4:$B$146,Projections!$C6,Achievement_forecasts_future!$E$4:$E$146,Projections!$F6) -> 3460.094684 | AA6: =SUMIFS(Achievement_forecasts_future!J$4:J$146,Achievement_forecasts_future!$D$4:$D$146,Projections!$E6,Achievement_forecasts_future!$B$4:$B$146,Projections!$C6,Achievement_forecasts_future!$E$4:$E$146,Projections!$F6) -> 6199.731297
C7: 2 | D7: All | E7: 4S1 | F7: More developed | G7: 3700 | H7: 13.49798735 | I7: 13.91489362 | J7: 53.36289737 | K7: 84.5574584 | L7: =SUM(P7,T7,X7) -> 499.4255319 | M7: =SUM(Q7,U7,Y7) -> 514.8510638 | N7: =SUM(R7,V7,Z7) -> 1974.427203 | O7: =SUM(S7,W7,AA7) -> 3128.625961 | P7: =SUMIFS(Achievement_finalised!G$4:G$10000,Achievement_finalised!$D$4:$D$10000,Projections!$E7,Achievement_finalised!$B$4:$B$10000,Projections!$C7,Achievement_finalised!$E$4:$E$10000,Projections!$F7) -> 455 | Q7: 455 | R7: 455 | S7: 455 | T7: =SUMIFS(Achievement_forecast_ongoing!G$6:G$9967,Achievement_forecast_ongoing!$E$6:$E$9967,Projections!$E7,Achievement_forecast_ongoing!$C$6:$C$9967,Projections!$C7,Achievement_forecast_ongoing!$F$6:$F$9967,Projections!$F7) -> 44.42553191 | U7: =SUMIFS(Achievement_forecast_ongoing!H$6:H$9967,Achievement_forecast_ongoing!$E$6:$E$9967,Projections!$E7,Achievement_forecast_ongoing!$C$6:$C$9967,Projections!$C7,Achievement_forecast_ongoing!$F$6:$F$9967,Projections!$F7) -> 59.85106383 | V7: =SUMIFS(Achievement_forecast_ongoing!I$6:I$9967,Achievement_forecast_ongoing!$E$6:$E$9967,Projections!$E7,Achievement_forecast_ongoing!$C$6:$C$9967,Projections!$C7,Achievement_forecast_ongoing!$F$6:$F$9967,Projections!$F7) -> 61.70212766 | W7: =SUMIFS(Achievement_forecast_ongoing!J$6:J$9967,Achievement_forecast_ongoing!$E$6:$E$9967,Projections!$E7,Achievement_forecast_ongoing!$C$6:$C$9967,Projections!$C7,Achievement_forecast_ongoing!$F$6:$F$9967,Projections!$F7) -> 61.70212766 | X7: =SUMIFS(Achievement_forecasts_future!G$4:G$146,Achievement_forecasts_future!$D$4:$D$146,Projections!$E7,Achievement_forecasts_future!$B$4:$B$146,Projections!$C7,Achievement_forecasts_future!$E$4:$E$146,Projections!$F7) -> 0 | Y7: =SUMIFS(Achievement_forecasts_future!H$4:H$146,Achievement_forecasts_future!$D$4:$D$146,Projections!$E7,Achievement_forecasts_future!$B$4:$B$146,Projections!$C7,Achievement_forecasts_future!$E$4:$E$146,Projections!$F7) -> 0 | Z7: =SUMIFS(Achievement_forecasts_future!I$4:I$146,Achievement_forecasts_future!$D$4:$D$146,Projections!$E7,Achievement_forecasts_future!$B$4:$B$146,Projections!$C7,Achievement_forecasts_future!$E$4:$E$146,Projections!$F7) -> 1457.725075 | AA7: =SUMIFS(Achievement_forecasts_future!J$4:J$146,Achievement_forecasts_future!$D$4:$D$146,Projections!$E7,Achievement_forecasts_future!$B$4:$B$146,Projections!$C7,Achievement_forecasts_future!$E$4:$E$146,Projections!$F7) -> 2611.923833
C8: 2 | D8: All | E8: O1 | F8: Less developed | G8: =220168765*G49 -> 1083824779 | H8: 30.03697192 | I8: 37.71652267 | J8: 39.64370688 | K8: 40.43510522 | L8: =SUM(P8,T8,X8) -> 325548144.6 | M8: 408781018.7 | N8: 429668318.6 | O8: 438245690 | P8: =SUMIFS(Achievement_finalised!G$4:G$10000,Achievement_finalised!$D$4:$D$10000,Projections!$E8,Achievement_finalised!$B$4:$B$10000,Projections!$C8,Achievement_finalised!$E$4:$E$10000,Projections!$F8) -> 14259990.15 | Q8: 14259990.15 | R8: 14259990.15 | S8: 14259990.15 | T8: =SUMIFS(Achievement_forecast_ongoing!G$6:G$9967,Achievement_forecast_ongoing!$E$6:$E$9967,Projections!$E8,Achievement_forecast_ongoing!$C$6:$C$9967,Projections!$C8,Achievement_forecast_ongoing!$F$6:$F$9967,Projections!$F8) -> 311288154.5 | U8: =SUMIFS(Achievement_forecast_ongoing!H$6:H$9967,Achievement_forecast_ongoing!$E$6:$E$9967,Projections!$E8,Achievement_forecast_ongoing!$C$6:$C$9967,Projections!$C8,Achievement_forecast_ongoing!$F$6:$F$9967,Projections!$F8) -> 394521028.5 | V8: =SUMIFS(Achievement_forecast_ongoing!I$6:I$9967,Achievement_forecast_ongoing!$E$6:$E$9967,Projections!$E8,Achievement_forecast_ongoing!$C$6:$C$9967,Projections!$C8,Achievement_forecast_ongoing!$F$6:$F$9967,Projections!$F8) -> 415408328.5 | W8: =SUMIFS(Achievement_forecast_ongoing!J$6:J$9967,Achievement_forecast_ongoing!$E$6:$E$9967,Projections!$E8,Achievement_forecast_ongoing!$C$6:$C$9967,Projections!$C8,Achievement_forecast_ongoing!$F$6:$F$9967,Projections!$F8) -> 419454784.6 | X8: =SUMIFS(Achievement_forecasts_future!G$4:G$146,Achievement_forecasts_future!$D$4:$D$146,Projections!$E8,Achievement_forecasts_future!$B$4:$B$146,Projections!$C8,Achievement_forecasts_future!$E$4:$E$146,Projections!$F8) -> 0 | Y8: =SUMIFS(Achievement_forecasts_future!H$4:H$146,Achievement_forecasts_future!$D$4:$D$146,Projections!$E8,Achievement_forecasts_future!$B$4:$B$146,Projections!$C8,Achievement_forecasts_future!$E$4:$E$146,Projections!$F8) -> 0 | Z8: =SUMIFS(Achievement_forecasts_future!I$4:I$146,Achievement_forecasts_future!$D$4:$D$146,Projections!$E8,Achievement_forecasts_future!$B$4:$B$146,Projections!$C8,Achievement_forecasts_future!$E$4:$E$146,Projections!$F8) -> 0 | AA8: =SUMIFS(Achievement_forecasts_future!J$4:J$146,Achievement_forecasts_future!$D$4:$D$146,Projections!$E8,Achievement_forecasts_future!$B$4:$B$146,Projections!$C8,Achievement_forecasts_future!$E$4:$E$146,Projections!$F8) -> 4530915.246
C9: 2 | D9: All | E9: O1 | F9: More developed | G9: =11544745*G49 -> 56831316.21 | H9: 30.11949017 | I9: 36.61995188 | J9: 37.77421942 | K9: 38.6812918 | L9: 17117302.7 | M9: 20811600.65 | N9: 21467586.08 | O9: 21983087.26 | P9: =SUMIFS(Achievement_finalised!G$4:G$10000,Achievement_finalised!$D$4:$D$10000,Projections!$E9,Achievement_finalised!$B$4:$B$10000,Projections!$C9,Achievement_finalised!$E$4:$E$10000,Projections!$F9) -> 3194088.11 | Q9: 3194088.11 | R9: 3194088.11 | S9: 3194088.11 | T9: =SUMIFS(Achievement_forecast_ongoing!G$6:G$9967,Achievement_forecast_ongoing!$E$6:$E$9967,Projections!$E9,Achievement_forecast_ongoing!$C$6:$C$9967,Projections!$C9,Achievement_forecast_ongoing!$F$6:$F$9967,Projections!$F9) -> 13923214.59 | U9: =SUMIFS(Achievement_forecast_ongoing!H$6:H$9967,Achievement_forecast_ongoing!$E$6:$E$9967,Projections!$E9,Achievement_forecast_ongoing!$C$6:$C$9967,Projections!$C9,Achievement_forecast_ongoing!$F$6:$F$9967,Projections!$F9) -> 17617512.54 | V9: =SUMIFS(Achievement_forecast_ongoing!I$6:I$9967,Achievement_forecast_ongoing!$E$6:$E$9967,Projections!$E9,Achievement_forecast_ongoing!$C$6:$C$9967,Projections!$C9,Achievement_forecast_ongoing!$F$6:$F$9967,Projections!$F9) -> 18273497.97 | W9: =SUMIFS(Achievement_forecast_ongoing!J$6:J$9967,Achievement_forecast_ongoing!$E$6:$E$9967,Projections!$E9,Achievement_forecast_ongoing!$C$6:$C$9967,Projections!$C9,Achievement_forecast_ongoing!$F$6:$F$9967,Projections!$F9) -> 18788999.15 | X9: =SUMIFS(Achievement_forecasts_future!G$4:G$146,Achievement_forecasts_future!$D$4:$D$146,Projections!$E9,Achievement_forecasts_future!$B$4:$B$146,Projections!$C9,Achievement_forecasts_future!$E$4:$E$146,Projections!$F9) -> 0 | Y9: =SUMIFS(Achievement_forecasts_future!H$4:H$146,Achievement_forecasts_future!$D$4:$D$146,Projections!$E9,Achievement_forecasts_future!$B$4:$B$146,Projections!$C9,Achievement_forecasts_future!$E$4:$E$146,Projections!$F9) -> 0 | Z9: =SUMIFS(Achievement_forecasts_future!I$4:I$146,Achievement_forecasts_future!$D$4:$D$146,Projections!$E9,Achievement_forecasts_future!$B$4:$B$146,Projections!$C9,Achievement_forecasts_future!$E$4:$E$146,Projections!$F9) -> 0 | AA9: =SUMIFS(Achievement_forecasts_future!J$4:J$146,Achievement_forecasts_future!$D$4:$D$146,Projections!$E9,Achievement_forecasts_future!$B$4:$B$146,Projections!$C9,Achievement_forecasts_future!$E$4:$E$146,Projections!$F9) -> 0
C10: 3 | D10: All | E10: 4S11 | F10: All | G10: 3533 | H10: 2338.789325 | I10: 2361.956187 | J10: 4599.435414 | K10: =O10/$G10*100 -> 7448.334133 | L10: 82629.42684 | M10: 83447.91209 | N10: 162498.0532 | O10: 263149.6449 | P10: =SUMIFS(Achievement_finalised!G$4:G$10000,Achievement_finalised!$D$4:$D$10000,Projections!$E10,Achievement_finalised!$B$4:$B$10000,Projections!$C10,Achievement_finalised!$E$4:$E$10000,Projections!$F10) -> 78890 | Q10: 78890 | R10: 78890 | S10: 78890 | T10: =SUMIFS(Achievement_forecast_ongoing!G$6:G$9967,Achievement_forecast_ongoing!$E$6:$E$9967,Projections!$E10,Achievement_forecast_ongoing!$C$6:$C$9967,Projections!$C10,Achievement_forecast_ongoing!$F$6:$F$9967,Projections!$F10) -> 3739.426845 | U10: =SUMIFS(Achievement_forecast_ongoing!H$6:H$9967,Achievement_forecast_ongoing!$E$6:$E$9967,Projections!$E10,Achievement_forecast_ongoing!$C$6:$C$9967,Projections!$C10,Achievement_forecast_ongoing!$F$6:$F$9967,Projections!$F10) -> 4557.912089 | V10: =SUMIFS(Achievement_forecast_ongoing!I$6:I$9967,Achievement_forecast_ongoing!$E$6:$E$9967,Projections!$E10,Achievement_forecast_ongoing!$C$6:$C$9967,Projections!$C10,Achievement_forecast_ongoing!$F$6:$F$9967,Projections!$F10) -> 4557.912089 | W10: =SUMIFS(Achievement_forecast_ongoing!J$6:J$9967,Achievement_forecast_ongoing!$E$6:$E$9967,Projections!$E10,Achievement_forecast_ongoing!$C$6:$C$9967,Projections!$C10,Achievement_forecast_ongoing!$F$6:$F$9967,Projections!$F10) -> 4557.912089 | X10: =SUMIFS(Achievement_forecasts_future!G$4:G$146,Achievement_forecasts_future!$D$4:$D$146,Projections!$E10,Achievement_forecasts_future!$B$4:$B$146,Projections!$C10,Achievement_forecasts_future!$E$4:$E$146,Projections!$F10) -> 0 | Y10: =SUMIFS(Achievement_forecasts_future!H$4:H$146,Achievement_forecasts_future!$D$4:$D$146,Projections!$E10,Achievement_forecasts_future!$B$4:$B$146,Projections!$C10,Achievement_forecasts_future!$E$4:$E$146,Projections!$F10) -> 0 | Z10: =SUMIFS(Achievement_forecasts_future!I$4:I$146,Achievement_forecasts_future!$D$4:$D$146,Projections!$E10,Achievement_forecasts_future!$B$4:$B$146,Projections!$C10,Achievement_forecasts_future!$E$4:$E$146,Projections!$F10) -> 79050.14109 | AA10: =SUMIFS(Achievement_forecasts_future!J$4:J$146,Achievement_forecasts_future!$D$4:$D$146,Projections!$E10,Achievement_forecasts_future!$B$4:$B$146,Projections!$C10,Achievement_forecasts_future!$E$4:$E$146,Projections!$F10) -> 179701.7328
C11: 3 | D11: All | E11: 4S12 | F11: All | G11: 1066 | H11: 543.9847428 | I11: 727.7633722 | J11: 735.1145173 | K11: 735.1145173 | L11: 5798.877358 | M11: 7757.957547 | N11: 7836.320755 | O11: 7836.320755 | P11: =SUMIFS(Achievement_finalised!G$4:G$10000,Achievement_finalised!$D$4:$D$10000,Projections!$E11,Achievement_finalised!$B$4:$B$10000,Projections!$C11,Achievement_finalised!$E$4:$E$10000,Projections!$F11) -> 0 | Q11: 0 | R11: 0 | S11: 0 | T11: =SUMIFS(Achievement_forecast_ongoing!G$6:G$9967,Achievement_forecast_ongoing!$E$6:$E$9967,Projections!$E11,Achievement_forecast_ongoing!$C$6:$C$9967,Projections!$C11,Achievement_forecast_ongoing!$F$6:$F$9967,Projections!$F11) -> 5798.877358 | U11: =SUMIFS(Achievement_forecast_ongoing!H$6:H$9967,Achievement_forecast_ongoing!$E$6:$E$9967,Projections!$E11,Achievement_forecast_ongoing!$C$6:$C$9967,Projections!$C11,Achievement_forecast_ongoing!$F$6:$F$9967,Projections!$F11) -> 7757.957547 | V11: =SUMIFS(Achievement_forecast_ongoing!I$6:I$9967,Achievement_forecast_ongoing!$E$6:$E$9967,Projections!$E11,Achievement_forecast_ongoing!$C$6:$C$9967,Projections!$C11,Achievement_forecast_ongoing!$F$6:$F$9967,Projections!$F11) -> 7836.320755 | W11: =SUMIFS(Achievement_forecast_ongoing!J$6:J$9967,Achievement_forecast_ongoing!$E$6:$E$9967,Projections!$E11,Achievement_forecast_ongoing!$C$6:$C$9967,Projections!$C11,Achievement_forecast_ongoing!$F$6:$F$9967,Projections!$F11) -> 7836.320755 | X11: =SUMIFS(Achievement_forecasts_future!G$4:G$146,Achievement_forecasts_future!$D$4:$D$146,Projections!$E11,Achievement_forecasts_future!$B$4:$B$146,Projections!$C11,Achievement_forecasts_future!$E$4:$E$146,Projections!$F11) -> 0 | Y11: =SUMIFS(Achievement_forecasts_future!H$4:H$146,Achievement_forecasts_future!$D$4:$D$146,Projections!$E11,Achievement_forecasts_future!$B$4:$B$146,Projections!$C11,Achievement_forecasts_future!$E$4:$E$146,Projections!$F11) -> 0 | Z11: =SUMIFS(Achievement_forecasts_future!I$4:I$146,Achievement_forecasts_future!$D$4:$D$146,Projections!$E11,Achievement_forecasts_future!$B$4:$B$146,Projections!$C11,Achievement_forecasts_future!$E$4:$E$146,Projections!$F11) -> 0 | AA11: =SUMIFS(Achievement_forecasts_future!J$4:J$146,Achievement_forecasts_future!$D$4:$D$146,Projections!$E11,Achievement_forecasts_future!$B$4:$B$146,Projections!$C11,Achievement_forecasts_future!$E$4:$E$146,Projections!$F11) -> 0
C12: 3 | D12: All | E12: 4S153 | F12: All | G12: 1 | H12: 0 | I12: 0 | J12: 0 | K12: 0 | L12: 0 | M12: 0 | N12: 0 | O12: 0 | P12: =SUMIFS(Achievement_finalised!G$4:G$10000,Achievement_finalised!$D$4:$D$10000,Projections!$E12,Achievement_finalised!$B$4:$B$10000,Projections!$C12,Achievement_finalised!$E$4:$E$10000,Projections!$F12) -> 0 | Q12: 0 | R12: 0 | S12: 0 | T12: =SUMIFS(Achievement_forecast_ongoing!G$6:G$9967,Achievement_forecast_ongoing!$E$6:$E$9967,Projections!$E12,Achievement_forecast_ongoing!$C$6:$C$9967,Projections!$C12,Achievement_forecast_ongoing!$F$6:$F$9967,Projections!$F12) -> 0 | U12: =SUMIFS(Achievement_forecast_ongoing!H$6:H$9967,Achievement_forecast_ongoing!$E$6:$E$9967,Projections!$E12,Achievement_forecast_ongoing!$C$6:$C$9967,Projections!$C12,Achievement_forecast_ongoing!$F$6:$F$9967,Projections!$F12) -> 0 | V12: =SUMIFS(Achievement_forecast_ongoing!I$6:I$9967,Achievement_forecast_ongoing!$E$6:$E$9967,Projections!$E12,Achievement_forecast_ongoing!$C$6:$C$9967,Projections!$C12,Achievement_forecast_ongoing!$F$6:$F$9967,Projections!$F12) -> 0 | W12: =SUMIFS(Achievement_forecast_ongoing!J$6:J$9967,Achievement_forecast_ongoing!$E$6:$E$9967,Projections!$E12,Achievement_forecast_ongoing!$C$6:$C$9967,Projections!$C12,Achievement_forecast_ongoing!$F$6:$F$9967,Projections!$F12) -> 0 | X12: =SUMIFS(Achievement_forecasts_future!G$4:G$146,Achievement_forecasts_future!$D$4:$D$146,Projections!$E12,Achievement_forecasts_future!$B$4:$B$146,Projections!$C12,Achievement_forecasts_future!$E$4:$E$146,Projections!$F12) -> 0 | Y12: =SUMIFS(Achievement_forecasts_future!H$4:H$146,Achievement_forecasts_future!$D$4:$D$146,Projections!$E12,Achievement_forecasts_future!$B$4:$B$146,Projections!$C12,Achievement_forecasts_future!$E$4:$E$146,Projections!$F12) -> 0 | Z12: =SUMIFS(Achievement_forecasts_future!I$4:I$146,Achievement_forecasts_future!$D$4:$D$146,Projections!$E12,Achievement_forecasts_future!$B$4:$B$146,Projections!$C12,Achievement_forecasts_future!$E$4:$E$146,Projections!$F12) -> 0 | AA12: =SUMIFS(Achievement_forecasts_future!J$4:J$146,Achievement_forecasts_future!$D$4:$D$146,Projections!$E12,Achievement_forecasts_future!$B$4:$B$146,Projections!$C12,Achievement_forecasts_future!$E$4:$E$146,Projections!$F12) -> 0
C13: 3 | D13: All | E13: 4S27 | F13: All | G13: 50 | H13: 41.44684804 | I13: 715.219977 | J13: 1294.768519 | K13: 1716.636765 | L13: 20.72342402 | M13: 357.6099885 | N13: 647.3842596 | O13: 858.3183825 | P13: =SUMIFS(Achievement_finalised!G$4:G$10000,Achievement_finalised!$D$4:$D$10000,Projections!$E13,Achievement_finalised!$B$4:$B$10000,Projections!$C13,Achievement_finalised!$E$4:$E$10000,Projections!$F13) -> 0 | Q13: 0 | R13: 0 | S13: 0 | T13: =SUMIFS(Achievement_forecast_ongoing!G$6:G$9967,Achievement_forecast_ongoing!$E$6:$E$9967,Projections!$E13,Achievement_forecast_ongoing!$C$6:$C$9967,Projections!$C13,Achievement_forecast_ongoing!$F$6:$F$9967,Projections!$F13) -> 20.72342402 | U13: =SUMIFS(Achievement_forecast_ongoing!H$6:H$9967,Achievement_forecast_ongoing!$E$6:$E$9967,Projections!$E13,Achievement_forecast_ongoing!$C$6:$C$9967,Projections!$C13,Achievement_forecast_ongoing!$F$6:$F$9967,Projections!$F13) -> 357.6099885 | V13: =SUMIFS(Achievement_forecast_ongoing!I$6:I$9967,Achievement_forecast_ongoing!$E$6:$E$9967,Projections!$E13,Achievement_forecast_ongoing!$C$6:$C$9967,Projections!$C13,Achievement_forecast_ongoing!$F$6:$F$9967,Projections!$F13) -> 647.3842596 | W13: =SUMIFS(Achievement_forecast_ongoing!J$6:J$9967,Achievement_forecast_ongoing!$E$6:$E$9967,Projections!$E13,Achievement_forecast_ongoing!$C$6:$C$9967,Projections!$C13,Achievement_forecast_ongoing!$F$6:$F$9967,Projections!$F13) -> 858.3183825 | X13: =SUMIFS(Achievement_forecasts_future!G$4:G$146,Achievement_forecasts_future!$D$4:$D$146,Projections!$E13,Achievement_forecasts_future!$B$4:$B$146,Projections!$C13,Achievement_forecasts_future!$E$4:$E$146,Projections!$F13) -> 0 | Y13: =SUMIFS(Achievement_forecasts_future!H$4:H$146,Achievement_forecasts_future!$D$4:$D$146,Projections!$E13,Achievement_forecasts_future!$B$4:$B$146,Projections!$C13,Achievement_forecasts_future!$E$4:$E$146,Projections!$F13) -> 0 | Z13: =SUMIFS(Achievement_forecasts_future!I$4:I$146,Achievement_forecasts_future!$D$4:$D$146,Projections!$E13,Achievement_forecasts_future!$B$4:$B$146,Projections!$C13,Achievement_forecasts_future!$E$4:$E$146,Projections!$F13) -> 0 | AA13: =SUMIFS(Achievement_forecasts_future!J$4:J$146,Achievement_forecasts_future!$D$4:$D$146,Projections!$E13,Achievement_forecasts_future!$B$4:$B$146,Projections!$C13,Achievement_forecasts_future!$E$4:$E$146,Projections!$F13) -> 0
C14: 3 | D14: All | E14: 4S8 | F14: Less developed | G14: 187280 | H14: 71.17104068 | I14: 91.12548191 | J14: 105.0295677 | K14: 115.550973 | L14: 133289.125 | M14: 170659.8025 | N14: 196699.3743 | O14: 216403.8622 | P14: =SUMIFS(Achievement_finalised!G$4:G$10000,Achievement_finalised!$D$4:$D$10000,Projections!$E14,Achievement_finalised!$B$4:$B$10000,Projections!$C14,Achievement_finalised!$E$4:$E$10000,Projections!$F14) -> 24803 | Q14: 24803 | R14: 24803 | S14: 24803 | T14: =SUMIFS(Achievement_forecast_ongoing!G$6:G$9967,Achievement_forecast_ongoing!$E$6:$E$9967,Projections!$E14,Achievement_forecast_ongoing!$C$6:$C$9967,Projections!$C14,Achievement_forecast_ongoing!$F$6:$F$9967,Projections!$F14) -> 108486.125 | U14: =SUMIFS(Achievement_forecast_ongoing!H$6:H$9967,Achievement_forecast_ongoing!$E$6:$E$9967,Projections!$E14,Achievement_forecast_ongoing!$C$6:$C$9967,Projections!$C14,Achievement_forecast_ongoing!$F$6:$F$9967,Projections!$F14) -> 145856.8025 | V14: =SUMIFS(Achievement_forecast_ongoing!I$6:I$9967,Achievement_forecast_ongoing!$E$6:$E$9967,Projections!$E14,Achievement_forecast_ongoing!$C$6:$C$9967,Projections!$C14,Achievement_forecast_ongoing!$F$6:$F$9967,Projections!$F14) -> 155907.6274 | W14: =SUMIFS(Achievement_forecast_ongoing!J$6:J$9967,Achievement_forecast_ongoing!$E$6:$E$9967,Projections!$E14,Achievement_forecast_ongoing!$C$6:$C$9967,Projections!$C14,Achievement_forecast_ongoing!$F$6:$F$9967,Projections!$F14) -> 155907.6274 | X14: =SUMIFS(Achievement_forecasts_future!G$4:G$146,Achievement_forecasts_future!$D$4:$D$146,Projections!$E14,Achievement_forecasts_future!$B$4:$B$146,Projections!$C14,Achievement_forecasts_future!$E$4:$E$146,Projections!$F14) -> 0 | Y14: =SUMIFS(Achievement_forecasts_future!H$4:H$146,Achievement_forecasts_future!$D$4:$D$146,Projections!$E14,Achievement_forecasts_future!$B$4:$B$146,Projections!$C14,Achievement_forecasts_future!$E$4:$E$146,Projections!$F14) -> 0 | Z14: =SUMIFS(Achievement_forecasts_future!I$4:I$146,Achievement_forecasts_future!$D$4:$D$146,Projections!$E14,Achievement_forecasts_future!$B$4:$B$146,Projections!$C14,Achievement_forecasts_future!$E$4:$E$146,Projections!$F14) -> 15988.74695 | AA14: =SUMIFS(Achievement_forecasts_future!J$4:J$146,Achievement_forecasts_future!$D$4:$D$146,Projections!$E14,Achievement_forecasts_future!$B$4:$B$146,Projections!$C14,Achievement_forecasts_future!$E$4:$E$146,Projections!$F14) -> 35693.23488
C15: 3 | D15: All | E15: 4S8 | F15: More developed | G15: 4293 | H15: 52.84045999 | I15: 63.45895756 | J15: 82.26759992 | K15: 97.5716212 | L15: 2268.440947 | M15: 2724.293048 | N15: 3531.748065 | O15: 4188.749698 | P15: =SUMIFS(Achievement_finalised!G$4:G$10000,Achievement_finalised!$D$4:$D$10000,Projections!$E15,Achievement_finalised!$B$4:$B$10000,Projections!$C15,Achievement_finalised!$E$4:$E$10000,Projections!$F15) -> 827 | Q15: 827 | R15: 827 | S15: 827 | T15: =SUMIFS(Achievement_forecast_ongoing!G$6:G$9967,Achievement_forecast_ongoing!$E$6:$E$9967,Projections!$E15,Achievement_forecast_ongoing!$C$6:$C$9967,Projections!$C15,Achievement_forecast_ongoing!$F$6:$F$9967,Projections!$F15) -> 1441.440947 | U15: =SUMIFS(Achievement_forecast_ongoing!H$6:H$9967,Achievement_forecast_ongoing!$E$6:$E$9967,Projections!$E15,Achievement_forecast_ongoing!$C$6:$C$9967,Projections!$C15,Achievement_forecast_ongoing!$F$6:$F$9967,Projections!$F15) -> 1897.293048 | V15: =SUMIFS(Achievement_forecast_ongoing!I$6:I$9967,Achievement_forecast_ongoing!$E$6:$E$9967,Projections!$E15,Achievement_forecast_ongoing!$C$6:$C$9967,Projections!$C15,Achievement_forecast_ongoing!$F$6:$F$9967,Projections!$F15) -> 2171.639419 | W15: =SUMIFS(Achievement_forecast_ongoing!J$6:J$9967,Achievement_forecast_ongoing!$E$6:$E$9967,Projections!$E15,Achievement_forecast_ongoing!$C$6:$C$9967,Projections!$C15,Achievement_forecast_ongoing!$F$6:$F$9967,Projections!$F15) -> 2171.639419 | X15: =SUMIFS(Achievement_forecasts_future!G$4:G$146,Achievement_forecasts_future!$D$4:$D$146,Projections!$E15,Achievement_forecasts_future!$B$4:$B$146,Projections!$C15,Achievement_forecasts_future!$E$4:$E$146,Projections!$F15) -> 0 | Y15: =SUMIFS(Achievement_forecasts_future!H$4:H$146,Achievement_forecasts_future!$D$4:$D$146,Projections!$E15,Achievement_forecasts_future!$B$4:$B$146,Projections!$C15,Achievement_forecasts_future!$E$4:$E$146,Projections!$F15) -> 0 | Z15: =SUMIFS(Achievement_forecasts_future!I$4:I$146,Achievement_forecasts_future!$D$4:$D$146,Projections!$E15,Achievement_forecasts_future!$B$4:$B$146,Projections!$C15,Achievement_forecasts_future!$E$4:$E$146,Projections!$F15) -> 533.1086451 | AA15: =SUMIFS(Achievement_forecasts_future!J$4:J$146,Achievement_forecasts_future!$D$4:$D$146,Projections!$E15,Achievement_forecasts_future!$B$4:$B$146,Projections!$C15,Achievement_forecasts_future!$E$4:$E$146,Projections!$F15) -> 1190.110279
C16: 3 | D16: All | E16: O1 | F16: Less developed | G16: =1334115343*G49 -> 6567449599 | H16: 61.76684204 | I16: 71.08738409 | J16: 74.64276568 | K16: 97.24122226 | L16: 4056506220 | M16: 4668628122 | N16: 4902126015 | O16: 6386268262 | P16: =SUMIFS(Achievement_finalised!G$4:G$10000,Achievement_finalised!$D$4:$D$10000,Projections!$E16,Achievement_finalised!$B$4:$B$10000,Projections!$C16,Achievement_finalised!$E$4:$E$10000,Projections!$F16) -> 2508875442 | Q16: 2508875442 | R16: 2508875442 | S16: 2508875442 | T16: =SUMIFS(Achievement_forecast_ongoing!G$6:G$9967,Achievement_forecast_ongoing!$E$6:$E$9967,Projections!$E16,Achievement_forecast_ongoing!$C$6:$C$9967,Projections!$C16,Achievement_forecast_ongoing!$F$6:$F$9967,Projections!$F16) -> 1547630778 | U16: =SUMIFS(Achievement_forecast_ongoing!H$6:H$9967,Achievement_forecast_ongoing!$E$6:$E$9967,Projections!$E16,Achievement_forecast_ongoing!$C$6:$C$9967,Projections!$C16,Achievement_forecast_ongoing!$F$6:$F$9967,Projections!$F16) -> 2159752679 | V16: =SUMIFS(Achievement_forecast_ongoing!I$6:I$9967,Achievement_forecast_ongoing!$E$6:$E$9967,Projections!$E16,Achievement_forecast_ongoing!$C$6:$C$9967,Projections!$C16,Achievement_forecast_ongoing!$F$6:$F$9967,Projections!$F16) -> 2393250573 | W16: =SUMIFS(Achievement_forecast_ongoing!J$6:J$9967,Achievement_forecast_ongoing!$E$6:$E$9967,Projections!$E16,Achievement_forecast_ongoing!$C$6:$C$9967,Projections!$C16,Achievement_forecast_ongoing!$F$6:$F$9967,Projections!$F16) -> 2400525434 | X16: =SUMIFS(Achievement_forecasts_future!G$4:G$146,Achievement_forecasts_future!$D$4:$D$146,Projections!$E16,Achievement_forecasts_future!$B$4:$B$146,Projections!$C16,Achievement_forecasts_future!$E$4:$E$146,Projections!$F16) -> 0 | Y16: =SUMIFS(Achievement_forecasts_future!H$4:H$146,Achievement_forecasts_future!$D$4:$D$146,Projections!$E16,Achievement_forecasts_future!$B$4:$B$146,Projections!$C16,Achievement_forecasts_future!$E$4:$E$146,Projections!$F16) -> 0 | Z16: =SUMIFS(Achievement_forecasts_future!I$4:I$146,Achievement_forecasts_future!$D$4:$D$146,Projections!$E16,Achievement_forecasts_future!$B$4:$B$146,Projections!$C16,Achievement_forecasts_future!$E$4:$E$146,Projections!$F16) -> 0 | AA16: =SUMIFS(Achievement_forecasts_future!J$4:J$146,Achievement_forecasts_future!$D$4:$D$146,Projections!$E16,Achievement_forecasts_future!$B$4:$B$146,Projections!$C16,Achievement_forecasts_future!$E$4:$E$146,Projections!$F16) -> 1476867385
C17: 3 | D17: All | E17: O1 | F17: More developed | G17: =14458314*G49 -> 71173942.33 | H17: 215.0490922 | I17: 299.5135779 | J17: 340.6666309 | K17: 344.1466321 | L17: 153058916.8 | M17: 213175621.2 | N17: 242465871.4 | O17: 244942725.5 | P17: =SUMIFS(Achievement_finalised!G$4:G$10000,Achievement_finalised!$D$4:$D$10000,Projections!$E17,Achievement_finalised!$B$4:$B$10000,Projections!$C17,Achievement_finalised!$E$4:$E$10000,Projections!$F17) -> 8543514.187 | Q17: 8543514.187 | R17: 8543514.187 | S17: 8543514.187 | T17: =SUMIFS(Achievement_forecast_ongoing!G$6:G$9967,Achievement_forecast_ongoing!$E$6:$E$9967,Projections!$E17,Achievement_forecast_ongoing!$C$6:$C$9967,Projections!$C17,Achievement_forecast_ongoing!$F$6:$F$9967,Projections!$F17) -> 144515402.6 | U17: =SUMIFS(Achievement_forecast_ongoing!H$6:H$9967,Achievement_forecast_ongoing!$E$6:$E$9967,Projections!$E17,Achievement_forecast_ongoing!$C$6:$C$9967,Projections!$C17,Achievement_forecast_ongoing!$F$6:$F$9967,Projections!$F17) -> 204632107 | V17: =SUMIFS(Achievement_forecast_ongoing!I$6:I$9967,Achievement_forecast_ongoing!$E$6:$E$9967,Projections!$E17,Achievement_forecast_ongoing!$C$6:$C$9967,Projections!$C17,Achievement_forecast_ongoing!$F$6:$F$9967,Projections!$F17) -> 233922357.2 | W17: =SUMIFS(Achievement_forecast_ongoing!J$6:J$9967,Achievement_forecast_ongoing!$E$6:$E$9967,Projections!$E17,Achievement_forecast_ongoing!$C$6:$C$9967,Projections!$C17,Achievement_forecast_ongoing!$F$6:$F$9967,Projections!$F17) -> 234849143.3 | X17: =SUMIFS(Achievement_forecasts_future!G$4:G$146,Achievement_forecasts_future!$D$4:$D$146,Projections!$E17,Achievement_forecasts_future!$B$4:$B$146,Projections!$C17,Achievement_forecasts_future!$E$4:$E$146,Projections!$F17) -> 0 | Y17: =SUMIFS(Achievement_forecasts_future!H$4:H$146,Achievement_forecasts_future!$D$4:$D$146,Projections!$E17,Achievement_forecasts_future!$B$4:$B$146,Projections!$C17,Achievement_forecasts_future!$E$4:$E$146,Projections!$F17) -> 0 | Z17: =SUMIFS(Achievement_forecasts_future!I$4:I$146,Achievement_forecasts_future!$D$4:$D$146,Projections!$E17,Achievement_forecasts_future!$B$4:$B$146,Projections!$C17,Achievement_forecasts_future!$E$4:$E$146,Projections!$F17) -> 0 | AA17: =SUMIFS(Achievement_forecasts_future!J$4:J$146,Achievement_forecasts_future!$D$4:$D$146,Projections!$E17,Achievement_forecasts_future!$B$4:$B$146,Projections!$C17,Achievement_forecasts_future!$E$4:$E$146,Projections!$F17) -> 1550067.943
C18: 4 | D18: All | E18: 4S205 | F18: All | G18: 25329 | H18: =L18/$G18*100 -> 11.29550318 | I18: =M18/$G18*100 -> 20.82996924 | J18: =N18/$G18*100 -> 28.14128098 | K18: =O18/$G18*100 -> 28.8421091 | L18: =SUM(P18,T18,X18) -> 2861.038001 | M18: =SUM(Q18,U18,Y18) -> 5276.02291 | N18: =SUM(R18,V18,Z18) -> 7127.905059 | O18: =SUM(S18,W18,AA18) -> 7305.417815 | P18: =SUMIFS(Achievement_finalised!G$4:G$10000,Achievement_finalised!$D$4:$D$10000,Projections!$E18,Achievement_finalised!$B$4:$B$10000,Projections!$C18,Achievement_finalised!$E$4:$E$10000,Projections!$F18) -> 0 | Q18: =P18 -> 0 | R18: =Q18 -> 0 | S18: =R18 -> 0 | T18: =SUMIFS(Achievement_forecast_ongoing!G$6:G$9967,Achievement_forecast_ongoing!$E$6:$E$9967,Projections!$E18,Achievement_forecast_ongoing!$C$6:$C$9967,Projections!$C18,Achievement_forecast_ongoing!$F$6:$F$9967,Projections!$F18) -> 2861.038001 | U18: =SUMIFS(Achievement_forecast_ongoing!H$6:H$9967,Achievement_forecast_ongoing!$E$6:$E$9967,Projections!$E18,Achievement_forecast_ongoing!$C$6:$C$9967,Projections!$C18,Achievement_forecast_ongoing!$F$6:$F$9967,Projections!$F18) -> 5276.02291 | V18: =SUMIFS(Achievement_forecast_ongoing!I$6:I$9967,Achievement_forecast_ongoing!$E$6:$E$9967,Projections!$E18,Achievement_forecast_ongoing!$C$6:$C$9967,Projections!$C18,Achievement_forecast_ongoing!$F$6:$F$9967,Projections!$F18) -> 7127.905059 | W18: =SUMIFS(Achievement_forecast_ongoing!J$6:J$9967,Achievement_forecast_ongoing!$E$6:$E$9967,Projections!$E18,Achievement_forecast_ongoing!$C$6:$C$9967,Projections!$C18,Achievement_forecast_ongoing!$F$6:$F$9967,Projections!$F18) -> 7305.417815 | X18: =SUMIFS(Achievement_forecasts_future!G$4:G$146,Achievement_forecasts_future!$D$4:$D$146,Projections!$E18,Achievement_forecasts_future!$B$4:$B$146,Projections!$C18,Achievement_forecasts_future!$E$4:$E$146,Projections!$F18) -> 0 | Y18: =SUMIFS(Achievement_forecasts_future!H$4:H$146,Achievement_forecasts_future!$D$4:$D$146,Projections!$E18,Achievement_forecasts_future!$B$4:$B$146,Projections!$C18,Achievement_forecasts_future!$E$4:$E$146,Projections!$F18) -> 0 | Z18: =SUMIFS(Achievement_forecasts_future!I$4:I$146,Achievement_forecasts_future!$D$4:$D$146,Projections!$E18,Achievement_forecasts_future!$B$4:$B$146,Projections!$C18,Achievement_forecasts_future!$E$4:$E$146,Projections!$F18) -> 0 | AA18: =SUMIFS(Achievement_forecasts_future!J$4:J$146,Achievement_forecasts_future!$D$4:$D$146,Projections!$E18,Achievement_forecasts_future!$B$4:$B$146,Projections!$C18,Achievement_forecasts_future!$E$4:$E$146,Projections!$F18) -> 0
C19: 4 | D19: All | E19: 4S206 | F19: All | G19: 467 | H19: 59.91512445 | I19: 89.61636529 | J19: 108.3540413 | K19: 108.3540413 | L19: 279.8036312 | M19: 418.5084259 | N19: 506.0133729 | O19: 506.0133729 | P19: =SUMIFS(Achievement_finalised!G$4:G$10000,Achievement_finalised!$D$4:$D$10000,Projections!$E19,Achievement_finalised!$B$4:$B$10000,Projections!$C19,Achievement_finalised!$E$4:$E$10000,Projections!$F19) -> 0 | Q19: 0 | R19: 0 | S19: 0 | T19: =SUMIFS(Achievement_forecast_ongoing!G$6:G$9967,Achievement_forecast_ongoing!$E$6:$E$9967,Projections!$E19,Achievement_forecast_ongoing!$C$6:$C$9967,Projections!$C19,Achievement_forecast_ongoing!$F$6:$F$9967,Projections!$F19) -> 279.8036312 | U19: =SUMIFS(Achievement_forecast_ongoing!H$6:H$9967,Achievement_forecast_ongoing!$E$6:$E$9967,Projections!$E19,Achievement_forecast_ongoing!$C$6:$C$9967,Projections!$C19,Achievement_forecast_ongoing!$F$6:$F$9967,Projections!$F19) -> 418.5084259 | V19: =SUMIFS(Achievement_forecast_ongoing!I$6:I$9967,Achievement_forecast_ongoing!$E$6:$E$9967,Projections!$E19,Achievement_forecast_ongoing!$C$6:$C$9967,Projections!$C19,Achievement_forecast_ongoing!$F$6:$F$9967,Projections!$F19) -> 506.0133729 | W19: =SUMIFS(Achievement_forecast_ongoing!J$6:J$9967,Achievement_forecast_ongoing!$E$6:$E$9967,Projections!$E19,Achievement_forecast_ongoing!$C$6:$C$9967,Projections!$C19,Achievement_forecast_ongoing!$F$6:$F$9967,Projections!$F19) -> 506.0133729 | X19: =SUMIFS(Achievement_forecasts_future!G$4:G$146,Achievement_forecasts_future!$D$4:$D$146,Projections!$E19,Achievement_forecasts_future!$B$4:$B$146,Projections!$C19,Achievement_forecasts_future!$E$4:$E$146,Projections!$F19) -> 0 | Y19: =SUMIFS(Achievement_forecasts_future!H$4:H$146,Achievement_forecasts_future!$D$4:$D$146,Projections!$E19,Achievement_forecasts_future!$B$4:$B$146,Projections!$C19,Achievement_forecasts_future!$E$4:$E$146,Projections!$F19) -> 0 | Z19: =SUMIFS(Achievement_forecasts_future!I$4:I$146,Achievement_forecasts_future!$D$4:$D$146,Projections!$E19,Achievement_forecasts_future!$B$4:$B$146,Projections!$C19,Achievement_forecasts_future!$E$4:$E$146,Projections!$F19) -> 0 | AA19: =SUMIFS(Achievement_forecasts_future!J$4:J$146,Achievement_forecasts_future!$D$4:$D$146,Projections!$E19,Achievement_forecasts_future!$B$4:$B$146,Projections!$C19,Achievement_forecasts_future!$E$4:$E$146,Projections!$F19) -> 0
C20: 4 | D20: All | E20: 4S43 | F20: All | G20: 77284 | H20: 78.9533755 | I20: 82.73795493 | J20: 178.906768 | K20: 311.3736317 | L20: 61018.32672 | M20: 63943.20109 | N20: 138266.3066 | O20: 240641.9975 | P20: =SUMIFS(Achievement_finalised!G$4:G$10000,Achievement_finalised!$D$4:$D$10000,Projections!$E20,Achievement_finalised!$B$4:$B$10000,Projections!$C20,Achievement_finalised!$E$4:$E$10000,Projections!$F20) -> 49277 | Q20: 49277 | R20: 49277 | S20: 49277 | T20: =SUMIFS(Achievement_forecast_ongoing!G$6:G$9967,Achievement_forecast_ongoing!$E$6:$E$9967,Projections!$E20,Achievement_forecast_ongoing!$C$6:$C$9967,Projections!$C20,Achievement_forecast_ongoing!$F$6:$F$9967,Projections!$F20) -> 11741.32672 | U20: =SUMIFS(Achievement_forecast_ongoing!H$6:H$9967,Achievement_forecast_ongoing!$E$6:$E$9967,Projections!$E20,Achievement_forecast_ongoing!$C$6:$C$9967,Projections!$C20,Achievement_forecast_ongoing!$F$6:$F$9967,Projections!$F20) -> 14666.20109 | V20: =SUMIFS(Achievement_forecast_ongoing!I$6:I$9967,Achievement_forecast_ongoing!$E$6:$E$9967,Projections!$E20,Achievement_forecast_ongoing!$C$6:$C$9967,Projections!$C20,Achievement_forecast_ongoing!$F$6:$F$9967,Projections!$F20) -> 14757.24817 | W20: =SUMIFS(Achievement_forecast_ongoing!J$6:J$9967,Achievement_forecast_ongoing!$E$6:$E$9967,Projections!$E20,Achievement_forecast_ongoing!$C$6:$C$9967,Projections!$C20,Achievement_forecast_ongoing!$F$6:$F$9967,Projections!$F20) -> 14757.24817 | X20: =SUMIFS(Achievement_forecasts_future!G$4:G$146,Achievement_forecasts_future!$D$4:$D$146,Projections!$E20,Achievement_forecasts_future!$B$4:$B$146,Projections!$C20,Achievement_forecasts_future!$E$4:$E$146,Projections!$F20) -> 0 | Y20: =SUMIFS(Achievement_forecasts_future!H$4:H$146,Achievement_forecasts_future!$D$4:$D$146,Projections!$E20,Achievement_forecasts_future!$B$4:$B$146,Projections!$C20,Achievement_forecasts_future!$E$4:$E$146,Projections!$F20) -> 0 | Z20: =SUMIFS(Achievement_forecasts_future!I$4:I$146,Achievement_forecasts_future!$D$4:$D$146,Projections!$E20,Achievement_forecasts_future!$B$4:$B$146,Projections!$C20,Achievement_forecasts_future!$E$4:$E$146,Projections!$F20) -> 74232.05839 | AA20: =SUMIFS(Achievement_forecasts_future!J$4:J$146,Achievement_forecasts_future!$D$4:$D$146,Projections!$E20,Achievement_forecasts_future!$B$4:$B$146,Projections!$C20,Achievement_forecasts_future!$E$4:$E$146,Projections!$F20) -> 176607.7494
C21: 4 | D21: All | E21: 4S58 | F21: Less developed | G21: 1011390 | H21: 1.400709035 | I21: 1.900962262 | J21: 2.401215489 | K21: 2.501266134 | L21: 14166.63111 | M21: 19226.14222 | N21: 24285.65333 | O21: 25297.55556 | P21: =SUMIFS(Achievement_finalised!G$4:G$10000,Achievement_finalised!$D$4:$D$10000,Projections!$E21,Achievement_finalised!$B$4:$B$10000,Projections!$C21,Achievement_finalised!$E$4:$E$10000,Projections!$F21) -> 0 | Q21: 0 | R21: 0 | S21: 0 | T21: =SUMIFS(Achievement_forecast_ongoing!G$6:G$9967,Achievement_forecast_ongoing!$E$6:$E$9967,Projections!$E21,Achievement_forecast_ongoing!$C$6:$C$9967,Projections!$C21,Achievement_forecast_ongoing!$F$6:$F$9967,Projections!$F21) -> 14166.63111 | U21: =SUMIFS(Achievement_forecast_ongoing!H$6:H$9967,Achievement_forecast_ongoing!$E$6:$E$9967,Projections!$E21,Achievement_forecast_ongoing!$C$6:$C$9967,Projections!$C21,Achievement_forecast_ongoing!$F$6:$F$9967,Projections!$F21) -> 19226.14222 | V21: =SUMIFS(Achievement_forecast_ongoing!I$6:I$9967,Achievement_forecast_ongoing!$E$6:$E$9967,Projections!$E21,Achievement_forecast_ongoing!$C$6:$C$9967,Projections!$C21,Achievement_forecast_ongoing!$F$6:$F$9967,Projections!$F21) -> 24285.65333 | W21: =SUMIFS(Achievement_forecast_ongoing!J$6:J$9967,Achievement_forecast_ongoing!$E$6:$E$9967,Projections!$E21,Achievement_forecast_ongoing!$C$6:$C$9967,Projections!$C21,Achievement_forecast_ongoing!$F$6:$F$9967,Projections!$F21) -> 25297.55556 | X21: =SUMIFS(Achievement_forecasts_future!G$4:G$146,Achievement_forecasts_future!$D$4:$D$146,Projections!$E21,Achievement_forecasts_future!$B$4:$B$146,Projections!$C21,Achievement_forecasts_future!$E$4:$E$146,Projections!$F21) -> 0 | Y21: =SUMIFS(Achievement_forecasts_future!H$4:H$146,Achievement_forecasts_future!$D$4:$D$146,Projections!$E21,Achievement_forecasts_future!$B$4:$B$146,Projections!$C21,Achievement_forecasts_future!$E$4:$E$146,Projections!$F21) -> 0 | Z21: =SUMIFS(Achievement_forecasts_future!I$4:I$146,Achievement_forecasts_future!$D$4:$D$146,Projections!$E21,Achievement_forecasts_future!$B$4:$B$146,Projections!$C21,Achievement_forecasts_future!$E$4:$E$146,Projections!$F21) -> 0 | AA21: =SUMIFS(Achievement_forecasts_future!J$4:J$146,Achievement_forecasts_future!$D$4:$D$146,Projections!$E21,Achievement_forecasts_future!$B$4:$B$146,Projections!$C21,Achievement_forecasts_future!$E$4:$E$146,Projections!$F21) -> 0
C22: 4 | D22: All | E22: 4S58 | F22: More developed | G22: 181878 | H22: 1.062147887 | I22: 1.441486418 | J22: 1.820824949 | K22: 1.896692655 | L22: 1931.813333 | M22: 2621.746667 | N22: 3311.68 | O22: 3449.666667 | P22: =SUMIFS(Achievement_finalised!G$4:G$10000,Achievement_finalised!$D$4:$D$10000,Projections!$E22,Achievement_finalised!$B$4:$B$10000,Projections!$C22,Achievement_finalised!$E$4:$E$10000,Projections!$F22) -> 0 | Q22: =P22 -> 0 | R22: 0 | S22: 0 | T22: =SUMIFS(Achievement_forecast_ongoing!G$6:G$9967,Achievement_forecast_ongoing!$E$6:$E$9967,Projections!$E22,Achievement_forecast_ongoing!$C$6:$C$9967,Projections!$C22,Achievement_forecast_ongoing!$F$6:$F$9967,Projections!$F22) -> 1931.813333 | U22: =SUMIFS(Achievement_forecast_ongoing!H$6:H$9967,Achievement_forecast_ongoing!$E$6:$E$9967,Projections!$E22,Achievement_forecast_ongoing!$C$6:$C$9967,Projections!$C22,Achievement_forecast_ongoing!$F$6:$F$9967,Projections!$F22) -> 2621.746667 | V22: =SUMIFS(Achievement_forecast_ongoing!I$6:I$9967,Achievement_forecast_ongoing!$E$6:$E$9967,Projections!$E22,Achievement_forecast_ongoing!$C$6:$C$9967,Projections!$C22,Achievement_forecast_ongoing!$F$6:$F$9967,Projections!$F22) -> 3311.68 | W22: =SUMIFS(Achievement_forecast_ongoing!J$6:J$9967,Achievement_forecast_ongoing!$E$6:$E$9967,Projections!$E22,Achievement_forecast_ongoing!$C$6:$C$9967,Projections!$C22,Achievement_forecast_ongoing!$F$6:$F$9967,Projections!$F22) -> 3449.666667 | X22: =SUMIFS(Achievement_forecasts_future!G$4:G$146,Achievement_forecasts_future!$D$4:$D$146,Projections!$E22,Achievement_forecasts_future!$B$4:$B$146,Projections!$C22,Achievement_forecasts_future!$E$4:$E$146,Projections!$F22) -> 0 | Y22: =SUMIFS(Achievement_forecasts_future!H$4:H$146,Achievement_forecasts_future!$D$4:$D$146,Projections!$E22,Achievement_forecasts_future!$B$4:$B$146,Projections!$C22,Achievement_forecasts_future!$E$4:$E$146,Projections!$F22) -> 0 | Z22: =SUMIFS(Achievement_forecasts_future!I$4:I$146,Achievement_forecasts_future!$D$4:$D$146,Projections!$E22,Achievement_forecasts_future!$B$4:$B$146,Projections!$C22,Achievement_forecasts_future!$E$4:$E$146,Projections!$F22) -> 0 | AA22: =SUMIFS(Achievement_forecasts_future!J$4:J$146,Achievement_forecasts_future!$D$4:$D$146,Projections!$E22,Achievement_forecasts_future!$B$4:$B$146,Projections!$C22,Achievement_forecasts_future!$E$4:$E$146,Projections!$F22) -> 0
C23: 4 | D23: All | E23: 4S59 | F23: All | G23: 1678 | H23: 8.102089618 | I23: 32.55101128 | J23: 56.54139979 | K23: 69.69105217 | L23: 135.9530638 | M23: 546.2059692 | N23: 948.7646886 | O23: 1169.415855 | P23: =SUMIFS(Achievement_finalised!G$4:G$10000,Achievement_finalised!$D$4:$D$10000,Projections!$E23,Achievement_finalised!$B$4:$B$10000,Projections!$C23,Achievement_finalised!$E$4:$E$10000,Projections!$F23) -> 0 | Q23: 0 | R23: 0 | S23: 0 | T23: =SUMIFS(Achievement_forecast_ongoing!G$6:G$9967,Achievement_forecast_ongoing!$E$6:$E$9967,Projections!$E23,Achievement_forecast_ongoing!$C$6:$C$9967,Projections!$C23,Achievement_forecast_ongoing!$F$6:$F$9967,Projections!$F23) -> 135.9530638 | U23: =SUMIFS(Achievement_forecast_ongoing!H$6:H$9967,Achievement_forecast_ongoing!$E$6:$E$9967,Projections!$E23,Achievement_forecast_ongoing!$C$6:$C$9967,Projections!$C23,Achievement_forecast_ongoing!$F$6:$F$9967,Projections!$F23) -> 546.2059692 | V23: =SUMIFS(Achievement_forecast_ongoing!I$6:I$9967,Achievement_forecast_ongoing!$E$6:$E$9967,Projections!$E23,Achievement_forecast_ongoing!$C$6:$C$9967,Projections!$C23,Achievement_forecast_ongoing!$F$6:$F$9967,Projections!$F23) -> 948.7646886 | W23: =SUMIFS(Achievement_forecast_ongoing!J$6:J$9967,Achievement_forecast_ongoing!$E$6:$E$9967,Projections!$E23,Achievement_forecast_ongoing!$C$6:$C$9967,Projections!$C23,Achievement_forecast_ongoing!$F$6:$F$9967,Projections!$F23) -> 1169.415855 | X23: =SUMIFS(Achievement_forecasts_future!G$4:G$146,Achievement_forecasts_future!$D$4:$D$146,Projections!$E23,Achievement_forecasts_future!$B$4:$B$146,Projections!$C23,Achievement_forecasts_future!$E$4:$E$146,Projections!$F23) -> 0 | Y23: =SUMIFS(Achievement_forecasts_future!H$4:H$146,Achievement_forecasts_future!$D$4:$D$146,Projections!$E23,Achievement_forecasts_future!$B$4:$B$146,Projections!$C23,Achievement_forecasts_future!$E$4:$E$146,Projections!$F23) -> 0 | Z23: =SUMIFS(Achievement_forecasts_future!I$4:I$146,Achievement_forecasts_future!$D$4:$D$146,Projections!$E23,Achievement_forecasts_future!$B$4:$B$146,Projections!$C23,Achievement_forecasts_future!$E$4:$E$146,Projections!$F23) -> 0 | AA23: =SUMIFS(Achievement_forecasts_future!J$4:J$146,Achievement_forecasts_future!$D$4:$D$146,Projections!$E23,Achievement_forecasts_future!$B$4:$B$146,Projections!$C23,Achievement_forecasts_future!$E$4:$E$146,Projections!$F23) -> 0
C24: 4 | D24: All | E24: 4S60 | F24: All | G24: 141 | H24: 983.6429212 | I24: 1457.779177 | J24: 1929.203462 | K24: 2349.14457 | L24: 1386.936519 | M24: 2055.46864 | N24: 2720.176882 | O24: 3312.293844 | P24: =SUMIFS(Achievement_finalised!G$4:G$10000,Achievement_finalised!$D$4:$D$10000,Projections!$E24,Achievement_finalised!$B$4:$B$10000,Projections!$C24,Achievement_finalised!$E$4:$E$10000,Projections!$F24) -> 0 | Q24: 0 | R24: 0 | S24: 0 | T24: =SUMIFS(Achievement_forecast_ongoing!G$6:G$9967,Achievement_forecast_ongoing!$E$6:$E$9967,Projections!$E24,Achievement_forecast_ongoing!$C$6:$C$9967,Projections!$C24,Achievement_forecast_ongoing!$F$6:$F$9967,Projections!$F24) -> 1386.936519 | U24: =SUMIFS(Achievement_forecast_ongoing!H$6:H$9967,Achievement_forecast_ongoing!$E$6:$E$9967,Projections!$E24,Achievement_forecast_ongoing!$C$6:$C$9967,Projections!$C24,Achievement_forecast_ongoing!$F$6:$F$9967,Projections!$F24) -> 2055.46864 | V24: =SUMIFS(Achievement_forecast_ongoing!I$6:I$9967,Achievement_forecast_ongoing!$E$6:$E$9967,Projections!$E24,Achievement_forecast_ongoing!$C$6:$C$9967,Projections!$C24,Achievement_forecast_ongoing!$F$6:$F$9967,Projections!$F24) -> 2720.176882 | W24: =SUMIFS(Achievement_forecast_ongoing!J$6:J$9967,Achievement_forecast_ongoing!$E$6:$E$9967,Projections!$E24,Achievement_forecast_ongoing!$C$6:$C$9967,Projections!$C24,Achievement_forecast_ongoing!$F$6:$F$9967,Projections!$F24) -> 3312.293844 | X24: =SUMIFS(Achievement_forecasts_future!G$4:G$146,Achievement_forecasts_future!$D$4:$D$146,Projections!$E24,Achievement_forecasts_future!$B$4:$B$146,Projections!$C24,Achievement_forecasts_future!$E$4:$E$146,Projections!$F24) -> 0 | Y24: =SUMIFS(Achievement_forecasts_future!H$4:H$146,Achievement_forecasts_future!$D$4:$D$146,Projections!$E24,Achievement_forecasts_future!$B$4:$B$146,Projections!$C24,Achievement_forecasts_future!$E$4:$E$146,Projections!$F24) -> 0 | Z24: =SUMIFS(Achievement_forecasts_future!I$4:I$146,Achievement_forecasts_future!$D$4:$D$146,Projections!$E24,Achievement_forecasts_future!$B$4:$B$146,Projections!$C24,Achievement_forecasts_future!$E$4:$E$146,Projections!$F24) -> 0 | AA24: =SUMIFS(Achievement_forecasts_future!J$4:J$146,Achievement_forecasts_future!$D$4:$D$146,Projections!$E24,Achievement_forecasts_future!$B$4:$B$146,Projections!$C24,Achievement_forecasts_future!$E$4:$E$146,Projections!$F24) -> 0
C25: 4 | D25: All | E25: 4S63 | F25: All | G25: 2000 | H25: 38.83643745 | I25: 67.61740206 | J25: 85.67150267 | K25: 86.5777699 | L25: 776.728749 | M25: 1352.348041 | N25: 1713.430053 | O25: 1731.555398 | P25: =SUMIFS(Achievement_finalised!G$4:G$10000,Achievement_finalised!$D$4:$D$10000,Projections!$E25,Achievement_finalised!$B$4:$B$10000,Projections!$C25,Achievement_finalised!$E$4:$E$10000,Projections!$F25) -> 0 | Q25: 0 | R25: 0 | S25: 0 | T25: =SUMIFS(Achievement_forecast_ongoing!G$6:G$9967,Achievement_forecast_ongoing!$E$6:$E$9967,Projections!$E25,Achievement_forecast_ongoing!$C$6:$C$9967,Projections!$C25,Achievement_forecast_ongoing!$F$6:$F$9967,Projections!$F25) -> 776.728749 | U25: =SUMIFS(Achievement_forecast_ongoing!H$6:H$9967,Achievement_forecast_ongoing!$E$6:$E$9967,Projections!$E25,Achievement_forecast_ongoing!$C$6:$C$9967,Projections!$C25,Achievement_forecast_ongoing!$F$6:$F$9967,Projections!$F25) -> 1352.348041 | V25: =SUMIFS(Achievement_forecast_ongoing!I$6:I$9967,Achievement_forecast_ongoing!$E$6:$E$9967,Projections!$E25,Achievement_forecast_ongoing!$C$6:$C$9967,Projections!$C25,Achievement_forecast_ongoing!$F$6:$F$9967,Projections!$F25) -> 1713.430053 | W25: =SUMIFS(Achievement_forecast_ongoing!J$6:J$9967,Achievement_forecast_ongoing!$E$6:$E$9967,Projections!$E25,Achievement_forecast_ongoing!$C$6:$C$9967,Projections!$C25,Achievement_forecast_ongoing!$F$6:$F$9967,Projections!$F25) -> 1731.555398 | X25: =SUMIFS(Achievement_forecasts_future!G$4:G$146,Achievement_forecasts_future!$D$4:$D$146,Projections!$E25,Achievement_forecasts_future!$B$4:$B$146,Projections!$C25,Achievement_forecasts_future!$E$4:$E$146,Projections!$F25) -> 0 | Y25: =SUMIFS(Achievement_forecasts_future!H$4:H$146,Achievement_forecasts_future!$D$4:$D$146,Projections!$E25,Achievement_forecasts_future!$B$4:$B$146,Projections!$C25,Achievement_forecasts_future!$E$4:$E$146,Projections!$F25) -> 0 | Z25: =SUMIFS(Achievement_forecasts_future!I$4:I$146,Achievement_forecasts_future!$D$4:$D$146,Projections!$E25,Achievement_forecasts_future!$B$4:$B$146,Projections!$C25,Achievement_forecasts_future!$E$4:$E$146,Projections!$F25) -> 0 | AA25: =SUMIFS(Achievement_forecasts_future!J$4:J$146,Achievement_forecasts_future!$D$4:$D$146,Projections!$E25,Achievement_forecasts_future!$B$4:$B$146,Projections!$C25,Achievement_forecasts_future!$E$4:$E$146,Projections!$F25) -> 0
C26: 4 | D26: All | E26: O1 | F26: Less developed | G26: =1771588250*G49 -> 8720997478 | H26: 48.23149531 | I26: 57.37538261 | J26: 63.85614839 | K26: 72.56628553 | L26: 4206267490 | M26: 5003705671 | N26: 5568893091 | O26: 6328503932 | P26: =SUMIFS(Achievement_finalised!G$4:G$10000,Achievement_finalised!$D$4:$D$10000,Projections!$E26,Achievement_finalised!$B$4:$B$10000,Projections!$C26,Achievement_finalised!$E$4:$E$10000,Projections!$F26) -> 2962252170 | Q26: 2962252170 | R26: 2962252170 | S26: 2962252170 | T26: =SUMIFS(Achievement_forecast_ongoing!G$6:G$9967,Achievement_forecast_ongoing!$E$6:$E$9967,Projections!$E26,Achievement_forecast_ongoing!$C$6:$C$9967,Projections!$C26,Achievement_forecast_ongoing!$F$6:$F$9967,Projections!$F26) -> 1244015320 | U26: =SUMIFS(Achievement_forecast_ongoing!H$6:H$9967,Achievement_forecast_ongoing!$E$6:$E$9967,Projections!$E26,Achievement_forecast_ongoing!$C$6:$C$9967,Projections!$C26,Achievement_forecast_ongoing!$F$6:$F$9967,Projections!$F26) -> 2041453501 | V26: =SUMIFS(Achievement_forecast_ongoing!I$6:I$9967,Achievement_forecast_ongoing!$E$6:$E$9967,Projections!$E26,Achievement_forecast_ongoing!$C$6:$C$9967,Projections!$C26,Achievement_forecast_ongoing!$F$6:$F$9967,Projections!$F26) -> 2606640921 | W26: =SUMIFS(Achievement_forecast_ongoing!J$6:J$9967,Achievement_forecast_ongoing!$E$6:$E$9967,Projections!$E26,Achievement_forecast_ongoing!$C$6:$C$9967,Projections!$C26,Achievement_forecast_ongoing!$F$6:$F$9967,Projections!$F26) -> 2980008394 | X26: =SUMIFS(Achievement_forecasts_future!G$4:G$146,Achievement_forecasts_future!$D$4:$D$146,Projections!$E26,Achievement_forecasts_future!$B$4:$B$146,Projections!$C26,Achievement_forecasts_future!$E$4:$E$146,Projections!$F26) -> 0 | Y26: =SUMIFS(Achievement_forecasts_future!H$4:H$146,Achievement_forecasts_future!$D$4:$D$146,Projections!$E26,Achievement_forecasts_future!$B$4:$B$146,Projections!$C26,Achievement_forecasts_future!$E$4:$E$146,Projections!$F26) -> 0 | Z26: =SUMIFS(Achievement_forecasts_future!I$4:I$146,Achievement_forecasts_future!$D$4:$D$146,Projections!$E26,Achievement_forecasts_future!$B$4:$B$146,Projections!$C26,Achievement_forecasts_future!$E$4:$E$146,Projections!$F26) -> 0 | AA26: =SUMIFS(Achievement_forecasts_future!J$4:J$146,Achievement_forecasts_future!$D$4:$D$146,Projections!$E26,Achievement_forecasts_future!$B$4:$B$146,Projections!$C26,Achievement_forecasts_future!$E$4:$E$146,Projections!$F26) -> 386243367.1
C27: 4 | D27: All | E27: O1 | F27: More developed | G27: =102015620*G49 -> 502192292.6 | H27: 72.55008171 | I27: 87.70023395 | J27: 99.15508381 | K27: 112.3125206 | L27: 364340918.6 | M27: 440423815.5 | N27: 497949188.6 | O27: 564024822.2 | P27: =SUMIFS(Achievement_finalised!G$4:G$10000,Achievement_finalised!$D$4:$D$10000,Projections!$E27,Achievement_finalised!$B$4:$B$10000,Projections!$C27,Achievement_finalised!$E$4:$E$10000,Projections!$F27) -> 249316935.8 | Q27: 249316935.8 | R27: 249316935.8 | S27: 249316935.8 | T27: =SUMIFS(Achievement_forecast_ongoing!G$6:G$9967,Achievement_forecast_ongoing!$E$6:$E$9967,Projections!$E27,Achievement_forecast_ongoing!$C$6:$C$9967,Projections!$C27,Achievement_forecast_ongoing!$F$6:$F$9967,Projections!$F27) -> 115023982.9 | U27: =SUMIFS(Achievement_forecast_ongoing!H$6:H$9967,Achievement_forecast_ongoing!$E$6:$E$9967,Projections!$E27,Achievement_forecast_ongoing!$C$6:$C$9967,Projections!$C27,Achievement_forecast_ongoing!$F$6:$F$9967,Projections!$F27) -> 191106879.7 | V27: =SUMIFS(Achievement_forecast_ongoing!I$6:I$9967,Achievement_forecast_ongoing!$E$6:$E$9967,Projections!$E27,Achievement_forecast_ongoing!$C$6:$C$9967,Projections!$C27,Achievement_forecast_ongoing!$F$6:$F$9967,Projections!$F27) -> 248632252.8 | W27: =SUMIFS(Achievement_forecast_ongoing!J$6:J$9967,Achievement_forecast_ongoing!$E$6:$E$9967,Projections!$E27,Achievement_forecast_ongoing!$C$6:$C$9967,Projections!$C27,Achievement_forecast_ongoing!$F$6:$F$9967,Projections!$F27) -> 289973551.4 | X27: =SUMIFS(Achievement_forecasts_future!G$4:G$146,Achievement_forecasts_future!$D$4:$D$146,Projections!$E27,Achievement_forecasts_future!$B$4:$B$146,Projections!$C27,Achievement_forecasts_future!$E$4:$E$146,Projections!$F27) -> 0 | Y27: =SUMIFS(Achievement_forecasts_future!H$4:H$146,Achievement_forecasts_future!$D$4:$D$146,Projections!$E27,Achievement_forecasts_future!$B$4:$B$146,Projections!$C27,Achievement_forecasts_future!$E$4:$E$146,Projections!$F27) -> 0 | Z27: =SUMIFS(Achievement_forecasts_future!I$4:I$146,Achievement_forecasts_future!$D$4:$D$146,Projections!$E27,Achievement_forecasts_future!$B$4:$B$146,Projections!$C27,Achievement_forecasts_future!$E$4:$E$146,Projections!$F27) -> 0 | AA27: =SUMIFS(Achievement_forecasts_future!J$4:J$146,Achievement_forecasts_future!$D$4:$D$146,Projections!$E27,Achievement_forecasts_future!$B$4:$B$146,Projections!$C27,Achievement_forecasts_future!$E$4:$E$146,Projections!$F27) -> 24734335.05
C28: 5 | D28: All | E28: 4S168 | F28: Less developed | G28: 111571 | H28: 0.5621749499 | I28: 5.186106551 | J28: 10.64841403 | K28: 13.36141987 | L28: =SUM(P28,T28,X28,(L32*0.88)) -> 627.2242133 | M28: =SUM(Q28,U28,Y28,(M32*0.88)) -> 5786.19094 | N28: 11880.54202 | O28: 14907.46976 | P28: =SUMIFS(Achievement_finalised!G$4:G$10000,Achievement_finalised!$D$4:$D$10000,Projections!$E28,Achievement_finalised!$B$4:$B$10000,Projections!$C28,Achievement_finalised!$E$4:$E$10000,Projections!$F28) -> 0 | Q28: =SUMIFS(Achievement_finalised!H$4:H$2997,Achievement_finalised!$D$4:$D$2997,Projections!$E28:$E30,Achievement_finalised!$B$4:$B$2997,Projections!$C28:$C30,Achievement_finalised!$E$4:$E$2997,Projections!$F28:$F30) -> 0 | R28: =SUMIFS(Achievement_finalised!I$4:I$2997,Achievement_finalised!$D$4:$D$2997,Projections!$E28:$E30,Achievement_finalised!$B$4:$B$2997,Projections!$C28:$C30,Achievement_finalised!$E$4:$E$2997,Projections!$F28:$F30) -> 0 | S28: =SUMIFS(Achievement_finalised!J$4:J$2997,Achievement_finalised!$D$4:$D$2997,Projections!$E28:$E30,Achievement_finalised!$B$4:$B$2997,Projections!$C28:$C30,Achievement_finalised!$E$4:$E$2997,Projections!$F28:$F30) -> 0 | T28: =SUMIFS(Achievement_forecast_ongoing!G$6:G$9967,Achievement_forecast_ongoing!$E$6:$E$9967,Projections!$E28,Achievement_forecast_ongoing!$C$6:$C$9967,Projections!$C28,Achievement_forecast_ongoing!$F$6:$F$9967,Projections!$F28) -> 0 | U28: =SUMIFS(Achievement_forecast_ongoing!H$6:H$9967,Achievement_forecast_ongoing!$E$6:$E$9967,Projections!$E28,Achievement_forecast_ongoing!$C$6:$C$9967,Projections!$C28,Achievement_forecast_ongoing!$F$6:$F$9967,Projections!$F28) -> 3251.942488 | V28: =SUMIFS(Achievement_forecast_ongoing!I$6:I$9967,Achievement_forecast_ongoing!$E$6:$E$9967,Projections!$E28,Achievement_forecast_ongoing!$C$6:$C$9967,Projections!$C28,Achievement_forecast_ongoing!$F$6:$F$9967,Projections!$F28) -> 7480.859823 | W28: =SUMIFS(Achievement_forecast_ongoing!J$6:J$9967,Achievement_forecast_ongoing!$E$6:$E$9967,Projections!$E28,Achievement_forecast_ongoing!$C$6:$C$9967,Projections!$C28,Achievement_forecast_ongoing!$F$6:$F$9967,Projections!$F28) -> 9908.902815 | X28: =SUMIFS(Achievement_forecasts_future!G$4:G$146,Achievement_forecasts_future!$D$4:$D$146,Projections!$E28,Achievement_forecasts_future!$B$4:$B$146,Projections!$C28,Achievement_forecasts_future!$E$4:$E$146,Projections!$F28) -> 0 | Y28: =SUMIFS(Achievement_forecasts_future!H$4:H$146,Achievement_forecasts_future!$D$4:$D$146,Projections!$E28,Achievement_forecasts_future!$B$4:$B$146,Projections!$C28,Achievement_forecasts_future!$E$4:$E$146,Projections!$F28) -> 0 | Z28: =SUMIFS(Achievement_forecasts_future!I$4:I$146,Achievement_forecasts_future!$D$4:$D$146,Projections!$E28,Achievement_forecasts_future!$B$4:$B$146,Projections!$C28,Achievement_forecasts_future!$E$4:$E$146,Projections!$F28) -> 0 | AA28: =SUMIFS(Achievement_forecasts_future!J$4:J$146,Achievement_forecasts_future!$D$4:$D$146,Projections!$E28,Achievement_forecasts_future!$B$4:$B$146,Projections!$C28,Achievement_forecasts_future!$E$4:$E$146,Projections!$F28) -> 0
C29: 5 | D29: All | E29: 4S168 | F29: More developed | G29: 3347 | H29: =L29/$G29*100 -> 2.555439933 | I29: 20.75886931 | J29: 42.14485931 | K29: 52.1011177 | L29: =SUM(P29,T29,X29,(L32*0.12)) -> 85.53057455 | M29: =SUM(Q29,U29,Y29,(M32*0.12)) -> 694.7993559 | N29: 1410.588441 | O29: 1743.824409 | P29: =SUMIFS(Achievement_finalised!G$4:G$10000,Achievement_finalised!$D$4:$D$10000,Projections!$E29,Achievement_finalised!$B$4:$B$10000,Projections!$C29,Achievement_finalised!$E$4:$E$10000,Projections!$F29) -> 0 | Q29: =SUMIFS(Achievement_finalised!H$4:H$2997,Achievement_finalised!$D$4:$D$2997,Projections!$E29:$E31,Achievement_finalised!$B$4:$B$2997,Projections!$C29:$C31,Achievement_finalised!$E$4:$E$2997,Projections!$F29:$F31) -> 0 | R29: =SUMIFS(Achievement_finalised!I$4:I$2997,Achievement_finalised!$D$4:$D$2997,Projections!$E29:$E31,Achievement_finalised!$B$4:$B$2997,Projections!$C29:$C31,Achievement_finalised!$E$4:$E$2997,Projections!$F29:$F31) -> 0 | S29: =SUMIFS(Achievement_finalised!J$4:J$2997,Achievement_finalised!$D$4:$D$2997,Projections!$E29:$E31,Achievement_finalised!$B$4:$B$2997,Projections!$C29:$C31,Achievement_finalised!$E$4:$E$2997,Projections!$F29:$F31) -> 0 | T29: =SUMIFS(Achievement_forecast_ongoing!G$6:G$9967,Achievement_forecast_ongoing!$E$6:$E$9967,Projections!$E29,Achievement_forecast_ongoing!$C$6:$C$9967,Projections!$C29,Achievement_forecast_ongoing!$F$6:$F$9967,Projections!$F29) -> 0 | U29: =SUMIFS(Achievement_forecast_ongoing!H$6:H$9967,Achievement_forecast_ongoing!$E$6:$E$9967,Projections!$E29,Achievement_forecast_ongoing!$C$6:$C$9967,Projections!$C29,Achievement_forecast_ongoing!$F$6:$F$9967,Projections!$F29) -> 349.2200215 | V29: =SUMIFS(Achievement_forecast_ongoing!I$6:I$9967,Achievement_forecast_ongoing!$E$6:$E$9967,Projections!$E29,Achievement_forecast_ongoing!$C$6:$C$9967,Projections!$C29,Achievement_forecast_ongoing!$F$6:$F$9967,Projections!$F29) -> 810.6317774 | W29: =SUMIFS(Achievement_forecast_ongoing!J$6:J$9967,Achievement_forecast_ongoing!$E$6:$E$9967,Projections!$E29,Achievement_forecast_ongoing!$C$6:$C$9967,Projections!$C29,Achievement_forecast_ongoing!$F$6:$F$9967,Projections!$F29) -> 1062.201644 | X29: =SUMIFS(Achievement_forecasts_future!G$4:G$146,Achievement_forecasts_future!$D$4:$D$146,Projections!$E29,Achievement_forecasts_future!$B$4:$B$146,Projections!$C29,Achievement_forecasts_future!$E$4:$E$146,Projections!$F29) -> 0 | Y29: =SUMIFS(Achievement_forecasts_future!H$4:H$146,Achievement_forecasts_future!$D$4:$D$146,Projections!$E29,Achievement_forecasts_future!$B$4:$B$146,Projections!$C29,Achievement_forecasts_future!$E$4:$E$146,Projections!$F29) -> 0 | Z29: =SUMIFS(Achievement_forecasts_future!I$4:I$146,Achievement_forecasts_future!$D$4:$D$146,Projections!$E29,Achievement_forecasts_future!$B$4:$B$146,Projections!$C29,Achievement_forecasts_future!$E$4:$E$146,Projections!$F29) -> 0 | AA29: =SUMIFS(Achievement_forecasts_future!J$4:J$146,Achievement_forecasts_future!$D$4:$D$146,Projections!$E29,Achievement_forecasts_future!$B$4:$B$146,Projections!$C29,Achievement_forecasts_future!$E$4:$E$146,Projections!$F29) -> 0
C30: 5 | D30: All | E30: 4S68 | F30: Less developed | G30: 70 | H30: 40 | I30: 40 | J30: 40 | K30: 40 | L30: 28 | M30: 28 | N30: 28 | O30: 28 | P30: =SUMIFS(Achievement_finalised!G$4:G$10000,Achievement_finalised!$D$4:$D$10000,Projections!$E30,Achievement_finalised!$B$4:$B$10000,Projections!$C30,Achievement_finalised!$E$4:$E$10000,Projections!$F30) -> 28 | Q30: 28 | R30: 28 | S30: 28 | T30: =SUMIFS(Achievement_forecast_ongoing!G$6:G$9967,Achievement_forecast_ongoing!$E$6:$E$9967,Projections!$E30,Achievement_forecast_ongoing!$C$6:$C$9967,Projections!$C30,Achievement_forecast_ongoing!$F$6:$F$9967,Projections!$F30) -> 0 | U30: =SUMIFS(Achievement_forecast_ongoing!H$6:H$9967,Achievement_forecast_ongoing!$E$6:$E$9967,Projections!$E30,Achievement_forecast_ongoing!$C$6:$C$9967,Projections!$C30,Achievement_forecast_ongoing!$F$6:$F$9967,Projections!$F30) -> 0 | V30: =SUMIFS(Achievement_forecast_ongoing!I$6:I$9967,Achievement_forecast_ongoing!$E$6:$E$9967,Projections!$E30,Achievement_forecast_ongoing!$C$6:$C$9967,Projections!$C30,Achievement_forecast_ongoing!$F$6:$F$9967,Projections!$F30) -> 0 | W30: =SUMIFS(Achievement_forecast_ongoing!J$6:J$9967,Achievement_forecast_ongoing!$E$6:$E$9967,Projections!$E30,Achievement_forecast_ongoing!$C$6:$C$9967,Projections!$C30,Achievement_forecast_ongoing!$F$6:$F$9967,Projections!$F30) -> 0 | X30: =SUMIFS(Achievement_forecasts_future!G$4:G$146,Achievement_forecasts_future!$D$4:$D$146,Projections!$E30,Achievement_forecasts_future!$B$4:$B$146,Projections!$C30,Achievement_forecasts_future!$E$4:$E$146,Projections!$F30) -> 0 | Y30: =SUMIFS(Achievement_forecasts_future!H$4:H$146,Achievement_forecasts_future!$D$4:$D$146,Projections!$E30,Achievement_forecasts_future!$B$4:$B$146,Projections!$C30,Achievement_forecasts_future!$E$4:$E$146,Projections!$F30) -> 0 | Z30: =SUMIFS(Achievement_forecasts_future!I$4:I$146,Achievement_forecasts_future!$D$4:$D$146,Projections!$E30,Achievement_forecasts_future!$B$4:$B$146,Projections!$C30,Achievement_forecasts_future!$E$4:$E$146,Projections!$F30) -> 0 | AA30: =SUMIFS(Achievement_forecasts_future!J$4:J$146,Achievement_forecasts_future!$D$4:$D$146,Projections!$E30,Achievement_forecasts_future!$B$4:$B$146,Projections!$C30,Achievement_forecasts_future!$E$4:$E$146,Projections!$F30) -> 0
C31: =C30 -> 5 | D31: =D30 -> All | E31: 4S68 | F31: More developed | G31: 2 | H31: 40 | I31: 40 | J31: 40 | K31: 40 | L31: 28 | M31: 28 | N31: 28 | O31: 28 | P31: =SUMIFS(Achievement_finalised!G$4:G$10000,Achievement_finalised!$D$4:$D$10000,Projections!$E31,Achievement_finalised!$B$4:$B$10000,Projections!$C31,Achievement_finalised!$E$4:$E$10000,Projections!$F31) -> 3 | Q31: 28 | R31: 28 | S31: 28 | T31: =SUMIFS(Achievement_forecast_ongoing!G$6:G$9967,Achievement_forecast_ongoing!$E$6:$E$9967,Projections!$E31,Achievement_forecast_ongoing!$C$6:$C$9967,Projections!$C31,Achievement_forecast_ongoing!$F$6:$F$9967,Projections!$F31) -> 0 | U31: =SUMIFS(Achievement_forecast_ongoing!H$6:H$9967,Achievement_forecast_ongoing!$E$6:$E$9967,Projections!$E31,Achievement_forecast_ongoing!$C$6:$C$9967,Projections!$C31,Achievement_forecast_ongoing!$F$6:$F$9967,Projections!$F31) -> 0 | V31: =SUMIFS(Achievement_forecast_ongoing!I$6:I$9967,Achievement_forecast_ongoing!$E$6:$E$9967,Projections!$E31,Achievement_forecast_ongoing!$C$6:$C$9967,Projections!$C31,Achievement_forecast_ongoing!$F$6:$F$9967,Projections!$F31) -> 0 | W31: =SUMIFS(Achievement_forecast_ongoing!J$6:J$9967,Achievement_forecast_ongoing!$E$6:$E$9967,Projections!$E31,Achievement_forecast_ongoing!$C$6:$C$9967,Projections!$C31,Achievement_forecast_ongoing!$F$6:$F$9967,Projections!$F31) -> 0 | X31: =SUMIFS(Achievement_forecasts_future!G$4:G$146,Achievement_forecasts_future!$D$4:$D$146,Projections!$E31,Achievement_forecasts_future!$B$4:$B$146,Projections!$C31,Achievement_forecasts_future!$E$4:$E$146,Projections!$F31) -> 0 | Y31: =SUMIFS(Achievement_forecasts_future!H$4:H$146,Achievement_forecasts_future!$D$4:$D$146,Projections!$E31,Achievement_forecasts_future!$B$4:$B$146,Projections!$C31,Achievement_forecasts_future!$E$4:$E$146,Projections!$F31) -> 0 | Z31: =SUMIFS(Achievement_forecasts_future!I$4:I$146,Achievement_forecasts_future!$D$4:$D$146,Projections!$E31,Achievement_forecasts_future!$B$4:$B$146,Projections!$C31,Achievement_forecasts_future!$E$4:$E$146,Projections!$F31) -> 0 | AA31: =SUMIFS(Achievement_forecasts_future!J$4:J$146,Achievement_forecasts_future!$D$4:$D$146,Projections!$E31,Achievement_forecasts_future!$B$4:$B$146,Projections!$C31,Achievement_forecasts_future!$E$4:$E$146,Projections!$F31) -> 0
C32: 5 | D32: All | E32: 4S67 | F32: All | L32: 712.7547879 | M32: 2879.827786 | N32: 4999.638863 | O32: 5680.189709 | P32: =SUMIFS(Achievement_finalised!G$4:G$10000,Achievement_finalised!$D$4:$D$10000,Projections!$E32,Achievement_finalised!$B$4:$B$10000,Projections!$C32,Achievement_finalised!$E$4:$E$10000,Projections!$F32) -> 0 | Q32: 0 | R32: 0 | S32: 0 | T32: =SUMIFS(Achievement_forecast_ongoing!G$6:G$9967,Achievement_forecast_ongoing!$E$6:$E$9967,Projections!$E32,Achievement_forecast_ongoing!$C$6:$C$9967,Projections!$C32,Achievement_forecast_ongoing!$F$6:$F$9967,Projections!$F32) -> 712.7547879 | U32: =SUMIFS(Achievement_forecast_ongoing!H$6:H$9967,Achievement_forecast_ongoing!$E$6:$E$9967,Projections!$E32,Achievement_forecast_ongoing!$C$6:$C$9967,Projections!$C32,Achievement_forecast_ongoing!$F$6:$F$9967,Projections!$F32) -> 2879.827786 | V32: =SUMIFS(Achievement_forecast_ongoing!I$6:I$9967,Achievement_forecast_ongoing!$E$6:$E$9967,Projections!$E32,Achievement_forecast_ongoing!$C$6:$C$9967,Projections!$C32,Achievement_forecast_ongoing!$F$6:$F$9967,Projections!$F32) -> 4999.638863 | W32: =SUMIFS(Achievement_forecast_ongoing!J$6:J$9967,Achievement_forecast_ongoing!$E$6:$E$9967,Projections!$E32,Achievement_forecast_ongoing!$C$6:$C$9967,Projections!$C32,Achievement_forecast_ongoing!$F$6:$F$9967,Projections!$F32) -> 5680.189709 | X32: =SUMIFS(Achievement_forecasts_future!G$4:G$146,Achievement_forecasts_future!$D$4:$D$146,Projections!$E32,Achievement_forecasts_future!$B$4:$B$146,Projections!$C32,Achievement_forecasts_future!$E$4:$E$146,Projections!$F32) -> 0 | Y32: =SUMIFS(Achievement_forecasts_future!H$4:H$146,Achievement_forecasts_future!$D$4:$D$146,Projections!$E32,Achievement_forecasts_future!$B$4:$B$146,Projections!$C32,Achievement_forecasts_future!$E$4:$E$146,Projections!$F32) -> 0 | Z32: =SUMIFS(Achievement_forecasts_future!I$4:I$146,Achievement_forecasts_future!$D$4:$D$146,Projections!$E32,Achievement_forecasts_future!$B$4:$B$146,Projections!$C32,Achievement_forecasts_future!$E$4:$E$146,Projections!$F32) -> 0 | AA32: =SUMIFS(Achievement_forecasts_future!J$4:J$146,Achievement_forecasts_future!$D$4:$D$146,Projections!$E32,Achievement_forecasts_future!$B$4:$B$146,Projections!$C32,Achievement_forecasts_future!$E$4:$E$146,Projections!$F32) -> 0
C33: 5 | D33: All | E33: O1 | F33: Less developed | G33: =161625639*G49 -> 795634533.1 | H33: 6.068590597 | I33: 20.02726497 | J33: 36.40944109 | K33: 45.22939 | L33: 48283802.47 | M33: 159343836.1 | N33: 289686086.6 | O33: 359860645.9 | P33: =SUMIFS(Achievement_finalised!G$4:G$10000,Achievement_finalised!$D$4:$D$10000,Projections!$E33,Achievement_finalised!$B$4:$B$10000,Projections!$C33,Achievement_finalised!$E$4:$E$10000,Projections!$F33) -> 18602860.01 | Q33: 18602860.01 | R33: 18602860.01 | S33: 18602860.01 | T33: =SUMIFS(Achievement_forecast_ongoing!G$6:G$9967,Achievement_forecast_ongoing!$E$6:$E$9967,Projections!$E33,Achievement_forecast_ongoing!$C$6:$C$9967,Projections!$C33,Achievement_forecast_ongoing!$F$6:$F$9967,Projections!$F33) -> 29680942.45 | U33: =SUMIFS(Achievement_forecast_ongoing!H$6:H$9967,Achievement_forecast_ongoing!$E$6:$E$9967,Projections!$E33,Achievement_forecast_ongoing!$C$6:$C$9967,Projections!$C33,Achievement_forecast_ongoing!$F$6:$F$9967,Projections!$F33) -> 140740976.1 | V33: =SUMIFS(Achievement_forecast_ongoing!I$6:I$9967,Achievement_forecast_ongoing!$E$6:$E$9967,Projections!$E33,Achievement_forecast_ongoing!$C$6:$C$9967,Projections!$C33,Achievement_forecast_ongoing!$F$6:$F$9967,Projections!$F33) -> 271083226.6 | W33: =SUMIFS(Achievement_forecast_ongoing!J$6:J$9967,Achievement_forecast_ongoing!$E$6:$E$9967,Projections!$E33,Achievement_forecast_ongoing!$C$6:$C$9967,Projections!$C33,Achievement_forecast_ongoing!$F$6:$F$9967,Projections!$F33) -> 339681883.3 | X33: =SUMIFS(Achievement_forecasts_future!G$4:G$146,Achievement_forecasts_future!$D$4:$D$146,Projections!$E33,Achievement_forecasts_future!$B$4:$B$146,Projections!$C33,Achievement_forecasts_future!$E$4:$E$146,Projections!$F33) -> 0 | Y33: =SUMIFS(Achievement_forecasts_future!H$4:H$146,Achievement_forecasts_future!$D$4:$D$146,Projections!$E33,Achievement_forecasts_future!$B$4:$B$146,Projections!$C33,Achievement_forecasts_future!$E$4:$E$146,Projections!$F33) -> 0 | Z33: =SUMIFS(Achievement_forecasts_future!I$4:I$146,Achievement_forecasts_future!$D$4:$D$146,Projections!$E33,Achievement_forecasts_future!$B$4:$B$146,Projections!$C33,Achievement_forecasts_future!$E$4:$E$146,Projections!$F33) -> 0 | AA33: =SUMIFS(Achievement_forecasts_future!J$4:J$146,Achievement_forecasts_future!$D$4:$D$146,Projections!$E33,Achievement_forecasts_future!$B$4:$B$146,Projections!$C33,Achievement_forecasts_future!$E$4:$E$146,Projections!$F33) -> 1575902.589
C34: 5 | D34: All | E34: O1 | F34: More developed | G34: =4374484*G49 -> 21534272.39 | H34: 33.30005841 | I34: 83.18097354 | J34: 144.0637496 | K34: 179.6852392 | L34: 7170925.283 | M34: 17912417.42 | N34: 31023080.26 | O34: 38693908.85 | P34: =SUMIFS(Achievement_finalised!G$4:G$10000,Achievement_finalised!$D$4:$D$10000,Projections!$E34,Achievement_finalised!$B$4:$B$10000,Projections!$C34,Achievement_finalised!$E$4:$E$10000,Projections!$F34) -> 4650715.003 | Q34: 4650715.003 | R34: 4650715.003 | S34: 4650715.003 | T34: =SUMIFS(Achievement_forecast_ongoing!G$6:G$9967,Achievement_forecast_ongoing!$E$6:$E$9967,Projections!$E34,Achievement_forecast_ongoing!$C$6:$C$9967,Projections!$C34,Achievement_forecast_ongoing!$F$6:$F$9967,Projections!$F34) -> 2520210.28 | U34: =SUMIFS(Achievement_forecast_ongoing!H$6:H$9967,Achievement_forecast_ongoing!$E$6:$E$9967,Projections!$E34,Achievement_forecast_ongoing!$C$6:$C$9967,Projections!$C34,Achievement_forecast_ongoing!$F$6:$F$9967,Projections!$F34) -> 13261702.41 | V34: =SUMIFS(Achievement_forecast_ongoing!I$6:I$9967,Achievement_forecast_ongoing!$E$6:$E$9967,Projections!$E34,Achievement_forecast_ongoing!$C$6:$C$9967,Projections!$C34,Achievement_forecast_ongoing!$F$6:$F$9967,Projections!$F34) -> 26372365.25 | W34: =SUMIFS(Achievement_forecast_ongoing!J$6:J$9967,Achievement_forecast_ongoing!$E$6:$E$9967,Projections!$E34,Achievement_forecast_ongoing!$C$6:$C$9967,Projections!$C34,Achievement_forecast_ongoing!$F$6:$F$9967,Projections!$F34) -> 33875488.91 | X34: =SUMIFS(Achievement_forecasts_future!G$4:G$146,Achievement_forecasts_future!$D$4:$D$146,Projections!$E34,Achievement_forecasts_future!$B$4:$B$146,Projections!$C34,Achievement_forecasts_future!$E$4:$E$146,Projections!$F34) -> 0 | Y34: =SUMIFS(Achievement_forecasts_future!H$4:H$146,Achievement_forecasts_future!$D$4:$D$146,Projections!$E34,Achievement_forecasts_future!$B$4:$B$146,Projections!$C34,Achievement_forecasts_future!$E$4:$E$146,Projections!$F34) -> 0 | Z34: =SUMIFS(Achievement_forecasts_future!I$4:I$146,Achievement_forecasts_future!$D$4:$D$146,Projections!$E34,Achievement_forecasts_future!$B$4:$B$146,Projections!$C34,Achievement_forecasts_future!$E$4:$E$146,Projections!$F34) -> 0 | AA34: =SUMIFS(Achievement_forecasts_future!J$4:J$146,Achievement_forecasts_future!$D$4:$D$146,Projections!$E34,Achievement_forecasts_future!$B$4:$B$146,Projections!$C34,Achievement_forecasts_future!$E$4:$E$146,Projections!$F34) -> 167704.9305
C35: 6 | D35: All | E35: 4S100 | F35: All | G35: 36465 | H35: 37.26605079 | I35: 46.8686686 | J35: 48.54097047 | K35: 53.13115212 | L35: 13589.06542 | M35: 17090.66001 | N35: 17700.46488 | O35: 19374.27462 | P35: =SUMIFS(Achievement_finalised!G$4:G$10000,Achievement_finalised!$D$4:$D$10000,Projections!$E35,Achievement_finalised!$B$4:$B$10000,Projections!$C35,Achievement_finalised!$E$4:$E$10000,Projections!$F35) -> 6047 | Q35: 6047 | R35: 6047 | S35: 6047 | T35: =SUMIFS(Achievement_forecast_ongoing!G$6:G$9967,Achievement_forecast_ongoing!$E$6:$E$9967,Projections!$E35,Achievement_forecast_ongoing!$C$6:$C$9967,Projections!$C35,Achievement_forecast_ongoing!$F$6:$F$9967,Projections!$F35) -> 7542.065421 | U35: =SUMIFS(Achievement_forecast_ongoing!H$6:H$9967,Achievement_forecast_ongoing!$E$6:$E$9967,Projections!$E35,Achievement_forecast_ongoing!$C$6:$C$9967,Projections!$C35,Achievement_forecast_ongoing!$F$6:$F$9967,Projections!$F35) -> 11043.66001 | V35: =SUMIFS(Achievement_forecast_ongoing!I$6:I$9967,Achievement_forecast_ongoing!$E$6:$E$9967,Projections!$E35,Achievement_forecast_ongoing!$C$6:$C$9967,Projections!$C35,Achievement_forecast_ongoing!$F$6:$F$9967,Projections!$F35) -> 11179.74514 | W35: =SUMIFS(Achievement_forecast_ongoing!J$6:J$9967,Achievement_forecast_ongoing!$E$6:$E$9967,Projections!$E35,Achievement_forecast_ongoing!$C$6:$C$9967,Projections!$C35,Achievement_forecast_ongoing!$F$6:$F$9967,Projections!$F35) -> 11179.74514 | X35: =SUMIFS(Achievement_forecasts_future!G$4:G$146,Achievement_forecasts_future!$D$4:$D$146,Projections!$E35,Achievement_forecasts_future!$B$4:$B$146,Projections!$C35,Achievement_forecasts_future!$E$4:$E$146,Projections!$F35) -> 0 | Y35: =SUMIFS(Achievement_forecasts_future!H$4:H$146,Achievement_forecasts_future!$D$4:$D$146,Projections!$E35,Achievement_forecasts_future!$B$4:$B$146,Projections!$C35,Achievement_forecasts_future!$E$4:$E$146,Projections!$F35) -> 0 | Z35: =SUMIFS(Achievement_forecasts_future!I$4:I$146,Achievement_forecasts_future!$D$4:$D$146,Projections!$E35,Achievement_forecasts_future!$B$4:$B$146,Projections!$C35,Achievement_forecasts_future!$E$4:$E$146,Projections!$F35) -> 473.7197373 | AA35: =SUMIFS(Achievement_forecasts_future!J$4:J$146,Achievement_forecasts_future!$D$4:$D$146,Projections!$E35,Achievement_forecasts_future!$B$4:$B$146,Projections!$C35,Achievement_forecasts_future!$E$4:$E$146,Projections!$F35) -> 2147.529476
C36: 6 | D36: All | E36: 4S113 | F36: All | G36: 27046 | H36: 518.6534053 | I36: 518.6534053 | J36: 518.6534053 | K36: 629.5936848 | L36: 140275 | M36: 140275 | N36: 140275 | O36: 170279.908 | P36: =SUMIFS(Achievement_finalised!G$4:G$10000,Achievement_finalised!$D$4:$D$10000,Projections!$E36,Achievement_finalised!$B$4:$B$10000,Projections!$C36,Achievement_finalised!$E$4:$E$10000,Projections!$F36) -> 140275 | Q36: 140275 | R36: 140275 | S36: 140275 | T36: =SUMIFS(Achievement_forecast_ongoing!G$6:G$9967,Achievement_forecast_ongoing!$E$6:$E$9967,Projections!$E36,Achievement_forecast_ongoing!$C$6:$C$9967,Projections!$C36,Achievement_forecast_ongoing!$F$6:$F$9967,Projections!$F36) -> 0 | U36: =SUMIFS(Achievement_forecast_ongoing!H$6:H$9967,Achievement_forecast_ongoing!$E$6:$E$9967,Projections!$E36,Achievement_forecast_ongoing!$C$6:$C$9967,Projections!$C36,Achievement_forecast_ongoing!$F$6:$F$9967,Projections!$F36) -> 0 | V36: =SUMIFS(Achievement_forecast_ongoing!I$6:I$9967,Achievement_forecast_ongoing!$E$6:$E$9967,Projections!$E36,Achievement_forecast_ongoing!$C$6:$C$9967,Projections!$C36,Achievement_forecast_ongoing!$F$6:$F$9967,Projections!$F36) -> 0 | W36: =SUMIFS(Achievement_forecast_ongoing!J$6:J$9967,Achievement_forecast_ongoing!$E$6:$E$9967,Projections!$E36,Achievement_forecast_ongoing!$C$6:$C$9967,Projections!$C36,Achievement_forecast_ongoing!$F$6:$F$9967,Projections!$F36) -> 0 | X36: =SUMIFS(Achievement_forecasts_future!G$4:G$146,Achievement_forecasts_future!$D$4:$D$146,Projections!$E36,Achievement_forecasts_future!$B$4:$B$146,Projections!$C36,Achievement_forecasts_future!$E$4:$E$146,Projections!$F36) -> 0 | Y36: =SUMIFS(Achievement_forecasts_future!H$4:H$146,Achievement_forecasts_future!$D$4:$D$146,Projections!$E36,Achievement_forecasts_future!$B$4:$B$146,Projections!$C36,Achievement_forecasts_future!$E$4:$E$146,Projections!$F36) -> 0 | Z36: =SUMIFS(Achievement_forecasts_future!I$4:I$146,Achievement_forecasts_future!$D$4:$D$146,Projections!$E36,Achievement_forecasts_future!$B$4:$B$146,Projections!$C36,Achievement_forecasts_future!$E$4:$E$146,Projections!$F36) -> 0 | AA36: =SUMIFS(Achievement_forecasts_future!J$4:J$146,Achievement_forecasts_future!$D$4:$D$146,Projections!$E36,Achievement_forecasts_future!$B$4:$B$146,Projections!$C36,Achievement_forecasts_future!$E$4:$E$146,Projections!$F36) -> 30004.90799
C37: 6 | D37: All | E37: 4S130 | F37: All | G37: 3481 | H37: 43.22880372 | I37: 56.66593879 | J37: 65.09844259 | K37: 80.39695737 | L37: 1504.794657 | M37: 1972.541329 | N37: 2266.076786 | O37: 2798.618086 | P37: =SUMIFS(Achievement_finalised!G$4:G$10000,Achievement_finalised!$D$4:$D$10000,Projections!$E37,Achievement_finalised!$B$4:$B$10000,Projections!$C37,Achievement_finalised!$E$4:$E$10000,Projections!$F37) -> 746 | Q37: =P37 -> 746 | R37: =Q37 -> 746 | S37: =R37 -> 746 | T37: =SUMIFS(Achievement_forecast_ongoing!G$6:G$9967,Achievement_forecast_ongoing!$E$6:$E$9967,Projections!$E37,Achievement_forecast_ongoing!$C$6:$C$9967,Projections!$C37,Achievement_forecast_ongoing!$F$6:$F$9967,Projections!$F37) -> 758.7946574 | U37: =SUMIFS(Achievement_forecast_ongoing!H$6:H$9967,Achievement_forecast_ongoing!$E$6:$E$9967,Projections!$E37,Achievement_forecast_ongoing!$C$6:$C$9967,Projections!$C37,Achievement_forecast_ongoing!$F$6:$F$9967,Projections!$F37) -> 1226.541329 | V37: =SUMIFS(Achievement_forecast_ongoing!I$6:I$9967,Achievement_forecast_ongoing!$E$6:$E$9967,Projections!$E37,Achievement_forecast_ongoing!$C$6:$C$9967,Projections!$C37,Achievement_forecast_ongoing!$F$6:$F$9967,Projections!$F37) -> 1373.056182 | W37: =SUMIFS(Achievement_forecast_ongoing!J$6:J$9967,Achievement_forecast_ongoing!$E$6:$E$9967,Projections!$E37,Achievement_forecast_ongoing!$C$6:$C$9967,Projections!$C37,Achievement_forecast_ongoing!$F$6:$F$9967,Projections!$F37) -> 1373.056182 | X37: =SUMIFS(Achievement_forecasts_future!G$4:G$146,Achievement_forecasts_future!$D$4:$D$146,Projections!$E37,Achievement_forecasts_future!$B$4:$B$146,Projections!$C37,Achievement_forecasts_future!$E$4:$E$146,Projections!$F37) -> 0 | Y37: =SUMIFS(Achievement_forecasts_future!H$4:H$146,Achievement_forecasts_future!$D$4:$D$146,Projections!$E37,Achievement_forecasts_future!$B$4:$B$146,Projections!$C37,Achievement_forecasts_future!$E$4:$E$146,Projections!$F37) -> 0 | Z37: =SUMIFS(Achievement_forecasts_future!I$4:I$146,Achievement_forecasts_future!$D$4:$D$146,Projections!$E37,Achievement_forecasts_future!$B$4:$B$146,Projections!$C37,Achievement_forecasts_future!$E$4:$E$146,Projections!$F37) -> 147.0206042 | AA37: =SUMIFS(Achievement_forecasts_future!J$4:J$146,Achievement_forecasts_future!$D$4:$D$146,Projections!$E37,Achievement_forecasts_future!$B$4:$B$146,Projections!$C37,Achievement_forecasts_future!$E$4:$E$146,Projections!$F37) -> 679.5619037
C38: 6 | D38: All | E38: 4S87 | F38: Less developed | G38: 50088 | H38: 43.48270091 | I38: 49.60059921 | J38: 61.2597395 | K38: 78.71059598 | L38: 21779.61523 | M38: 24843.94813 | N38: 30683.77832 | O38: 39424.56331 | P38: =SUMIFS(Achievement_finalised!G$4:G$10000,Achievement_finalised!$D$4:$D$10000,Projections!$E38,Achievement_finalised!$B$4:$B$10000,Projections!$C38,Achievement_finalised!$E$4:$E$10000,Projections!$F38) -> 16174 | Q38: 16174 | R38: 16174 | S38: 16174 | T38: =SUMIFS(Achievement_forecast_ongoing!G$6:G$9967,Achievement_forecast_ongoing!$E$6:$E$9967,Projections!$E38,Achievement_forecast_ongoing!$C$6:$C$9967,Projections!$C38,Achievement_forecast_ongoing!$F$6:$F$9967,Projections!$F38) -> 5605.615233 | U38: =SUMIFS(Achievement_forecast_ongoing!H$6:H$9967,Achievement_forecast_ongoing!$E$6:$E$9967,Projections!$E38,Achievement_forecast_ongoing!$C$6:$C$9967,Projections!$C38,Achievement_forecast_ongoing!$F$6:$F$9967,Projections!$F38) -> 8669.94813 | V38: =SUMIFS(Achievement_forecast_ongoing!I$6:I$9967,Achievement_forecast_ongoing!$E$6:$E$9967,Projections!$E38,Achievement_forecast_ongoing!$C$6:$C$9967,Projections!$C38,Achievement_forecast_ongoing!$F$6:$F$9967,Projections!$F38) -> 10410.43201 | W38: =SUMIFS(Achievement_forecast_ongoing!J$6:J$9967,Achievement_forecast_ongoing!$E$6:$E$9967,Projections!$E38,Achievement_forecast_ongoing!$C$6:$C$9967,Projections!$C38,Achievement_forecast_ongoing!$F$6:$F$9967,Projections!$F38) -> 11599.39369 | X38: =SUMIFS(Achievement_forecasts_future!G$4:G$146,Achievement_forecasts_future!$D$4:$D$146,Projections!$E38,Achievement_forecasts_future!$B$4:$B$146,Projections!$C38,Achievement_forecasts_future!$E$4:$E$146,Projections!$F38) -> 0 | Y38: =SUMIFS(Achievement_forecasts_future!H$4:H$146,Achievement_forecasts_future!$D$4:$D$146,Projections!$E38,Achievement_forecasts_future!$B$4:$B$146,Projections!$C38,Achievement_forecasts_future!$E$4:$E$146,Projections!$F38) -> 0 | Z38: =SUMIFS(Achievement_forecasts_future!I$4:I$146,Achievement_forecasts_future!$D$4:$D$146,Projections!$E38,Achievement_forecasts_future!$B$4:$B$146,Projections!$C38,Achievement_forecasts_future!$E$4:$E$146,Projections!$F38) -> 4099.346317 | AA38: =SUMIFS(Achievement_forecasts_future!J$4:J$146,Achievement_forecasts_future!$D$4:$D$146,Projections!$E38,Achievement_forecasts_future!$B$4:$B$146,Projections!$C38,Achievement_forecasts_future!$E$4:$E$146,Projections!$F38) -> 11651.16962
C39: 6 | D39: All | E39: 4S87 | F39: More developed | G39: 5359 | H39: 13.82720657 | I39: 13.82720657 | J39: 17.33175141 | K39: 23.78783036 | L39: 741 | M39: 741 | N39: 928.8085582 | O39: 1274.789829 | P39: =SUMIFS(Achievement_finalised!G$4:G$10000,Achievement_finalised!$D$4:$D$10000,Projections!$E39,Achievement_finalised!$B$4:$B$10000,Projections!$C39,Achievement_finalised!$E$4:$E$10000,Projections!$F39) -> 741 | Q39: 741 | R39: 741 | S39: 741 | T39: =SUMIFS(Achievement_forecast_ongoing!G$6:G$9967,Achievement_forecast_ongoing!$E$6:$E$9967,Projections!$E39,Achievement_forecast_ongoing!$C$6:$C$9967,Projections!$C39,Achievement_forecast_ongoing!$F$6:$F$9967,Projections!$F39) -> 0 | U39: =SUMIFS(Achievement_forecast_ongoing!H$6:H$9967,Achievement_forecast_ongoing!$E$6:$E$9967,Projections!$E39,Achievement_forecast_ongoing!$C$6:$C$9967,Projections!$C39,Achievement_forecast_ongoing!$F$6:$F$9967,Projections!$F39) -> 0 | V39: =SUMIFS(Achievement_forecast_ongoing!I$6:I$9967,Achievement_forecast_ongoing!$E$6:$E$9967,Projections!$E39,Achievement_forecast_ongoing!$C$6:$C$9967,Projections!$C39,Achievement_forecast_ongoing!$F$6:$F$9967,Projections!$F39) -> 0 | W39: =SUMIFS(Achievement_forecast_ongoing!J$6:J$9967,Achievement_forecast_ongoing!$E$6:$E$9967,Projections!$E39,Achievement_forecast_ongoing!$C$6:$C$9967,Projections!$C39,Achievement_forecast_ongoing!$F$6:$F$9967,Projections!$F39) -> 0 | X39: =SUMIFS(Achievement_forecasts_future!G$4:G$146,Achievement_forecasts_future!$D$4:$D$146,Projections!$E39,Achievement_forecasts_future!$B$4:$B$146,Projections!$C39,Achievement_forecasts_future!$E$4:$E$146,Projections!$F39) -> 0 | Y39: =SUMIFS(Achievement_forecasts_future!H$4:H$146,Achievement_forecasts_future!$D$4:$D$146,Projections!$E39,Achievement_forecasts_future!$B$4:$B$146,Projections!$C39,Achievement_forecasts_future!$E$4:$E$146,Projections!$F39) -> 0 | Z39: =SUMIFS(Achievement_forecasts_future!I$4:I$146,Achievement_forecasts_future!$D$4:$D$146,Projections!$E39,Achievement_forecasts_future!$B$4:$B$146,Projections!$C39,Achievement_forecasts_future!$E$4:$E$146,Projections!$F39) -> 187.8085582 | AA39: =SUMIFS(Achievement_forecasts_future!J$4:J$146,Achievement_forecasts_future!$D$4:$D$146,Projections!$E39,Achievement_forecasts_future!$B$4:$B$146,Projections!$C39,Achievement_forecasts_future!$E$4:$E$146,Projections!$F39) -> 533.7898288
C40: 6 | D40: All | E40: 4S91 | F40: All | G40: 49247 | H40: 279.0017574 | I40: 294.4953913 | J40: 344.7992819 | K40: 426.805389 | L40: 137399.9955 | M40: 145030.1454 | N40: 169803.3024 | O40: 210188.8499 | P40: =SUMIFS(Achievement_finalised!G$4:G$10000,Achievement_finalised!$D$4:$D$10000,Projections!$E40,Achievement_finalised!$B$4:$B$10000,Projections!$C40,Achievement_finalised!$E$4:$E$10000,Projections!$F40) -> 121704 | Q40: 121704 | R40: 121704 | S40: 121704 | T40: =SUMIFS(Achievement_forecast_ongoing!G$6:G$9967,Achievement_forecast_ongoing!$E$6:$E$9967,Projections!$E40,Achievement_forecast_ongoing!$C$6:$C$9967,Projections!$C40,Achievement_forecast_ongoing!$F$6:$F$9967,Projections!$F40) -> 15695.99549 | U40: =SUMIFS(Achievement_forecast_ongoing!H$6:H$9967,Achievement_forecast_ongoing!$E$6:$E$9967,Projections!$E40,Achievement_forecast_ongoing!$C$6:$C$9967,Projections!$C40,Achievement_forecast_ongoing!$F$6:$F$9967,Projections!$F40) -> 23326.14536 | V40: =SUMIFS(Achievement_forecast_ongoing!I$6:I$9967,Achievement_forecast_ongoing!$E$6:$E$9967,Projections!$E40,Achievement_forecast_ongoing!$C$6:$C$9967,Projections!$C40,Achievement_forecast_ongoing!$F$6:$F$9967,Projections!$F40) -> 28110.23684 | W40: =SUMIFS(Achievement_forecast_ongoing!J$6:J$9967,Achievement_forecast_ongoing!$E$6:$E$9967,Projections!$E40,Achievement_forecast_ongoing!$C$6:$C$9967,Projections!$C40,Achievement_forecast_ongoing!$F$6:$F$9967,Projections!$F40) -> 31671.89119 | X40: =SUMIFS(Achievement_forecasts_future!G$4:G$146,Achievement_forecasts_future!$D$4:$D$146,Projections!$E40,Achievement_forecasts_future!$B$4:$B$146,Projections!$C40,Achievement_forecasts_future!$E$4:$E$146,Projections!$F40) -> 0 | Y40: =SUMIFS(Achievement_forecasts_future!H$4:H$146,Achievement_forecasts_future!$D$4:$D$146,Projections!$E40,Achievement_forecasts_future!$B$4:$B$146,Projections!$C40,Achievement_forecasts_future!$E$4:$E$146,Projections!$F40) -> 0 | Z40: =SUMIFS(Achievement_forecasts_future!I$4:I$146,Achievement_forecasts_future!$D$4:$D$146,Projections!$E40,Achievement_forecasts_future!$B$4:$B$146,Projections!$C40,Achievement_forecasts_future!$E$4:$E$146,Projections!$F40) -> 19989.06553 | AA40: =SUMIFS(Achievement_forecasts_future!J$4:J$146,Achievement_forecasts_future!$D$4:$D$146,Projections!$E40,Achievement_forecasts_future!$B$4:$B$146,Projections!$C40,Achievement_forecasts_future!$E$4:$E$146,Projections!$F40) -> 56812.95874
C41: 6 | D41: All | E41: 4S92 | F41: Less developed | G41: 32232 | H41: 21.60122911 | I41: 38.33307745 | J41: 58.41721662 | K41: 81.01780217 | L41: 6962.508167 | M41: 12355.51752 | N41: 18829.03726 | O41: 26113.65799 | P41: =SUMIFS(Achievement_finalised!G$4:G$10000,Achievement_finalised!$D$4:$D$10000,Projections!$E41,Achievement_finalised!$B$4:$B$10000,Projections!$C41,Achievement_finalised!$E$4:$E$10000,Projections!$F41) -> 5294 | Q41: 5294 | R41: 5294 | S41: 5294 | T41: =SUMIFS(Achievement_forecast_ongoing!G$6:G$9967,Achievement_forecast_ongoing!$E$6:$E$9967,Projections!$E41,Achievement_forecast_ongoing!$C$6:$C$9967,Projections!$C41,Achievement_forecast_ongoing!$F$6:$F$9967,Projections!$F41) -> 1668.508167 | U41: =SUMIFS(Achievement_forecast_ongoing!H$6:H$9967,Achievement_forecast_ongoing!$E$6:$E$9967,Projections!$E41,Achievement_forecast_ongoing!$C$6:$C$9967,Projections!$C41,Achievement_forecast_ongoing!$F$6:$F$9967,Projections!$F41) -> 7061.517523 | V41: =SUMIFS(Achievement_forecast_ongoing!I$6:I$9967,Achievement_forecast_ongoing!$E$6:$E$9967,Projections!$E41,Achievement_forecast_ongoing!$C$6:$C$9967,Projections!$C41,Achievement_forecast_ongoing!$F$6:$F$9967,Projections!$F41) -> 12193.2579 | W41: =SUMIFS(Achievement_forecast_ongoing!J$6:J$9967,Achievement_forecast_ongoing!$E$6:$E$9967,Projections!$E41,Achievement_forecast_ongoing!$C$6:$C$9967,Projections!$C41,Achievement_forecast_ongoing!$F$6:$F$9967,Projections!$F41) -> 17006.05023 | X41: =SUMIFS(Achievement_forecasts_future!G$4:G$146,Achievement_forecasts_future!$D$4:$D$146,Projections!$E41,Achievement_forecasts_future!$B$4:$B$146,Projections!$C41,Achievement_forecasts_future!$E$4:$E$146,Projections!$F41) -> 0 | Y41: =SUMIFS(Achievement_forecasts_future!H$4:H$146,Achievement_forecasts_future!$D$4:$D$146,Projections!$E41,Achievement_forecasts_future!$B$4:$B$146,Projections!$C41,Achievement_forecasts_future!$E$4:$E$146,Projections!$F41) -> 0 | Z41: =SUMIFS(Achievement_forecasts_future!I$4:I$146,Achievement_forecasts_future!$D$4:$D$146,Projections!$E41,Achievement_forecasts_future!$B$4:$B$146,Projections!$C41,Achievement_forecasts_future!$E$4:$E$146,Projections!$F41) -> 1341.779362 | AA41: =SUMIFS(Achievement_forecasts_future!J$4:J$146,Achievement_forecasts_future!$D$4:$D$146,Projections!$E41,Achievement_forecasts_future!$B$4:$B$146,Projections!$C41,Achievement_forecasts_future!$E$4:$E$146,Projections!$F41) -> 3813.607764
C42: 6 | D42: All | E42: 4S92 | F42: More developed | G42: 8025 | H42: 0.5607476636 | I42: 0.5607476636 | J42: 0.7028707543 | K42: 0.9646901727 | L42: 45 | M42: 45 | N42: 56.40537803 | O42: 77.41638636 | P42: =SUMIFS(Achievement_finalised!G$4:G$10000,Achievement_finalised!$D$4:$D$10000,Projections!$E42,Achievement_finalised!$B$4:$B$10000,Projections!$C42,Achievement_finalised!$E$4:$E$10000,Projections!$F42) -> 45 | Q42: 45 | R42: 45 | S42: 45 | T42: =SUMIFS(Achievement_forecast_ongoing!G$6:G$9967,Achievement_forecast_ongoing!$E$6:$E$9967,Projections!$E42,Achievement_forecast_ongoing!$C$6:$C$9967,Projections!$C42,Achievement_forecast_ongoing!$F$6:$F$9967,Projections!$F42) -> 0 | U42: =SUMIFS(Achievement_forecast_ongoing!H$6:H$9967,Achievement_forecast_ongoing!$E$6:$E$9967,Projections!$E42,Achievement_forecast_ongoing!$C$6:$C$9967,Projections!$C42,Achievement_forecast_ongoing!$F$6:$F$9967,Projections!$F42) -> 0 | V42: =SUMIFS(Achievement_forecast_ongoing!I$6:I$9967,Achievement_forecast_ongoing!$E$6:$E$9967,Projections!$E42,Achievement_forecast_ongoing!$C$6:$C$9967,Projections!$C42,Achievement_forecast_ongoing!$F$6:$F$9967,Projections!$F42) -> 0 | W42: =SUMIFS(Achievement_forecast_ongoing!J$6:J$9967,Achievement_forecast_ongoing!$E$6:$E$9967,Projections!$E42,Achievement_forecast_ongoing!$C$6:$C$9967,Projections!$C42,Achievement_forecast_ongoing!$F$6:$F$9967,Projections!$F42) -> 0 | X42: =SUMIFS(Achievement_forecasts_future!G$4:G$146,Achievement_forecasts_future!$D$4:$D$146,Projections!$E42,Achievement_forecasts_future!$B$4:$B$146,Projections!$C42,Achievement_forecasts_future!$E$4:$E$146,Projections!$F42) -> 0 | Y42: =SUMIFS(Achievement_forecasts_future!H$4:H$146,Achievement_forecasts_future!$D$4:$D$146,Projections!$E42,Achievement_forecasts_future!$B$4:$B$146,Projections!$C42,Achievement_forecasts_future!$E$4:$E$146,Projections!$F42) -> 0 | Z42: =SUMIFS(Achievement_forecasts_future!I$4:I$146,Achievement_forecasts_future!$D$4:$D$146,Projections!$E42,Achievement_forecasts_future!$B$4:$B$146,Projections!$C42,Achievement_forecasts_future!$E$4:$E$146,Projections!$F42) -> 11.40537803 | AA42: =SUMIFS(Achievement_forecasts_future!J$4:J$146,Achievement_forecasts_future!$D$4:$D$146,Projections!$E42,Achievement_forecasts_future!$B$4:$B$146,Projections!$C42,Achievement_forecasts_future!$E$4:$E$146,Projections!$F42) -> 32.41638636
C43: 6 | D43: All | E43: 4S94 | F43: Less developed | G43: 142000 | H43: 28.48197983 | I43: 41.09727211 | J43: 55.4598615 | K43: 68.53793077 | L43: 40444.41136 | M43: 58358.1264 | N43: 78753.00334 | O43: 97323.86169 | P43: =SUMIFS(Achievement_finalised!G$4:G$10000,Achievement_finalised!$D$4:$D$10000,Projections!$E43,Achievement_finalised!$B$4:$B$10000,Projections!$C43,Achievement_finalised!$E$4:$E$10000,Projections!$F43) -> 14920.52 | Q43: 14920.52 | R43: 14920.52 | S43: 14920.52 | T43: =SUMIFS(Achievement_forecast_ongoing!G$6:G$9967,Achievement_forecast_ongoing!$E$6:$E$9967,Projections!$E43,Achievement_forecast_ongoing!$C$6:$C$9967,Projections!$C43,Achievement_forecast_ongoing!$F$6:$F$9967,Projections!$F43) -> 25523.89136 | U43: =SUMIFS(Achievement_forecast_ongoing!H$6:H$9967,Achievement_forecast_ongoing!$E$6:$E$9967,Projections!$E43,Achievement_forecast_ongoing!$C$6:$C$9967,Projections!$C43,Achievement_forecast_ongoing!$F$6:$F$9967,Projections!$F43) -> 43437.6064 | V43: =SUMIFS(Achievement_forecast_ongoing!I$6:I$9967,Achievement_forecast_ongoing!$E$6:$E$9967,Projections!$E43,Achievement_forecast_ongoing!$C$6:$C$9967,Projections!$C43,Achievement_forecast_ongoing!$F$6:$F$9967,Projections!$F43) -> 60050.83509 | W43: =SUMIFS(Achievement_forecast_ongoing!J$6:J$9967,Achievement_forecast_ongoing!$E$6:$E$9967,Projections!$E43,Achievement_forecast_ongoing!$C$6:$C$9967,Projections!$C43,Achievement_forecast_ongoing!$F$6:$F$9967,Projections!$F43) -> 71655.13411 | X43: =SUMIFS(Achievement_forecasts_future!G$4:G$146,Achievement_forecasts_future!$D$4:$D$146,Projections!$E43,Achievement_forecasts_future!$B$4:$B$146,Projections!$C43,Achievement_forecasts_future!$E$4:$E$146,Projections!$F43) -> 0 | Y43: =SUMIFS(Achievement_forecasts_future!H$4:H$146,Achievement_forecasts_future!$D$4:$D$146,Projections!$E43,Achievement_forecasts_future!$B$4:$B$146,Projections!$C43,Achievement_forecasts_future!$E$4:$E$146,Projections!$F43) -> 0 | Z43: =SUMIFS(Achievement_forecasts_future!I$4:I$146,Achievement_forecasts_future!$D$4:$D$146,Projections!$E43,Achievement_forecasts_future!$B$4:$B$146,Projections!$C43,Achievement_forecasts_future!$E$4:$E$146,Projections!$F43) -> 3781.648244 | AA43: =SUMIFS(Achievement_forecasts_future!J$4:J$146,Achievement_forecasts_future!$D$4:$D$146,Projections!$E43,Achievement_forecasts_future!$B$4:$B$146,Projections!$C43,Achievement_forecasts_future!$E$4:$E$146,Projections!$F43) -> 10748.20758
C44: 6 | D44: All | E44: 4S94 | F44: More developed | G44: 15179 | H44: 22.04925164 | I44: 28.71176632 | J44: 33.05359651 | K44: 33.64259562 | L44: 3346.855906 | M44: 4358.159009 | N44: 5017.205414 | O44: 5106.609589 | P44: =SUMIFS(Achievement_finalised!G$4:G$10000,Achievement_finalised!$D$4:$D$10000,Projections!$E44,Achievement_finalised!$B$4:$B$10000,Projections!$C44,Achievement_finalised!$E$4:$E$10000,Projections!$F44) -> 191.48 | Q44: 191.48 | R44: 191.48 | S44: 191.48 | T44: =SUMIFS(Achievement_forecast_ongoing!G$6:G$9967,Achievement_forecast_ongoing!$E$6:$E$9967,Projections!$E44,Achievement_forecast_ongoing!$C$6:$C$9967,Projections!$C44,Achievement_forecast_ongoing!$F$6:$F$9967,Projections!$F44) -> 3155.375906 | U44: =SUMIFS(Achievement_forecast_ongoing!H$6:H$9967,Achievement_forecast_ongoing!$E$6:$E$9967,Projections!$E44,Achievement_forecast_ongoing!$C$6:$C$9967,Projections!$C44,Achievement_forecast_ongoing!$F$6:$F$9967,Projections!$F44) -> 4166.679009 | V44: =SUMIFS(Achievement_forecast_ongoing!I$6:I$9967,Achievement_forecast_ongoing!$E$6:$E$9967,Projections!$E44,Achievement_forecast_ongoing!$C$6:$C$9967,Projections!$C44,Achievement_forecast_ongoing!$F$6:$F$9967,Projections!$F44) -> 4777.194263 | W44: =SUMIFS(Achievement_forecast_ongoing!J$6:J$9967,Achievement_forecast_ongoing!$E$6:$E$9967,Projections!$E44,Achievement_forecast_ongoing!$C$6:$C$9967,Projections!$C44,Achievement_forecast_ongoing!$F$6:$F$9967,Projections!$F44) -> 4777.194263 | X44: =SUMIFS(Achievement_forecasts_future!G$4:G$146,Achievement_forecasts_future!$D$4:$D$146,Projections!$E44,Achievement_forecasts_future!$B$4:$B$146,Projections!$C44,Achievement_forecasts_future!$E$4:$E$146,Projections!$F44) -> 0 | Y44: =SUMIFS(Achievement_forecasts_future!H$4:H$146,Achievement_forecasts_future!$D$4:$D$146,Projections!$E44,Achievement_forecasts_future!$B$4:$B$146,Projections!$C44,Achievement_forecasts_future!$E$4:$E$146,Projections!$F44) -> 0 | Z44: =SUMIFS(Achievement_forecasts_future!I$4:I$146,Achievement_forecasts_future!$D$4:$D$146,Projections!$E44,Achievement_forecasts_future!$B$4:$B$146,Projections!$C44,Achievement_forecasts_future!$E$4:$E$146,Projections!$F44) -> 48.53115078 | AA44: =SUMIFS(Achievement_forecasts_future!J$4:J$146,Achievement_forecasts_future!$D$4:$D$146,Projections!$E44,Achievement_forecasts_future!$B$4:$B$146,Projections!$C44,Achievement_forecasts_future!$E$4:$E$146,Projections!$F44) -> 137.9353258
C45: 6 | D45: All | E45: O1 | F45: Less developed | G45: =852386025*G49 -> 4196040685 | H45: 28.8140762 | I45: 45.05799218 | J45: 57.61343986 | K45: 78.32142863 | L45: 1209050360 | M45: 1890651684 | N45: 2417483377 | O45: 3286399010 | P45: =SUMIFS(Achievement_finalised!G$4:G$10000,Achievement_finalised!$D$4:$D$10000,Projections!$E45,Achievement_finalised!$B$4:$B$10000,Projections!$C45,Achievement_finalised!$E$4:$E$10000,Projections!$F45) -> 915494370.2 | Q45: 915494370.2 | R45: 915494370.2 | S45: 915494370.2 | T45: =SUMIFS(Achievement_forecast_ongoing!G$6:G$9967,Achievement_forecast_ongoing!$E$6:$E$9967,Projections!$E45,Achievement_forecast_ongoing!$C$6:$C$9967,Projections!$C45,Achievement_forecast_ongoing!$F$6:$F$9967,Projections!$F45) -> 293555990 | U45: =SUMIFS(Achievement_forecast_ongoing!H$6:H$9967,Achievement_forecast_ongoing!$E$6:$E$9967,Projections!$E45,Achievement_forecast_ongoing!$C$6:$C$9967,Projections!$C45,Achievement_forecast_ongoing!$F$6:$F$9967,Projections!$F45) -> 975157313.8 | V45: =SUMIFS(Achievement_forecast_ongoing!I$6:I$9967,Achievement_forecast_ongoing!$E$6:$E$9967,Projections!$E45,Achievement_forecast_ongoing!$C$6:$C$9967,Projections!$C45,Achievement_forecast_ongoing!$F$6:$F$9967,Projections!$F45) -> 1501989007 | W45: =SUMIFS(Achievement_forecast_ongoing!J$6:J$9967,Achievement_forecast_ongoing!$E$6:$E$9967,Projections!$E45,Achievement_forecast_ongoing!$C$6:$C$9967,Projections!$C45,Achievement_forecast_ongoing!$F$6:$F$9967,Projections!$F45) -> 1666192442 | X45: =SUMIFS(Achievement_forecasts_future!G$4:G$146,Achievement_forecasts_future!$D$4:$D$146,Projections!$E45,Achievement_forecasts_future!$B$4:$B$146,Projections!$C45,Achievement_forecasts_future!$E$4:$E$146,Projections!$F45) -> 0 | Y45: =SUMIFS(Achievement_forecasts_future!H$4:H$146,Achievement_forecasts_future!$D$4:$D$146,Projections!$E45,Achievement_forecasts_future!$B$4:$B$146,Projections!$C45,Achievement_forecasts_future!$E$4:$E$146,Projections!$F45) -> 0 | Z45: =SUMIFS(Achievement_forecasts_future!I$4:I$146,Achievement_forecasts_future!$D$4:$D$146,Projections!$E45,Achievement_forecasts_future!$B$4:$B$146,Projections!$C45,Achievement_forecasts_future!$E$4:$E$146,Projections!$F45) -> 0 | AA45: =SUMIFS(Achievement_forecasts_future!J$4:J$146,Achievement_forecasts_future!$D$4:$D$146,Projections!$E45,Achievement_forecasts_future!$B$4:$B$146,Projections!$C45,Achievement_forecasts_future!$E$4:$E$146,Projections!$F45) -> 704712198.3
C46: 6 | D46: All | E46: O1 | F46: More developed | G46: =52392954*G49 -> 257914794.7 | H46: 17.64778592 | I46: 41.7357331 | J46: 63.27892185 | K46: 71.84983856 | L46: 45516250.81 | M46: 107642630.3 | N46: 163205701.4 | O46: 185311363.6 | P46: =SUMIFS(Achievement_finalised!G$4:G$10000,Achievement_finalised!$D$4:$D$10000,Projections!$E46,Achievement_finalised!$B$4:$B$10000,Projections!$C46,Achievement_finalised!$E$4:$E$10000,Projections!$F46) -> 30901529.81 | Q46: 30901529.81 | R46: 30901529.81 | S46: 30901529.81 | T46: =SUMIFS(Achievement_forecast_ongoing!G$6:G$9967,Achievement_forecast_ongoing!$E$6:$E$9967,Projections!$E46,Achievement_forecast_ongoing!$C$6:$C$9967,Projections!$C46,Achievement_forecast_ongoing!$F$6:$F$9967,Projections!$F46) -> 14614720.99 | U46: =SUMIFS(Achievement_forecast_ongoing!H$6:H$9967,Achievement_forecast_ongoing!$E$6:$E$9967,Projections!$E46,Achievement_forecast_ongoing!$C$6:$C$9967,Projections!$C46,Achievement_forecast_ongoing!$F$6:$F$9967,Projections!$F46) -> 76741100.51 | V46: =SUMIFS(Achievement_forecast_ongoing!I$6:I$9967,Achievement_forecast_ongoing!$E$6:$E$9967,Projections!$E46,Achievement_forecast_ongoing!$C$6:$C$9967,Projections!$C46,Achievement_forecast_ongoing!$F$6:$F$9967,Projections!$F46) -> 132304171.5 | W46: =SUMIFS(Achievement_forecast_ongoing!J$6:J$9967,Achievement_forecast_ongoing!$E$6:$E$9967,Projections!$E46,Achievement_forecast_ongoing!$C$6:$C$9967,Projections!$C46,Achievement_forecast_ongoing!$F$6:$F$9967,Projections!$F46) -> 153232281.6 | X46: =SUMIFS(Achievement_forecasts_future!G$4:G$146,Achievement_forecasts_future!$D$4:$D$146,Projections!$E46,Achievement_forecasts_future!$B$4:$B$146,Projections!$C46,Achievement_forecasts_future!$E$4:$E$146,Projections!$F46) -> 0 | Y46: =SUMIFS(Achievement_forecasts_future!H$4:H$146,Achievement_forecasts_future!$D$4:$D$146,Projections!$E46,Achievement_forecasts_future!$B$4:$B$146,Projections!$C46,Achievement_forecasts_future!$E$4:$E$146,Projections!$F46) -> 0 | Z46: =SUMIFS(Achievement_forecasts_future!I$4:I$146,Achievement_forecasts_future!$D$4:$D$146,Projections!$E46,Achievement_forecasts_future!$B$4:$B$146,Projections!$C46,Achievement_forecasts_future!$E$4:$E$146,Projections!$F46) -> 0 | AA46: =SUMIFS(Achievement_forecasts_future!J$4:J$146,Achievement_forecasts_future!$D$4:$D$146,Projections!$E46,Achievement_forecasts_future!$B$4:$B$146,Projections!$C46,Achievement_forecasts_future!$E$4:$E$146,Projections!$F46) -> 1177552.201
G48: Curs EUR-LEI
G49: 4.9227

Sheet Sheet3

Sheet Achievement_finalised
B1: Date of extraction | D1: 2021-02-16
B2: Characteristics
B3: PA | C3: PI | D3: Indicator | E3: Region | F3: Type | G3: Cumulative achievement
B4: 1 | C4: 1 | D4: 4S1 | E4: All | F4: Physical | G4: 2138
B5: 1 | C5: 1 | D5: O1 | E5: All | F5: Financial | G5: 13238371.62
B6: 2 | C6: 1 | D6: 4S1 | E6: Less developed | F6: Physical | G6: 1080
B7: 2 | C7: 1 | D7: 4S1 | E7: More developed | F7: Physical | G7: 455
B8: 2 | C8: 1 | D8: O1 | E8: Less developed | F8: Financial | G8: 14259990.15
B9: 2 | C9: 1 | D9: O1 | E9: More developed | F9: Financial | G9: 3194088.11
B10: 3 | C10: 1 | D10: 4S11 | E10: All | F10: Physical | G10: 0
B11: 3 | C11: 2 | D11: 4S11 | E11: All | F11: Physical | G11: 78890
B12: 3 | C12: 3 | D12: 4S11 | E12: All | F12: Physical | G12: 0
B13: 3 | C13: 4 | D13: 4S11 | E13: All | F13: Physical | G13: 0
B14: 3 | C14: 5 | D14: 4S11 | E14: All | F14: Physical | G14: 0
B15: 3 | C15: 1 | D15: 4S12 | E15: All | F15: Physical | G15: 0
B16: 3 | C16: 2 | D16: 4S12 | E16: All | F16: Physical | G16: 0
B17: 3 | C17: 3 | D17: 4S12 | E17: All | F17: Physical | G17: 0
B18: 3 | C18: 4 | D18: 4S12 | E18: All | F18: Physical | G18: 0
B19: 3 | C19: 5 | D19: 4S12 | E19: All | F19: Physical | G19: 0
B20: 3 | C20: 1 | D20: 4S153 | E20: All | F20: Physical | G20: 0
B21: 3 | C21: 2 | D21: 4S153 | E21: All | F21: Physical | G21: 0
B22: 3 | C22: 3 | D22: 4S153 | E22: All | F22: Physical | G22: 0
B23: 3 | C23: 4 | D23: 4S153 | E23: All | F23: Physical | G23: 0
B24: 3 | C24: 5 | D24: 4S153 | E24: All | F24: Physical | G24: 0
B25: 3 | C25: 1 | D25: 4S27 | E25: All | F25: Physical | G25: 0
B26: 3 | C26: 2 | D26: 4S27 | E26: All | F26: Physical | G26: 0
B27: 3 | C27: 3 | D27: 4S27 | E27: All | F27: Physical | G27: 0
B28: 3 | C28: 4 | D28: 4S27 | E28: All | F28: Physical | G28: 0
B29: 3 | C29: 5 | D29: 4S27 | E29: All | F29: Physical | G29: 0
B30: 3 | C30: 1 | D30: 4S8 | E30: Less developed | F30: Physical | G30: 24803
B31: 3 | C31: 2 | D31: 4S8 | E31: Less developed | F31: Physical | G31: 0
B32: 3 | C32: 3 | D32: 4S8 | E32: Less developed | F32: Physical | G32: 0
B33: 3 | C33: 4 | D33: 4S8 | E33: Less developed | F33: Physical | G33: 0
B34: 3 | C34: 5 | D34: 4S8 | E34: Less developed | F34: Physical | G34: 0
B35: 3 | C35: 1 | D35: 4S8 | E35: More developed | F35: Physical | G35: 827
B36: 3 | C36: 2 | D36: 4S8 | E36: More developed | F36: Physical | G36: 0
B37: 3 | C37: 3 | D37: 4S8 | E37: More developed | F37: Physical | G37: 0
B38: 3 | C38: 4 | D38: 4S8 | E38: More developed | F38: Physical | G38: 0
B39: 3 | C39: 5 | D39: 4S8 | E39: More developed | F39: Physical | G39: 0
B40: 3 | C40: 1 | D40: O1 | E40: Less developed | F40: Financial | G40: 183958336
B41: 3 | C41: 2 | D41: O1 | E41: Less developed | F41: Financial | G41: 2076358097
B42: 3 | C42: 3 | D42: O1 | E42: Less developed | F42: Financial | G42: 208626512.1
B43: 3 | C43: 4 | D43: O1 | E43: Less developed | F43: Financial | G43: 820948.4624
B44: 3 | C44: 5 | D44: O1 | E44: Less developed | F44: Financial | G44: 39111549.29
B45: 3 | C45: 1 | D45: O1 | E45: More developed | F45: Financial | G45: 8282982.05
B46: 3 | C46: 2 | D46: O1 | E46: More developed | F46: Financial | G46: 0
B47: 3 | C47: 3 | D47: O1 | E47: More developed | F47: Financial | G47: 46394.99082
B48: 3 | C48: 4 | D48: O1 | E48: More developed | F48: Financial | G48: 111947.5176
B49: 3 | C49: 5 | D49: O1 | E49: More developed | F49: Financial | G49: 102189.629
B50: 4 | C50: 1 | D50: 4S205 | E50: All | F50: Physical | G50: 0
B51: 4 | C51: 2 | D51: 4S205 | E51: All | F51: Physical | G51: 0
B52: 4 | C52: 3 | D52: 4S205 | E52: All | F52: Physical | G52: 0
B53: 4 | C53: 1 | D53: 4S206 | E53: All | F53: Physical | G53: 0
B54: 4 | C54: 2 | D54: 4S206 | E54: All | F54: Physical | G54: 0
B55: 4 | C55: 3 | D55: 4S206 | E55: All | F55: Physical | G55: 0
B56: 4 | C56: 1 | D56: 4S43 | E56: All | F56: Physical | G56: 49277
B57: 4 | C57: 2 | D57: 4S43 | E57: All | F57: Physical | G57: 0
B58: 4 | C58: 3 | D58: 4S43 | E58: All | F58: Physical | G58: 0
B59: 4 | C59: 1 | D59: 4S58 | E59: Less developed | F59: Physical | G59: 0
B60: 4 | C60: 2 | D60: 4S58 | E60: Less developed | F60: Physical | G60: 0
B61: 4 | C61: 3 | D61: 4S58 | E61: Less developed | F61: Physical | G61: 0
B62: 4 | C62: 1 | D62: 4S58 | E62: More developed | F62: Physical | G62: 0
B63: 4 | C63: 2 | D63: 4S58 | E63: More developed | F63: Physical | G63: 0
B64: 4 | C64: 3 | D64: 4S58 | E64: More developed | F64: Physical | G64: 0
B65: 4 | C65: 1 | D65: 4S59 | E65: All | F65: Physical | G65: 0
B66: 4 | C66: 2 | D66: 4S59 | E66: All | F66: Physical | G66: 0
B67: 4 | C67: 3 | D67: 4S59 | E67: All | F67: Physical | G67: 0
B68: 4 | C68: 1 | D68: 4S60 | E68: All | F68: Physical | G68: 0
B69: 4 | C69: 2 | D69: 4S60 | E69: All | F69: Physical | G69: 0
B70: 4 | C70: 3 | D70: 4S60 | E70: All | F70: Physical | G70: 0
B71: 4 | C71: 1 | D71: 4S63 | E71: All | F71: Physical | G71: 0
B72: 4 | C72: 2 | D72: 4S63 | E72: All | F72: Physical | G72: 0
B73: 4 | C73: 3 | D73: 4S63 | E73: All | F73: Physical | G73: 0
B74: 4 | C74: 1 | D74: O1 | E74: Less developed | F74: Financial | G74: 2137927730
B75: 4 | C75: 2 | D75: O1 | E75: Less developed | F75: Financial | G75: 824322875
B76: 4 | C76: 3 | D76: O1 | E76: Less developed | F76: Financial | G76: 1565.555
B77: 4 | C77: 1 | D77: O1 | E77: More developed | F77: Financial | G77: 136909071.6
B78: 4 | C78: 2 | D78: O1 | E78: More developed | F78: Financial | G78: 112407664.8
B79: 4 | C79: 3 | D79: O1 | E79: More developed | F79: Financial | G79: 199.445
B80: 5 | C80: 1 | D80: 4S168 | E80: Less developed | F80: Physical | G80: 0
B81: 5 | C81: 1 | D81: 4S168 | E81: More developed | F81: Physical | G81: 0
B82: 5 | C82: 1 | D82: 4S67 | E82: All | F82: Physical | G82: 0
B83: 5 | C83: 1 | D83: 4S68 | E83: Less developed | F83: Physical | G83: 28
B84: 5 | C84: 1 | D84: 4S68 | E84: More developed | F84: Physical | G84: 3
B85: 5 | C85: 1 | D85: O1 | E85: Less developed | F85: Financial | G85: 18602860.01
B86: 5 | C86: 1 | D86: O1 | E86: More developed | F86: Financial | G86: 4650715.003
B87: 6 | C87: 1 | D87: 4S100 | E87: All | F87: Physical | G87: 0
B88: 6 | C88: 2 | D88: 4S100 | E88: All | F88: Physical | G88: 0
B89: 6 | C89: 3 | D89: 4S100 | E89: All | F89: Physical | G89: 6047
B90: 6 | C90: 4 | D90: 4S100 | E90: All | F90: Physical | G90: 0
B91: 6 | C91: 5 | D91: 4S100 | E91: All | F91: Physical | G91: 0
B92: 6 | C92: 1 | D92: 4S113 | E92: All | F92: Physical | G92: 0
B93: 6 | C93: 2 | D93: 4S113 | E93: All | F93: Physical | G93: 0
B94: 6 | C94: 3 | D94: 4S113 | E94: All | F94: Physical | G94: 0
B95: 6 | C95: 4 | D95: 4S113 | E95: All | F95: Physical | G95: 140275
B96: 6 | C96: 5 | D96: 4S113 | E96: All | F96: Physical | G96: 0
B97: 6 | C97: 1 | D97: 4S130 | E97: All | F97: Physical | G97: 0
B98: 6 | C98: 2 | D98: 4S130 | E98: All | F98: Physical | G98: 0
B99: 6 | C99: 3 | D99: 4S130 | E99: All | F99: Physical | G99: 0
B100: 6 | C100: 4 | D100: 4S130 | E100: All | F100: Physical | G100: 0
B101: 6 | C101: 5 | D101: 4S130 | E101: All | F101: Physical | G101: 746
B102: 6 | C102: 1 | D102: 4S87 | E102: Less developed | F102: Physical | G102: 0
B103: 6 | C103: 2 | D103: 4S87 | E103: Less developed | F103: Physical | G103: 16174
B104: 6 | C104: 3 | D104: 4S87 | E104: Less developed | F104: Physical | G104: 0
B105: 6 | C105: 4 | D105: 4S87 | E105: Less developed | F105: Physical | G105: 0
B106: 6 | C106: 5 | D106: 4S87 | E106: Less developed | F106: Physical | G106: 0
B107: 6 | C107: 1 | D107: 4S87 | E107: More developed | F107: Physical | G107: 0
B108: 6 | C108: 2 | D108: 4S87 | E108: More developed | F108: Physical | G108: 741
B109: 6 | C109: 3 | D109: 4S87 | E109: More developed | F109: Physical | G109: 0
B110: 6 | C110: 4 | D110: 4S87 | E110: More developed | F110: Physical | G110: 0
B111: 6 | C111: 5 | D111: 4S87 | E111: More developed | F111: Physical | G111: 0
B112: 6 | C112: 1 | D112: 4S91 | E112: All | F112: Physical | G112: 0
B113: 6 | C113: 2 | D113: 4S91 | E113: All | F113: Physical | G113: 121704
B114: 6 | C114: 3 | D114: 4S91 | E114: All | F114: Physical | G114: 0
B115: 6 | C115: 4 | D115: 4S91 | E115: All | F115: Physical | G115: 0
B116: 6 | C116: 5 | D116: 4S91 | E116: All | F116: Physical | G116: 0
B117: 6 | C117: 1 | D117: 4S92 | E117: Less developed | F117: Physical | G117: 0
B118: 6 | C118: 2 | D118: 4S92 | E118: Less developed | F118: Physical | G118: 5294
B119: 6 | C119: 3 | D119: 4S92 | E119: Less developed | F119: Physical | G119: 0
B120: 6 | C120: 4 | D120: 4S92 | E120: Less developed | F120: Physical | G120: 0
B121: 6 | C121: 5 | D121: 4S92 | E121: Less developed | F121: Physical | G121: 0
B122: 6 | C122: 1 | D122: 4S92 | E122: More developed | F122: Physical | G122: 0
B123: 6 | C123: 2 | D123: 4S92 | E123: More developed | F123: Physical | G123: 45
B124: 6 | C124: 3 | D124: 4S92 | E124: More developed | F124: Physical | G124: 0
B125: 6 | C125: 4 | D125: 4S92 | E125: More developed | F125: Physical | G125: 0
B126: 6 | C126: 5 | D126: 4S92 | E126: More developed | F126: Physical | G126: 0
B127: 6 | C127: 1 | D127: 4S94 | E127: Less developed | F127: Physical | G127: 0
B128: 6 | C128: 2 | D128: 4S94 | E128: Less developed | F128: Physical | G128: 14920.52
B129: 6 | C129: 3 | D129: 4S94 | E129: Less developed | F129: Physical | G129: 0
B130: 6 | C130: 4 | D130: 4S94 | E130: Less developed | F130: Physical | G130: 0
B131: 6 | C131: 5 | D131: 4S94 | E131: Less developed | F131: Physical | G131: 0
B132: 6 | C132: 1 | D132: 4S94 | E132: More developed | F132: Physical | G132: 0
B133: 6 | C133: 2 | D133: 4S94 | E133: More developed | F133: Physical | G133: 191.48
B134: 6 | C134: 3 | D134: 4S94 | E134: More developed | F134: Physical | G134: 0
B135: 6 | C135: 4 | D135: 4S94 | E135: More developed | F135: Physical | G135: 0
B136: 6 | C136: 5 | D136: 4S94 | E136: More developed | F136: Physical | G136: 0
B137: 6 | C137: 1 | D137: O1 | E137: Less developed | F137: Financial | G137: 0
B138: 6 | C138: 2 | D138: O1 | E138: Less developed | F138: Financial | G138: 453834069.5
B139: 6 | C139: 3 | D139: O1 | E139: Less developed | F139: Financial | G139: 42749209.39
B140: 6 | C140: 4 | D140: O1 | E140: Less developed | F140: Financial | G140: 275010130.4
B141: 6 | C141: 5 | D141: O1 | E141: Less developed | F141: Financial | G141: 143900961
B142: 6 | C142: 1 | D142: O1 | E142: More developed | F142: Financial | G142: 0
B143: 6 | C143: 2 | D143: O1 | E143: More developed | F143: Financial | G143: 30901529.81
B144: 6 | C144: 3 | D144: O1 | E144: More developed | F144: Financial | G144: 0
B145: 6 | C145: 4 | D145: O1 | E145: More developed | F145: Financial | G145: 0
B146: 6 | C146: 5 | D146: O1 | E146: More developed | F146: Financial | G146: 0

Sheet Achievement_to_date_ongoing
C2: Characteristics | K2: Expected achievement | M2: % complete by the end of year
B3: SMIS CODE | C3: PA | D3: PI | E3: Indicator | F3: Region | G3: Type | H3: Value | I3: Start date | J3: End date | M3: 2020 | N3: 2021 | O3: 2022 | P3: 2023
B4: 129203 | C4: 1 | D4: 1 | E4: 4S1 | F4: All | G4: Physical | I4: 2019-05-16 | J4: 2022-05-15 | K4: 11233.2708 | M4: 0.54 | N4: 0.88 | O4: 1 | P4: 1
B5: 129203 | C5: 1 | D5: 1 | E5: O1 | F5: All | G5: Financial | H5: 13989011.99 | I5: 2019-05-16 | J5: 2022-05-15 | K5: 126657836 | M5: 0.54 | N5: 0.88 | O5: 1 | P5: 1
B6: 147695 | C6: 1 | D6: 1 | E6: O1 | F6: All | G6: Financial | H6: 0 | I6: 2021-07-12 | J6: 2023-12-31 | K6: 3198889.753 | M6: 0 | N6: 0.19 | O6: 0.6 | P6: 1
B7: 147534 | C7: 1 | D7: 1 | E7: O1 | F7: All | G7: Financial | H7: 0 | I7: 2021-06-27 | J7: 2023-12-31 | K7: 3143051.412 | M7: 0 | N7: 0.2 | O7: 0.6 | P7: 1
B8: 146035 | C8: 1 | D8: 1 | E8: O1 | F8: All | G8: Financial | H8: 0 | I8: 2021-06-29 | J8: 2023-12-28 | K8: 3088554.044 | M8: 0 | N8: 0.2 | O8: 0.6 | P8: 1
B9: 119911 | C9: 2 | D9: 1 | E9: 4S1 | F9: Less developed | G9: Physical | H9: 0 | I9: 2018-02-19 | J9: 2022-02-18 | K9: 0 | M9: 0.72 | N9: 0.97 | O9: 1 | P9: 1
B10: 125314 | C10: 2 | D10: 1 | E10: 4S1 | F10: Less developed | G10: Physical | H10: 10123 | I10: 2018-09-03 | J10: 2021-08-31 | K10: 10123 | M10: 0.78 | N10: 1 | O10: 1 | P10: 1
B11: 129265 | C11: 2 | D11: 1 | E11: 4S1 | F11: Less developed | G11: Physical | H11: 531 | I11: 2017-05-15 | J11: 2022-06-30 | K11: 1041.176471 | M11: 0.71 | N11: 0.9 | O11: 1 | P11: 1
B12: 119911 | C12: 2 | D12: 1 | E12: 4S1 | F12: More developed | G12: Physical | H12: 29 | I12: 2018-02-19 | J12: 2022-02-18 | K12: 61.70212766 | M12: 0.72 | N12: 0.97 | O12: 1 | P12: 1
B13: 125314 | C13: 2 | D13: 1 | E13: 4S1 | F13: More developed | G13: Physical | H13: 0 | I13: 2018-09-03 | J13: 2021-08-31 | K13: 0 | M13: 0.78 | N13: 1 | O13: 1 | P13: 1
B14: 129265 | C14: 2 | D14: 1 | E14: 4S1 | F14: More developed | G14: Physical | H14: 0 | I14: 2017-05-15 | J14: 2022-06-30 | K14: 0 | M14: 0.71 | N14: 0.9 | O14: 1 | P14: 1
B15: 113589 | C15: 2 | D15: 1 | E15: O1 | F15: Less developed | G15: Financial | H15: 9745965.038 | I15: 2017-09-26 | J15: 2021-09-24 | K15: 100127943.4 | M15: 0.82 | N15: 1 | O15: 1 | P15: 1
B16: 119911 | C16: 2 | D16: 1 | E16: O1 | F16: Less developed | G16: Financial | H16: 0 | I16: 2018-02-19 | J16: 2022-02-18 | K16: 0 | M16: 0.72 | N16: 0.97 | O16: 1 | P16: 1
B17: 125314 | C17: 2 | D17: 1 | E17: O1 | F17: Less developed | G17: Financial | H17: 60138491.26 | I17: 2018-09-03 | J17: 2021-08-31 | K17: 142448663.2 | M17: 0.78 | N17: 1 | O17: 1 | P17: 1
B18: 146512 | C18: 2 | D18: 1 | E18: O1 | F18: Less developed | G18: Financial | H18: 0 | I18: 2021-06-18 | J18: 2023-12-17 | K18: 2614856.574 | M18: 0 | N18: 0.21 | O18: 0.62 | P18: 1
B19: 129265 | C19: 2 | D19: 1 | E19: O1 | F19: Less developed | G19: Financial | H19: 20531354.19 | I19: 2017-05-15 | J19: 2022-06-30 | K19: 166300399.4 | M19: 0.71 | N19: 0.9 | O19: 1 | P19: 1
B20: 147040 | C20: 2 | D20: 1 | E20: O1 | F20: Less developed | G20: Financial | H20: 0 | I20: 2021-06-17 | J20: 2023-12-16 | K20: 2651600.593 | M20: 0 | N20: 0.22 | O20: 0.62 | P20: 1
B21: 148203 | C21: 2 | D21: 1 | E21: O1 | F21: Less developed | G21: Financial | H21: 0 | I21: 2021-06-15 | J21: 2023-12-14 | K21: 2621293.829 | M21: 0 | N21: 0.22 | O21: 0.62 | P21: 1
B22: 147547 | C22: 2 | D22: 1 | E22: O1 | F22: Less developed | G22: Financial | H22: 0 | I22: 2021-06-24 | J22: 2023-12-23 | K22: 2690027.571 | M22: 0 | N22: 0.21 | O22: 0.61 | P22: 1
B23: 113589 | C23: 2 | D23: 1 | E23: O1 | F23: More developed | G23: Financial | H23: 1328995.232 | I23: 2017-09-26 | J23: 2021-09-24 | K23: 13653810.47 | M23: 0.82 | N23: 1 | O23: 1 | P23: 1
B24: 119911 | C24: 2 | D24: 1 | E24: O1 | F24: More developed | G24: Financial | H24: 357669.1 | I24: 2018-02-19 | J24: 2022-02-18 | K24: 3787625.008 | M24: 0.72 | N24: 0.97 | O24: 1 | P24: 1
B25: 125314 | C25: 2 | D25: 1 | E25: O1 | F25: More developed | G25: Financial | H25: 0 | I25: 2018-09-03 | J25: 2021-08-31 | K25: 0 | M25: 0.78 | N25: 1 | O25: 1 | P25: 1
B26: 146512 | C26: 2 | D26: 1 | E26: O1 | F26: More developed | G26: Financial | H26: 0 | I26: 2021-06-18 | J26: 2023-12-17 | K26: 333121.5252 | M26: 0 | N26: 0.21 | O26: 0.62 | P26: 1
B27: 129265 | C27: 2 | D27: 1 | E27: O1 | F27: More developed | G27: Financial | H27: 0 | I27: 2017-05-15 | J27: 2022-06-30 | K27: 0 | M27: 0.71 | N27: 0.9 | O27: 1 | P27: 1
B28: 147040 | C28: 2 | D28: 1 | E28: O1 | F28: More developed | G28: Financial | H28: 0 | I28: 2021-06-17 | J28: 2023-12-16 | K28: 337802.5558 | M28: 0 | N28: 0.22 | O28: 0.62 | P28: 1
B29: 148203 | C29: 2 | D29: 1 | E29: O1 | F29: More developed | G29: Financial | H29: 0 | I29: 2021-06-15 | J29: 2023-12-14 | K29: 333941.6039 | M29: 0 | N29: 0.22 | O29: 0.62 | P29: 1
B30: 147547 | C30: 2 | D30: 1 | E30: O1 | F30: More developed | G30: Financial | H30: 0 | I30: 2021-06-24 | J30: 2023-12-23 | K30: 342697.9881 | M30: 0 | N30: 0.21 | O30: 0.61 | P30: 1
B31: 106941 | C31: 3 | D31: 2 | E31: 4S11 | F31: All | G31: Physical | H31: 314 | I31: 2018-01-03 | J31: 2021-10-24 | K31: 923.5294118 | M31: 0.79 | N31: 1 | O31: 1 | P31: 1
B32: 106435 | C32: 3 | D32: 2 | E32: 4S11 | F32: All | G32: Physical | H32: 341 | I32: 2018-01-12 | J32: 2021-08-11 | K32: 550 | M32: 0.83 | N32: 1 | O32: 1 | P32: 1
B33: 104206 | C33: 3 | D33: 2 | E33: 4S11 | F33: All | G33: Physical | H33: 421 | I33: 2018-01-15 | J33: 2021-07-14 | K33: 601.4285714 | M33: 0.85 | N33: 1 | O33: 1 | P33: 1
B34: 104255 | C34: 3 | D34: 2 | E34: 4S11 | F34: All | G34: Physical | H34: 317 | I34: 2018-01-11 | J34: 2021-07-10 | K34: 344.5652174 | M34: 0.85 | N34: 1 | O34: 1 | P34: 1
B35: 103886 | C35: 3 | D35: 2 | E35: 4S11 | F35: All | G35: Physical | H35: 308 | I35: 2018-01-11 | J35: 2021-07-10 | K35: 342.2222222 | M35: 0.85 | N35: 1 | O35: 1 | P35: 1
B36: 105759 | C36: 3 | D36: 2 | E36: 4S11 | F36: All | G36: Physical | H36: 366 | I36: 2018-01-12 | J36: 2021-07-11 | K36: 457.5 | M36: 0.85 | N36: 1 | O36: 1 | P36: 1
B37: 105846 | C37: 3 | D37: 2 | E37: 4S11 | F37: All | G37: Physical | H37: 371 | I37: 2018-01-12 | J37: 2021-10-11 | K37: 742 | M37: 0.79 | N37: 1 | O37: 1 | P37: 1
B38: 106067 | C38: 3 | D38: 2 | E38: 4S11 | F38: All | G38: Physical | H38: 358 | I38: 2018-01-12 | J38: 2021-09-11 | K38: 596.6666667 | M38: 0.81 | N38: 1 | O38: 1 | P38: 1
B39: 118808 | C39: 3 | D39: 2 | E39: 4S12 | F39: All | G39: Physical | H39: 805 | I39: 2018-01-10 | J39: 2022-01-09 | K39: 1518.867925 | M39: 0.74 | N39: 0.99 | O39: 1 | P39: 1
B40: 118809 | C40: 3 | D40: 2 | E40: 4S12 | F40: All | G40: Physical | H40: 804 | I40: 2018-01-10 | J40: 2022-01-09 | K40: 5025 | M40: 0.74 | N40: 0.99 | O40: 1 | P40: 1
B41: 118810 | C41: 3 | D41: 2 | E41: 4S12 | F41: All | G41: Physical | H41: 685 | I41: 2018-01-10 | J41: 2022-01-09 | K41: 1292.45283 | M41: 0.74 | N41: 0.99 | O41: 1 | P41: 1
B42: 139164 | C42: 3 | D42: 4 | E42: 4S27 | F42: All | G42: Physical | I42: 2020-12-10 | J42: 2023-12-09 | K42: 615.5135786 | M42: 0.02 | N42: 0.35 | O42: 0.69 | P42: 1
B43: 140092 | C43: 3 | D43: 4 | E43: 4S27 | F43: All | G43: Physical | I43: 2020-12-23 | J43: 2023-03-31 | K43: 182.9537598 | M43: 0.01 | N43: 0.45 | O43: 0.89 | P43: 1
B44: 140163 | C44: 3 | D44: 4 | E44: 4S27 | F44: All | G44: Physical | I44: 2020-12-01 | J44: 2021-08-31 | K44: 59.8510441 | M44: 0.11 | N44: 1 | O44: 1 | P44: 1
B45: 121994 | C45: 3 | D45: 1 | E45: 4S8 | F45: Less developed | G45: Physical | H45: 3403 | I45: 2018-04-04 | J45: 2022-02-28 | K45: 5970.175439 | M45: 0.7 | N45: 0.96 | O45: 1 | P45: 1
B46: 125311 | C46: 3 | D46: 1 | E46: 4S8 | F46: Less developed | G46: Physical | I46: 2018-08-09 | J46: 2021-07-31 | K46: 114224.6622 | M46: 0.8 | N46: 1 | O46: 1 | P46: 1
B47: 136811 | C47: 3 | D47: 1 | E47: 4S8 | F47: Less developed | G47: Physical | I47: 2020-10-15 | J47: 2022-04-14 | K47: 159.0800797 | M47: 0.14 | N47: 0.81 | O47: 1 | P47: 1
B48: 136888 | C48: 3 | D48: 1 | E48: 4S8 | F48: Less developed | G48: Physical | I48: 2020-12-14 | J48: 2021-12-13 | K48: 105.3647281 | M48: 0.05 | N48: 1 | O48: 1 | P48: 1
B49: 136946 | C49: 3 | D49: 1 | E49: 4S8 | F49: Less developed | G49: Physical | I49: 2020-10-05 | J49: 2022-04-04 | K49: 104.3317406 | M49: 0.16 | N49: 0.83 | O49: 1 | P49: 1
B50: 137522 | C50: 3 | D50: 1 | E50: 4S8 | F50: Less developed | G50: Physical | I50: 2020-11-16 | J50: 2022-04-15 | K50: 155.9811171 | M50: 0.09 | N50: 0.8 | O50: 1 | P50: 1
B51: 137521 | C51: 3 | D51: 1 | E51: 4S8 | F51: Less developed | G51: Physical | I51: 2020-11-20 | J51: 2022-05-19 | K51: 155.9811171 | M51: 0.08 | N51: 0.74 | O51: 1 | P51: 1
B52: 129163 | C52: 3 | D52: 1 | E52: 4S8 | F52: Less developed | G52: Physical | H52: 1124.64 | I52: 2014-02-05 | J52: 2022-10-04 | K52: 1460.571429 | M52: 0.8 | N52: 0.91 | O52: 1 | P52: 1
B53: 127204 | C53: 3 | D53: 1 | E53: 4S8 | F53: Less developed | G53: Physical | I53: 2018-12-03 | J53: 2021-12-02 | K53: 2562.842064 | M53: 0.69 | N53: 1 | O53: 1 | P53: 1
B54: 130167 | C54: 3 | D54: 1 | E54: 4S8 | F54: Less developed | G54: Physical | H54: 7377.04 | I54: 2018-01-01 | J54: 2022-07-31 | K54: 14464.78431 | M54: 0.65 | N54: 0.87 | O54: 1 | P54: 1
B55: 137397 | C55: 3 | D55: 1 | E55: 4S8 | F55: Less developed | G55: Physical | I55: 2020-11-06 | J55: 2022-03-05 | K55: 134.288379 | M55: 0.11 | N55: 0.87 | O55: 1 | P55: 1
B56: 142803 | C56: 3 | D56: 1 | E56: 4S8 | F56: Less developed | G56: Physical | I56: 2020-12-11 | J56: 2022-12-10 | K56: 16304.20003 | M56: 0.03 | N56: 0.53 | O56: 1 | P56: 1
B57: 137012 | C57: 3 | D57: 1 | E57: 4S8 | F57: Less developed | G57: Physical | I57: 2020-11-12 | J57: 2021-11-11 | K57: 105.3647281 | M57: 0.13 | N57: 1 | O57: 1 | P57: 1
B58: 121994 | C58: 3 | D58: 1 | E58: 4S8 | F58: More developed | G58: Physical | H58: 0 | I58: 2018-04-04 | J58: 2022-02-28 | K58: 0 | M58: 0.7 | N58: 0.96 | O58: 1 | P58: 1
B59: 125311 | C59: 3 | D59: 1 | E59: 4S8 | F59: More developed | G59: Physical | I59: 2018-08-09 | J59: 2021-07-31 | K59: 0 | M59: 0.8 | N59: 1 | O59: 1 | P59: 1
B60: 136811 | C60: 3 | D60: 1 | E60: 4S8 | F60: More developed | G60: Physical | I60: 2020-10-15 | J60: 2022-04-14 | K60: 0 | M60: 0.14 | N60: 0.81 | O60: 1 | P60: 1
B61: 136888 | C61: 3 | D61: 1 | E61: 4S8 | F61: More developed | G61: Physical | I61: 2020-12-14 | J61: 2021-12-13 | K61: 0 | M61: 0.05 | N61: 1 | O61: 1 | P61: 1
B62: 136946 | C62: 3 | D62: 1 | E62: 4S8 | F62: More developed | G62: Physical | I62: 2020-10-05 | J62: 2022-04-04 | K62: 0 | M62: 0.16 | N62: 0.83 | O62: 1 | P62: 1
B63: 137522 | C63: 3 | D63: 1 | E63: 4S8 | F63: More developed | G63: Physical | I63: 2020-11-16 | J63: 2022-04-15 | K63: 0 | M63: 0.09 | N63: 0.8 | O63: 1 | P63: 1
B64: 137521 | C64: 3 | D64: 1 | E64: 4S8 | F64: More developed | G64: Physical | I64: 2020-11-20 | J64: 2022-05-19 | K64: 0 | M64: 0.08 | N64: 0.74 | O64: 1 | P64: 1
B65: 129163 | C65: 3 | D65: 1 | E65: 4S8 | F65: More developed | G65: Physical | H65: 153.36 | I65: 2014-02-05 | J65: 2022-10-04 | K65: 199.1688312 | M65: 0.8 | N65: 0.91 | O65: 1 | P65: 1
B66: 127204 | C66: 3 | D66: 1 | E66: 4S8 | F66: More developed | G66: Physical | I66: 2018-12-03 | J66: 2021-12-02 | K66: 0 | M66: 0.69 | N66: 1 | O66: 1 | P66: 1
B67: 130167 | C67: 3 | D67: 1 | E67: 4S8 | F67: More developed | G67: Physical | H67: 1005.96 | I67: 2018-01-01 | J67: 2022-07-31 | K67: 1972.470588 | M67: 0.65 | N67: 0.87 | O67: 1 | P67: 1
B68: 137397 | C68: 3 | D68: 1 | E68: 4S8 | F68: More developed | G68: Physical | I68: 2020-11-06 | J68: 2022-03-05 | K68: 0 | M68: 0.11 | N68: 0.87 | O68: 1 | P68: 1
B69: 142803 | C69: 3 | D69: 1 | E69: 4S8 | F69: More developed | G69: Physical | I69: 2020-12-11 | J69: 2022-12-10 | K69: 0 | M69: 0.03 | N69: 0.53 | O69: 1 | P69: 1
B70: 137012 | C70: 3 | D70: 1 | E70: 4S8 | F70: More developed | G70: Physical | I70: 2020-11-12 | J70: 2021-11-11 | K70: 0 | M70: 0.13 | N70: 1 | O70: 1 | P70: 1
B71: 118808 | C71: 3 | D71: 2 | E71: O1 | F71: Less developed | G71: Financial | H71: 118063788.4 | I71: 2018-01-10 | J71: 2022-01-09 | K71: 124103730 | M71: 0.74 | N71: 0.99 | O71: 1 | P71: 1
B72: 118809 | C72: 3 | D72: 2 | E72: O1 | F72: Less developed | G72: Financial | H72: 118038632.4 | I72: 2018-01-10 | J72: 2022-01-09 | K72: 124103730 | M72: 0.74 | N72: 0.99 | O72: 1 | P72: 1
B73: 121994 | C73: 3 | D73: 1 | E73: O1 | F73: Less developed | G73: Financial | H73: 66965720.73 | I73: 2018-04-04 | J73: 2022-02-28 | K73: 98949171.47 | M73: 0.7 | N73: 0.96 | O73: 1 | P73: 1
B74: 126668 | C74: 3 | D74: 5 | E74: O1 | F74: Less developed | G74: Financial | H74: 1723220.4 | I74: 2019-11-01 | J74: 2021-08-31 | K74: 1723220.4 | M74: 0.64 | N74: 1 | O74: 1 | P74: 1
B75: 125311 | C75: 3 | D75: 1 | E75: O1 | F75: Less developed | G75: Financial | H75: 706409713.6 | I75: 2018-08-09 | J75: 2021-07-31 | K75: 857334362.2 | M75: 0.8 | N75: 1 | O75: 1 | P75: 1
B76: 106941 | C76: 3 | D76: 2 | E76: O1 | F76: Less developed | G76: Financial | H76: 5522737.77 | I76: 2018-01-03 | J76: 2021-10-24 | K76: 7564601.186 | M76: 0.79 | N76: 1 | O76: 1 | P76: 1
B77: 127975 | C77: 3 | D77: 5 | E77: O1 | F77: Less developed | G77: Financial | H77: 1596716.08 | I77: 2019-12-23 | J77: 2021-10-22 | K77: 1883486.829 | M77: 0.56 | N77: 1 | O77: 1 | P77: 1
B78: 128831 | C78: 3 | D78: 5 | E78: O1 | F78: Less developed | G78: Financial | H78: 503386.48 | I78: 2019-11-26 | J78: 2021-10-25 | K78: 1456419.115 | M78: 0.57 | N78: 1 | O78: 1 | P78: 1
B79: 128290 | C79: 3 | D79: 5 | E79: O1 | F79: Less developed | G79: Financial | H79: 1626710.004 | I79: 2020-03-01 | J79: 2021-08-31 | K79: 1871060.403 | M79: 0.56 | N79: 1 | O79: 1 | P79: 1
B80: 128044 | C80: 3 | D80: 5 | E80: O1 | F80: Less developed | G80: Financial | H80: 1968005.84 | I80: 2019-10-25 | J80: 2021-09-24 | K80: 1968005.84 | M80: 0.62 | N80: 1 | O80: 1 | P80: 1
B81: 128121 | C81: 3 | D81: 5 | E81: O1 | F81: Less developed | G81: Financial | H81: 1717169.218 | I81: 2019-10-01 | J81: 2021-06-30 | K81: 1847310.072 | M81: 0.72 | N81: 1 | O81: 1 | P81: 1
B82: 136811 | C82: 3 | D82: 1 | E82: O1 | F82: Less developed | G82: Financial | H82: 254088.3436 | I82: 2020-10-15 | J82: 2022-04-14 | K82: 1276391.645 | M82: 0.14 | N82: 0.81 | O82: 1 | P82: 1
B83: 128125 | C83: 3 | D83: 5 | E83: O1 | F83: Less developed | G83: Financial | H83: 1080781.98 | I83: 2019-12-03 | J83: 2021-09-02 | K83: 1540362.737 | M83: 0.62 | N83: 1 | O83: 1 | P83: 1
B84: 128144 | C84: 3 | D84: 5 | E84: O1 | F84: Less developed | G84: Financial | H84: 1851550.88 | I84: 2020-02-01 | J84: 2021-07-31 | K84: 2121839.924 | M84: 0.61 | N84: 1 | O84: 1 | P84: 1
B85: 128162 | C85: 3 | D85: 5 | E85: O1 | F85: Less developed | G85: Financial | H85: 2922956.53 | I85: 2019-10-16 | J85: 2021-07-15 | K85: 2922956.53 | M85: 0.69 | N85: 1 | O85: 1 | P85: 1
B86: 128612 | C86: 3 | D86: 5 | E86: O1 | F86: Less developed | G86: Financial | H86: 68794.32 | I86: 2019-11-01 | J86: 2021-12-14 | K86: 158906.7434 | M86: 0.55 | N86: 1 | O86: 1 | P86: 1
B87: 128132 | C87: 3 | D87: 5 | E87: O1 | F87: Less developed | G87: Financial | H87: 356080.25 | I87: 2020-02-01 | J87: 2021-07-31 | K87: 2186887.383 | M87: 0.61 | N87: 1 | O87: 1 | P87: 1
B88: 118810 | C88: 3 | D88: 2 | E88: O1 | F88: Less developed | G88: Financial | H88: 117798881.2 | I88: 2018-01-10 | J88: 2022-01-09 | K88: 124507922.1 | M88: 0.74 | N88: 0.99 | O88: 1 | P88: 1
B89: 136888 | C89: 3 | D89: 1 | E89: O1 | F89: Less developed | G89: Financial | H89: 115613.0347 | I89: 2020-12-14 | J89: 2021-12-13 | K89: 1343436.995 | M89: 0.05 | N89: 1 | O89: 1 | P89: 1
B90: 136946 | C90: 3 | D90: 1 | E90: O1 | F90: Less developed | G90: Financial | H90: 210196.8782 | I90: 2020-10-05 | J90: 2022-04-04 | K90: 1274604.044 | M90: 0.16 | N90: 0.83 | O90: 1 | P90: 1
B91: 137522 | C91: 3 | D91: 1 | E91: O1 | F91: Less developed | G91: Financial | H91: 0 | I91: 2020-11-16 | J91: 2022-04-15 | K91: 1321333.405 | M91: 0.09 | N91: 0.8 | O91: 1 | P91: 1
B92: 134945 | C92: 3 | D92: 3 | E92: O1 | F92: Less developed | G92: Financial | H92: 65807.5 | I92: 2021-06-24 | J92: 2021-12-23 | K92: 816352.1514 | M92: 0 | N92: 1 | O92: 1 | P92: 1
B93: 135006 | C93: 3 | D93: 3 | E93: O1 | F93: Less developed | G93: Financial | H93: 4200 | I93: 2020-07-01 | J93: 2021-06-30 | K93: 351020.5889 | M93: 0.5 | N93: 1 | O93: 1 | P93: 1
B94: 137521 | C94: 3 | D94: 1 | E94: O1 | F94: Less developed | G94: Financial | H94: 20969.62909 | I94: 2020-11-20 | J94: 2022-05-19 | K94: 1327384.211 | M94: 0.08 | N94: 0.74 | O94: 1 | P94: 1
B95: 139164 | C95: 3 | D95: 4 | E95: O1 | F95: Less developed | G95: Financial | H95: 0 | I95: 2020-12-10 | J95: 2023-12-09 | K95: 21765470.94 | M95: 0.02 | N95: 0.35 | O95: 0.69 | P95: 1
B96: 140092 | C96: 3 | D96: 4 | E96: O1 | F96: Less developed | G96: Financial | H96: 0 | I96: 2020-12-23 | J96: 2023-03-31 | K96: 4796046.469 | M96: 0.01 | N96: 0.45 | O96: 0.89 | P96: 1
B97: 128130 | C97: 3 | D97: 5 | E97: O1 | F97: Less developed | G97: Financial | H97: 1818742.36 | I97: 2019-10-25 | J97: 2021-08-10 | K97: 1818742.36 | M97: 0.66 | N97: 1 | O97: 1 | P97: 1
B98: 106435 | C98: 3 | D98: 2 | E98: O1 | F98: Less developed | G98: Financial | H98: 7092171.46 | I98: 2018-01-12 | J98: 2021-08-11 | K98: 8635039.128 | M98: 0.83 | N98: 1 | O98: 1 | P98: 1
B99: 144948 | C99: 3 | D99: 5 | E99: O1 | F99: Less developed | G99: Financial | H99: 0 | I99: 2021-06-04 | J99: 2022-12-03 | K99: 294361.0765 | M99: 0 | N99: 0.38 | O99: 1 | P99: 1
B100: 144433 | C100: 3 | D100: 5 | E100: O1 | F100: Less developed | G100: Financial | H100: 0 | I100: 2021-05-24 | J100: 2022-11-23 | K100: 372477.9656 | M100: 0 | N100: 0.4 | O100: 1 | P100: 1
B101: 127018 | C101: 3 | D101: 5 | E101: O1 | F101: Less developed | G101: Financial | H101: 1255344.11 | I101: 2020-03-05 | J101: 2021-08-04 | K101: 1255344.11 | M101: 0.58 | N101: 1 | O101: 1 | P101: 1
B102: 127019 | C102: 3 | D102: 5 | E102: O1 | F102: Less developed | G102: Financial | H102: 979788.33 | I102: 2020-03-13 | J102: 2021-08-12 | K102: 1072279.927 | M102: 0.57 | N102: 1 | O102: 1 | P102: 1
B103: 127851 | C103: 3 | D103: 5 | E103: O1 | F103: Less developed | G103: Financial | H103: 815702.44 | I103: 2019-10-17 | J103: 2021-06-26 | K103: 2166771.37 | M103: 0.71 | N103: 1 | O103: 1 | P103: 1
B104: 128282 | C104: 3 | D104: 5 | E104: O1 | F104: Less developed | G104: Financial | H104: 1630972.07 | I104: 2020-01-15 | J104: 2021-07-14 | K104: 1630972.07 | M104: 0.64 | N104: 1 | O104: 1 | P104: 1
B105: 128258 | C105: 3 | D105: 5 | E105: O1 | F105: Less developed | G105: Financial | H105: 456201.63 | I105: 2019-11-18 | J105: 2022-05-12 | K105: 1787358.96 | M105: 0.45 | N105: 0.85 | O105: 1 | P105: 1
B106: 127802 | C106: 3 | D106: 5 | E106: O1 | F106: Less developed | G106: Financial | H106: 1509857.64 | I106: 2019-10-18 | J106: 2021-09-13 | K106: 1509857.64 | M106: 0.63 | N106: 1 | O106: 1 | P106: 1
B107: 129163 | C107: 3 | D107: 1 | E107: O1 | F107: Less developed | G107: Financial | H107: 96310364.16 | I107: 2014-02-05 | J107: 2022-10-04 | K107: 247967134.4 | M107: 0.8 | N107: 0.91 | O107: 1 | P107: 1
B108: 127204 | C108: 3 | D108: 1 | E108: O1 | F108: Less developed | G108: Financial | H108: 6924667.923 | I108: 2018-12-03 | J108: 2021-12-02 | K108: 21026786.8 | M108: 0.69 | N108: 1 | O108: 1 | P108: 1
B109: 145238 | C109: 3 | D109: 5 | E109: O1 | F109: Less developed | G109: Financial | H109: 0 | I109: 2021-05-28 | J109: 2022-11-27 | K109: 212073.148 | M109: 0 | N109: 0.4 | O109: 1 | P109: 1
B110: 130164 | C110: 3 | D110: 1 | E110: O1 | F110: Less developed | G110: Financial | H110: 1857186.971 | I110: 2019-05-23 | J110: 2022-05-23 | K110: 78045465.18 | M110: 0.54 | N110: 0.87 | O110: 1 | P110: 1
B111: 128254 | C111: 3 | D111: 5 | E111: O1 | F111: Less developed | G111: Financial | H111: 919364.7762 | I111: 2019-10-01 | J111: 2021-12-31 | K111: 1937391.124 | M111: 0.56 | N111: 1 | O111: 1 | P111: 1
B112: 128064 | C112: 3 | D112: 5 | E112: O1 | F112: Less developed | G112: Financial | H112: 2702802.19 | I112: 2019-11-22 | J112: 2021-07-22 | K112: 2702802.19 | M112: 0.67 | N112: 1 | O112: 1 | P112: 1
B113: 128849 | C113: 3 | D113: 5 | E113: O1 | F113: Less developed | G113: Financial | H113: 802190.9 | I113: 2019-11-13 | J113: 2022-01-24 | K113: 1299697.859 | M113: 0.52 | N113: 0.97 | O113: 1 | P113: 1
B114: 130167 | C114: 3 | D114: 1 | E114: O1 | F114: Less developed | G114: Financial | H114: 42554784.85 | I114: 2018-01-01 | J114: 2022-07-31 | K114: 232167439.1 | M114: 0.65 | N114: 0.87 | O114: 1 | P114: 1
B115: 150599 | C115: 3 | D115: 5 | E115: O1 | F115: Less developed | G115: Financial | H115: 0 | I115: 2021-05-24 | J115: 2022-10-23 | K115: 370369.0282 | M115: 0 | N115: 0.43 | O115: 1 | P115: 1
B116: 133778 | C116: 3 | D116: 3 | E116: O1 | F116: Less developed | G116: Financial | H116: 17859.33 | I116: 2020-07-17 | J116: 2021-07-16 | K116: 125694.9757 | M116: 0.46 | N116: 1 | O116: 1 | P116: 1
B117: 127684 | C117: 3 | D117: 5 | E117: O1 | F117: Less developed | G117: Financial | H117: 428659.9 | I117: 2019-12-19 | J117: 2021-08-20 | K117: 1528224.845 | M117: 0.62 | N117: 1 | O117: 1 | P117: 1
B118: 104206 | C118: 3 | D118: 2 | E118: O1 | F118: Less developed | G118: Financial | H118: 10005428.5 | I118: 2018-01-15 | J118: 2021-07-14 | K118: 10196811.04 | M118: 0.85 | N118: 1 | O118: 1 | P118: 1
B119: 104255 | C119: 3 | D119: 2 | E119: O1 | F119: Less developed | G119: Financial | H119: 8083180.03 | I119: 2018-01-11 | J119: 2021-07-10 | K119: 8083180.03 | M119: 0.85 | N119: 1 | O119: 1 | P119: 1
B120: 134944 | C120: 3 | D120: 3 | E120: O1 | F120: Less developed | G120: Financial | H120: 0 | I120: 2020-06-22 | J120: 2021-12-21 | K120: 724164.6325 | M120: 0.35 | N120: 1 | O120: 1 | P120: 1
B121: 103886 | C121: 3 | D121: 2 | E121: O1 | F121: Less developed | G121: Financial | H121: 7199655.67 | I121: 2018-01-11 | J121: 2021-07-10 | K121: 7661467.207 | M121: 0.85 | N121: 1 | O121: 1 | P121: 1
B122: 137397 | C122: 3 | D122: 1 | E122: O1 | F122: Less developed | G122: Financial | H122: 92274.64548 | I122: 2020-11-06 | J122: 2022-03-05 | K122: 874421.4831 | M122: 0.11 | N122: 0.87 | O122: 1 | P122: 1
B123: 137514 | C123: 3 | D123: 1 | E123: O1 | F123: Less developed | G123: Financial | H123: 103500.3401 | I123: 2020-11-27 | J123: 2022-05-26 | K123: 1343565.147 | M123: 0.06 | N123: 0.73 | O123: 1 | P123: 1
B124: 142366 | C124: 3 | D124: 5 | E124: O1 | F124: Less developed | G124: Financial | H124: 0 | I124: 2021-06-04 | J124: 2022-12-03 | K124: 489429.0339 | M124: 0 | N124: 0.38 | O124: 1 | P124: 1
B125: 142803 | C125: 3 | D125: 1 | E125: O1 | F125: Less developed | G125: Financial | H125: 0 | I125: 2020-12-11 | J125: 2022-12-10 | K125: 317751263 | M125: 0.03 | N125: 0.53 | O125: 1 | P125: 1
B126: 140163 | C126: 3 | D126: 4 | E126: O1 | F126: Less developed | G126: Financial | H126: 0 | I126: 2020-12-01 | J126: 2021-08-31 | K126: 2056353.53 | M126: 0.11 | N126: 1 | O126: 1 | P126: 1
B127: 104997 | C127: 3 | D127: 2 | E127: O1 | F127: Less developed | G127: Financial | H127: 8063870.6 | I127: 2018-01-16 | J127: 2021-07-15 | K127: 8063870.6 | M127: 0.85 | N127: 1 | O127: 1 | P127: 1
B128: 149315 | C128: 3 | D128: 5 | E128: O1 | F128: Less developed | G128: Financial | H128: 0 | I128: 2021-05-24 | J128: 2022-11-23 | K128: 490738.4451 | M128: 0 | N128: 0.4 | O128: 1 | P128: 1
B129: 105759 | C129: 3 | D129: 2 | E129: O1 | F129: Less developed | G129: Financial | H129: 15529753.34 | I129: 2018-01-12 | J129: 2021-07-11 | K129: 15529753.34 | M129: 0.85 | N129: 1 | O129: 1 | P129: 1
B130: 105846 | C130: 3 | D130: 2 | E130: O1 | F130: Less developed | G130: Financial | H130: 6756740.04 | I130: 2018-01-12 | J130: 2021-10-11 | K130: 7615372.466 | M130: 0.79 | N130: 1 | O130: 1 | P130: 1
B131: 106067 | C131: 3 | D131: 2 | E131: O1 | F131: Less developed | G131: Financial | H131: 15679769.08 | I131: 2018-01-12 | J131: 2021-09-11 | K131: 17314362.58 | M131: 0.81 | N131: 1 | O131: 1 | P131: 1
B132: 144431 | C132: 3 | D132: 5 | E132: O1 | F132: Less developed | G132: Financial | H132: 0 | I132: 2021-05-24 | J132: 2022-11-23 | K132: 418320.337 | M132: 0 | N132: 0.4 | O132: 1 | P132: 1
B133: 137513 | C133: 3 | D133: 1 | E133: O1 | F133: Less developed | G133: Financial | H133: 82536.5031 | I133: 2020-12-14 | J133: 2022-06-13 | K133: 1343639.163 | M133: 0.03 | N133: 0.7 | O133: 1 | P133: 1
B134: 137012 | C134: 3 | D134: 1 | E134: O1 | F134: Less developed | G134: Financial | H134: 139971.5981 | I134: 2020-11-12 | J134: 2021-11-11 | K134: 1341654.375 | M134: 0.13 | N134: 1 | O134: 1 | P134: 1
B135: 145001 | C135: 3 | D135: 5 | E135: O1 | F135: Less developed | G135: Financial | H135: 0 | I135: 2021-05-07 | J135: 2022-11-06 | K135: 473337.4039 | M135: 0 | N135: 0.43 | O135: 1 | P135: 1
B136: 143384 | C136: 3 | D136: 5 | E136: O1 | F136: Less developed | G136: Financial | H136: 0 | I136: 2021-06-10 | J136: 2022-12-09 | K136: 311433.4152 | M136: 0 | N136: 0.37 | O136: 1 | P136: 1
B137: 118808 | C137: 3 | D137: 2 | E137: O1 | F137: More developed | G137: Financial | H137: 0 | I137: 2018-01-10 | J137: 2022-01-09 | K137: 0 | M137: 0.74 | N137: 0.99 | O137: 1 | P137: 1
B138: 118809 | C138: 3 | D138: 2 | E138: O1 | F138: More developed | G138: Financial | H138: 0 | I138: 2018-01-10 | J138: 2022-01-09 | K138: 0 | M138: 0.74 | N138: 0.99 | O138: 1 | P138: 1
B139: 121994 | C139: 3 | D139: 1 | E139: O1 | F139: More developed | G139: Financial | H139: 0 | I139: 2018-04-04 | J139: 2022-02-28 | K139: 0 | M139: 0.7 | N139: 0.96 | O139: 1 | P139: 1
B140: 126668 | C140: 3 | D140: 5 | E140: O1 | F140: More developed | G140: Financial | H140: 0 | I140: 2019-11-01 | J140: 2021-08-31 | K140: 0 | M140: 0.64 | N140: 1 | O140: 1 | P140: 1
B141: 125311 | C141: 3 | D141: 1 | E141: O1 | F141: More developed | G141: Financial | H141: 89993571.18 | I141: 2018-08-09 | J141: 2021-07-31 | K141: 109220724.8 | M141: 0.8 | N141: 1 | O141: 1 | P141: 1
B142: 106941 | C142: 3 | D142: 2 | E142: O1 | F142: More developed | G142: Financial | H142: 0 | I142: 2018-01-03 | J142: 2021-10-24 | K142: 0 | M142: 0.79 | N142: 1 | O142: 1 | P142: 1
B143: 127975 | C143: 3 | D143: 5 | E143: O1 | F143: More developed | G143: Financial | H143: 0 | I143: 2019-12-23 | J143: 2021-10-22 | K143: 0 | M143: 0.56 | N143: 1 | O143: 1 | P143: 1
B144: 128831 | C144: 3 | D144: 5 | E144: O1 | F144: More developed | G144: Financial | H144: 0 | I144: 2019-11-26 | J144: 2021-10-25 | K144: 0 | M144: 0.57 | N144: 1 | O144: 1 | P144: 1
B145: 128290 | C145: 3 | D145: 5 | E145: O1 | F145: More developed | G145: Financial | H145: 207235.8856 | I145: 2020-03-01 | J145: 2021-08-31 | K145: 238365.0795 | M145: 0.56 | N145: 1 | O145: 1 | P145: 1
B146: 128044 | C146: 3 | D146: 5 | E146: O1 | F146: More developed | G146: Financial | H146: 0 | I146: 2019-10-25 | J146: 2021-09-24 | K146: 0 | M146: 0.62 | N146: 1 | O146: 1 | P146: 1
B147: 128121 | C147: 3 | D147: 5 | E147: O1 | F147: More developed | G147: Financial | H147: 218760.0019 | I147: 2019-10-01 | J147: 2021-06-30 | K147: 235339.389 | M147: 0.72 | N147: 1 | O147: 1 | P147: 1
B148: 136811 | C148: 3 | D148: 1 | E148: O1 | F148: More developed | G148: Financial | H148: 32369.76643 | I148: 2020-10-15 | J148: 2022-04-14 | K148: 162606.8273 | M148: 0.14 | N148: 0.81 | O148: 1 | P148: 1
B149: 128125 | C149: 3 | D149: 5 | E149: O1 | F149: More developed | G149: Financial | H149: 0 | I149: 2019-12-03 | J149: 2021-09-02 | K149: 0 | M149: 0.62 | N149: 1 | O149: 1 | P149: 1
B150: 128144 | C150: 3 | D150: 5 | E150: O1 | F150: More developed | G150: Financial | H150: 0 | I150: 2020-02-01 | J150: 2021-07-31 | K150: 0 | M150: 0.61 | N150: 1 | O150: 1 | P150: 1
B151: 128162 | C151: 3 | D151: 5 | E151: O1 | F151: More developed | G151: Financial | H151: 0 | I151: 2019-10-16 | J151: 2021-07-15 | K151: 0 | M151: 0.69 | N151: 1 | O151: 1 | P151: 1
B152: 128612 | C152: 3 | D152: 5 | E152: O1 | F152: More developed | G152: Financial | H152: 0 | I152: 2019-11-01 | J152: 2021-12-14 | K152: 0 | M152: 0.55 | N152: 1 | O152: 1 | P152: 1
B153: 128132 | C153: 3 | D153: 5 | E153: O1 | F153: More developed | G153: Financial | H153: 0 | I153: 2020-02-01 | J153: 2021-07-31 | K153: 0 | M153: 0.61 | N153: 1 | O153: 1 | P153: 1
B154: 118810 | C154: 3 | D154: 2 | E154: O1 | F154: More developed | G154: Financial | H154: 0 | I154: 2018-01-10 | J154: 2022-01-09 | K154: 0 | M154: 0.74 | N154: 0.99 | O154: 1 | P154: 1
B155: 136888 | C155: 3 | D155: 1 | E155: O1 | F155: More developed | G155: Financial | H155: 14728.60532 | I155: 2020-12-14 | J155: 2021-12-13 | K155: 171148.1177 | M155: 0.05 | N155: 1 | O155: 1 | P155: 1
B156: 136946 | C156: 3 | D156: 1 | E156: O1 | F156: More developed | G156: Financial | H156: 26778.18178 | I156: 2020-10-05 | J156: 2022-04-04 | K156: 162379.0946 | M156: 0.16 | N156: 0.83 | O156: 1 | P156: 1
B157: 137522 | C157: 3 | D157: 1 | E157: O1 | F157: More developed | G157: Financial | H157: 0 | I157: 2020-11-16 | J157: 2022-04-15 | K157: 168332.215 | M157: 0.09 | N157: 0.8 | O157: 1 | P157: 1
B158: 134945 | C158: 3 | D158: 3 | E158: O1 | F158: More developed | G158: Financial | H158: 0 | I158: 2021-06-24 | J158: 2021-12-23 | K158: 0 | M158: 0 | N158: 1 | O158: 1 | P158: 1
B159: 135006 | C159: 3 | D159: 3 | E159: O1 | F159: More developed | G159: Financial | H159: 0 | I159: 2020-07-01 | J159: 2021-06-30 | K159: 0 | M159: 0.5 | N159: 1 | O159: 1 | P159: 1
B160: 137521 | C160: 3 | D160: 1 | E160: O1 | F160: More developed | G160: Financial | H160: 2671.44091 | I160: 2020-11-20 | J160: 2022-05-19 | K160: 169103.0618 | M160: 0.08 | N160: 0.74 | O160: 1 | P160: 1
B161: 139164 | C161: 3 | D161: 4 | E161: O1 | F161: More developed | G161: Financial | H161: 0 | I161: 2020-12-10 | J161: 2023-12-09 | K161: 2772827.752 | M161: 0.02 | N161: 0.35 | O161: 0.69 | P161: 1
B162: 140092 | C162: 3 | D162: 4 | E162: O1 | F162: More developed | G162: Financial | H162: 0 | I162: 2020-12-23 | J162: 2023-03-31 | K162: 610995.7733 | M162: 0.01 | N162: 0.45 | O162: 0.89 | P162: 1
B163: 128130 | C163: 3 | D163: 5 | E163: O1 | F163: More developed | G163: Financial | H163: 0 | I163: 2019-10-25 | J163: 2021-08-10 | K163: 0 | M163: 0.66 | N163: 1 | O163: 1 | P163: 1
B164: 106435 | C164: 3 | D164: 2 | E164: O1 | F164: More developed | G164: Financial | H164: 0 | I164: 2018-01-12 | J164: 2021-08-11 | K164: 0 | M164: 0.83 | N164: 1 | O164: 1 | P164: 1
B165: 144948 | C165: 3 | D165: 5 | E165: O1 | F165: More developed | G165: Financial | H165: 0 | I165: 2021-06-04 | J165: 2022-12-03 | K165: 37500.34007 | M165: 0 | N165: 0.38 | O165: 1 | P165: 1
B166: 144433 | C166: 3 | D166: 5 | E166: O1 | F166: More developed | G166: Financial | H166: 0 | I166: 2021-05-24 | J166: 2022-11-23 | K166: 47452.09708 | M166: 0 | N166: 0.4 | O166: 1 | P166: 1
B167: 127018 | C167: 3 | D167: 5 | E167: O1 | F167: More developed | G167: Financial | H167: 0 | I167: 2020-03-05 | J167: 2021-08-04 | K167: 0 | M167: 0.58 | N167: 1 | O167: 1 | P167: 1
B168: 127019 | C168: 3 | D168: 5 | E168: O1 | F168: More developed | G168: Financial | H168: 0 | I168: 2020-03-13 | J168: 2021-08-12 | K168: 0 | M168: 0.57 | N168: 1 | O168: 1 | P168: 1
B169: 127851 | C169: 3 | D169: 5 | E169: O1 | F169: More developed | G169: Financial | H169: 0 | I169: 2019-10-17 | J169: 2021-06-26 | K169: 0 | M169: 0.71 | N169: 1 | O169: 1 | P169: 1
B170: 128282 | C170: 3 | D170: 5 | E170: O1 | F170: More developed | G170: Financial | H170: 0 | I170: 2020-01-15 | J170: 2021-07-14 | K170: 0 | M170: 0.64 | N170: 1 | O170: 1 | P170: 1
B171: 128258 | C171: 3 | D171: 5 | E171: O1 | F171: More developed | G171: Financial | H171: 0 | I171: 2019-11-18 | J171: 2022-05-12 | K171: 0 | M171: 0.45 | N171: 0.85 | O171: 1 | P171: 1
B172: 127802 | C172: 3 | D172: 5 | E172: O1 | F172: More developed | G172: Financial | H172: 0 | I172: 2019-10-18 | J172: 2021-09-13 | K172: 0 | M172: 0.63 | N172: 1 | O172: 1 | P172: 1
B173: 129163 | C173: 3 | D173: 1 | E173: O1 | F173: More developed | G173: Financial | H173: 13133231.48 | I173: 2014-02-05 | J173: 2022-10-04 | K173: 33813700.14 | M173: 0.8 | N173: 0.91 | O173: 1 | P173: 1
B174: 127204 | C174: 3 | D174: 1 | E174: O1 | F174: More developed | G174: Financial | H174: 882173.0273 | I174: 2018-12-03 | J174: 2021-12-02 | K174: 2678722.557 | M174: 0.69 | N174: 1 | O174: 1 | P174: 1
B175: 145238 | C175: 3 | D175: 5 | E175: O1 | F175: More developed | G175: Financial | H175: 0 | I175: 2021-05-28 | J175: 2022-11-27 | K175: 27017.21051 | M175: 0 | N175: 0.4 | O175: 1 | P175: 1
B176: 130164 | C176: 3 | D176: 1 | E176: O1 | F176: More developed | G176: Financial | H176: 253252.7688 | I176: 2019-05-23 | J176: 2022-05-23 | K176: 10642563.43 | M176: 0.54 | N176: 0.87 | O176: 1 | P176: 1
B177: 128254 | C177: 3 | D177: 5 | E177: O1 | F177: More developed | G177: Financial | H177: 117123.1338 | I177: 2019-10-01 | J177: 2021-12-31 | K177: 246815.3292 | M177: 0.56 | N177: 1 | O177: 1 | P177: 1
B178: 128064 | C178: 3 | D178: 5 | E178: O1 | F178: More developed | G178: Financial | H178: 0 | I178: 2019-11-22 | J178: 2021-07-22 | K178: 0 | M178: 0.67 | N178: 1 | O178: 1 | P178: 1
B179: 128849 | C179: 3 | D179: 5 | E179: O1 | F179: More developed | G179: Financial | H179: 0 | I179: 2019-11-13 | J179: 2022-01-24 | K179: 0 | M179: 0.52 | N179: 0.97 | O179: 1 | P179: 1
B180: 130167 | C180: 3 | D180: 1 | E180: O1 | F180: More developed | G180: Financial | H180: 5802925.207 | I180: 2018-01-01 | J180: 2022-07-31 | K180: 31659196.24 | M180: 0.65 | N180: 0.87 | O180: 1 | P180: 1
B181: 150599 | C181: 3 | D181: 5 | E181: O1 | F181: More developed | G181: Financial | H181: 0 | I181: 2021-05-24 | J181: 2022-10-23 | K181: 47183.42749 | M181: 0 | N181: 0.43 | O181: 1 | P181: 1
B182: 133778 | C182: 3 | D182: 3 | E182: O1 | F182: More developed | G182: Financial | H182: 0 | I182: 2020-07-17 | J182: 2021-07-16 | K182: 0 | M182: 0.46 | N182: 1 | O182: 1 | P182: 1
B183: 127684 | C183: 3 | D183: 5 | E183: O1 | F183: More developed | G183: Financial | H183: 0 | I183: 2019-12-19 | J183: 2021-08-20 | K183: 0 | M183: 0.62 | N183: 1 | O183: 1 | P183: 1
B184: 104206 | C184: 3 | D184: 2 | E184: O1 | F184: More developed | G184: Financial | H184: 0 | I184: 2018-01-15 | J184: 2021-07-14 | K184: 0 | M184: 0.85 | N184: 1 | O184: 1 | P184: 1
B185: 104255 | C185: 3 | D185: 2 | E185: O1 | F185: More developed | G185: Financial | H185: 0 | I185: 2018-01-11 | J185: 2021-07-10 | K185: 0 | M185: 0.85 | N185: 1 | O185: 1 | P185: 1
B186: 134944 | C186: 3 | D186: 3 | E186: O1 | F186: More developed | G186: Financial | H186: 0 | I186: 2020-06-22 | J186: 2021-12-21 | K186: 92255.47179 | M186: 0.35 | N186: 1 | O186: 1 | P186: 1
B187: 103886 | C187: 3 | D187: 2 | E187: O1 | F187: More developed | G187: Financial | H187: 0 | I187: 2018-01-11 | J187: 2021-07-10 | K187: 0 | M187: 0.85 | N187: 1 | O187: 1 | P187: 1
B188: 137397 | C188: 3 | D188: 1 | E188: O1 | F188: More developed | G188: Financial | H188: 11755.39452 | I188: 2020-11-06 | J188: 2022-03-05 | K188: 111397.5508 | M188: 0.11 | N188: 0.87 | O188: 1 | P188: 1
B189: 137514 | C189: 3 | D189: 1 | E189: O1 | F189: More developed | G189: Financial | H189: 13185.49992 | I189: 2020-11-27 | J189: 2022-05-26 | K189: 171164.4437 | M189: 0.06 | N189: 0.73 | O189: 1 | P189: 1
B190: 142366 | C190: 3 | D190: 5 | E190: O1 | F190: More developed | G190: Financial | H190: 0 | I190: 2021-06-04 | J190: 2022-12-03 | K190: 62351.16216 | M190: 0 | N190: 0.38 | O190: 1 | P190: 1
B191: 142803 | C191: 3 | D191: 1 | E191: O1 | F191: More developed | G191: Financial | H191: 0 | I191: 2020-12-11 | J191: 2022-12-10 | K191: 40480149.62 | M191: 0.03 | N191: 0.53 | O191: 1 | P191: 1
B192: 140163 | C192: 3 | D192: 4 | E192: O1 | F192: More developed | G192: Financial | H192: 0 | I192: 2020-12-01 | J192: 2021-08-31 | K192: 261970.6301 | M192: 0.11 | N192: 1 | O192: 1 | P192: 1
B193: 104997 | C193: 3 | D193: 2 | E193: O1 | F193: More developed | G193: Financial | H193: 0 | I193: 2018-01-16 | J193: 2021-07-15 | K193: 0 | M193: 0.85 | N193: 1 | O193: 1 | P193: 1
B194: 149315 | C194: 3 | D194: 5 | E194: O1 | F194: More developed | G194: Financial | H194: 0 | I194: 2021-05-24 | J194: 2022-11-23 | K194: 62517.97554 | M194: 0 | N194: 0.4 | O194: 1 | P194: 1
B195: 105759 | C195: 3 | D195: 2 | E195: O1 | F195: More developed | G195: Financial | H195: 0 | I195: 2018-01-12 | J195: 2021-07-11 | K195: 0 | M195: 0.85 | N195: 1 | O195: 1 | P195: 1
B196: 105846 | C196: 3 | D196: 2 | E196: O1 | F196: More developed | G196: Financial | H196: 0 | I196: 2018-01-12 | J196: 2021-10-11 | K196: 0 | M196: 0.79 | N196: 1 | O196: 1 | P196: 1
B197: 106067 | C197: 3 | D197: 2 | E197: O1 | F197: More developed | G197: Financial | H197: 0 | I197: 2018-01-12 | J197: 2021-09-11 | K197: 0 | M197: 0.81 | N197: 1 | O197: 1 | P197: 1
B198: 144431 | C198: 3 | D198: 5 | E198: O1 | F198: More developed | G198: Financial | H198: 0 | I198: 2021-05-24 | J198: 2022-11-23 | K198: 53292.21881 | M198: 0 | N198: 0.4 | O198: 1 | P198: 1
B199: 137513 | C199: 3 | D199: 1 | E199: O1 | F199: More developed | G199: Financial | H199: 10514.7969 | I199: 2020-12-14 | J199: 2022-06-13 | K199: 171173.8731 | M199: 0.03 | N199: 0.7 | O199: 1 | P199: 1
B200: 137012 | C200: 3 | D200: 1 | E200: O1 | F200: More developed | G200: Financial | H200: 17831.78194 | I200: 2020-11-12 | J200: 2021-11-11 | K200: 170921.0196 | M200: 0.13 | N200: 1 | O200: 1 | P200: 1
B201: 145001 | C201: 3 | D201: 5 | E201: O1 | F201: More developed | G201: Financial | H201: 0 | I201: 2021-05-07 | J201: 2022-11-06 | K201: 60301.15743 | M201: 0 | N201: 0.43 | O201: 1 | P201: 1
... 2953 more rows

Sheet Achievement_forecast_ongoing
G2: User calibrations | L2: Statistical projections
C4: Characteristics | G4: Year | L4: Year
B5: SMIS_CODE | C5: PA | D5: PI | E5: Indicator | F5: Region | G5: 2020 | H5: 2021 | I5: 2022 | J5: 2024 | L5: 2020 | M5: 2021 | N5: 2022 | O5: 2024
B6: =Achievement_to_date_ongoing!B4 -> 129203 | C6: =IF($B6>0, Achievement_to_date_ongoing!C4, "") -> 1 | D6: =IF($B6>0, Achievement_to_date_ongoing!D4, "") -> 1 | E6: =IF($B6>0, Achievement_to_date_ongoing!E4, "") -> 4S1 | F6: =IF($B6>0, Achievement_to_date_ongoing!F4, "") -> All | G6: 6065.966229 | H6: 9885.2783 | I6: 11233.2708 | J6: 11233.2708 | L6: =IF($B6>0,Achievement_to_date_ongoing!$K4*Achievement_to_date_ongoing!M4,"") -> 6065.966229 | M6: =IF($B6>0,Achievement_to_date_ongoing!$K4*Achievement_to_date_ongoing!N4,"") -> 9885.2783 | N6: =IF($B6>0,Achievement_to_date_ongoing!$K4*Achievement_to_date_ongoing!O4,"") -> 11233.2708 | O6: =IF($B6>0,Achievement_to_date_ongoing!$K4*Achievement_to_date_ongoing!P4,"") -> 11233.2708
B7: =Achievement_to_date_ongoing!B5 -> 129203 | C7: =IF($B7>0, Achievement_to_date_ongoing!C5, "") -> 1 | D7: =IF($B7>0, Achievement_to_date_ongoing!D5, "") -> 1 | E7: =IF($B7>0, Achievement_to_date_ongoing!E5, "") -> O1 | F7: =IF($B7>0, Achievement_to_date_ongoing!F5, "") -> All | G7: 68395231.44 | H7: 111458895.7 | I7: 126657836 | J7: 126657836 | L7: =IF($B7>0,Achievement_to_date_ongoing!$K5*Achievement_to_date_ongoing!M5,"") -> 68395231.44 | M7: =IF($B7>0,Achievement_to_date_ongoing!$K5*Achievement_to_date_ongoing!N5,"") -> 111458895.7 | N7: =IF($B7>0,Achievement_to_date_ongoing!$K5*Achievement_to_date_ongoing!O5,"") -> 126657836 | O7: =IF($B7>0,Achievement_to_date_ongoing!$K5*Achievement_to_date_ongoing!P5,"") -> 126657836
B8: =Achievement_to_date_ongoing!B6 -> 147695 | C8: =IF($B8>0, Achievement_to_date_ongoing!C6, "") -> 1 | D8: =IF($B8>0, Achievement_to_date_ongoing!D6, "") -> 1 | E8: =IF($B8>0, Achievement_to_date_ongoing!E6, "") -> O1 | F8: =IF($B8>0, Achievement_to_date_ongoing!F6, "") -> All | G8: 0 | H8: 607789.0531 | I8: 1919333.852 | J8: 3198889.753 | L8: =IF($B8>0,Achievement_to_date_ongoing!$K6*Achievement_to_date_ongoing!M6,"") -> 0 | M8: =IF($B8>0,Achievement_to_date_ongoing!$K6*Achievement_to_date_ongoing!N6,"") -> 607789.0531 | N8: =IF($B8>0,Achievement_to_date_ongoing!$K6*Achievement_to_date_ongoing!O6,"") -> 1919333.852 | O8: =IF($B8>0,Achievement_to_date_ongoing!$K6*Achievement_to_date_ongoing!P6,"") -> 3198889.753
B9: =Achievement_to_date_ongoing!B7 -> 147534 | C9: =IF($B9>0, Achievement_to_date_ongoing!C7, "") -> 1 | D9: =IF($B9>0, Achievement_to_date_ongoing!D7, "") -> 1 | E9: =IF($B9>0, Achievement_to_date_ongoing!E7, "") -> O1 | F9: =IF($B9>0, Achievement_to_date_ongoing!F7, "") -> All | G9: 0 | H9: 628610.2825 | I9: 1885830.847 | J9: 3143051.412 | L9: =IF($B9>0,Achievement_to_date_ongoing!$K7*Achievement_to_date_ongoing!M7,"") -> 0 | M9: =IF($B9>0,Achievement_to_date_ongoing!$K7*Achievement_to_date_ongoing!N7,"") -> 628610.2825 | N9: =IF($B9>0,Achievement_to_date_ongoing!$K7*Achievement_to_date_ongoing!O7,"") -> 1885830.847 | O9: =IF($B9>0,Achievement_to_date_ongoing!$K7*Achievement_to_date_ongoing!P7,"") -> 3143051.412
B10: =Achievement_to_date_ongoing!B8 -> 146035 | C10: =IF($B10>0, Achievement_to_date_ongoing!C8, "") -> 1 | D10: =IF($B10>0, Achievement_to_date_ongoing!D8, "") -> 1 | E10: =IF($B10>0, Achievement_to_date_ongoing!E8, "") -> O1 | F10: =IF($B10>0, Achievement_to_date_ongoing!F8, "") -> All | G10: 0 | H10: 617710.8088 | I10: 1853132.426 | J10: 3088554.044 | L10: =IF($B10>0,Achievement_to_date_ongoing!$K8*Achievement_to_date_ongoing!M8,"") -> 0 | M10: =IF($B10>0,Achievement_to_date_ongoing!$K8*Achievement_to_date_ongoing!N8,"") -> 617710.8088 | N10: =IF($B10>0,Achievement_to_date_ongoing!$K8*Achievement_to_date_ongoing!O8,"") -> 1853132.426 | O10: =IF($B10>0,Achievement_to_date_ongoing!$K8*Achievement_to_date_ongoing!P8,"") -> 3088554.044
B11: =Achievement_to_date_ongoing!B9 -> 119911 | C11: =IF($B11>0, Achievement_to_date_ongoing!C9, "") -> 2 | D11: =IF($B11>0, Achievement_to_date_ongoing!D9, "") -> 1 | E11: =IF($B11>0, Achievement_to_date_ongoing!E9, "") -> 4S1 | F11: =IF($B11>0, Achievement_to_date_ongoing!F9, "") -> Less developed | G11: 0 | H11: 0 | I11: 0 | J11: 0 | L11: =IF($B11>0,Achievement_to_date_ongoing!$K9*Achievement_to_date_ongoing!M9,"") -> 0 | M11: =IF($B11>0,Achievement_to_date_ongoing!$K9*Achievement_to_date_ongoing!N9,"") -> 0 | N11: =IF($B11>0,Achievement_to_date_ongoing!$K9*Achievement_to_date_ongoing!O9,"") -> 0 | O11: =IF($B11>0,Achievement_to_date_ongoing!$K9*Achievement_to_date_ongoing!P9,"") -> 0
B12: =Achievement_to_date_ongoing!B10 -> 125314 | C12: =IF($B12>0, Achievement_to_date_ongoing!C10, "") -> 2 | D12: =IF($B12>0, Achievement_to_date_ongoing!D10, "") -> 1 | E12: =IF($B12>0, Achievement_to_date_ongoing!E10, "") -> 4S1 | F12: =IF($B12>0, Achievement_to_date_ongoing!F10, "") -> Less developed | G12: 7895.94 | H12: 10123 | I12: 10123 | J12: 10123 | L12: =IF($B12>0,Achievement_to_date_ongoing!$K10*Achievement_to_date_ongoing!M10,"") -> 7895.94 | M12: =IF($B12>0,Achievement_to_date_ongoing!$K10*Achievement_to_date_ongoing!N10,"") -> 10123 | N12: =IF($B12>0,Achievement_to_date_ongoing!$K10*Achievement_to_date_ongoing!O10,"") -> 10123 | O12: =IF($B12>0,Achievement_to_date_ongoing!$K10*Achievement_to_date_ongoing!P10,"") -> 10123
B13: =Achievement_to_date_ongoing!B11 -> 129265 | C13: =IF($B13>0, Achievement_to_date_ongoing!C11, "") -> 2 | D13: =IF($B13>0, Achievement_to_date_ongoing!D11, "") -> 1 | E13: =IF($B13>0, Achievement_to_date_ongoing!E11, "") -> 4S1 | F13: =IF($B13>0, Achievement_to_date_ongoing!F11, "") -> Less developed | G13: 739.2352941 | H13: 937.0588235 | I13: 1041.176471 | J13: 1041.176471 | L13: =IF($B13>0,Achievement_to_date_ongoing!$K11*Achievement_to_date_ongoing!M11,"") -> 739.2352941 | M13: =IF($B13>0,Achievement_to_date_ongoing!$K11*Achievement_to_date_ongoing!N11,"") -> 937.0588235 | N13: =IF($B13>0,Achievement_to_date_ongoing!$K11*Achievement_to_date_ongoing!O11,"") -> 1041.176471 | O13: =IF($B13>0,Achievement_to_date_ongoing!$K11*Achievement_to_date_ongoing!P11,"") -> 1041.176471
B14: =Achievement_to_date_ongoing!B12 -> 119911 | C14: =IF($B14>0, Achievement_to_date_ongoing!C12, "") -> 2 | D14: =IF($B14>0, Achievement_to_date_ongoing!D12, "") -> 1 | E14: =IF($B14>0, Achievement_to_date_ongoing!E12, "") -> 4S1 | F14: =IF($B14>0, Achievement_to_date_ongoing!F12, "") -> More developed | G14: 44.42553191 | H14: 59.85106383 | I14: 61.70212766 | J14: 61.70212766 | L14: =IF($B14>0,Achievement_to_date_ongoing!$K12*Achievement_to_date_ongoing!M12,"") -> 44.42553191 | M14: =IF($B14>0,Achievement_to_date_ongoing!$K12*Achievement_to_date_ongoing!N12,"") -> 59.85106383 | N14: =IF($B14>0,Achievement_to_date_ongoing!$K12*Achievement_to_date_ongoing!O12,"") -> 61.70212766 | O14: =IF($B14>0,Achievement_to_date_ongoing!$K12*Achievement_to_date_ongoing!P12,"") -> 61.70212766
B15: =Achievement_to_date_ongoing!B13 -> 125314 | C15: =IF($B15>0, Achievement_to_date_ongoing!C13, "") -> 2 | D15: =IF($B15>0, Achievement_to_date_ongoing!D13, "") -> 1 | E15: =IF($B15>0, Achievement_to_date_ongoing!E13, "") -> 4S1 | F15: =IF($B15>0, Achievement_to_date_ongoing!F13, "") -> More developed | G15: 0 | H15: 0 | I15: 0 | J15: 0 | L15: =IF($B15>0,Achievement_to_date_ongoing!$K13*Achievement_to_date_ongoing!M13,"") -> 0 | M15: =IF($B15>0,Achievement_to_date_ongoing!$K13*Achievement_to_date_ongoing!N13,"") -> 0 | N15: =IF($B15>0,Achievement_to_date_ongoing!$K13*Achievement_to_date_ongoing!O13,"") -> 0 | O15: =IF($B15>0,Achievement_to_date_ongoing!$K13*Achievement_to_date_ongoing!P13,"") -> 0
B16: =Achievement_to_date_ongoing!B14 -> 129265 | C16: =IF($B16>0, Achievement_to_date_ongoing!C14, "") -> 2 | D16: =IF($B16>0, Achievement_to_date_ongoing!D14, "") -> 1 | E16: =IF($B16>0, Achievement_to_date_ongoing!E14, "") -> 4S1 | F16: =IF($B16>0, Achievement_to_date_ongoing!F14, "") -> More developed | G16: 0 | H16: 0 | I16: 0 | J16: 0 | L16: =IF($B16>0,Achievement_to_date_ongoing!$K14*Achievement_to_date_ongoing!M14,"") -> 0 | M16: =IF($B16>0,Achievement_to_date_ongoing!$K14*Achievement_to_date_ongoing!N14,"") -> 0 | N16: =IF($B16>0,Achievement_to_date_ongoing!$K14*Achievement_to_date_ongoing!O14,"") -> 0 | O16: =IF($B16>0,Achievement_to_date_ongoing!$K14*Achievement_to_date_ongoing!P14,"") -> 0
B17: =Achievement_to_date_ongoing!B15 -> 113589 | C17: =IF($B17>0, Achievement_to_date_ongoing!C15, "") -> 2 | D17: =IF($B17>0, Achievement_to_date_ongoing!D15, "") -> 1 | E17: =IF($B17>0, Achievement_to_date_ongoing!E15, "") -> O1 | F17: =IF($B17>0, Achievement_to_date_ongoing!F15, "") -> Less developed | G17: 82104913.62 | H17: 100127943.4 | I17: 100127943.4 | J17: 100127943.4 | L17: =IF($B17>0,Achievement_to_date_ongoing!$K15*Achievement_to_date_ongoing!M15,"") -> 82104913.62 | M17: =IF($B17>0,Achievement_to_date_ongoing!$K15*Achievement_to_date_ongoing!N15,"") -> 100127943.4 | N17: =IF($B17>0,Achievement_to_date_ongoing!$K15*Achievement_to_date_ongoing!O15,"") -> 100127943.4 | O17: =IF($B17>0,Achievement_to_date_ongoing!$K15*Achievement_to_date_ongoing!P15,"") -> 100127943.4
B18: =Achievement_to_date_ongoing!B16 -> 119911 | C18: =IF($B18>0, Achievement_to_date_ongoing!C16, "") -> 2 | D18: =IF($B18>0, Achievement_to_date_ongoing!D16, "") -> 1 | E18: =IF($B18>0, Achievement_to_date_ongoing!E16, "") -> O1 | F18: =IF($B18>0, Achievement_to_date_ongoing!F16, "") -> Less developed | G18: 0 | H18: 0 | I18: 0 | J18: 0 | L18: =IF($B18>0,Achievement_to_date_ongoing!$K16*Achievement_to_date_ongoing!M16,"") -> 0 | M18: =IF($B18>0,Achievement_to_date_ongoing!$K16*Achievement_to_date_ongoing!N16,"") -> 0 | N18: =IF($B18>0,Achievement_to_date_ongoing!$K16*Achievement_to_date_ongoing!O16,"") -> 0 | O18: =IF($B18>0,Achievement_to_date_ongoing!$K16*Achievement_to_date_ongoing!P16,"") -> 0
B19: =Achievement_to_date_ongoing!B17 -> 125314 | C19: =IF($B19>0, Achievement_to_date_ongoing!C17, "") -> 2 | D19: =IF($B19>0, Achievement_to_date_ongoing!D17, "") -> 1 | E19: =IF($B19>0, Achievement_to_date_ongoing!E17, "") -> O1 | F19: =IF($B19>0, Achievement_to_date_ongoing!F17, "") -> Less developed | G19: 111109957.3 | H19: 142448663.2 | I19: 142448663.2 | J19: 142448663.2 | L19: =IF($B19>0,Achievement_to_date_ongoing!$K17*Achievement_to_date_ongoing!M17,"") -> 111109957.3 | M19: =IF($B19>0,Achievement_to_date_ongoing!$K17*Achievement_to_date_ongoing!N17,"") -> 142448663.2 | N19: =IF($B19>0,Achievement_to_date_ongoing!$K17*Achievement_to_date_ongoing!O17,"") -> 142448663.2 | O19: =IF($B19>0,Achievement_to_date_ongoing!$K17*Achievement_to_date_ongoing!P17,"") -> 142448663.2
B20: =Achievement_to_date_ongoing!B18 -> 146512 | C20: =IF($B20>0, Achievement_to_date_ongoing!C18, "") -> 2 | D20: =IF($B20>0, Achievement_to_date_ongoing!D18, "") -> 1 | E20: =IF($B20>0, Achievement_to_date_ongoing!E18, "") -> O1 | F20: =IF($B20>0, Achievement_to_date_ongoing!F18, "") -> Less developed | G20: 0 | H20: 549119.8805 | I20: 1621211.076 | J20: 2614856.574 | L20: =IF($B20>0,Achievement_to_date_ongoing!$K18*Achievement_to_date_ongoing!M18,"") -> 0 | M20: =IF($B20>0,Achievement_to_date_ongoing!$K18*Achievement_to_date_ongoing!N18,"") -> 549119.8805 | N20: =IF($B20>0,Achievement_to_date_ongoing!$K18*Achievement_to_date_ongoing!O18,"") -> 1621211.076 | O20: =IF($B20>0,Achievement_to_date_ongoing!$K18*Achievement_to_date_ongoing!P18,"") -> 2614856.574
B21: =Achievement_to_date_ongoing!B19 -> 129265 | C21: =IF($B21>0, Achievement_to_date_ongoing!C19, "") -> 2 | D21: =IF($B21>0, Achievement_to_date_ongoing!D19, "") -> 1 | E21: =IF($B21>0, Achievement_to_date_ongoing!E19, "") -> O1 | F21: =IF($B21>0, Achievement_to_date_ongoing!F19, "") -> Less developed | G21: 118073283.6 | H21: 149670359.5 | I21: 166300399.4 | J21: 166300399.4 | L21: =IF($B21>0,Achievement_to_date_ongoing!$K19*Achievement_to_date_ongoing!M19,"") -> 118073283.6 | M21: =IF($B21>0,Achievement_to_date_ongoing!$K19*Achievement_to_date_ongoing!N19,"") -> 149670359.5 | N21: =IF($B21>0,Achievement_to_date_ongoing!$K19*Achievement_to_date_ongoing!O19,"") -> 166300399.4 | O21: =IF($B21>0,Achievement_to_date_ongoing!$K19*Achievement_to_date_ongoing!P19,"") -> 166300399.4
B22: =Achievement_to_date_ongoing!B20 -> 147040 | C22: =IF($B22>0, Achievement_to_date_ongoing!C20, "") -> 2 | D22: =IF($B22>0, Achievement_to_date_ongoing!D20, "") -> 1 | E22: =IF($B22>0, Achievement_to_date_ongoing!E20, "") -> O1 | F22: =IF($B22>0, Achievement_to_date_ongoing!F20, "") -> Less developed | G22: 0 | H22: 583352.1304 | I22: 1643992.367 | J22: 2651600.593 | L22: =IF($B22>0,Achievement_to_date_ongoing!$K20*Achievement_to_date_ongoing!M20,"") -> 0 | M22: =IF($B22>0,Achievement_to_date_ongoing!$K20*Achievement_to_date_ongoing!N20,"") -> 583352.1304 | N22: =IF($B22>0,Achievement_to_date_ongoing!$K20*Achievement_to_date_ongoing!O20,"") -> 1643992.367 | O22: =IF($B22>0,Achievement_to_date_ongoing!$K20*Achievement_to_date_ongoing!P20,"") -> 2651600.593
B23: =Achievement_to_date_ongoing!B21 -> 148203 | C23: =IF($B23>0, Achievement_to_date_ongoing!C21, "") -> 2 | D23: =IF($B23>0, Achievement_to_date_ongoing!D21, "") -> 1 | E23: =IF($B23>0, Achievement_to_date_ongoing!E21, "") -> O1 | F23: =IF($B23>0, Achievement_to_date_ongoing!F21, "") -> Less developed | G23: 0 | H23: 576684.6423 | I23: 1625202.174 | J23: 2621293.829 | L23: =IF($B23>0,Achievement_to_date_ongoing!$K21*Achievement_to_date_ongoing!M21,"") -> 0 | M23: =IF($B23>0,Achievement_to_date_ongoing!$K21*Achievement_to_date_ongoing!N21,"") -> 576684.6423 | N23: =IF($B23>0,Achievement_to_date_ongoing!$K21*Achievement_to_date_ongoing!O21,"") -> 1625202.174 | O23: =IF($B23>0,Achievement_to_date_ongoing!$K21*Achievement_to_date_ongoing!P21,"") -> 2621293.829
B24: =Achievement_to_date_ongoing!B22 -> 147547 | C24: =IF($B24>0, Achievement_to_date_ongoing!C22, "") -> 2 | D24: =IF($B24>0, Achievement_to_date_ongoing!D22, "") -> 1 | E24: =IF($B24>0, Achievement_to_date_ongoing!E22, "") -> O1 | F24: =IF($B24>0, Achievement_to_date_ongoing!F22, "") -> Less developed | G24: 0 | H24: 564905.7898 | I24: 1640916.818 | J24: 2690027.571 | L24: =IF($B24>0,Achievement_to_date_ongoing!$K22*Achievement_to_date_ongoing!M22,"") -> 0 | M24: =IF($B24>0,Achievement_to_date_ongoing!$K22*Achievement_to_date_ongoing!N22,"") -> 564905.7898 | N24: =IF($B24>0,Achievement_to_date_ongoing!$K22*Achievement_to_date_ongoing!O22,"") -> 1640916.818 | O24: =IF($B24>0,Achievement_to_date_ongoing!$K22*Achievement_to_date_ongoing!P22,"") -> 2690027.571
B25: =Achievement_to_date_ongoing!B23 -> 113589 | C25: =IF($B25>0, Achievement_to_date_ongoing!C23, "") -> 2 | D25: =IF($B25>0, Achievement_to_date_ongoing!D23, "") -> 1 | E25: =IF($B25>0, Achievement_to_date_ongoing!E23, "") -> O1 | F25: =IF($B25>0, Achievement_to_date_ongoing!F23, "") -> More developed | G25: 11196124.58 | H25: 13653810.47 | I25: 13653810.47 | J25: 13653810.47 | L25: =IF($B25>0,Achievement_to_date_ongoing!$K23*Achievement_to_date_ongoing!M23,"") -> 11196124.58 | M25: =IF($B25>0,Achievement_to_date_ongoing!$K23*Achievement_to_date_ongoing!N23,"") -> 13653810.47 | N25: =IF($B25>0,Achievement_to_date_ongoing!$K23*Achievement_to_date_ongoing!O23,"") -> 13653810.47 | O25: =IF($B25>0,Achievement_to_date_ongoing!$K23*Achievement_to_date_ongoing!P23,"") -> 13653810.47
B26: =Achievement_to_date_ongoing!B24 -> 119911 | C26: =IF($B26>0, Achievement_to_date_ongoing!C24, "") -> 2 | D26: =IF($B26>0, Achievement_to_date_ongoing!D24, "") -> 1 | E26: =IF($B26>0, Achievement_to_date_ongoing!E24, "") -> O1 | F26: =IF($B26>0, Achievement_to_date_ongoing!F24, "") -> More developed | G26: 2727090.006 | H26: 3673996.257 | I26: 3787625.008 | J26: 3787625.008 | L26: =IF($B26>0,Achievement_to_date_ongoing!$K24*Achievement_to_date_ongoing!M24,"") -> 2727090.006 | M26: =IF($B26>0,Achievement_to_date_ongoing!$K24*Achievement_to_date_ongoing!N24,"") -> 3673996.257 | N26: =IF($B26>0,Achievement_to_date_ongoing!$K24*Achievement_to_date_ongoing!O24,"") -> 3787625.008 | O26: =IF($B26>0,Achievement_to_date_ongoing!$K24*Achievement_to_date_ongoing!P24,"") -> 3787625.008
B27: =Achievement_to_date_ongoing!B25 -> 125314 | C27: =IF($B27>0, Achievement_to_date_ongoing!C25, "") -> 2 | D27: =IF($B27>0, Achievement_to_date_ongoing!D25, "") -> 1 | E27: =IF($B27>0, Achievement_to_date_ongoing!E25, "") -> O1 | F27: =IF($B27>0, Achievement_to_date_ongoing!F25, "") -> More developed | G27: 0 | H27: 0 | I27: 0 | J27: 0 | L27: =IF($B27>0,Achievement_to_date_ongoing!$K25*Achievement_to_date_ongoing!M25,"") -> 0 | M27: =IF($B27>0,Achievement_to_date_ongoing!$K25*Achievement_to_date_ongoing!N25,"") -> 0 | N27: =IF($B27>0,Achievement_to_date_ongoing!$K25*Achievement_to_date_ongoing!O25,"") -> 0 | O27: =IF($B27>0,Achievement_to_date_ongoing!$K25*Achievement_to_date_ongoing!P25,"") -> 0
B28: =Achievement_to_date_ongoing!B26 -> 146512 | C28: =IF($B28>0, Achievement_to_date_ongoing!C26, "") -> 2 | D28: =IF($B28>0, Achievement_to_date_ongoing!D26, "") -> 1 | E28: =IF($B28>0, Achievement_to_date_ongoing!E26, "") -> O1 | F28: =IF($B28>0, Achievement_to_date_ongoing!F26, "") -> More developed | G28: 0 | H28: 69955.52029 | I28: 206535.3456 | J28: 333121.5252 | L28: =IF($B28>0,Achievement_to_date_ongoing!$K26*Achievement_to_date_ongoing!M26,"") -> 0 | M28: =IF($B28>0,Achievement_to_date_ongoing!$K26*Achievement_to_date_ongoing!N26,"") -> 69955.52029 | N28: =IF($B28>0,Achievement_to_date_ongoing!$K26*Achievement_to_date_ongoing!O26,"") -> 206535.3456 | O28: =IF($B28>0,Achievement_to_date_ongoing!$K26*Achievement_to_date_ongoing!P26,"") -> 333121.5252
B29: =Achievement_to_date_ongoing!B27 -> 129265 | C29: =IF($B29>0, Achievement_to_date_ongoing!C27, "") -> 2 | D29: =IF($B29>0, Achievement_to_date_ongoing!D27, "") -> 1 | E29: =IF($B29>0, Achievement_to_date_ongoing!E27, "") -> O1 | F29: =IF($B29>0, Achievement_to_date_ongoing!F27, "") -> More developed | G29: 0 | H29: 0 | I29: 0 | J29: 0 | L29: =IF($B29>0,Achievement_to_date_ongoing!$K27*Achievement_to_date_ongoing!M27,"") -> 0 | M29: =IF($B29>0,Achievement_to_date_ongoing!$K27*Achievement_to_date_ongoing!N27,"") -> 0 | N29: =IF($B29>0,Achievement_to_date_ongoing!$K27*Achievement_to_date_ongoing!O27,"") -> 0 | O29: =IF($B29>0,Achievement_to_date_ongoing!$K27*Achievement_to_date_ongoing!P27,"") -> 0
B30: =Achievement_to_date_ongoing!B28 -> 147040 | C30: =IF($B30>0, Achievement_to_date_ongoing!C28, "") -> 2 | D30: =IF($B30>0, Achievement_to_date_ongoing!D28, "") -> 1 | E30: =IF($B30>0, Achievement_to_date_ongoing!E28, "") -> O1 | F30: =IF($B30>0, Achievement_to_date_ongoing!F28, "") -> More developed | G30: 0 | H30: 74316.56227 | I30: 209437.5846 | J30: 337802.5558 | L30: =IF($B30>0,Achievement_to_date_ongoing!$K28*Achievement_to_date_ongoing!M28,"") -> 0 | M30: =IF($B30>0,Achievement_to_date_ongoing!$K28*Achievement_to_date_ongoing!N28,"") -> 74316.56227 | N30: =IF($B30>0,Achievement_to_date_ongoing!$K28*Achievement_to_date_ongoing!O28,"") -> 209437.5846 | O30: =IF($B30>0,Achievement_to_date_ongoing!$K28*Achievement_to_date_ongoing!P28,"") -> 337802.5558
B31: =Achievement_to_date_ongoing!B29 -> 148203 | C31: =IF($B31>0, Achievement_to_date_ongoing!C29, "") -> 2 | D31: =IF($B31>0, Achievement_to_date_ongoing!D29, "") -> 1 | E31: =IF($B31>0, Achievement_to_date_ongoing!E29, "") -> O1 | F31: =IF($B31>0, Achievement_to_date_ongoing!F29, "") -> More developed | G31: 0 | H31: 73467.15285 | I31: 207043.7944 | J31: 333941.6039 | L31: =IF($B31>0,Achievement_to_date_ongoing!$K29*Achievement_to_date_ongoing!M29,"") -> 0 | M31: =IF($B31>0,Achievement_to_date_ongoing!$K29*Achievement_to_date_ongoing!N29,"") -> 73467.15285 | N31: =IF($B31>0,Achievement_to_date_ongoing!$K29*Achievement_to_date_ongoing!O29,"") -> 207043.7944 | O31: =IF($B31>0,Achievement_to_date_ongoing!$K29*Achievement_to_date_ongoing!P29,"") -> 333941.6039
B32: =Achievement_to_date_ongoing!B30 -> 147547 | C32: =IF($B32>0, Achievement_to_date_ongoing!C30, "") -> 2 | D32: =IF($B32>0, Achievement_to_date_ongoing!D30, "") -> 1 | E32: =IF($B32>0, Achievement_to_date_ongoing!E30, "") -> O1 | F32: =IF($B32>0, Achievement_to_date_ongoing!F30, "") -> More developed | G32: 0 | H32: 71966.57751 | I32: 209045.7728 | J32: 342697.9881 | L32: =IF($B32>0,Achievement_to_date_ongoing!$K30*Achievement_to_date_ongoing!M30,"") -> 0 | M32: =IF($B32>0,Achievement_to_date_ongoing!$K30*Achievement_to_date_ongoing!N30,"") -> 71966.57751 | N32: =IF($B32>0,Achievement_to_date_ongoing!$K30*Achievement_to_date_ongoing!O30,"") -> 209045.7728 | O32: =IF($B32>0,Achievement_to_date_ongoing!$K30*Achievement_to_date_ongoing!P30,"") -> 342697.9881
B33: =Achievement_to_date_ongoing!B31 -> 106941 | C33: =IF($B33>0, Achievement_to_date_ongoing!C31, "") -> 3 | D33: =IF($B33>0, Achievement_to_date_ongoing!D31, "") -> 2 | E33: =IF($B33>0, Achievement_to_date_ongoing!E31, "") -> 4S11 | F33: =IF($B33>0, Achievement_to_date_ongoing!F31, "") -> All | G33: 729.5882353 | H33: 923.5294118 | I33: 923.5294118 | J33: 923.5294118 | L33: =IF($B33>0,Achievement_to_date_ongoing!$K31*Achievement_to_date_ongoing!M31,"") -> 729.5882353 | M33: =IF($B33>0,Achievement_to_date_ongoing!$K31*Achievement_to_date_ongoing!N31,"") -> 923.5294118 | N33: =IF($B33>0,Achievement_to_date_ongoing!$K31*Achievement_to_date_ongoing!O31,"") -> 923.5294118 | O33: =IF($B33>0,Achievement_to_date_ongoing!$K31*Achievement_to_date_ongoing!P31,"") -> 923.5294118
B34: =Achievement_to_date_ongoing!B32 -> 106435 | C34: =IF($B34>0, Achievement_to_date_ongoing!C32, "") -> 3 | D34: =IF($B34>0, Achievement_to_date_ongoing!D32, "") -> 2 | E34: =IF($B34>0, Achievement_to_date_ongoing!E32, "") -> 4S11 | F34: =IF($B34>0, Achievement_to_date_ongoing!F32, "") -> All | G34: 456.5 | H34: 550 | I34: 550 | J34: 550 | L34: =IF($B34>0,Achievement_to_date_ongoing!$K32*Achievement_to_date_ongoing!M32,"") -> 456.5 | M34: =IF($B34>0,Achievement_to_date_ongoing!$K32*Achievement_to_date_ongoing!N32,"") -> 550 | N34: =IF($B34>0,Achievement_to_date_ongoing!$K32*Achievement_to_date_ongoing!O32,"") -> 550 | O34: =IF($B34>0,Achievement_to_date_ongoing!$K32*Achievement_to_date_ongoing!P32,"") -> 550
B35: =Achievement_to_date_ongoing!B33 -> 104206 | C35: =IF($B35>0, Achievement_to_date_ongoing!C33, "") -> 3 | D35: =IF($B35>0, Achievement_to_date_ongoing!D33, "") -> 2 | E35: =IF($B35>0, Achievement_to_date_ongoing!E33, "") -> 4S11 | F35: =IF($B35>0, Achievement_to_date_ongoing!F33, "") -> All | G35: 511.2142857 | H35: 601.4285714 | I35: 601.4285714 | J35: 601.4285714 | L35: =IF($B35>0,Achievement_to_date_ongoing!$K33*Achievement_to_date_ongoing!M33,"") -> 511.2142857 | M35: =IF($B35>0,Achievement_to_date_ongoing!$K33*Achievement_to_date_ongoing!N33,"") -> 601.4285714 | N35: =IF($B35>0,Achievement_to_date_ongoing!$K33*Achievement_to_date_ongoing!O33,"") -> 601.4285714 | O35: =IF($B35>0,Achievement_to_date_ongoing!$K33*Achievement_to_date_ongoing!P33,"") -> 601.4285714
B36: =Achievement_to_date_ongoing!B34 -> 104255 | C36: =IF($B36>0, Achievement_to_date_ongoing!C34, "") -> 3 | D36: =IF($B36>0, Achievement_to_date_ongoing!D34, "") -> 2 | E36: =IF($B36>0, Achievement_to_date_ongoing!E34, "") -> 4S11 | F36: =IF($B36>0, Achievement_to_date_ongoing!F34, "") -> All | G36: 292.8804348 | H36: 344.5652174 | I36: 344.5652174 | J36: 344.5652174 | L36: =IF($B36>0,Achievement_to_date_ongoing!$K34*Achievement_to_date_ongoing!M34,"") -> 292.8804348 | M36: =IF($B36>0,Achievement_to_date_ongoing!$K34*Achievement_to_date_ongoing!N34,"") -> 344.5652174 | N36: =IF($B36>0,Achievement_to_date_ongoing!$K34*Achievement_to_date_ongoing!O34,"") -> 344.5652174 | O36: =IF($B36>0,Achievement_to_date_ongoing!$K34*Achievement_to_date_ongoing!P34,"") -> 344.5652174
B37: =Achievement_to_date_ongoing!B35 -> 103886 | C37: =IF($B37>0, Achievement_to_date_ongoing!C35, "") -> 3 | D37: =IF($B37>0, Achievement_to_date_ongoing!D35, "") -> 2 | E37: =IF($B37>0, Achievement_to_date_ongoing!E35, "") -> 4S11 | F37: =IF($B37>0, Achievement_to_date_ongoing!F35, "") -> All | G37: 290.8888889 | H37: 342.2222222 | I37: 342.2222222 | J37: 342.2222222 | L37: =IF($B37>0,Achievement_to_date_ongoing!$K35*Achievement_to_date_ongoing!M35,"") -> 290.8888889 | M37: =IF($B37>0,Achievement_to_date_ongoing!$K35*Achievement_to_date_ongoing!N35,"") -> 342.2222222 | N37: =IF($B37>0,Achievement_to_date_ongoing!$K35*Achievement_to_date_ongoing!O35,"") -> 342.2222222 | O37: =IF($B37>0,Achievement_to_date_ongoing!$K35*Achievement_to_date_ongoing!P35,"") -> 342.2222222
B38: =Achievement_to_date_ongoing!B36 -> 105759 | C38: =IF($B38>0, Achievement_to_date_ongoing!C36, "") -> 3 | D38: =IF($B38>0, Achievement_to_date_ongoing!D36, "") -> 2 | E38: =IF($B38>0, Achievement_to_date_ongoing!E36, "") -> 4S11 | F38: =IF($B38>0, Achievement_to_date_ongoing!F36, "") -> All | G38: 388.875 | H38: 457.5 | I38: 457.5 | J38: 457.5 | L38: =IF($B38>0,Achievement_to_date_ongoing!$K36*Achievement_to_date_ongoing!M36,"") -> 388.875 | M38: =IF($B38>0,Achievement_to_date_ongoing!$K36*Achievement_to_date_ongoing!N36,"") -> 457.5 | N38: =IF($B38>0,Achievement_to_date_ongoing!$K36*Achievement_to_date_ongoing!O36,"") -> 457.5 | O38: =IF($B38>0,Achievement_to_date_ongoing!$K36*Achievement_to_date_ongoing!P36,"") -> 457.5
B39: =Achievement_to_date_ongoing!B37 -> 105846 | C39: =IF($B39>0, Achievement_to_date_ongoing!C37, "") -> 3 | D39: =IF($B39>0, Achievement_to_date_ongoing!D37, "") -> 2 | E39: =IF($B39>0, Achievement_to_date_ongoing!E37, "") -> 4S11 | F39: =IF($B39>0, Achievement_to_date_ongoing!F37, "") -> All | G39: 586.18 | H39: 742 | I39: 742 | J39: 742 | L39: =IF($B39>0,Achievement_to_date_ongoing!$K37*Achievement_to_date_ongoing!M37,"") -> 586.18 | M39: =IF($B39>0,Achievement_to_date_ongoing!$K37*Achievement_to_date_ongoing!N37,"") -> 742 | N39: =IF($B39>0,Achievement_to_date_ongoing!$K37*Achievement_to_date_ongoing!O37,"") -> 742 | O39: =IF($B39>0,Achievement_to_date_ongoing!$K37*Achievement_to_date_ongoing!P37,"") -> 742
B40: =Achievement_to_date_ongoing!B38 -> 106067 | C40: =IF($B40>0, Achievement_to_date_ongoing!C38, "") -> 3 | D40: =IF($B40>0, Achievement_to_date_ongoing!D38, "") -> 2 | E40: =IF($B40>0, Achievement_to_date_ongoing!E38, "") -> 4S11 | F40: =IF($B40>0, Achievement_to_date_ongoing!F38, "") -> All | G40: 483.3 | H40: 596.6666667 | I40: 596.6666667 | J40: 596.6666667 | L40: =IF($B40>0,Achievement_to_date_ongoing!$K38*Achievement_to_date_ongoing!M38,"") -> 483.3 | M40: =IF($B40>0,Achievement_to_date_ongoing!$K38*Achievement_to_date_ongoing!N38,"") -> 596.6666667 | N40: =IF($B40>0,Achievement_to_date_ongoing!$K38*Achievement_to_date_ongoing!O38,"") -> 596.6666667 | O40: =IF($B40>0,Achievement_to_date_ongoing!$K38*Achievement_to_date_ongoing!P38,"") -> 596.6666667
B41: =Achievement_to_date_ongoing!B39 -> 118808 | C41: =IF($B41>0, Achievement_to_date_ongoing!C39, "") -> 3 | D41: =IF($B41>0, Achievement_to_date_ongoing!D39, "") -> 2 | E41: =IF($B41>0, Achievement_to_date_ongoing!E39, "") -> 4S12 | F41: =IF($B41>0, Achievement_to_date_ongoing!F39, "") -> All | G41: 1123.962264 | H41: 1503.679245 | I41: 1518.867925 | J41: 1518.867925 | L41: =IF($B41>0,Achievement_to_date_ongoing!$K39*Achievement_to_date_ongoing!M39,"") -> 1123.962264 | M41: =IF($B41>0,Achievement_to_date_ongoing!$K39*Achievement_to_date_ongoing!N39,"") -> 1503.679245 | N41: =IF($B41>0,Achievement_to_date_ongoing!$K39*Achievement_to_date_ongoing!O39,"") -> 1518.867925 | O41: =IF($B41>0,Achievement_to_date_ongoing!$K39*Achievement_to_date_ongoing!P39,"") -> 1518.867925
B42: =Achievement_to_date_ongoing!B40 -> 118809 | C42: =IF($B42>0, Achievement_to_date_ongoing!C40, "") -> 3 | D42: =IF($B42>0, Achievement_to_date_ongoing!D40, "") -> 2 | E42: =IF($B42>0, Achievement_to_date_ongoing!E40, "") -> 4S12 | F42: =IF($B42>0, Achievement_to_date_ongoing!F40, "") -> All | G42: 3718.5 | H42: 4974.75 | I42: 5025 | J42: 5025 | L42: =IF($B42>0,Achievement_to_date_ongoing!$K40*Achievement_to_date_ongoing!M40,"") -> 3718.5 | M42: =IF($B42>0,Achievement_to_date_ongoing!$K40*Achievement_to_date_ongoing!N40,"") -> 4974.75 | N42: =IF($B42>0,Achievement_to_date_ongoing!$K40*Achievement_to_date_ongoing!O40,"") -> 5025 | O42: =IF($B42>0,Achievement_to_date_ongoing!$K40*Achievement_to_date_ongoing!P40,"") -> 5025
B43: =Achievement_to_date_ongoing!B41 -> 118810 | C43: =IF($B43>0, Achievement_to_date_ongoing!C41, "") -> 3 | D43: =IF($B43>0, Achievement_to_date_ongoing!D41, "") -> 2 | E43: =IF($B43>0, Achievement_to_date_ongoing!E41, "") -> 4S12 | F43: =IF($B43>0, Achievement_to_date_ongoing!F41, "") -> All | G43: 956.4150943 | H43: 1279.528302 | I43: 1292.45283 | J43: 1292.45283 | L43: =IF($B43>0,Achievement_to_date_ongoing!$K41*Achievement_to_date_ongoing!M41,"") -> 956.4150943 | M43: =IF($B43>0,Achievement_to_date_ongoing!$K41*Achievement_to_date_ongoing!N41,"") -> 1279.528302 | N43: =IF($B43>0,Achievement_to_date_ongoing!$K41*Achievement_to_date_ongoing!O41,"") -> 1292.45283 | O43: =IF($B43>0,Achievement_to_date_ongoing!$K41*Achievement_to_date_ongoing!P41,"") -> 1292.45283
B44: =Achievement_to_date_ongoing!B42 -> 139164 | C44: =IF($B44>0, Achievement_to_date_ongoing!C42, "") -> 3 | D44: =IF($B44>0, Achievement_to_date_ongoing!D42, "") -> 4 | E44: =IF($B44>0, Achievement_to_date_ongoing!E42, "") -> 4S27 | F44: =IF($B44>0, Achievement_to_date_ongoing!F42, "") -> All | G44: 12.31027157 | H44: 215.4297525 | I44: 424.7043692 | J44: 615.5135786 | L44: =IF($B44>0,Achievement_to_date_ongoing!$K42*Achievement_to_date_ongoing!M42,"") -> 12.31027157 | M44: =IF($B44>0,Achievement_to_date_ongoing!$K42*Achievement_to_date_ongoing!N42,"") -> 215.4297525 | N44: =IF($B44>0,Achievement_to_date_ongoing!$K42*Achievement_to_date_ongoing!O42,"") -> 424.7043692 | O44: =IF($B44>0,Achievement_to_date_ongoing!$K42*Achievement_to_date_ongoing!P42,"") -> 615.5135786
B45: =Achievement_to_date_ongoing!B43 -> 140092 | C45: =IF($B45>0, Achievement_to_date_ongoing!C43, "") -> 3 | D45: =IF($B45>0, Achievement_to_date_ongoing!D43, "") -> 4 | E45: =IF($B45>0, Achievement_to_date_ongoing!E43, "") -> 4S27 | F45: =IF($B45>0, Achievement_to_date_ongoing!F43, "") -> All | G45: 1.829537598 | H45: 82.32919192 | I45: 162.8288462 | J45: 182.9537598 | L45: =IF($B45>0,Achievement_to_date_ongoing!$K43*Achievement_to_date_ongoing!M43,"") -> 1.829537598 | M45: =IF($B45>0,Achievement_to_date_ongoing!$K43*Achievement_to_date_ongoing!N43,"") -> 82.32919192 | N45: =IF($B45>0,Achievement_to_date_ongoing!$K43*Achievement_to_date_ongoing!O43,"") -> 162.8288462 | O45: =IF($B45>0,Achievement_to_date_ongoing!$K43*Achievement_to_date_ongoing!P43,"") -> 182.9537598
B46: =Achievement_to_date_ongoing!B44 -> 140163 | C46: =IF($B46>0, Achievement_to_date_ongoing!C44, "") -> 3 | D46: =IF($B46>0, Achievement_to_date_ongoing!D44, "") -> 4 | E46: =IF($B46>0, Achievement_to_date_ongoing!E44, "") -> 4S27 | F46: =IF($B46>0, Achievement_to_date_ongoing!F44, "") -> All | G46: 6.583614851 | H46: 59.8510441 | I46: 59.8510441 | J46: 59.8510441 | L46: =IF($B46>0,Achievement_to_date_ongoing!$K44*Achievement_to_date_ongoing!M44,"") -> 6.583614851 | M46: =IF($B46>0,Achievement_to_date_ongoing!$K44*Achievement_to_date_ongoing!N44,"") -> 59.8510441 | N46: =IF($B46>0,Achievement_to_date_ongoing!$K44*Achievement_to_date_ongoing!O44,"") -> 59.8510441 | O46: =IF($B46>0,Achievement_to_date_ongoing!$K44*Achievement_to_date_ongoing!P44,"") -> 59.8510441
B47: =Achievement_to_date_ongoing!B45 -> 121994 | C47: =IF($B47>0, Achievement_to_date_ongoing!C45, "") -> 3 | D47: =IF($B47>0, Achievement_to_date_ongoing!D45, "") -> 1 | E47: =IF($B47>0, Achievement_to_date_ongoing!E45, "") -> 4S8 | F47: =IF($B47>0, Achievement_to_date_ongoing!F45, "") -> Less developed | G47: 4179.122807 | H47: 5731.368421 | I47: 5970.175439 | J47: 5970.175439 | L47: =IF($B47>0,Achievement_to_date_ongoing!$K45*Achievement_to_date_ongoing!M45,"") -> 4179.122807 | M47: =IF($B47>0,Achievement_to_date_ongoing!$K45*Achievement_to_date_ongoing!N45,"") -> 5731.368421 | N47: =IF($B47>0,Achievement_to_date_ongoing!$K45*Achievement_to_date_ongoing!O45,"") -> 5970.175439 | O47: =IF($B47>0,Achievement_to_date_ongoing!$K45*Achievement_to_date_ongoing!P45,"") -> 5970.175439
B48: =Achievement_to_date_ongoing!B46 -> 125311 | C48: =IF($B48>0, Achievement_to_date_ongoing!C46, "") -> 3 | D48: =IF($B48>0, Achievement_to_date_ongoing!D46, "") -> 1 | E48: =IF($B48>0, Achievement_to_date_ongoing!E46, "") -> 4S8 | F48: =IF($B48>0, Achievement_to_date_ongoing!F46, "") -> Less developed | G48: 91379.72975 | H48: 114224.6622 | I48: 114224.6622 | J48: 114224.6622 | L48: =IF($B48>0,Achievement_to_date_ongoing!$K46*Achievement_to_date_ongoing!M46,"") -> 91379.72975 | M48: =IF($B48>0,Achievement_to_date_ongoing!$K46*Achievement_to_date_ongoing!N46,"") -> 114224.6622 | N48: =IF($B48>0,Achievement_to_date_ongoing!$K46*Achievement_to_date_ongoing!O46,"") -> 114224.6622 | O48: =IF($B48>0,Achievement_to_date_ongoing!$K46*Achievement_to_date_ongoing!P46,"") -> 114224.6622
B49: =Achievement_to_date_ongoing!B47 -> 136811 | C49: =IF($B49>0, Achievement_to_date_ongoing!C47, "") -> 3 | D49: =IF($B49>0, Achievement_to_date_ongoing!D47, "") -> 1 | E49: =IF($B49>0, Achievement_to_date_ongoing!E47, "") -> 4S8 | F49: =IF($B49>0, Achievement_to_date_ongoing!F47, "") -> Less developed | G49: 22.27121116 | H49: 128.8548646 | I49: 159.0800797 | J49: 159.0800797 | L49: =IF($B49>0,Achievement_to_date_ongoing!$K47*Achievement_to_date_ongoing!M47,"") -> 22.27121116 | M49: =IF($B49>0,Achievement_to_date_ongoing!$K47*Achievement_to_date_ongoing!N47,"") -> 128.8548646 | N49: =IF($B49>0,Achievement_to_date_ongoing!$K47*Achievement_to_date_ongoing!O47,"") -> 159.0800797 | O49: =IF($B49>0,Achievement_to_date_ongoing!$K47*Achievement_to_date_ongoing!P47,"") -> 159.0800797
B50: =Achievement_to_date_ongoing!B48 -> 136888 | C50: =IF($B50>0, Achievement_to_date_ongoing!C48, "") -> 3 | D50: =IF($B50>0, Achievement_to_date_ongoing!D48, "") -> 1 | E50: =IF($B50>0, Achievement_to_date_ongoing!E48, "") -> 4S8 | F50: =IF($B50>0, Achievement_to_date_ongoing!F48, "") -> Less developed | G50: 5.268236407 | H50: 105.3647281 | I50: 105.3647281 | J50: 105.3647281 | L50: =IF($B50>0,Achievement_to_date_ongoing!$K48*Achievement_to_date_ongoing!M48,"") -> 5.268236407 | M50: =IF($B50>0,Achievement_to_date_ongoing!$K48*Achievement_to_date_ongoing!N48,"") -> 105.3647281 | N50: =IF($B50>0,Achievement_to_date_ongoing!$K48*Achievement_to_date_ongoing!O48,"") -> 105.3647281 | O50: =IF($B50>0,Achievement_to_date_ongoing!$K48*Achievement_to_date_ongoing!P48,"") -> 105.3647281
B51: =Achievement_to_date_ongoing!B49 -> 136946 | C51: =IF($B51>0, Achievement_to_date_ongoing!C49, "") -> 3 | D51: =IF($B51>0, Achievement_to_date_ongoing!D49, "") -> 1 | E51: =IF($B51>0, Achievement_to_date_ongoing!E49, "") -> 4S8 | F51: =IF($B51>0, Achievement_to_date_ongoing!F49, "") -> Less developed | G51: 16.6930785 | H51: 86.59534471 | I51: 104.3317406 | J51: 104.3317406 | L51: =IF($B51>0,Achievement_to_date_ongoing!$K49*Achievement_to_date_ongoing!M49,"") -> 16.6930785 | M51: =IF($B51>0,Achievement_to_date_ongoing!$K49*Achievement_to_date_ongoing!N49,"") -> 86.59534471 | N51: =IF($B51>0,Achievement_to_date_ongoing!$K49*Achievement_to_date_ongoing!O49,"") -> 104.3317406 | O51: =IF($B51>0,Achievement_to_date_ongoing!$K49*Achievement_to_date_ongoing!P49,"") -> 104.3317406
B52: =Achievement_to_date_ongoing!B50 -> 137522 | C52: =IF($B52>0, Achievement_to_date_ongoing!C50, "") -> 3 | D52: =IF($B52>0, Achievement_to_date_ongoing!D50, "") -> 1 | E52: =IF($B52>0, Achievement_to_date_ongoing!E50, "") -> 4S8 | F52: =IF($B52>0, Achievement_to_date_ongoing!F50, "") -> Less developed | G52: 14.03830054 | H52: 124.7848937 | I52: 155.9811171 | J52: 155.9811171 | L52: =IF($B52>0,Achievement_to_date_ongoing!$K50*Achievement_to_date_ongoing!M50,"") -> 14.03830054 | M52: =IF($B52>0,Achievement_to_date_ongoing!$K50*Achievement_to_date_ongoing!N50,"") -> 124.7848937 | N52: =IF($B52>0,Achievement_to_date_ongoing!$K50*Achievement_to_date_ongoing!O50,"") -> 155.9811171 | O52: =IF($B52>0,Achievement_to_date_ongoing!$K50*Achievement_to_date_ongoing!P50,"") -> 155.9811171
B53: =Achievement_to_date_ongoing!B51 -> 137521 | C53: =IF($B53>0, Achievement_to_date_ongoing!C51, "") -> 3 | D53: =IF($B53>0, Achievement_to_date_ongoing!D51, "") -> 1 | E53: =IF($B53>0, Achievement_to_date_ongoing!E51, "") -> 4S8 | F53: =IF($B53>0, Achievement_to_date_ongoing!F51, "") -> Less developed | G53: 12.47848937 | H53: 115.4260267 | I53: 155.9811171 | J53: 155.9811171 | L53: =IF($B53>0,Achievement_to_date_ongoing!$K51*Achievement_to_date_ongoing!M51,"") -> 12.47848937 | M53: =IF($B53>0,Achievement_to_date_ongoing!$K51*Achievement_to_date_ongoing!N51,"") -> 115.4260267 | N53: =IF($B53>0,Achievement_to_date_ongoing!$K51*Achievement_to_date_ongoing!O51,"") -> 155.9811171 | O53: =IF($B53>0,Achievement_to_date_ongoing!$K51*Achievement_to_date_ongoing!P51,"") -> 155.9811171
B54: =Achievement_to_date_ongoing!B52 -> 129163 | C54: =IF($B54>0, Achievement_to_date_ongoing!C52, "") -> 3 | D54: =IF($B54>0, Achievement_to_date_ongoing!D52, "") -> 1 | E54: =IF($B54>0, Achievement_to_date_ongoing!E52, "") -> 4S8 | F54: =IF($B54>0, Achievement_to_date_ongoing!F52, "") -> Less developed | G54: 1168.457143 | H54: 1329.12 | I54: 1460.571429 | J54: 1460.571429 | L54: =IF($B54>0,Achievement_to_date_ongoing!$K52*Achievement_to_date_ongoing!M52,"") -> 1168.457143 | M54: =IF($B54>0,Achievement_to_date_ongoing!$K52*Achievement_to_date_ongoing!N52,"") -> 1329.12 | N54: =IF($B54>0,Achievement_to_date_ongoing!$K52*Achievement_to_date_ongoing!O52,"") -> 1460.571429 | O54: =IF($B54>0,Achievement_to_date_ongoing!$K52*Achievement_to_date_ongoing!P52,"") -> 1460.571429
B55: =Achievement_to_date_ongoing!B53 -> 127204 | C55: =IF($B55>0, Achievement_to_date_ongoing!C53, "") -> 3 | D55: =IF($B55>0, Achievement_to_date_ongoing!D53, "") -> 1 | E55: =IF($B55>0, Achievement_to_date_ongoing!E53, "") -> 4S8 | F55: =IF($B55>0, Achievement_to_date_ongoing!F53, "") -> Less developed | G55: 1768.361024 | H55: 2562.842064 | I55: 2562.842064 | J55: 2562.842064 | L55: =IF($B55>0,Achievement_to_date_ongoing!$K53*Achievement_to_date_ongoing!M53,"") -> 1768.361024 | M55: =IF($B55>0,Achievement_to_date_ongoing!$K53*Achievement_to_date_ongoing!N53,"") -> 2562.842064 | N55: =IF($B55>0,Achievement_to_date_ongoing!$K53*Achievement_to_date_ongoing!O53,"") -> 2562.842064 | O55: =IF($B55>0,Achievement_to_date_ongoing!$K53*Achievement_to_date_ongoing!P53,"") -> 2562.842064
B56: =Achievement_to_date_ongoing!B54 -> 130167 | C56: =IF($B56>0, Achievement_to_date_ongoing!C54, "") -> 3 | D56: =IF($B56>0, Achievement_to_date_ongoing!D54, "") -> 1 | E56: =IF($B56>0, Achievement_to_date_ongoing!E54, "") -> 4S8 | F56: =IF($B56>0, Achievement_to_date_ongoing!F54, "") -> Less developed | G56: 9402.109804 | H56: 12584.36235 | I56: 14464.78431 | J56: 14464.78431 | L56: =IF($B56>0,Achievement_to_date_ongoing!$K54*Achievement_to_date_ongoing!M54,"") -> 9402.109804 | M56: =IF($B56>0,Achievement_to_date_ongoing!$K54*Achievement_to_date_ongoing!N54,"") -> 12584.36235 | N56: =IF($B56>0,Achievement_to_date_ongoing!$K54*Achievement_to_date_ongoing!O54,"") -> 14464.78431 | O56: =IF($B56>0,Achievement_to_date_ongoing!$K54*Achievement_to_date_ongoing!P54,"") -> 14464.78431
B57: =Achievement_to_date_ongoing!B55 -> 137397 | C57: =IF($B57>0, Achievement_to_date_ongoing!C55, "") -> 3 | D57: =IF($B57>0, Achievement_to_date_ongoing!D55, "") -> 1 | E57: =IF($B57>0, Achievement_to_date_ongoing!E55, "") -> 4S8 | F57: =IF($B57>0, Achievement_to_date_ongoing!F55, "") -> Less developed | G57: 14.77172169 | H57: 116.8308897 | I57: 134.288379 | J57: 134.288379 | L57: =IF($B57>0,Achievement_to_date_ongoing!$K55*Achievement_to_date_ongoing!M55,"") -> 14.77172169 | M57: =IF($B57>0,Achievement_to_date_ongoing!$K55*Achievement_to_date_ongoing!N55,"") -> 116.8308897 | N57: =IF($B57>0,Achievement_to_date_ongoing!$K55*Achievement_to_date_ongoing!O55,"") -> 134.288379 | O57: =IF($B57>0,Achievement_to_date_ongoing!$K55*Achievement_to_date_ongoing!P55,"") -> 134.288379
B58: =Achievement_to_date_ongoing!B56 -> 142803 | C58: =IF($B58>0, Achievement_to_date_ongoing!C56, "") -> 3 | D58: =IF($B58>0, Achievement_to_date_ongoing!D56, "") -> 1 | E58: =IF($B58>0, Achievement_to_date_ongoing!E56, "") -> 4S8 | F58: =IF($B58>0, Achievement_to_date_ongoing!F56, "") -> Less developed | G58: 489.126001 | H58: 8641.226019 | I58: 16304.20003 | J58: 16304.20003 | L58: =IF($B58>0,Achievement_to_date_ongoing!$K56*Achievement_to_date_ongoing!M56,"") -> 489.126001 | M58: =IF($B58>0,Achievement_to_date_ongoing!$K56*Achievement_to_date_ongoing!N56,"") -> 8641.226019 | N58: =IF($B58>0,Achievement_to_date_ongoing!$K56*Achievement_to_date_ongoing!O56,"") -> 16304.20003 | O58: =IF($B58>0,Achievement_to_date_ongoing!$K56*Achievement_to_date_ongoing!P56,"") -> 16304.20003
B59: =Achievement_to_date_ongoing!B57 -> 137012 | C59: =IF($B59>0, Achievement_to_date_ongoing!C57, "") -> 3 | D59: =IF($B59>0, Achievement_to_date_ongoing!D57, "") -> 1 | E59: =IF($B59>0, Achievement_to_date_ongoing!E57, "") -> 4S8 | F59: =IF($B59>0, Achievement_to_date_ongoing!F57, "") -> Less developed | G59: 13.69741466 | H59: 105.3647281 | I59: 105.3647281 | J59: 105.3647281 | L59: =IF($B59>0,Achievement_to_date_ongoing!$K57*Achievement_to_date_ongoing!M57,"") -> 13.69741466 | M59: =IF($B59>0,Achievement_to_date_ongoing!$K57*Achievement_to_date_ongoing!N57,"") -> 105.3647281 | N59: =IF($B59>0,Achievement_to_date_ongoing!$K57*Achievement_to_date_ongoing!O57,"") -> 105.3647281 | O59: =IF($B59>0,Achievement_to_date_ongoing!$K57*Achievement_to_date_ongoing!P57,"") -> 105.3647281
B60: =Achievement_to_date_ongoing!B58 -> 121994 | C60: =IF($B60>0, Achievement_to_date_ongoing!C58, "") -> 3 | D60: =IF($B60>0, Achievement_to_date_ongoing!D58, "") -> 1 | E60: =IF($B60>0, Achievement_to_date_ongoing!E58, "") -> 4S8 | F60: =IF($B60>0, Achievement_to_date_ongoing!F58, "") -> More developed | G60: 0 | H60: 0 | I60: 0 | J60: 0 | L60: =IF($B60>0,Achievement_to_date_ongoing!$K58*Achievement_to_date_ongoing!M58,"") -> 0 | M60: =IF($B60>0,Achievement_to_date_ongoing!$K58*Achievement_to_date_ongoing!N58,"") -> 0 | N60: =IF($B60>0,Achievement_to_date_ongoing!$K58*Achievement_to_date_ongoing!O58,"") -> 0 | O60: =IF($B60>0,Achievement_to_date_ongoing!$K58*Achievement_to_date_ongoing!P58,"") -> 0
B61: =Achievement_to_date_ongoing!B59 -> 125311 | C61: =IF($B61>0, Achievement_to_date_ongoing!C59, "") -> 3 | D61: =IF($B61>0, Achievement_to_date_ongoing!D59, "") -> 1 | E61: =IF($B61>0, Achievement_to_date_ongoing!E59, "") -> 4S8 | F61: =IF($B61>0, Achievement_to_date_ongoing!F59, "") -> More developed | G61: 0 | H61: 0 | I61: 0 | J61: 0 | L61: =IF($B61>0,Achievement_to_date_ongoing!$K59*Achievement_to_date_ongoing!M59,"") -> 0 | M61: =IF($B61>0,Achievement_to_date_ongoing!$K59*Achievement_to_date_ongoing!N59,"") -> 0 | N61: =IF($B61>0,Achievement_to_date_ongoing!$K59*Achievement_to_date_ongoing!O59,"") -> 0 | O61: =IF($B61>0,Achievement_to_date_ongoing!$K59*Achievement_to_date_ongoing!P59,"") -> 0
B62: =Achievement_to_date_ongoing!B60 -> 136811 | C62: =IF($B62>0, Achievement_to_date_ongoing!C60, "") -> 3 | D62: =IF($B62>0, Achievement_to_date_ongoing!D60, "") -> 1 | E62: =IF($B62>0, Achievement_to_date_ongoing!E60, "") -> 4S8 | F62: =IF($B62>0, Achievement_to_date_ongoing!F60, "") -> More developed | G62: 0 | H62: 0 | I62: 0 | J62: 0 | L62: =IF($B62>0,Achievement_to_date_ongoing!$K60*Achievement_to_date_ongoing!M60,"") -> 0 | M62: =IF($B62>0,Achievement_to_date_ongoing!$K60*Achievement_to_date_ongoing!N60,"") -> 0 | N62: =IF($B62>0,Achievement_to_date_ongoing!$K60*Achievement_to_date_ongoing!O60,"") -> 0 | O62: =IF($B62>0,Achievement_to_date_ongoing!$K60*Achievement_to_date_ongoing!P60,"") -> 0
B63: =Achievement_to_date_ongoing!B61 -> 136888 | C63: =IF($B63>0, Achievement_to_date_ongoing!C61, "") -> 3 | D63: =IF($B63>0, Achievement_to_date_ongoing!D61, "") -> 1 | E63: =IF($B63>0, Achievement_to_date_ongoing!E61, "") -> 4S8 | F63: =IF($B63>0, Achievement_to_date_ongoing!F61, "") -> More developed | G63: 0 | H63: 0 | I63: 0 | J63: 0 | L63: =IF($B63>0,Achievement_to_date_ongoing!$K61*Achievement_to_date_ongoing!M61,"") -> 0 | M63: =IF($B63>0,Achievement_to_date_ongoing!$K61*Achievement_to_date_ongoing!N61,"") -> 0 | N63: =IF($B63>0,Achievement_to_date_ongoing!$K61*Achievement_to_date_ongoing!O61,"") -> 0 | O63: =IF($B63>0,Achievement_to_date_ongoing!$K61*Achievement_to_date_ongoing!P61,"") -> 0
B64: =Achievement_to_date_ongoing!B62 -> 136946 | C64: =IF($B64>0, Achievement_to_date_ongoing!C62, "") -> 3 | D64: =IF($B64>0, Achievement_to_date_ongoing!D62, "") -> 1 | E64: =IF($B64>0, Achievement_to_date_ongoing!E62, "") -> 4S8 | F64: =IF($B64>0, Achievement_to_date_ongoing!F62, "") -> More developed | G64: 0 | H64: 0 | I64: 0 | J64: 0 | L64: =IF($B64>0,Achievement_to_date_ongoing!$K62*Achievement_to_date_ongoing!M62,"") -> 0 | M64: =IF($B64>0,Achievement_to_date_ongoing!$K62*Achievement_to_date_ongoing!N62,"") -> 0 | N64: =IF($B64>0,Achievement_to_date_ongoing!$K62*Achievement_to_date_ongoing!O62,"") -> 0 | O64: =IF($B64>0,Achievement_to_date_ongoing!$K62*Achievement_to_date_ongoing!P62,"") -> 0
B65: =Achievement_to_date_ongoing!B63 -> 137522 | C65: =IF($B65>0, Achievement_to_date_ongoing!C63, "") -> 3 | D65: =IF($B65>0, Achievement_to_date_ongoing!D63, "") -> 1 | E65: =IF($B65>0, Achievement_to_date_ongoing!E63, "") -> 4S8 | F65: =IF($B65>0, Achievement_to_date_ongoing!F63, "") -> More developed | G65: 0 | H65: 0 | I65: 0 | J65: 0 | L65: =IF($B65>0,Achievement_to_date_ongoing!$K63*Achievement_to_date_ongoing!M63,"") -> 0 | M65: =IF($B65>0,Achievement_to_date_ongoing!$K63*Achievement_to_date_ongoing!N63,"") -> 0 | N65: =IF($B65>0,Achievement_to_date_ongoing!$K63*Achievement_to_date_ongoing!O63,"") -> 0 | O65: =IF($B65>0,Achievement_to_date_ongoing!$K63*Achievement_to_date_ongoing!P63,"") -> 0
B66: =Achievement_to_date_ongoing!B64 -> 137521 | C66: =IF($B66>0, Achievement_to_date_ongoing!C64, "") -> 3 | D66: =IF($B66>0, Achievement_to_date_ongoing!D64, "") -> 1 | E66: =IF($B66>0, Achievement_to_date_ongoing!E64, "") -> 4S8 | F66: =IF($B66>0, Achievement_to_date_ongoing!F64, "") -> More developed | G66: 0 | H66: 0 | I66: 0 | J66: 0 | L66: =IF($B66>0,Achievement_to_date_ongoing!$K64*Achievement_to_date_ongoing!M64,"") -> 0 | M66: =IF($B66>0,Achievement_to_date_ongoing!$K64*Achievement_to_date_ongoing!N64,"") -> 0 | N66: =IF($B66>0,Achievement_to_date_ongoing!$K64*Achievement_to_date_ongoing!O64,"") -> 0 | O66: =IF($B66>0,Achievement_to_date_ongoing!$K64*Achievement_to_date_ongoing!P64,"") -> 0
B67: =Achievement_to_date_ongoing!B65 -> 129163 | C67: =IF($B67>0, Achievement_to_date_ongoing!C65, "") -> 3 | D67: =IF($B67>0, Achievement_to_date_ongoing!D65, "") -> 1 | E67: =IF($B67>0, Achievement_to_date_ongoing!E65, "") -> 4S8 | F67: =IF($B67>0, Achievement_to_date_ongoing!F65, "") -> More developed | G67: 159.3350649 | H67: 181.2436364 | I67: 199.1688312 | J67: 199.1688312 | L67: =IF($B67>0,Achievement_to_date_ongoing!$K65*Achievement_to_date_ongoing!M65,"") -> 159.3350649 | M67: =IF($B67>0,Achievement_to_date_ongoing!$K65*Achievement_to_date_ongoing!N65,"") -> 181.2436364 | N67: =IF($B67>0,Achievement_to_date_ongoing!$K65*Achievement_to_date_ongoing!O65,"") -> 199.1688312 | O67: =IF($B67>0,Achievement_to_date_ongoing!$K65*Achievement_to_date_ongoing!P65,"") -> 199.1688312
B68: =Achievement_to_date_ongoing!B66 -> 127204 | C68: =IF($B68>0, Achievement_to_date_ongoing!C66, "") -> 3 | D68: =IF($B68>0, Achievement_to_date_ongoing!D66, "") -> 1 | E68: =IF($B68>0, Achievement_to_date_ongoing!E66, "") -> 4S8 | F68: =IF($B68>0, Achievement_to_date_ongoing!F66, "") -> More developed | G68: 0 | H68: 0 | I68: 0 | J68: 0 | L68: =IF($B68>0,Achievement_to_date_ongoing!$K66*Achievement_to_date_ongoing!M66,"") -> 0 | M68: =IF($B68>0,Achievement_to_date_ongoing!$K66*Achievement_to_date_ongoing!N66,"") -> 0 | N68: =IF($B68>0,Achievement_to_date_ongoing!$K66*Achievement_to_date_ongoing!O66,"") -> 0 | O68: =IF($B68>0,Achievement_to_date_ongoing!$K66*Achievement_to_date_ongoing!P66,"") -> 0
B69: =Achievement_to_date_ongoing!B67 -> 130167 | C69: =IF($B69>0, Achievement_to_date_ongoing!C67, "") -> 3 | D69: =IF($B69>0, Achievement_to_date_ongoing!D67, "") -> 1 | E69: =IF($B69>0, Achievement_to_date_ongoing!E67, "") -> 4S8 | F69: =IF($B69>0, Achievement_to_date_ongoing!F67, "") -> More developed | G69: 1282.105882 | H69: 1716.049412 | I69: 1972.470588 | J69: 1972.470588 | L69: =IF($B69>0,Achievement_to_date_ongoing!$K67*Achievement_to_date_ongoing!M67,"") -> 1282.105882 | M69: =IF($B69>0,Achievement_to_date_ongoing!$K67*Achievement_to_date_ongoing!N67,"") -> 1716.049412 | N69: =IF($B69>0,Achievement_to_date_ongoing!$K67*Achievement_to_date_ongoing!O67,"") -> 1972.470588 | O69: =IF($B69>0,Achievement_to_date_ongoing!$K67*Achievement_to_date_ongoing!P67,"") -> 1972.470588
B70: =Achievement_to_date_ongoing!B68 -> 137397 | C70: =IF($B70>0, Achievement_to_date_ongoing!C68, "") -> 3 | D70: =IF($B70>0, Achievement_to_date_ongoing!D68, "") -> 1 | E70: =IF($B70>0, Achievement_to_date_ongoing!E68, "") -> 4S8 | F70: =IF($B70>0, Achievement_to_date_ongoing!F68, "") -> More developed | G70: 0 | H70: 0 | I70: 0 | J70: 0 | L70: =IF($B70>0,Achievement_to_date_ongoing!$K68*Achievement_to_date_ongoing!M68,"") -> 0 | M70: =IF($B70>0,Achievement_to_date_ongoing!$K68*Achievement_to_date_ongoing!N68,"") -> 0 | N70: =IF($B70>0,Achievement_to_date_ongoing!$K68*Achievement_to_date_ongoing!O68,"") -> 0 | O70: =IF($B70>0,Achievement_to_date_ongoing!$K68*Achievement_to_date_ongoing!P68,"") -> 0
B71: =Achievement_to_date_ongoing!B69 -> 142803 | C71: =IF($B71>0, Achievement_to_date_ongoing!C69, "") -> 3 | D71: =IF($B71>0, Achievement_to_date_ongoing!D69, "") -> 1 | E71: =IF($B71>0, Achievement_to_date_ongoing!E69, "") -> 4S8 | F71: =IF($B71>0, Achievement_to_date_ongoing!F69, "") -> More developed | G71: 0 | H71: 0 | I71: 0 | J71: 0 | L71: =IF($B71>0,Achievement_to_date_ongoing!$K69*Achievement_to_date_ongoing!M69,"") -> 0 | M71: =IF($B71>0,Achievement_to_date_ongoing!$K69*Achievement_to_date_ongoing!N69,"") -> 0 | N71: =IF($B71>0,Achievement_to_date_ongoing!$K69*Achievement_to_date_ongoing!O69,"") -> 0 | O71: =IF($B71>0,Achievement_to_date_ongoing!$K69*Achievement_to_date_ongoing!P69,"") -> 0
B72: =Achievement_to_date_ongoing!B70 -> 137012 | C72: =IF($B72>0, Achievement_to_date_ongoing!C70, "") -> 3 | D72: =IF($B72>0, Achievement_to_date_ongoing!D70, "") -> 1 | E72: =IF($B72>0, Achievement_to_date_ongoing!E70, "") -> 4S8 | F72: =IF($B72>0, Achievement_to_date_ongoing!F70, "") -> More developed | G72: 0 | H72: 0 | I72: 0 | J72: 0 | L72: =IF($B72>0,Achievement_to_date_ongoing!$K70*Achievement_to_date_ongoing!M70,"") -> 0 | M72: =IF($B72>0,Achievement_to_date_ongoing!$K70*Achievement_to_date_ongoing!N70,"") -> 0 | N72: =IF($B72>0,Achievement_to_date_ongoing!$K70*Achievement_to_date_ongoing!O70,"") -> 0 | O72: =IF($B72>0,Achievement_to_date_ongoing!$K70*Achievement_to_date_ongoing!P70,"") -> 0
B73: =Achievement_to_date_ongoing!B71 -> 118808 | C73: =IF($B73>0, Achievement_to_date_ongoing!C71, "") -> 3 | D73: =IF($B73>0, Achievement_to_date_ongoing!D71, "") -> 2 | E73: =IF($B73>0, Achievement_to_date_ongoing!E71, "") -> O1 | F73: =IF($B73>0, Achievement_to_date_ongoing!F71, "") -> Less developed | G73: 91836760.19 | H73: 122862692.7 | I73: 124103730 | J73: 124103730 | L73: =IF($B73>0,Achievement_to_date_ongoing!$K71*Achievement_to_date_ongoing!M71,"") -> 91836760.19 | M73: =IF($B73>0,Achievement_to_date_ongoing!$K71*Achievement_to_date_ongoing!N71,"") -> 122862692.7 | N73: =IF($B73>0,Achievement_to_date_ongoing!$K71*Achievement_to_date_ongoing!O71,"") -> 124103730 | O73: =IF($B73>0,Achievement_to_date_ongoing!$K71*Achievement_to_date_ongoing!P71,"") -> 124103730
B74: =Achievement_to_date_ongoing!B72 -> 118809 | C74: =IF($B74>0, Achievement_to_date_ongoing!C72, "") -> 3 | D74: =IF($B74>0, Achievement_to_date_ongoing!D72, "") -> 2 | E74: =IF($B74>0, Achievement_to_date_ongoing!E72, "") -> O1 | F74: =IF($B74>0, Achievement_to_date_ongoing!F72, "") -> Less developed | G74: 91836760.19 | H74: 122862692.7 | I74: 124103730 | J74: 124103730 | L74: =IF($B74>0,Achievement_to_date_ongoing!$K72*Achievement_to_date_ongoing!M72,"") -> 91836760.19 | M74: =IF($B74>0,Achievement_to_date_ongoing!$K72*Achievement_to_date_ongoing!N72,"") -> 122862692.7 | N74: =IF($B74>0,Achievement_to_date_ongoing!$K72*Achievement_to_date_ongoing!O72,"") -> 124103730 | O74: =IF($B74>0,Achievement_to_date_ongoing!$K72*Achievement_to_date_ongoing!P72,"") -> 124103730
B75: =Achievement_to_date_ongoing!B73 -> 121994 | C75: =IF($B75>0, Achievement_to_date_ongoing!C73, "") -> 3 | D75: =IF($B75>0, Achievement_to_date_ongoing!D73, "") -> 1 | E75: =IF($B75>0, Achievement_to_date_ongoing!E73, "") -> O1 | F75: =IF($B75>0, Achievement_to_date_ongoing!F73, "") -> Less developed | G75: 69264420.03 | H75: 94991204.61 | I75: 98949171.47 | J75: 98949171.47 | L75: =IF($B75>0,Achievement_to_date_ongoing!$K73*Achievement_to_date_ongoing!M73,"") -> 69264420.03 | M75: =IF($B75>0,Achievement_to_date_ongoing!$K73*Achievement_to_date_ongoing!N73,"") -> 94991204.61 | N75: =IF($B75>0,Achievement_to_date_ongoing!$K73*Achievement_to_date_ongoing!O73,"") -> 98949171.47 | O75: =IF($B75>0,Achievement_to_date_ongoing!$K73*Achievement_to_date_ongoing!P73,"") -> 98949171.47
B76: =Achievement_to_date_ongoing!B74 -> 126668 | C76: =IF($B76>0, Achievement_to_date_ongoing!C74, "") -> 3 | D76: =IF($B76>0, Achievement_to_date_ongoing!D74, "") -> 5 | E76: =IF($B76>0, Achievement_to_date_ongoing!E74, "") -> O1 | F76: =IF($B76>0, Achievement_to_date_ongoing!F74, "") -> Less developed | G76: 1102861.056 | H76: 1723220.4 | I76: 1723220.4 | J76: 1723220.4 | L76: =IF($B76>0,Achievement_to_date_ongoing!$K74*Achievement_to_date_ongoing!M74,"") -> 1102861.056 | M76: =IF($B76>0,Achievement_to_date_ongoing!$K74*Achievement_to_date_ongoing!N74,"") -> 1723220.4 | N76: =IF($B76>0,Achievement_to_date_ongoing!$K74*Achievement_to_date_ongoing!O74,"") -> 1723220.4 | O76: =IF($B76>0,Achievement_to_date_ongoing!$K74*Achievement_to_date_ongoing!P74,"") -> 1723220.4
B77: =Achievement_to_date_ongoing!B75 -> 125311 | C77: =IF($B77>0, Achievement_to_date_ongoing!C75, "") -> 3 | D77: =IF($B77>0, Achievement_to_date_ongoing!D75, "") -> 1 | E77: =IF($B77>0, Achievement_to_date_ongoing!E75, "") -> O1 | F77: =IF($B77>0, Achievement_to_date_ongoing!F75, "") -> Less developed | G77: 685867489.8 | H77: 857334362.2 | I77: 857334362.2 | J77: 857334362.2 | L77: =IF($B77>0,Achievement_to_date_ongoing!$K75*Achievement_to_date_ongoing!M75,"") -> 685867489.8 | M77: =IF($B77>0,Achievement_to_date_ongoing!$K75*Achievement_to_date_ongoing!N75,"") -> 857334362.2 | N77: =IF($B77>0,Achievement_to_date_ongoing!$K75*Achievement_to_date_ongoing!O75,"") -> 857334362.2 | O77: =IF($B77>0,Achievement_to_date_ongoing!$K75*Achievement_to_date_ongoing!P75,"") -> 857334362.2
B78: =Achievement_to_date_ongoing!B76 -> 106941 | C78: =IF($B78>0, Achievement_to_date_ongoing!C76, "") -> 3 | D78: =IF($B78>0, Achievement_to_date_ongoing!D76, "") -> 2 | E78: =IF($B78>0, Achievement_to_date_ongoing!E76, "") -> O1 | F78: =IF($B78>0, Achievement_to_date_ongoing!F76, "") -> Less developed | G78: 5976034.937 | H78: 7564601.186 | I78: 7564601.186 | J78: 7564601.186 | L78: =IF($B78>0,Achievement_to_date_ongoing!$K76*Achievement_to_date_ongoing!M76,"") -> 5976034.937 | M78: =IF($B78>0,Achievement_to_date_ongoing!$K76*Achievement_to_date_ongoing!N76,"") -> 7564601.186 | N78: =IF($B78>0,Achievement_to_date_ongoing!$K76*Achievement_to_date_ongoing!O76,"") -> 7564601.186 | O78: =IF($B78>0,Achievement_to_date_ongoing!$K76*Achievement_to_date_ongoing!P76,"") -> 7564601.186
B79: =Achievement_to_date_ongoing!B77 -> 127975 | C79: =IF($B79>0, Achievement_to_date_ongoing!C77, "") -> 3 | D79: =IF($B79>0, Achievement_to_date_ongoing!D77, "") -> 5 | E79: =IF($B79>0, Achievement_to_date_ongoing!E77, "") -> O1 | F79: =IF($B79>0, Achievement_to_date_ongoing!F77, "") -> Less developed | G79: 1054752.624 | H79: 1883486.829 | I79: 1883486.829 | J79: 1883486.829 | L79: =IF($B79>0,Achievement_to_date_ongoing!$K77*Achievement_to_date_ongoing!M77,"") -> 1054752.624 | M79: =IF($B79>0,Achievement_to_date_ongoing!$K77*Achievement_to_date_ongoing!N77,"") -> 1883486.829 | N79: =IF($B79>0,Achievement_to_date_ongoing!$K77*Achievement_to_date_ongoing!O77,"") -> 1883486.829 | O79: =IF($B79>0,Achievement_to_date_ongoing!$K77*Achievement_to_date_ongoing!P77,"") -> 1883486.829
B80: =Achievement_to_date_ongoing!B78 -> 128831 | C80: =IF($B80>0, Achievement_to_date_ongoing!C78, "") -> 3 | D80: =IF($B80>0, Achievement_to_date_ongoing!D78, "") -> 5 | E80: =IF($B80>0, Achievement_to_date_ongoing!E78, "") -> O1 | F80: =IF($B80>0, Achievement_to_date_ongoing!F78, "") -> Less developed | G80: 830158.8953 | H80: 1456419.115 | I80: 1456419.115 | J80: 1456419.115 | L80: =IF($B80>0,Achievement_to_date_ongoing!$K78*Achievement_to_date_ongoing!M78,"") -> 830158.8953 | M80: =IF($B80>0,Achievement_to_date_ongoing!$K78*Achievement_to_date_ongoing!N78,"") -> 1456419.115 | N80: =IF($B80>0,Achievement_to_date_ongoing!$K78*Achievement_to_date_ongoing!O78,"") -> 1456419.115 | O80: =IF($B80>0,Achievement_to_date_ongoing!$K78*Achievement_to_date_ongoing!P78,"") -> 1456419.115
B81: =Achievement_to_date_ongoing!B79 -> 128290 | C81: =IF($B81>0, Achievement_to_date_ongoing!C79, "") -> 3 | D81: =IF($B81>0, Achievement_to_date_ongoing!D79, "") -> 5 | E81: =IF($B81>0, Achievement_to_date_ongoing!E79, "") -> O1 | F81: =IF($B81>0, Achievement_to_date_ongoing!F79, "") -> Less developed | G81: 1047793.826 | H81: 1871060.403 | I81: 1871060.403 | J81: 1871060.403 | L81: =IF($B81>0,Achievement_to_date_ongoing!$K79*Achievement_to_date_ongoing!M79,"") -> 1047793.826 | M81: =IF($B81>0,Achievement_to_date_ongoing!$K79*Achievement_to_date_ongoing!N79,"") -> 1871060.403 | N81: =IF($B81>0,Achievement_to_date_ongoing!$K79*Achievement_to_date_ongoing!O79,"") -> 1871060.403 | O81: =IF($B81>0,Achievement_to_date_ongoing!$K79*Achievement_to_date_ongoing!P79,"") -> 1871060.403
B82: =Achievement_to_date_ongoing!B80 -> 128044 | C82: =IF($B82>0, Achievement_to_date_ongoing!C80, "") -> 3 | D82: =IF($B82>0, Achievement_to_date_ongoing!D80, "") -> 5 | E82: =IF($B82>0, Achievement_to_date_ongoing!E80, "") -> O1 | F82: =IF($B82>0, Achievement_to_date_ongoing!F80, "") -> Less developed | G82: 1220163.621 | H82: 1968005.84 | I82: 1968005.84 | J82: 1968005.84 | L82: =IF($B82>0,Achievement_to_date_ongoing!$K80*Achievement_to_date_ongoing!M80,"") -> 1220163.621 | M82: =IF($B82>0,Achievement_to_date_ongoing!$K80*Achievement_to_date_ongoing!N80,"") -> 1968005.84 | N82: =IF($B82>0,Achievement_to_date_ongoing!$K80*Achievement_to_date_ongoing!O80,"") -> 1968005.84 | O82: =IF($B82>0,Achievement_to_date_ongoing!$K80*Achievement_to_date_ongoing!P80,"") -> 1968005.84
B83: =Achievement_to_date_ongoing!B81 -> 128121 | C83: =IF($B83>0, Achievement_to_date_ongoing!C81, "") -> 3 | D83: =IF($B83>0, Achievement_to_date_ongoing!D81, "") -> 5 | E83: =IF($B83>0, Achievement_to_date_ongoing!E81, "") -> O1 | F83: =IF($B83>0, Achievement_to_date_ongoing!F81, "") -> Less developed | G83: 1330063.251 | H83: 1847310.072 | I83: 1847310.072 | J83: 1847310.072 | L83: =IF($B83>0,Achievement_to_date_ongoing!$K81*Achievement_to_date_ongoing!M81,"") -> 1330063.251 | M83: =IF($B83>0,Achievement_to_date_ongoing!$K81*Achievement_to_date_ongoing!N81,"") -> 1847310.072 | N83: =IF($B83>0,Achievement_to_date_ongoing!$K81*Achievement_to_date_ongoing!O81,"") -> 1847310.072 | O83: =IF($B83>0,Achievement_to_date_ongoing!$K81*Achievement_to_date_ongoing!P81,"") -> 1847310.072
B84: =Achievement_to_date_ongoing!B82 -> 136811 | C84: =IF($B84>0, Achievement_to_date_ongoing!C82, "") -> 3 | D84: =IF($B84>0, Achievement_to_date_ongoing!D82, "") -> 1 | E84: =IF($B84>0, Achievement_to_date_ongoing!E82, "") -> O1 | F84: =IF($B84>0, Achievement_to_date_ongoing!F82, "") -> Less developed | G84: 178694.8303 | H84: 1033877.232 | I84: 1276391.645 | J84: 1276391.645 | L84: =IF($B84>0,Achievement_to_date_ongoing!$K82*Achievement_to_date_ongoing!M82,"") -> 178694.8303 | M84: =IF($B84>0,Achievement_to_date_ongoing!$K82*Achievement_to_date_ongoing!N82,"") -> 1033877.232 | N84: =IF($B84>0,Achievement_to_date_ongoing!$K82*Achievement_to_date_ongoing!O82,"") -> 1276391.645 | O84: =IF($B84>0,Achievement_to_date_ongoing!$K82*Achievement_to_date_ongoing!P82,"") -> 1276391.645
B85: =Achievement_to_date_ongoing!B83 -> 128125 | C85: =IF($B85>0, Achievement_to_date_ongoing!C83, "") -> 3 | D85: =IF($B85>0, Achievement_to_date_ongoing!D83, "") -> 5 | E85: =IF($B85>0, Achievement_to_date_ongoing!E83, "") -> O1 | F85: =IF($B85>0, Achievement_to_date_ongoing!F83, "") -> Less developed | G85: 955024.8967 | H85: 1540362.737 | I85: 1540362.737 | J85: 1540362.737 | L85: =IF($B85>0,Achievement_to_date_ongoing!$K83*Achievement_to_date_ongoing!M83,"") -> 955024.8967 | M85: =IF($B85>0,Achievement_to_date_ongoing!$K83*Achievement_to_date_ongoing!N83,"") -> 1540362.737 | N85: =IF($B85>0,Achievement_to_date_ongoing!$K83*Achievement_to_date_ongoing!O83,"") -> 1540362.737 | O85: =IF($B85>0,Achievement_to_date_ongoing!$K83*Achievement_to_date_ongoing!P83,"") -> 1540362.737
B86: =Achievement_to_date_ongoing!B84 -> 128144 | C86: =IF($B86>0, Achievement_to_date_ongoing!C84, "") -> 3 | D86: =IF($B86>0, Achievement_to_date_ongoing!D84, "") -> 5 | E86: =IF($B86>0, Achievement_to_date_ongoing!E84, "") -> O1 | F86: =IF($B86>0, Achievement_to_date_ongoing!F84, "") -> Less developed | G86: 1294322.353 | H86: 2121839.924 | I86: 2121839.924 | J86: 2121839.924 | L86: =IF($B86>0,Achievement_to_date_ongoing!$K84*Achievement_to_date_ongoing!M84,"") -> 1294322.353 | M86: =IF($B86>0,Achievement_to_date_ongoing!$K84*Achievement_to_date_ongoing!N84,"") -> 2121839.924 | N86: =IF($B86>0,Achievement_to_date_ongoing!$K84*Achievement_to_date_ongoing!O84,"") -> 2121839.924 | O86: =IF($B86>0,Achievement_to_date_ongoing!$K84*Achievement_to_date_ongoing!P84,"") -> 2121839.924
B87: =Achievement_to_date_ongoing!B85 -> 128162 | C87: =IF($B87>0, Achievement_to_date_ongoing!C85, "") -> 3 | D87: =IF($B87>0, Achievement_to_date_ongoing!D85, "") -> 5 | E87: =IF($B87>0, Achievement_to_date_ongoing!E85, "") -> O1 | F87: =IF($B87>0, Achievement_to_date_ongoing!F85, "") -> Less developed | G87: 2016840.006 | H87: 2922956.53 | I87: 2922956.53 | J87: 2922956.53 | L87: =IF($B87>0,Achievement_to_date_ongoing!$K85*Achievement_to_date_ongoing!M85,"") -> 2016840.006 | M87: =IF($B87>0,Achievement_to_date_ongoing!$K85*Achievement_to_date_ongoing!N85,"") -> 2922956.53 | N87: =IF($B87>0,Achievement_to_date_ongoing!$K85*Achievement_to_date_ongoing!O85,"") -> 2922956.53 | O87: =IF($B87>0,Achievement_to_date_ongoing!$K85*Achievement_to_date_ongoing!P85,"") -> 2922956.53
B88: =Achievement_to_date_ongoing!B86 -> 128612 | C88: =IF($B88>0, Achievement_to_date_ongoing!C86, "") -> 3 | D88: =IF($B88>0, Achievement_to_date_ongoing!D86, "") -> 5 | E88: =IF($B88>0, Achievement_to_date_ongoing!E86, "") -> O1 | F88: =IF($B88>0, Achievement_to_date_ongoing!F86, "") -> Less developed | G88: 87398.70888 | H88: 158906.7434 | I88: 158906.7434 | J88: 158906.7434 | L88: =IF($B88>0,Achievement_to_date_ongoing!$K86*Achievement_to_date_ongoing!M86,"") -> 87398.70888 | M88: =IF($B88>0,Achievement_to_date_ongoing!$K86*Achievement_to_date_ongoing!N86,"") -> 158906.7434 | N88: =IF($B88>0,Achievement_to_date_ongoing!$K86*Achievement_to_date_ongoing!O86,"") -> 158906.7434 | O88: =IF($B88>0,Achievement_to_date_ongoing!$K86*Achievement_to_date_ongoing!P86,"") -> 158906.7434
B89: =Achievement_to_date_ongoing!B87 -> 128132 | C89: =IF($B89>0, Achievement_to_date_ongoing!C87, "") -> 3 | D89: =IF($B89>0, Achievement_to_date_ongoing!D87, "") -> 5 | E89: =IF($B89>0, Achievement_to_date_ongoing!E87, "") -> O1 | F89: =IF($B89>0, Achievement_to_date_ongoing!F87, "") -> Less developed | G89: 1334001.303 | H89: 2186887.383 | I89: 2186887.383 | J89: 2186887.383 | L89: =IF($B89>0,Achievement_to_date_ongoing!$K87*Achievement_to_date_ongoing!M87,"") -> 1334001.303 | M89: =IF($B89>0,Achievement_to_date_ongoing!$K87*Achievement_to_date_ongoing!N87,"") -> 2186887.383 | N89: =IF($B89>0,Achievement_to_date_ongoing!$K87*Achievement_to_date_ongoing!O87,"") -> 2186887.383 | O89: =IF($B89>0,Achievement_to_date_ongoing!$K87*Achievement_to_date_ongoing!P87,"") -> 2186887.383
B90: =Achievement_to_date_ongoing!B88 -> 118810 | C90: =IF($B90>0, Achievement_to_date_ongoing!C88, "") -> 3 | D90: =IF($B90>0, Achievement_to_date_ongoing!D88, "") -> 2 | E90: =IF($B90>0, Achievement_to_date_ongoing!E88, "") -> O1 | F90: =IF($B90>0, Achievement_to_date_ongoing!F88, "") -> Less developed | G90: 92135862.35 | H90: 123262842.9 | I90: 124507922.1 | J90: 124507922.1 | L90: =IF($B90>0,Achievement_to_date_ongoing!$K88*Achievement_to_date_ongoing!M88,"") -> 92135862.35 | M90: =IF($B90>0,Achievement_to_date_ongoing!$K88*Achievement_to_date_ongoing!N88,"") -> 123262842.9 | N90: =IF($B90>0,Achievement_to_date_ongoing!$K88*Achievement_to_date_ongoing!O88,"") -> 124507922.1 | O90: =IF($B90>0,Achievement_to_date_ongoing!$K88*Achievement_to_date_ongoing!P88,"") -> 124507922.1
B91: =Achievement_to_date_ongoing!B89 -> 136888 | C91: =IF($B91>0, Achievement_to_date_ongoing!C89, "") -> 3 | D91: =IF($B91>0, Achievement_to_date_ongoing!D89, "") -> 1 | E91: =IF($B91>0, Achievement_to_date_ongoing!E89, "") -> O1 | F91: =IF($B91>0, Achievement_to_date_ongoing!F89, "") -> Less developed | G91: 67171.84974 | H91: 1343436.995 | I91: 1343436.995 | J91: 1343436.995 | L91: =IF($B91>0,Achievement_to_date_ongoing!$K89*Achievement_to_date_ongoing!M89,"") -> 67171.84974 | M91: =IF($B91>0,Achievement_to_date_ongoing!$K89*Achievement_to_date_ongoing!N89,"") -> 1343436.995 | N91: =IF($B91>0,Achievement_to_date_ongoing!$K89*Achievement_to_date_ongoing!O89,"") -> 1343436.995 | O91: =IF($B91>0,Achievement_to_date_ongoing!$K89*Achievement_to_date_ongoing!P89,"") -> 1343436.995
B92: =Achievement_to_date_ongoing!B90 -> 136946 | C92: =IF($B92>0, Achievement_to_date_ongoing!C90, "") -> 3 | D92: =IF($B92>0, Achievement_to_date_ongoing!D90, "") -> 1 | E92: =IF($B92>0, Achievement_to_date_ongoing!E90, "") -> O1 | F92: =IF($B92>0, Achievement_to_date_ongoing!F90, "") -> Less developed | G92: 203936.647 | H92: 1057921.356 | I92: 1274604.044 | J92: 1274604.044 | L92: =IF($B92>0,Achievement_to_date_ongoing!$K90*Achievement_to_date_ongoing!M90,"") -> 203936.647 | M92: =IF($B92>0,Achievement_to_date_ongoing!$K90*Achievement_to_date_ongoing!N90,"") -> 1057921.356 | N92: =IF($B92>0,Achievement_to_date_ongoing!$K90*Achievement_to_date_ongoing!O90,"") -> 1274604.044 | O92: =IF($B92>0,Achievement_to_date_ongoing!$K90*Achievement_to_date_ongoing!P90,"") -> 1274604.044
B93: =Achievement_to_date_ongoing!B91 -> 137522 | C93: =IF($B93>0, Achievement_to_date_ongoing!C91, "") -> 3 | D93: =IF($B93>0, Achievement_to_date_ongoing!D91, "") -> 1 | E93: =IF($B93>0, Achievement_to_date_ongoing!E91, "") -> O1 | F93: =IF($B93>0, Achievement_to_date_ongoing!F91, "") -> Less developed | G93: 118920.0064 | H93: 1057066.724 | I93: 1321333.405 | J93: 1321333.405 | L93: =IF($B93>0,Achievement_to_date_ongoing!$K91*Achievement_to_date_ongoing!M91,"") -> 118920.0064 | M93: =IF($B93>0,Achievement_to_date_ongoing!$K91*Achievement_to_date_ongoing!N91,"") -> 1057066.724 | N93: =IF($B93>0,Achievement_to_date_ongoing!$K91*Achievement_to_date_ongoing!O91,"") -> 1321333.405 | O93: =IF($B93>0,Achievement_to_date_ongoing!$K91*Achievement_to_date_ongoing!P91,"") -> 1321333.405
B94: =Achievement_to_date_ongoing!B92 -> 134945 | C94: =IF($B94>0, Achievement_to_date_ongoing!C92, "") -> 3 | D94: =IF($B94>0, Achievement_to_date_ongoing!D92, "") -> 3 | E94: =IF($B94>0, Achievement_to_date_ongoing!E92, "") -> O1 | F94: =IF($B94>0, Achievement_to_date_ongoing!F92, "") -> Less developed | G94: 0 | H94: 816352.1514 | I94: 816352.1514 | J94: 816352.1514 | L94: =IF($B94>0,Achievement_to_date_ongoing!$K92*Achievement_to_date_ongoing!M92,"") -> 0 | M94: =IF($B94>0,Achievement_to_date_ongoing!$K92*Achievement_to_date_ongoing!N92,"") -> 816352.1514 | N94: =IF($B94>0,Achievement_to_date_ongoing!$K92*Achievement_to_date_ongoing!O92,"") -> 816352.1514 | O94: =IF($B94>0,Achievement_to_date_ongoing!$K92*Achievement_to_date_ongoing!P92,"") -> 816352.1514
B95: =Achievement_to_date_ongoing!B93 -> 135006 | C95: =IF($B95>0, Achievement_to_date_ongoing!C93, "") -> 3 | D95: =IF($B95>0, Achievement_to_date_ongoing!D93, "") -> 3 | E95: =IF($B95>0, Achievement_to_date_ongoing!E93, "") -> O1 | F95: =IF($B95>0, Achievement_to_date_ongoing!F93, "") -> Less developed | G95: 175510.2944 | H95: 351020.5889 | I95: 351020.5889 | J95: 351020.5889 | L95: =IF($B95>0,Achievement_to_date_ongoing!$K93*Achievement_to_date_ongoing!M93,"") -> 175510.2944 | M95: =IF($B95>0,Achievement_to_date_ongoing!$K93*Achievement_to_date_ongoing!N93,"") -> 351020.5889 | N95: =IF($B95>0,Achievement_to_date_ongoing!$K93*Achievement_to_date_ongoing!O93,"") -> 351020.5889 | O95: =IF($B95>0,Achievement_to_date_ongoing!$K93*Achievement_to_date_ongoing!P93,"") -> 351020.5889
B96: =Achievement_to_date_ongoing!B94 -> 137521 | C96: =IF($B96>0, Achievement_to_date_ongoing!C94, "") -> 3 | D96: =IF($B96>0, Achievement_to_date_ongoing!D94, "") -> 1 | E96: =IF($B96>0, Achievement_to_date_ongoing!E94, "") -> O1 | F96: =IF($B96>0, Achievement_to_date_ongoing!F94, "") -> Less developed | G96: 106190.7369 | H96: 982264.3162 | I96: 1327384.211 | J96: 1327384.211 | L96: =IF($B96>0,Achievement_to_date_ongoing!$K94*Achievement_to_date_ongoing!M94,"") -> 106190.7369 | M96: =IF($B96>0,Achievement_to_date_ongoing!$K94*Achievement_to_date_ongoing!N94,"") -> 982264.3162 | N96: =IF($B96>0,Achievement_to_date_ongoing!$K94*Achievement_to_date_ongoing!O94,"") -> 1327384.211 | O96: =IF($B96>0,Achievement_to_date_ongoing!$K94*Achievement_to_date_ongoing!P94,"") -> 1327384.211
B97: =Achievement_to_date_ongoing!B95 -> 139164 | C97: =IF($B97>0, Achievement_to_date_ongoing!C95, "") -> 3 | D97: =IF($B97>0, Achievement_to_date_ongoing!D95, "") -> 4 | E97: =IF($B97>0, Achievement_to_date_ongoing!E95, "") -> O1 | F97: =IF($B97>0, Achievement_to_date_ongoing!F95, "") -> Less developed | G97: 435309.4188 | H97: 7617914.829 | I97: 15018174.95 | J97: 21765470.94 | L97: =IF($B97>0,Achievement_to_date_ongoing!$K95*Achievement_to_date_ongoing!M95,"") -> 435309.4188 | M97: =IF($B97>0,Achievement_to_date_ongoing!$K95*Achievement_to_date_ongoing!N95,"") -> 7617914.829 | N97: =IF($B97>0,Achievement_to_date_ongoing!$K95*Achievement_to_date_ongoing!O95,"") -> 15018174.95 | O97: =IF($B97>0,Achievement_to_date_ongoing!$K95*Achievement_to_date_ongoing!P95,"") -> 21765470.94
B98: =Achievement_to_date_ongoing!B96 -> 140092 | C98: =IF($B98>0, Achievement_to_date_ongoing!C96, "") -> 3 | D98: =IF($B98>0, Achievement_to_date_ongoing!D96, "") -> 4 | E98: =IF($B98>0, Achievement_to_date_ongoing!E96, "") -> O1 | F98: =IF($B98>0, Achievement_to_date_ongoing!F96, "") -> Less developed | G98: 47960.46469 | H98: 2158220.911 | I98: 4268481.357 | J98: 4796046.469 | L98: =IF($B98>0,Achievement_to_date_ongoing!$K96*Achievement_to_date_ongoing!M96,"") -> 47960.46469 | M98: =IF($B98>0,Achievement_to_date_ongoing!$K96*Achievement_to_date_ongoing!N96,"") -> 2158220.911 | N98: =IF($B98>0,Achievement_to_date_ongoing!$K96*Achievement_to_date_ongoing!O96,"") -> 4268481.357 | O98: =IF($B98>0,Achievement_to_date_ongoing!$K96*Achievement_to_date_ongoing!P96,"") -> 4796046.469
B99: =Achievement_to_date_ongoing!B97 -> 128130 | C99: =IF($B99>0, Achievement_to_date_ongoing!C97, "") -> 3 | D99: =IF($B99>0, Achievement_to_date_ongoing!D97, "") -> 5 | E99: =IF($B99>0, Achievement_to_date_ongoing!E97, "") -> O1 | F99: =IF($B99>0, Achievement_to_date_ongoing!F97, "") -> Less developed | G99: 1200369.958 | H99: 1818742.36 | I99: 1818742.36 | J99: 1818742.36 | L99: =IF($B99>0,Achievement_to_date_ongoing!$K97*Achievement_to_date_ongoing!M97,"") -> 1200369.958 | M99: =IF($B99>0,Achievement_to_date_ongoing!$K97*Achievement_to_date_ongoing!N97,"") -> 1818742.36 | N99: =IF($B99>0,Achievement_to_date_ongoing!$K97*Achievement_to_date_ongoing!O97,"") -> 1818742.36 | O99: =IF($B99>0,Achievement_to_date_ongoing!$K97*Achievement_to_date_ongoing!P97,"") -> 1818742.36
B100: =Achievement_to_date_ongoing!B98 -> 106435 | C100: =IF($B100>0, Achievement_to_date_ongoing!C98, "") -> 3 | D100: =IF($B100>0, Achievement_to_date_ongoing!D98, "") -> 2 | E100: =IF($B100>0, Achievement_to_date_ongoing!E98, "") -> O1 | F100: =IF($B100>0, Achievement_to_date_ongoing!F98, "") -> Less developed | G100: 7167082.476 | H100: 8635039.128 | I100: 8635039.128 | J100: 8635039.128 | L100: =IF($B100>0,Achievement_to_date_ongoing!$K98*Achievement_to_date_ongoing!M98,"") -> 7167082.476 | M100: =IF($B100>0,Achievement_to_date_ongoing!$K98*Achievement_to_date_ongoing!N98,"") -> 8635039.128 | N100: =IF($B100>0,Achievement_to_date_ongoing!$K98*Achievement_to_date_ongoing!O98,"") -> 8635039.128 | O100: =IF($B100>0,Achievement_to_date_ongoing!$K98*Achievement_to_date_ongoing!P98,"") -> 8635039.128
B101: =Achievement_to_date_ongoing!B99 -> 144948 | C101: =IF($B101>0, Achievement_to_date_ongoing!C99, "") -> 3 | D101: =IF($B101>0, Achievement_to_date_ongoing!D99, "") -> 5 | E101: =IF($B101>0, Achievement_to_date_ongoing!E99, "") -> O1 | F101: =IF($B101>0, Achievement_to_date_ongoing!F99, "") -> Less developed | G101: 0 | H101: 111857.2091 | I101: 294361.0765 | J101: 294361.0765 | L101: =IF($B101>0,Achievement_to_date_ongoing!$K99*Achievement_to_date_ongoing!M99,"") -> 0 | M101: =IF($B101>0,Achievement_to_date_ongoing!$K99*Achievement_to_date_ongoing!N99,"") -> 111857.2091 | N101: =IF($B101>0,Achievement_to_date_ongoing!$K99*Achievement_to_date_ongoing!O99,"") -> 294361.0765 | O101: =IF($B101>0,Achievement_to_date_ongoing!$K99*Achievement_to_date_ongoing!P99,"") -> 294361.0765
B102: =Achievement_to_date_ongoing!B100 -> 144433 | C102: =IF($B102>0, Achievement_to_date_ongoing!C100, "") -> 3 | D102: =IF($B102>0, Achievement_to_date_ongoing!D100, "") -> 5 | E102: =IF($B102>0, Achievement_to_date_ongoing!E100, "") -> O1 | F102: =IF($B102>0, Achievement_to_date_ongoing!F100, "") -> Less developed | G102: 0 | H102: 148991.1862 | I102: 372477.9656 | J102: 372477.9656 | L102: =IF($B102>0,Achievement_to_date_ongoing!$K100*Achievement_to_date_ongoing!M100,"") -> 0 | M102: =IF($B102>0,Achievement_to_date_ongoing!$K100*Achievement_to_date_ongoing!N100,"") -> 148991.1862 | N102: =IF($B102>0,Achievement_to_date_ongoing!$K100*Achievement_to_date_ongoing!O100,"") -> 372477.9656 | O102: =IF($B102>0,Achievement_to_date_ongoing!$K100*Achievement_to_date_ongoing!P100,"") -> 372477.9656
B103: =Achievement_to_date_ongoing!B101 -> 127018 | C103: =IF($B103>0, Achievement_to_date_ongoing!C101, "") -> 3 | D103: =IF($B103>0, Achievement_to_date_ongoing!D101, "") -> 5 | E103: =IF($B103>0, Achievement_to_date_ongoing!E101, "") -> O1 | F103: =IF($B103>0, Achievement_to_date_ongoing!F101, "") -> Less developed | G103: 728099.5838 | H103: 1255344.11 | I103: 1255344.11 | J103: 1255344.11 | L103: =IF($B103>0,Achievement_to_date_ongoing!$K101*Achievement_to_date_ongoing!M101,"") -> 728099.5838 | M103: =IF($B103>0,Achievement_to_date_ongoing!$K101*Achievement_to_date_ongoing!N101,"") -> 1255344.11 | N103: =IF($B103>0,Achievement_to_date_ongoing!$K101*Achievement_to_date_ongoing!O101,"") -> 1255344.11 | O103: =IF($B103>0,Achievement_to_date_ongoing!$K101*Achievement_to_date_ongoing!P101,"") -> 1255344.11
B104: =Achievement_to_date_ongoing!B102 -> 127019 | C104: =IF($B104>0, Achievement_to_date_ongoing!C102, "") -> 3 | D104: =IF($B104>0, Achievement_to_date_ongoing!D102, "") -> 5 | E104: =IF($B104>0, Achievement_to_date_ongoing!E102, "") -> O1 | F104: =IF($B104>0, Achievement_to_date_ongoing!F102, "") -> Less developed | G104: 611199.5586 | H104: 1072279.927 | I104: 1072279.927 | J104: 1072279.927 | L104: =IF($B104>0,Achievement_to_date_ongoing!$K102*Achievement_to_date_ongoing!M102,"") -> 611199.5586 | M104: =IF($B104>0,Achievement_to_date_ongoing!$K102*Achievement_to_date_ongoing!N102,"") -> 1072279.927 | N104: =IF($B104>0,Achievement_to_date_ongoing!$K102*Achievement_to_date_ongoing!O102,"") -> 1072279.927 | O104: =IF($B104>0,Achievement_to_date_ongoing!$K102*Achievement_to_date_ongoing!P102,"") -> 1072279.927
B105: =Achievement_to_date_ongoing!B103 -> 127851 | C105: =IF($B105>0, Achievement_to_date_ongoing!C103, "") -> 3 | D105: =IF($B105>0, Achievement_to_date_ongoing!D103, "") -> 5 | E105: =IF($B105>0, Achievement_to_date_ongoing!E103, "") -> O1 | F105: =IF($B105>0, Achievement_to_date_ongoing!F103, "") -> Less developed | G105: 1538407.673 | H105: 2166771.37 | I105: 2166771.37 | J105: 2166771.37 | L105: =IF($B105>0,Achievement_to_date_ongoing!$K103*Achievement_to_date_ongoing!M103,"") -> 1538407.673 | M105: =IF($B105>0,Achievement_to_date_ongoing!$K103*Achievement_to_date_ongoing!N103,"") -> 2166771.37 | N105: =IF($B105>0,Achievement_to_date_ongoing!$K103*Achievement_to_date_ongoing!O103,"") -> 2166771.37 | O105: =IF($B105>0,Achievement_to_date_ongoing!$K103*Achievement_to_date_ongoing!P103,"") -> 2166771.37
B106: =Achievement_to_date_ongoing!B104 -> 128282 | C106: =IF($B106>0, Achievement_to_date_ongoing!C104, "") -> 3 | D106: =IF($B106>0, Achievement_to_date_ongoing!D104, "") -> 5 | E106: =IF($B106>0, Achievement_to_date_ongoing!E104, "") -> O1 | F106: =IF($B106>0, Achievement_to_date_ongoing!F104, "") -> Less developed | G106: 1043822.125 | H106: 1630972.07 | I106: 1630972.07 | J106: 1630972.07 | L106: =IF($B106>0,Achievement_to_date_ongoing!$K104*Achievement_to_date_ongoing!M104,"") -> 1043822.125 | M106: =IF($B106>0,Achievement_to_date_ongoing!$K104*Achievement_to_date_ongoing!N104,"") -> 1630972.07 | N106: =IF($B106>0,Achievement_to_date_ongoing!$K104*Achievement_to_date_ongoing!O104,"") -> 1630972.07 | O106: =IF($B106>0,Achievement_to_date_ongoing!$K104*Achievement_to_date_ongoing!P104,"") -> 1630972.07
B107: =Achievement_to_date_ongoing!B105 -> 128258 | C107: =IF($B107>0, Achievement_to_date_ongoing!C105, "") -> 3 | D107: =IF($B107>0, Achievement_to_date_ongoing!D105, "") -> 5 | E107: =IF($B107>0, Achievement_to_date_ongoing!E105, "") -> O1 | F107: =IF($B107>0, Achievement_to_date_ongoing!F105, "") -> Less developed | G107: 804311.5319 | H107: 1519255.116 | I107: 1787358.96 | J107: 1787358.96 | L107: =IF($B107>0,Achievement_to_date_ongoing!$K105*Achievement_to_date_ongoing!M105,"") -> 804311.5319 | M107: =IF($B107>0,Achievement_to_date_ongoing!$K105*Achievement_to_date_ongoing!N105,"") -> 1519255.116 | N107: =IF($B107>0,Achievement_to_date_ongoing!$K105*Achievement_to_date_ongoing!O105,"") -> 1787358.96 | O107: =IF($B107>0,Achievement_to_date_ongoing!$K105*Achievement_to_date_ongoing!P105,"") -> 1787358.96
B108: =Achievement_to_date_ongoing!B106 -> 127802 | C108: =IF($B108>0, Achievement_to_date_ongoing!C106, "") -> 3 | D108: =IF($B108>0, Achievement_to_date_ongoing!D106, "") -> 5 | E108: =IF($B108>0, Achievement_to_date_ongoing!E106, "") -> O1 | F108: =IF($B108>0, Achievement_to_date_ongoing!F106, "") -> Less developed | G108: 951210.3132 | H108: 1509857.64 | I108: 1509857.64 | J108: 1509857.64 | L108: =IF($B108>0,Achievement_to_date_ongoing!$K106*Achievement_to_date_ongoing!M106,"") -> 951210.3132 | M108: =IF($B108>0,Achievement_to_date_ongoing!$K106*Achievement_to_date_ongoing!N106,"") -> 1509857.64 | N108: =IF($B108>0,Achievement_to_date_ongoing!$K106*Achievement_to_date_ongoing!O106,"") -> 1509857.64 | O108: =IF($B108>0,Achievement_to_date_ongoing!$K106*Achievement_to_date_ongoing!P106,"") -> 1509857.64
B109: =Achievement_to_date_ongoing!B107 -> 129163 | C109: =IF($B109>0, Achievement_to_date_ongoing!C107, "") -> 3 | D109: =IF($B109>0, Achievement_to_date_ongoing!D107, "") -> 1 | E109: =IF($B109>0, Achievement_to_date_ongoing!E107, "") -> O1 | F109: =IF($B109>0, Achievement_to_date_ongoing!F107, "") -> Less developed | G109: 198373707.5 | H109: 225650092.3 | I109: 247967134.4 | J109: 247967134.4 | L109: =IF($B109>0,Achievement_to_date_ongoing!$K107*Achievement_to_date_ongoing!M107,"") -> 198373707.5 | M109: =IF($B109>0,Achievement_to_date_ongoing!$K107*Achievement_to_date_ongoing!N107,"") -> 225650092.3 | N109: =IF($B109>0,Achievement_to_date_ongoing!$K107*Achievement_to_date_ongoing!O107,"") -> 247967134.4 | O109: =IF($B109>0,Achievement_to_date_ongoing!$K107*Achievement_to_date_ongoing!P107,"") -> 247967134.4
B110: =Achievement_to_date_ongoing!B108 -> 127204 | C110: =IF($B110>0, Achievement_to_date_ongoing!C108, "") -> 3 | D110: =IF($B110>0, Achievement_to_date_ongoing!D108, "") -> 1 | E110: =IF($B110>0, Achievement_to_date_ongoing!E108, "") -> O1 | F110: =IF($B110>0, Achievement_to_date_ongoing!F108, "") -> Less developed | G110: 14508482.89 | H110: 21026786.8 | I110: 21026786.8 | J110: 21026786.8 | L110: =IF($B110>0,Achievement_to_date_ongoing!$K108*Achievement_to_date_ongoing!M108,"") -> 14508482.89 | M110: =IF($B110>0,Achievement_to_date_ongoing!$K108*Achievement_to_date_ongoing!N108,"") -> 21026786.8 | N110: =IF($B110>0,Achievement_to_date_ongoing!$K108*Achievement_to_date_ongoing!O108,"") -> 21026786.8 | O110: =IF($B110>0,Achievement_to_date_ongoing!$K108*Achievement_to_date_ongoing!P108,"") -> 21026786.8
B111: =Achievement_to_date_ongoing!B109 -> 145238 | C111: =IF($B111>0, Achievement_to_date_ongoing!C109, "") -> 3 | D111: =IF($B111>0, Achievement_to_date_ongoing!D109, "") -> 5 | E111: =IF($B111>0, Achievement_to_date_ongoing!E109, "") -> O1 | F111: =IF($B111>0, Achievement_to_date_ongoing!F109, "") -> Less developed | G111: 0 | H111: 84829.2592 | I111: 212073.148 | J111: 212073.148 | L111: =IF($B111>0,Achievement_to_date_ongoing!$K109*Achievement_to_date_ongoing!M109,"") -> 0 | M111: =IF($B111>0,Achievement_to_date_ongoing!$K109*Achievement_to_date_ongoing!N109,"") -> 84829.2592 | N111: =IF($B111>0,Achievement_to_date_ongoing!$K109*Achievement_to_date_ongoing!O109,"") -> 212073.148 | O111: =IF($B111>0,Achievement_to_date_ongoing!$K109*Achievement_to_date_ongoing!P109,"") -> 212073.148
B112: =Achievement_to_date_ongoing!B110 -> 130164 | C112: =IF($B112>0, Achievement_to_date_ongoing!C110, "") -> 3 | D112: =IF($B112>0, Achievement_to_date_ongoing!D110, "") -> 1 | E112: =IF($B112>0, Achievement_to_date_ongoing!E110, "") -> O1 | F112: =IF($B112>0, Achievement_to_date_ongoing!F110, "") -> Less developed | G112: 42144551.2 | H112: 67899554.71 | I112: 78045465.18 | J112: 78045465.18 | L112: =IF($B112>0,Achievement_to_date_ongoing!$K110*Achievement_to_date_ongoing!M110,"") -> 42144551.2 | M112: =IF($B112>0,Achievement_to_date_ongoing!$K110*Achievement_to_date_ongoing!N110,"") -> 67899554.71 | N112: =IF($B112>0,Achievement_to_date_ongoing!$K110*Achievement_to_date_ongoing!O110,"") -> 78045465.18 | O112: =IF($B112>0,Achievement_to_date_ongoing!$K110*Achievement_to_date_ongoing!P110,"") -> 78045465.18
B113: =Achievement_to_date_ongoing!B111 -> 128254 | C113: =IF($B113>0, Achievement_to_date_ongoing!C111, "") -> 3 | D113: =IF($B113>0, Achievement_to_date_ongoing!D111, "") -> 5 | E113: =IF($B113>0, Achievement_to_date_ongoing!E111, "") -> O1 | F113: =IF($B113>0, Achievement_to_date_ongoing!F111, "") -> Less developed | G113: 1084939.03 | H113: 1937391.124 | I113: 1937391.124 | J113: 1937391.124 | L113: =IF($B113>0,Achievement_to_date_ongoing!$K111*Achievement_to_date_ongoing!M111,"") -> 1084939.03 | M113: =IF($B113>0,Achievement_to_date_ongoing!$K111*Achievement_to_date_ongoing!N111,"") -> 1937391.124 | N113: =IF($B113>0,Achievement_to_date_ongoing!$K111*Achievement_to_date_ongoing!O111,"") -> 1937391.124 | O113: =IF($B113>0,Achievement_to_date_ongoing!$K111*Achievement_to_date_ongoing!P111,"") -> 1937391.124
B114: =Achievement_to_date_ongoing!B112 -> 128064 | C114: =IF($B114>0, Achievement_to_date_ongoing!C112, "") -> 3 | D114: =IF($B114>0, Achievement_to_date_ongoing!D112, "") -> 5 | E114: =IF($B114>0, Achievement_to_date_ongoing!E112, "") -> O1 | F114: =IF($B114>0, Achievement_to_date_ongoing!F112, "") -> Less developed | G114: 1810877.467 | H114: 2702802.19 | I114: 2702802.19 | J114: 2702802.19 | L114: =IF($B114>0,Achievement_to_date_ongoing!$K112*Achievement_to_date_ongoing!M112,"") -> 1810877.467 | M114: =IF($B114>0,Achievement_to_date_ongoing!$K112*Achievement_to_date_ongoing!N112,"") -> 2702802.19 | N114: =IF($B114>0,Achievement_to_date_ongoing!$K112*Achievement_to_date_ongoing!O112,"") -> 2702802.19 | O114: =IF($B114>0,Achievement_to_date_ongoing!$K112*Achievement_to_date_ongoing!P112,"") -> 2702802.19
B115: =Achievement_to_date_ongoing!B113 -> 128849 | C115: =IF($B115>0, Achievement_to_date_ongoing!C113, "") -> 3 | D115: =IF($B115>0, Achievement_to_date_ongoing!D113, "") -> 5 | E115: =IF($B115>0, Achievement_to_date_ongoing!E113, "") -> O1 | F115: =IF($B115>0, Achievement_to_date_ongoing!F113, "") -> Less developed | G115: 675842.8865 | H115: 1260706.923 | I115: 1299697.859 | J115: 1299697.859 | L115: =IF($B115>0,Achievement_to_date_ongoing!$K113*Achievement_to_date_ongoing!M113,"") -> 675842.8865 | M115: =IF($B115>0,Achievement_to_date_ongoing!$K113*Achievement_to_date_ongoing!N113,"") -> 1260706.923 | N115: =IF($B115>0,Achievement_to_date_ongoing!$K113*Achievement_to_date_ongoing!O113,"") -> 1299697.859 | O115: =IF($B115>0,Achievement_to_date_ongoing!$K113*Achievement_to_date_ongoing!P113,"") -> 1299697.859
B116: =Achievement_to_date_ongoing!B114 -> 130167 | C116: =IF($B116>0, Achievement_to_date_ongoing!C114, "") -> 3 | D116: =IF($B116>0, Achievement_to_date_ongoing!D114, "") -> 1 | E116: =IF($B116>0, Achievement_to_date_ongoing!E114, "") -> O1 | F116: =IF($B116>0, Achievement_to_date_ongoing!F114, "") -> Less developed | G116: 150908835.4 | H116: 201985672 | I116: 232167439.1 | J116: 232167439.1 | L116: =IF($B116>0,Achievement_to_date_ongoing!$K114*Achievement_to_date_ongoing!M114,"") -> 150908835.4 | M116: =IF($B116>0,Achievement_to_date_ongoing!$K114*Achievement_to_date_ongoing!N114,"") -> 201985672 | N116: =IF($B116>0,Achievement_to_date_ongoing!$K114*Achievement_to_date_ongoing!O114,"") -> 232167439.1 | O116: =IF($B116>0,Achievement_to_date_ongoing!$K114*Achievement_to_date_ongoing!P114,"") -> 232167439.1
B117: =Achievement_to_date_ongoing!B115 -> 150599 | C117: =IF($B117>0, Achievement_to_date_ongoing!C115, "") -> 3 | D117: =IF($B117>0, Achievement_to_date_ongoing!D115, "") -> 5 | E117: =IF($B117>0, Achievement_to_date_ongoing!E115, "") -> O1 | F117: =IF($B117>0, Achievement_to_date_ongoing!F115, "") -> Less developed | G117: 0 | H117: 159258.6821 | I117: 370369.0282 | J117: 370369.0282 | L117: =IF($B117>0,Achievement_to_date_ongoing!$K115*Achievement_to_date_ongoing!M115,"") -> 0 | M117: =IF($B117>0,Achievement_to_date_ongoing!$K115*Achievement_to_date_ongoing!N115,"") -> 159258.6821 | N117: =IF($B117>0,Achievement_to_date_ongoing!$K115*Achievement_to_date_ongoing!O115,"") -> 370369.0282 | O117: =IF($B117>0,Achievement_to_date_ongoing!$K115*Achievement_to_date_ongoing!P115,"") -> 370369.0282
B118: =Achievement_to_date_ongoing!B116 -> 133778 | C118: =IF($B118>0, Achievement_to_date_ongoing!C116, "") -> 3 | D118: =IF($B118>0, Achievement_to_date_ongoing!D116, "") -> 3 | E118: =IF($B118>0, Achievement_to_date_ongoing!E116, "") -> O1 | F118: =IF($B118>0, Achievement_to_date_ongoing!F116, "") -> Less developed | G118: 57819.68882 | H118: 125694.9757 | I118: 125694.9757 | J118: 125694.9757 | L118: =IF($B118>0,Achievement_to_date_ongoing!$K116*Achievement_to_date_ongoing!M116,"") -> 57819.68882 | M118: =IF($B118>0,Achievement_to_date_ongoing!$K116*Achievement_to_date_ongoing!N116,"") -> 125694.9757 | N118: =IF($B118>0,Achievement_to_date_ongoing!$K116*Achievement_to_date_ongoing!O116,"") -> 125694.9757 | O118: =IF($B118>0,Achievement_to_date_ongoing!$K116*Achievement_to_date_ongoing!P116,"") -> 125694.9757
B119: =Achievement_to_date_ongoing!B117 -> 127684 | C119: =IF($B119>0, Achievement_to_date_ongoing!C117, "") -> 3 | D119: =IF($B119>0, Achievement_to_date_ongoing!D117, "") -> 5 | E119: =IF($B119>0, Achievement_to_date_ongoing!E117, "") -> O1 | F119: =IF($B119>0, Achievement_to_date_ongoing!F117, "") -> Less developed | G119: 947499.4038 | H119: 1528224.845 | I119: 1528224.845 | J119: 1528224.845 | L119: =IF($B119>0,Achievement_to_date_ongoing!$K117*Achievement_to_date_ongoing!M117,"") -> 947499.4038 | M119: =IF($B119>0,Achievement_to_date_ongoing!$K117*Achievement_to_date_ongoing!N117,"") -> 1528224.845 | N119: =IF($B119>0,Achievement_to_date_ongoing!$K117*Achievement_to_date_ongoing!O117,"") -> 1528224.845 | O119: =IF($B119>0,Achievement_to_date_ongoing!$K117*Achievement_to_date_ongoing!P117,"") -> 1528224.845
B120: =Achievement_to_date_ongoing!B118 -> 104206 | C120: =IF($B120>0, Achievement_to_date_ongoing!C118, "") -> 3 | D120: =IF($B120>0, Achievement_to_date_ongoing!D118, "") -> 2 | E120: =IF($B120>0, Achievement_to_date_ongoing!E118, "") -> O1 | F120: =IF($B120>0, Achievement_to_date_ongoing!F118, "") -> Less developed | G120: 8667289.381 | H120: 10196811.04 | I120: 10196811.04 | J120: 10196811.04 | L120: =IF($B120>0,Achievement_to_date_ongoing!$K118*Achievement_to_date_ongoing!M118,"") -> 8667289.381 | M120: =IF($B120>0,Achievement_to_date_ongoing!$K118*Achievement_to_date_ongoing!N118,"") -> 10196811.04 | N120: =IF($B120>0,Achievement_to_date_ongoing!$K118*Achievement_to_date_ongoing!O118,"") -> 10196811.04 | O120: =IF($B120>0,Achievement_to_date_ongoing!$K118*Achievement_to_date_ongoing!P118,"") -> 10196811.04
B121: =Achievement_to_date_ongoing!B119 -> 104255 | C121: =IF($B121>0, Achievement_to_date_ongoing!C119, "") -> 3 | D121: =IF($B121>0, Achievement_to_date_ongoing!D119, "") -> 2 | E121: =IF($B121>0, Achievement_to_date_ongoing!E119, "") -> O1 | F121: =IF($B121>0, Achievement_to_date_ongoing!F119, "") -> Less developed | G121: 6870703.025 | H121: 8083180.03 | I121: 8083180.03 | J121: 8083180.03 | L121: =IF($B121>0,Achievement_to_date_ongoing!$K119*Achievement_to_date_ongoing!M119,"") -> 6870703.025 | M121: =IF($B121>0,Achievement_to_date_ongoing!$K119*Achievement_to_date_ongoing!N119,"") -> 8083180.03 | N121: =IF($B121>0,Achievement_to_date_ongoing!$K119*Achievement_to_date_ongoing!O119,"") -> 8083180.03 | O121: =IF($B121>0,Achievement_to_date_ongoing!$K119*Achievement_to_date_ongoing!P119,"") -> 8083180.03
B122: =Achievement_to_date_ongoing!B120 -> 134944 | C122: =IF($B122>0, Achievement_to_date_ongoing!C120, "") -> 3 | D122: =IF($B122>0, Achievement_to_date_ongoing!D120, "") -> 3 | E122: =IF($B122>0, Achievement_to_date_ongoing!E120, "") -> O1 | F122: =IF($B122>0, Achievement_to_date_ongoing!F120, "") -> Less developed | G122: 253457.6214 | H122: 724164.6325 | I122: 724164.6325 | J122: 724164.6325 | L122: =IF($B122>0,Achievement_to_date_ongoing!$K120*Achievement_to_date_ongoing!M120,"") -> 253457.6214 | M122: =IF($B122>0,Achievement_to_date_ongoing!$K120*Achievement_to_date_ongoing!N120,"") -> 724164.6325 | N122: =IF($B122>0,Achievement_to_date_ongoing!$K120*Achievement_to_date_ongoing!O120,"") -> 724164.6325 | O122: =IF($B122>0,Achievement_to_date_ongoing!$K120*Achievement_to_date_ongoing!P120,"") -> 724164.6325
B123: =Achievement_to_date_ongoing!B121 -> 103886 | C123: =IF($B123>0, Achievement_to_date_ongoing!C121, "") -> 3 | D123: =IF($B123>0, Achievement_to_date_ongoing!D121, "") -> 2 | E123: =IF($B123>0, Achievement_to_date_ongoing!E121, "") -> O1 | F123: =IF($B123>0, Achievement_to_date_ongoing!F121, "") -> Less developed | G123: 6512247.126 | H123: 7661467.207 | I123: 7661467.207 | J123: 7661467.207 | L123: =IF($B123>0,Achievement_to_date_ongoing!$K121*Achievement_to_date_ongoing!M121,"") -> 6512247.126 | M123: =IF($B123>0,Achievement_to_date_ongoing!$K121*Achievement_to_date_ongoing!N121,"") -> 7661467.207 | N123: =IF($B123>0,Achievement_to_date_ongoing!$K121*Achievement_to_date_ongoing!O121,"") -> 7661467.207 | O123: =IF($B123>0,Achievement_to_date_ongoing!$K121*Achievement_to_date_ongoing!P121,"") -> 7661467.207
B124: =Achievement_to_date_ongoing!B122 -> 137397 | C124: =IF($B124>0, Achievement_to_date_ongoing!C122, "") -> 3 | D124: =IF($B124>0, Achievement_to_date_ongoing!D122, "") -> 1 | E124: =IF($B124>0, Achievement_to_date_ongoing!E122, "") -> O1 | F124: =IF($B124>0, Achievement_to_date_ongoing!F122, "") -> Less developed | G124: 96186.36314 | H124: 760746.6903 | I124: 874421.4831 | J124: 874421.4831 | L124: =IF($B124>0,Achievement_to_date_ongoing!$K122*Achievement_to_date_ongoing!M122,"") -> 96186.36314 | M124: =IF($B124>0,Achievement_to_date_ongoing!$K122*Achievement_to_date_ongoing!N122,"") -> 760746.6903 | N124: =IF($B124>0,Achievement_to_date_ongoing!$K122*Achievement_to_date_ongoing!O122,"") -> 874421.4831 | O124: =IF($B124>0,Achievement_to_date_ongoing!$K122*Achievement_to_date_ongoing!P122,"") -> 874421.4831
B125: =Achievement_to_date_ongoing!B123 -> 137514 | C125: =IF($B125>0, Achievement_to_date_ongoing!C123, "") -> 3 | D125: =IF($B125>0, Achievement_to_date_ongoing!D123, "") -> 1 | E125: =IF($B125>0, Achievement_to_date_ongoing!E123, "") -> O1 | F125: =IF($B125>0, Achievement_to_date_ongoing!F123, "") -> Less developed | G125: 80613.90881 | H125: 980802.5571 | I125: 1343565.147 | J125: 1343565.147 | L125: =IF($B125>0,Achievement_to_date_ongoing!$K123*Achievement_to_date_ongoing!M123,"") -> 80613.90881 | M125: =IF($B125>0,Achievement_to_date_ongoing!$K123*Achievement_to_date_ongoing!N123,"") -> 980802.5571 | N125: =IF($B125>0,Achievement_to_date_ongoing!$K123*Achievement_to_date_ongoing!O123,"") -> 1343565.147 | O125: =IF($B125>0,Achievement_to_date_ongoing!$K123*Achievement_to_date_ongoing!P123,"") -> 1343565.147
B126: =Achievement_to_date_ongoing!B124 -> 142366 | C126: =IF($B126>0, Achievement_to_date_ongoing!C124, "") -> 3 | D126: =IF($B126>0, Achievement_to_date_ongoing!D124, "") -> 5 | E126: =IF($B126>0, Achievement_to_date_ongoing!E124, "") -> O1 | F126: =IF($B126>0, Achievement_to_date_ongoing!F124, "") -> Less developed | G126: 0 | H126: 185983.0329 | I126: 489429.0339 | J126: 489429.0339 | L126: =IF($B126>0,Achievement_to_date_ongoing!$K124*Achievement_to_date_ongoing!M124,"") -> 0 | M126: =IF($B126>0,Achievement_to_date_ongoing!$K124*Achievement_to_date_ongoing!N124,"") -> 185983.0329 | N126: =IF($B126>0,Achievement_to_date_ongoing!$K124*Achievement_to_date_ongoing!O124,"") -> 489429.0339 | O126: =IF($B126>0,Achievement_to_date_ongoing!$K124*Achievement_to_date_ongoing!P124,"") -> 489429.0339
B127: =Achievement_to_date_ongoing!B125 -> 142803 | C127: =IF($B127>0, Achievement_to_date_ongoing!C125, "") -> 3 | D127: =IF($B127>0, Achievement_to_date_ongoing!D125, "") -> 1 | E127: =IF($B127>0, Achievement_to_date_ongoing!E125, "") -> O1 | F127: =IF($B127>0, Achievement_to_date_ongoing!F125, "") -> Less developed | G127: 9532537.889 | H127: 168408169.4 | I127: 317751263 | J127: 317751263 | L127: =IF($B127>0,Achievement_to_date_ongoing!$K125*Achievement_to_date_ongoing!M125,"") -> 9532537.889 | M127: =IF($B127>0,Achievement_to_date_ongoing!$K125*Achievement_to_date_ongoing!N125,"") -> 168408169.4 | N127: =IF($B127>0,Achievement_to_date_ongoing!$K125*Achievement_to_date_ongoing!O125,"") -> 317751263 | O127: =IF($B127>0,Achievement_to_date_ongoing!$K125*Achievement_to_date_ongoing!P125,"") -> 317751263
B128: =Achievement_to_date_ongoing!B126 -> 140163 | C128: =IF($B128>0, Achievement_to_date_ongoing!C126, "") -> 3 | D128: =IF($B128>0, Achievement_to_date_ongoing!D126, "") -> 4 | E128: =IF($B128>0, Achievement_to_date_ongoing!E126, "") -> O1 | F128: =IF($B128>0, Achievement_to_date_ongoing!F126, "") -> Less developed | G128: 226198.8883 | H128: 2056353.53 | I128: 2056353.53 | J128: 2056353.53 | L128: =IF($B128>0,Achievement_to_date_ongoing!$K126*Achievement_to_date_ongoing!M126,"") -> 226198.8883 | M128: =IF($B128>0,Achievement_to_date_ongoing!$K126*Achievement_to_date_ongoing!N126,"") -> 2056353.53 | N128: =IF($B128>0,Achievement_to_date_ongoing!$K126*Achievement_to_date_ongoing!O126,"") -> 2056353.53 | O128: =IF($B128>0,Achievement_to_date_ongoing!$K126*Achievement_to_date_ongoing!P126,"") -> 2056353.53
B129: =Achievement_to_date_ongoing!B127 -> 104997 | C129: =IF($B129>0, Achievement_to_date_ongoing!C127, "") -> 3 | D129: =IF($B129>0, Achievement_to_date_ongoing!D127, "") -> 2 | E129: =IF($B129>0, Achievement_to_date_ongoing!E127, "") -> O1 | F129: =IF($B129>0, Achievement_to_date_ongoing!F127, "") -> Less developed | G129: 6854290.01 | H129: 8063870.6 | I129: 8063870.6 | J129: 8063870.6 | L129: =IF($B129>0,Achievement_to_date_ongoing!$K127*Achievement_to_date_ongoing!M127,"") -> 6854290.01 | M129: =IF($B129>0,Achievement_to_date_ongoing!$K127*Achievement_to_date_ongoing!N127,"") -> 8063870.6 | N129: =IF($B129>0,Achievement_to_date_ongoing!$K127*Achievement_to_date_ongoing!O127,"") -> 8063870.6 | O129: =IF($B129>0,Achievement_to_date_ongoing!$K127*Achievement_to_date_ongoing!P127,"") -> 8063870.6
B130: =Achievement_to_date_ongoing!B128 -> 149315 | C130: =IF($B130>0, Achievement_to_date_ongoing!C128, "") -> 3 | D130: =IF($B130>0, Achievement_to_date_ongoing!D128, "") -> 5 | E130: =IF($B130>0, Achievement_to_date_ongoing!E128, "") -> O1 | F130: =IF($B130>0, Achievement_to_date_ongoing!F128, "") -> Less developed | G130: 0 | H130: 196295.3781 | I130: 490738.4451 | J130: 490738.4451 | L130: =IF($B130>0,Achievement_to_date_ongoing!$K128*Achievement_to_date_ongoing!M128,"") -> 0 | M130: =IF($B130>0,Achievement_to_date_ongoing!$K128*Achievement_to_date_ongoing!N128,"") -> 196295.3781 | N130: =IF($B130>0,Achievement_to_date_ongoing!$K128*Achievement_to_date_ongoing!O128,"") -> 490738.4451 | O130: =IF($B130>0,Achievement_to_date_ongoing!$K128*Achievement_to_date_ongoing!P128,"") -> 490738.4451
B131: =Achievement_to_date_ongoing!B129 -> 105759 | C131: =IF($B131>0, Achievement_to_date_ongoing!C129, "") -> 3 | D131: =IF($B131>0, Achievement_to_date_ongoing!D129, "") -> 2 | E131: =IF($B131>0, Achievement_to_date_ongoing!E129, "") -> O1 | F131: =IF($B131>0, Achievement_to_date_ongoing!F129, "") -> Less developed | G131: 13200290.34 | H131: 15529753.34 | I131: 15529753.34 | J131: 15529753.34 | L131: =IF($B131>0,Achievement_to_date_ongoing!$K129*Achievement_to_date_ongoing!M129,"") -> 13200290.34 | M131: =IF($B131>0,Achievement_to_date_ongoing!$K129*Achievement_to_date_ongoing!N129,"") -> 15529753.34 | N131: =IF($B131>0,Achievement_to_date_ongoing!$K129*Achievement_to_date_ongoing!O129,"") -> 15529753.34 | O131: =IF($B131>0,Achievement_to_date_ongoing!$K129*Achievement_to_date_ongoing!P129,"") -> 15529753.34
B132: =Achievement_to_date_ongoing!B130 -> 105846 | C132: =IF($B132>0, Achievement_to_date_ongoing!C130, "") -> 3 | D132: =IF($B132>0, Achievement_to_date_ongoing!D130, "") -> 2 | E132: =IF($B132>0, Achievement_to_date_ongoing!E130, "") -> O1 | F132: =IF($B132>0, Achievement_to_date_ongoing!F130, "") -> Less developed | G132: 6016144.248 | H132: 7615372.466 | I132: 7615372.466 | J132: 7615372.466 | L132: =IF($B132>0,Achievement_to_date_ongoing!$K130*Achievement_to_date_ongoing!M130,"") -> 6016144.248 | M132: =IF($B132>0,Achievement_to_date_ongoing!$K130*Achievement_to_date_ongoing!N130,"") -> 7615372.466 | N132: =IF($B132>0,Achievement_to_date_ongoing!$K130*Achievement_to_date_ongoing!O130,"") -> 7615372.466 | O132: =IF($B132>0,Achievement_to_date_ongoing!$K130*Achievement_to_date_ongoing!P130,"") -> 7615372.466
B133: =Achievement_to_date_ongoing!B131 -> 106067 | C133: =IF($B133>0, Achievement_to_date_ongoing!C131, "") -> 3 | D133: =IF($B133>0, Achievement_to_date_ongoing!D131, "") -> 2 | E133: =IF($B133>0, Achievement_to_date_ongoing!E131, "") -> O1 | F133: =IF($B133>0, Achievement_to_date_ongoing!F131, "") -> Less developed | G133: 14024633.69 | H133: 17314362.58 | I133: 17314362.58 | J133: 17314362.58 | L133: =IF($B133>0,Achievement_to_date_ongoing!$K131*Achievement_to_date_ongoing!M131,"") -> 14024633.69 | M133: =IF($B133>0,Achievement_to_date_ongoing!$K131*Achievement_to_date_ongoing!N131,"") -> 17314362.58 | N133: =IF($B133>0,Achievement_to_date_ongoing!$K131*Achievement_to_date_ongoing!O131,"") -> 17314362.58 | O133: =IF($B133>0,Achievement_to_date_ongoing!$K131*Achievement_to_date_ongoing!P131,"") -> 17314362.58
B134: =Achievement_to_date_ongoing!B132 -> 144431 | C134: =IF($B134>0, Achievement_to_date_ongoing!C132, "") -> 3 | D134: =IF($B134>0, Achievement_to_date_ongoing!D132, "") -> 5 | E134: =IF($B134>0, Achievement_to_date_ongoing!E132, "") -> O1 | F134: =IF($B134>0, Achievement_to_date_ongoing!F132, "") -> Less developed | G134: 0 | H134: 167328.1348 | I134: 418320.337 | J134: 418320.337 | L134: =IF($B134>0,Achievement_to_date_ongoing!$K132*Achievement_to_date_ongoing!M132,"") -> 0 | M134: =IF($B134>0,Achievement_to_date_ongoing!$K132*Achievement_to_date_ongoing!N132,"") -> 167328.1348 | N134: =IF($B134>0,Achievement_to_date_ongoing!$K132*Achievement_to_date_ongoing!O132,"") -> 418320.337 | O134: =IF($B134>0,Achievement_to_date_ongoing!$K132*Achievement_to_date_ongoing!P132,"") -> 418320.337
B135: =Achievement_to_date_ongoing!B133 -> 137513 | C135: =IF($B135>0, Achievement_to_date_ongoing!C133, "") -> 3 | D135: =IF($B135>0, Achievement_to_date_ongoing!D133, "") -> 1 | E135: =IF($B135>0, Achievement_to_date_ongoing!E133, "") -> O1 | F135: =IF($B135>0, Achievement_to_date_ongoing!F133, "") -> Less developed | G135: 40309.1749 | H135: 940547.4143 | I135: 1343639.163 | J135: 1343639.163 | L135: =IF($B135>0,Achievement_to_date_ongoing!$K133*Achievement_to_date_ongoing!M133,"") -> 40309.1749 | M135: =IF($B135>0,Achievement_to_date_ongoing!$K133*Achievement_to_date_ongoing!N133,"") -> 940547.4143 | N135: =IF($B135>0,Achievement_to_date_ongoing!$K133*Achievement_to_date_ongoing!O133,"") -> 1343639.163 | O135: =IF($B135>0,Achievement_to_date_ongoing!$K133*Achievement_to_date_ongoing!P133,"") -> 1343639.163
B136: =Achievement_to_date_ongoing!B134 -> 137012 | C136: =IF($B136>0, Achievement_to_date_ongoing!C134, "") -> 3 | D136: =IF($B136>0, Achievement_to_date_ongoing!D134, "") -> 1 | E136: =IF($B136>0, Achievement_to_date_ongoing!E134, "") -> O1 | F136: =IF($B136>0, Achievement_to_date_ongoing!F134, "") -> Less developed | G136: 174415.0687 | H136: 1341654.375 | I136: 1341654.375 | J136: 1341654.375 | L136: =IF($B136>0,Achievement_to_date_ongoing!$K134*Achievement_to_date_ongoing!M134,"") -> 174415.0687 | M136: =IF($B136>0,Achievement_to_date_ongoing!$K134*Achievement_to_date_ongoing!N134,"") -> 1341654.375 | N136: =IF($B136>0,Achievement_to_date_ongoing!$K134*Achievement_to_date_ongoing!O134,"") -> 1341654.375 | O136: =IF($B136>0,Achievement_to_date_ongoing!$K134*Achievement_to_date_ongoing!P134,"") -> 1341654.375
B137: =Achievement_to_date_ongoing!B135 -> 145001 | C137: =IF($B137>0, Achievement_to_date_ongoing!C135, "") -> 3 | D137: =IF($B137>0, Achievement_to_date_ongoing!D135, "") -> 5 | E137: =IF($B137>0, Achievement_to_date_ongoing!E135, "") -> O1 | F137: =IF($B137>0, Achievement_to_date_ongoing!F135, "") -> Less developed | G137: 0 | H137: 203535.0837 | I137: 473337.4039 | J137: 473337.4039 | L137: =IF($B137>0,Achievement_to_date_ongoing!$K135*Achievement_to_date_ongoing!M135,"") -> 0 | M137: =IF($B137>0,Achievement_to_date_ongoing!$K135*Achievement_to_date_ongoing!N135,"") -> 203535.0837 | N137: =IF($B137>0,Achievement_to_date_ongoing!$K135*Achievement_to_date_ongoing!O135,"") -> 473337.4039 | O137: =IF($B137>0,Achievement_to_date_ongoing!$K135*Achievement_to_date_ongoing!P135,"") -> 473337.4039
B138: =Achievement_to_date_ongoing!B136 -> 143384 | C138: =IF($B138>0, Achievement_to_date_ongoing!C136, "") -> 3 | D138: =IF($B138>0, Achievement_to_date_ongoing!D136, "") -> 5 | E138: =IF($B138>0, Achievement_to_date_ongoing!E136, "") -> O1 | F138: =IF($B138>0, Achievement_to_date_ongoing!F136, "") -> Less developed | G138: 0 | H138: 115230.3636 | I138: 311433.4152 | J138: 311433.4152 | L138: =IF($B138>0,Achievement_to_date_ongoing!$K136*Achievement_to_date_ongoing!M136,"") -> 0 | M138: =IF($B138>0,Achievement_to_date_ongoing!$K136*Achievement_to_date_ongoing!N136,"") -> 115230.3636 | N138: =IF($B138>0,Achievement_to_date_ongoing!$K136*Achievement_to_date_ongoing!O136,"") -> 311433.4152 | O138: =IF($B138>0,Achievement_to_date_ongoing!$K136*Achievement_to_date_ongoing!P136,"") -> 311433.4152
B139: =Achievement_to_date_ongoing!B137 -> 118808 | C139: =IF($B139>0, Achievement_to_date_ongoing!C137, "") -> 3 | D139: =IF($B139>0, Achievement_to_date_ongoing!D137, "") -> 2 | E139: =IF($B139>0, Achievement_to_date_ongoing!E137, "") -> O1 | F139: =IF($B139>0, Achievement_to_date_ongoing!F137, "") -> More developed | G139: 0 | H139: 0 | I139: 0 | J139: 0 | L139: =IF($B139>0,Achievement_to_date_ongoing!$K137*Achievement_to_date_ongoing!M137,"") -> 0 | M139: =IF($B139>0,Achievement_to_date_ongoing!$K137*Achievement_to_date_ongoing!N137,"") -> 0 | N139: =IF($B139>0,Achievement_to_date_ongoing!$K137*Achievement_to_date_ongoing!O137,"") -> 0 | O139: =IF($B139>0,Achievement_to_date_ongoing!$K137*Achievement_to_date_ongoing!P137,"") -> 0
B140: =Achievement_to_date_ongoing!B138 -> 118809 | C140: =IF($B140>0, Achievement_to_date_ongoing!C138, "") -> 3 | D140: =IF($B140>0, Achievement_to_date_ongoing!D138, "") -> 2 | E140: =IF($B140>0, Achievement_to_date_ongoing!E138, "") -> O1 | F140: =IF($B140>0, Achievement_to_date_ongoing!F138, "") -> More developed | G140: 0 | H140: 0 | I140: 0 | J140: 0 | L140: =IF($B140>0,Achievement_to_date_ongoing!$K138*Achievement_to_date_ongoing!M138,"") -> 0 | M140: =IF($B140>0,Achievement_to_date_ongoing!$K138*Achievement_to_date_ongoing!N138,"") -> 0 | N140: =IF($B140>0,Achievement_to_date_ongoing!$K138*Achievement_to_date_ongoing!O138,"") -> 0 | O140: =IF($B140>0,Achievement_to_date_ongoing!$K138*Achievement_to_date_ongoing!P138,"") -> 0
B141: =Achievement_to_date_ongoing!B139 -> 121994 | C141: =IF($B141>0, Achievement_to_date_ongoing!C139, "") -> 3 | D141: =IF($B141>0, Achievement_to_date_ongoing!D139, "") -> 1 | E141: =IF($B141>0, Achievement_to_date_ongoing!E139, "") -> O1 | F141: =IF($B141>0, Achievement_to_date_ongoing!F139, "") -> More developed | G141: 0 | H141: 0 | I141: 0 | J141: 0 | L141: =IF($B141>0,Achievement_to_date_ongoing!$K139*Achievement_to_date_ongoing!M139,"") -> 0 | M141: =IF($B141>0,Achievement_to_date_ongoing!$K139*Achievement_to_date_ongoing!N139,"") -> 0 | N141: =IF($B141>0,Achievement_to_date_ongoing!$K139*Achievement_to_date_ongoing!O139,"") -> 0 | O141: =IF($B141>0,Achievement_to_date_ongoing!$K139*Achievement_to_date_ongoing!P139,"") -> 0
B142: =Achievement_to_date_ongoing!B140 -> 126668 | C142: =IF($B142>0, Achievement_to_date_ongoing!C140, "") -> 3 | D142: =IF($B142>0, Achievement_to_date_ongoing!D140, "") -> 5 | E142: =IF($B142>0, Achievement_to_date_ongoing!E140, "") -> O1 | F142: =IF($B142>0, Achievement_to_date_ongoing!F140, "") -> More developed | G142: 0 | H142: 0 | I142: 0 | J142: 0 | L142: =IF($B142>0,Achievement_to_date_ongoing!$K140*Achievement_to_date_ongoing!M140,"") -> 0 | M142: =IF($B142>0,Achievement_to_date_ongoing!$K140*Achievement_to_date_ongoing!N140,"") -> 0 | N142: =IF($B142>0,Achievement_to_date_ongoing!$K140*Achievement_to_date_ongoing!O140,"") -> 0 | O142: =IF($B142>0,Achievement_to_date_ongoing!$K140*Achievement_to_date_ongoing!P140,"") -> 0
B143: =Achievement_to_date_ongoing!B141 -> 125311 | C143: =IF($B143>0, Achievement_to_date_ongoing!C141, "") -> 3 | D143: =IF($B143>0, Achievement_to_date_ongoing!D141, "") -> 1 | E143: =IF($B143>0, Achievement_to_date_ongoing!E141, "") -> O1 | F143: =IF($B143>0, Achievement_to_date_ongoing!F141, "") -> More developed | G143: 87376579.87 | H143: 109220724.8 | I143: 109220724.8 | J143: 109220724.8 | L143: =IF($B143>0,Achievement_to_date_ongoing!$K141*Achievement_to_date_ongoing!M141,"") -> 87376579.87 | M143: =IF($B143>0,Achievement_to_date_ongoing!$K141*Achievement_to_date_ongoing!N141,"") -> 109220724.8 | N143: =IF($B143>0,Achievement_to_date_ongoing!$K141*Achievement_to_date_ongoing!O141,"") -> 109220724.8 | O143: =IF($B143>0,Achievement_to_date_ongoing!$K141*Achievement_to_date_ongoing!P141,"") -> 109220724.8
B144: =Achievement_to_date_ongoing!B142 -> 106941 | C144: =IF($B144>0, Achievement_to_date_ongoing!C142, "") -> 3 | D144: =IF($B144>0, Achievement_to_date_ongoing!D142, "") -> 2 | E144: =IF($B144>0, Achievement_to_date_ongoing!E142, "") -> O1 | F144: =IF($B144>0, Achievement_to_date_ongoing!F142, "") -> More developed | G144: 0 | H144: 0 | I144: 0 | J144: 0 | L144: =IF($B144>0,Achievement_to_date_ongoing!$K142*Achievement_to_date_ongoing!M142,"") -> 0 | M144: =IF($B144>0,Achievement_to_date_ongoing!$K142*Achievement_to_date_ongoing!N142,"") -> 0 | N144: =IF($B144>0,Achievement_to_date_ongoing!$K142*Achievement_to_date_ongoing!O142,"") -> 0 | O144: =IF($B144>0,Achievement_to_date_ongoing!$K142*Achievement_to_date_ongoing!P142,"") -> 0
B145: =Achievement_to_date_ongoing!B143 -> 127975 | C145: =IF($B145>0, Achievement_to_date_ongoing!C143, "") -> 3 | D145: =IF($B145>0, Achievement_to_date_ongoing!D143, "") -> 5 | E145: =IF($B145>0, Achievement_to_date_ongoing!E143, "") -> O1 | F145: =IF($B145>0, Achievement_to_date_ongoing!F143, "") -> More developed | G145: 0 | H145: 0 | I145: 0 | J145: 0 | L145: =IF($B145>0,Achievement_to_date_ongoing!$K143*Achievement_to_date_ongoing!M143,"") -> 0 | M145: =IF($B145>0,Achievement_to_date_ongoing!$K143*Achievement_to_date_ongoing!N143,"") -> 0 | N145: =IF($B145>0,Achievement_to_date_ongoing!$K143*Achievement_to_date_ongoing!O143,"") -> 0 | O145: =IF($B145>0,Achievement_to_date_ongoing!$K143*Achievement_to_date_ongoing!P143,"") -> 0
B146: =Achievement_to_date_ongoing!B144 -> 128831 | C146: =IF($B146>0, Achievement_to_date_ongoing!C144, "") -> 3 | D146: =IF($B146>0, Achievement_to_date_ongoing!D144, "") -> 5 | E146: =IF($B146>0, Achievement_to_date_ongoing!E144, "") -> O1 | F146: =IF($B146>0, Achievement_to_date_ongoing!F144, "") -> More developed | G146: 0 | H146: 0 | I146: 0 | J146: 0 | L146: =IF($B146>0,Achievement_to_date_ongoing!$K144*Achievement_to_date_ongoing!M144,"") -> 0 | M146: =IF($B146>0,Achievement_to_date_ongoing!$K144*Achievement_to_date_ongoing!N144,"") -> 0 | N146: =IF($B146>0,Achievement_to_date_ongoing!$K144*Achievement_to_date_ongoing!O144,"") -> 0 | O146: =IF($B146>0,Achievement_to_date_ongoing!$K144*Achievement_to_date_ongoing!P144,"") -> 0
B147: =Achievement_to_date_ongoing!B145 -> 128290 | C147: =IF($B147>0, Achievement_to_date_ongoing!C145, "") -> 3 | D147: =IF($B147>0, Achievement_to_date_ongoing!D145, "") -> 5 | E147: =IF($B147>0, Achievement_to_date_ongoing!E145, "") -> O1 | F147: =IF($B147>0, Achievement_to_date_ongoing!F145, "") -> More developed | G147: 133484.4445 | H147: 238365.0795 | I147: 238365.0795 | J147: 238365.0795 | L147: =IF($B147>0,Achievement_to_date_ongoing!$K145*Achievement_to_date_ongoing!M145,"") -> 133484.4445 | M147: =IF($B147>0,Achievement_to_date_ongoing!$K145*Achievement_to_date_ongoing!N145,"") -> 238365.0795 | N147: =IF($B147>0,Achievement_to_date_ongoing!$K145*Achievement_to_date_ongoing!O145,"") -> 238365.0795 | O147: =IF($B147>0,Achievement_to_date_ongoing!$K145*Achievement_to_date_ongoing!P145,"") -> 238365.0795
B148: =Achievement_to_date_ongoing!B146 -> 128044 | C148: =IF($B148>0, Achievement_to_date_ongoing!C146, "") -> 3 | D148: =IF($B148>0, Achievement_to_date_ongoing!D146, "") -> 5 | E148: =IF($B148>0, Achievement_to_date_ongoing!E146, "") -> O1 | F148: =IF($B148>0, Achievement_to_date_ongoing!F146, "") -> More developed | G148: 0 | H148: 0 | I148: 0 | J148: 0 | L148: =IF($B148>0,Achievement_to_date_ongoing!$K146*Achievement_to_date_ongoing!M146,"") -> 0 | M148: =IF($B148>0,Achievement_to_date_ongoing!$K146*Achievement_to_date_ongoing!N146,"") -> 0 | N148: =IF($B148>0,Achievement_to_date_ongoing!$K146*Achievement_to_date_ongoing!O146,"") -> 0 | O148: =IF($B148>0,Achievement_to_date_ongoing!$K146*Achievement_to_date_ongoing!P146,"") -> 0
B149: =Achievement_to_date_ongoing!B147 -> 128121 | C149: =IF($B149>0, Achievement_to_date_ongoing!C147, "") -> 3 | D149: =IF($B149>0, Achievement_to_date_ongoing!D147, "") -> 5 | E149: =IF($B149>0, Achievement_to_date_ongoing!E147, "") -> O1 | F149: =IF($B149>0, Achievement_to_date_ongoing!F147, "") -> More developed | G149: 169444.3601 | H149: 235339.389 | I149: 235339.389 | J149: 235339.389 | L149: =IF($B149>0,Achievement_to_date_ongoing!$K147*Achievement_to_date_ongoing!M147,"") -> 169444.3601 | M149: =IF($B149>0,Achievement_to_date_ongoing!$K147*Achievement_to_date_ongoing!N147,"") -> 235339.389 | N149: =IF($B149>0,Achievement_to_date_ongoing!$K147*Achievement_to_date_ongoing!O147,"") -> 235339.389 | O149: =IF($B149>0,Achievement_to_date_ongoing!$K147*Achievement_to_date_ongoing!P147,"") -> 235339.389
B150: =Achievement_to_date_ongoing!B148 -> 136811 | C150: =IF($B150>0, Achievement_to_date_ongoing!C148, "") -> 3 | D150: =IF($B150>0, Achievement_to_date_ongoing!D148, "") -> 1 | E150: =IF($B150>0, Achievement_to_date_ongoing!E148, "") -> O1 | F150: =IF($B150>0, Achievement_to_date_ongoing!F148, "") -> More developed | G150: 22764.95583 | H150: 131711.5301 | I150: 162606.8273 | J150: 162606.8273 | L150: =IF($B150>0,Achievement_to_date_ongoing!$K148*Achievement_to_date_ongoing!M148,"") -> 22764.95583 | M150: =IF($B150>0,Achievement_to_date_ongoing!$K148*Achievement_to_date_ongoing!N148,"") -> 131711.5301 | N150: =IF($B150>0,Achievement_to_date_ongoing!$K148*Achievement_to_date_ongoing!O148,"") -> 162606.8273 | O150: =IF($B150>0,Achievement_to_date_ongoing!$K148*Achievement_to_date_ongoing!P148,"") -> 162606.8273
B151: =Achievement_to_date_ongoing!B149 -> 128125 | C151: =IF($B151>0, Achievement_to_date_ongoing!C149, "") -> 3 | D151: =IF($B151>0, Achievement_to_date_ongoing!D149, "") -> 5 | E151: =IF($B151>0, Achievement_to_date_ongoing!E149, "") -> O1 | F151: =IF($B151>0, Achievement_to_date_ongoing!F149, "") -> More developed | G151: 0 | H151: 0 | I151: 0 | J151: 0 | L151: =IF($B151>0,Achievement_to_date_ongoing!$K149*Achievement_to_date_ongoing!M149,"") -> 0 | M151: =IF($B151>0,Achievement_to_date_ongoing!$K149*Achievement_to_date_ongoing!N149,"") -> 0 | N151: =IF($B151>0,Achievement_to_date_ongoing!$K149*Achievement_to_date_ongoing!O149,"") -> 0 | O151: =IF($B151>0,Achievement_to_date_ongoing!$K149*Achievement_to_date_ongoing!P149,"") -> 0
B152: =Achievement_to_date_ongoing!B150 -> 128144 | C152: =IF($B152>0, Achievement_to_date_ongoing!C150, "") -> 3 | D152: =IF($B152>0, Achievement_to_date_ongoing!D150, "") -> 5 | E152: =IF($B152>0, Achievement_to_date_ongoing!E150, "") -> O1 | F152: =IF($B152>0, Achievement_to_date_ongoing!F150, "") -> More developed | G152: 0 | H152: 0 | I152: 0 | J152: 0 | L152: =IF($B152>0,Achievement_to_date_ongoing!$K150*Achievement_to_date_ongoing!M150,"") -> 0 | M152: =IF($B152>0,Achievement_to_date_ongoing!$K150*Achievement_to_date_ongoing!N150,"") -> 0 | N152: =IF($B152>0,Achievement_to_date_ongoing!$K150*Achievement_to_date_ongoing!O150,"") -> 0 | O152: =IF($B152>0,Achievement_to_date_ongoing!$K150*Achievement_to_date_ongoing!P150,"") -> 0
B153: =Achievement_to_date_ongoing!B151 -> 128162 | C153: =IF($B153>0, Achievement_to_date_ongoing!C151, "") -> 3 | D153: =IF($B153>0, Achievement_to_date_ongoing!D151, "") -> 5 | E153: =IF($B153>0, Achievement_to_date_ongoing!E151, "") -> O1 | F153: =IF($B153>0, Achievement_to_date_ongoing!F151, "") -> More developed | G153: 0 | H153: 0 | I153: 0 | J153: 0 | L153: =IF($B153>0,Achievement_to_date_ongoing!$K151*Achievement_to_date_ongoing!M151,"") -> 0 | M153: =IF($B153>0,Achievement_to_date_ongoing!$K151*Achievement_to_date_ongoing!N151,"") -> 0 | N153: =IF($B153>0,Achievement_to_date_ongoing!$K151*Achievement_to_date_ongoing!O151,"") -> 0 | O153: =IF($B153>0,Achievement_to_date_ongoing!$K151*Achievement_to_date_ongoing!P151,"") -> 0
B154: =Achievement_to_date_ongoing!B152 -> 128612 | C154: =IF($B154>0, Achievement_to_date_ongoing!C152, "") -> 3 | D154: =IF($B154>0, Achievement_to_date_ongoing!D152, "") -> 5 | E154: =IF($B154>0, Achievement_to_date_ongoing!E152, "") -> O1 | F154: =IF($B154>0, Achievement_to_date_ongoing!F152, "") -> More developed | G154: 0 | H154: 0 | I154: 0 | J154: 0 | L154: =IF($B154>0,Achievement_to_date_ongoing!$K152*Achievement_to_date_ongoing!M152,"") -> 0 | M154: =IF($B154>0,Achievement_to_date_ongoing!$K152*Achievement_to_date_ongoing!N152,"") -> 0 | N154: =IF($B154>0,Achievement_to_date_ongoing!$K152*Achievement_to_date_ongoing!O152,"") -> 0 | O154: =IF($B154>0,Achievement_to_date_ongoing!$K152*Achievement_to_date_ongoing!P152,"") -> 0
B155: =Achievement_to_date_ongoing!B153 -> 128132 | C155: =IF($B155>0, Achievement_to_date_ongoing!C153, "") -> 3 | D155: =IF($B155>0, Achievement_to_date_ongoing!D153, "") -> 5 | E155: =IF($B155>0, Achievement_to_date_ongoing!E153, "") -> O1 | F155: =IF($B155>0, Achievement_to_date_ongoing!F153, "") -> More developed | G155: 0 | H155: 0 | I155: 0 | J155: 0 | L155: =IF($B155>0,Achievement_to_date_ongoing!$K153*Achievement_to_date_ongoing!M153,"") -> 0 | M155: =IF($B155>0,Achievement_to_date_ongoing!$K153*Achievement_to_date_ongoing!N153,"") -> 0 | N155: =IF($B155>0,Achievement_to_date_ongoing!$K153*Achievement_to_date_ongoing!O153,"") -> 0 | O155: =IF($B155>0,Achievement_to_date_ongoing!$K153*Achievement_to_date_ongoing!P153,"") -> 0
B156: =Achievement_to_date_ongoing!B154 -> 118810 | C156: =IF($B156>0, Achievement_to_date_ongoing!C154, "") -> 3 | D156: =IF($B156>0, Achievement_to_date_ongoing!D154, "") -> 2 | E156: =IF($B156>0, Achievement_to_date_ongoing!E154, "") -> O1 | F156: =IF($B156>0, Achievement_to_date_ongoing!F154, "") -> More developed | G156: 0 | H156: 0 | I156: 0 | J156: 0 | L156: =IF($B156>0,Achievement_to_date_ongoing!$K154*Achievement_to_date_ongoing!M154,"") -> 0 | M156: =IF($B156>0,Achievement_to_date_ongoing!$K154*Achievement_to_date_ongoing!N154,"") -> 0 | N156: =IF($B156>0,Achievement_to_date_ongoing!$K154*Achievement_to_date_ongoing!O154,"") -> 0 | O156: =IF($B156>0,Achievement_to_date_ongoing!$K154*Achievement_to_date_ongoing!P154,"") -> 0
B157: =Achievement_to_date_ongoing!B155 -> 136888 | C157: =IF($B157>0, Achievement_to_date_ongoing!C155, "") -> 3 | D157: =IF($B157>0, Achievement_to_date_ongoing!D155, "") -> 1 | E157: =IF($B157>0, Achievement_to_date_ongoing!E155, "") -> O1 | F157: =IF($B157>0, Achievement_to_date_ongoing!F155, "") -> More developed | G157: 8557.405886 | H157: 171148.1177 | I157: 171148.1177 | J157: 171148.1177 | L157: =IF($B157>0,Achievement_to_date_ongoing!$K155*Achievement_to_date_ongoing!M155,"") -> 8557.405886 | M157: =IF($B157>0,Achievement_to_date_ongoing!$K155*Achievement_to_date_ongoing!N155,"") -> 171148.1177 | N157: =IF($B157>0,Achievement_to_date_ongoing!$K155*Achievement_to_date_ongoing!O155,"") -> 171148.1177 | O157: =IF($B157>0,Achievement_to_date_ongoing!$K155*Achievement_to_date_ongoing!P155,"") -> 171148.1177
B158: =Achievement_to_date_ongoing!B156 -> 136946 | C158: =IF($B158>0, Achievement_to_date_ongoing!C156, "") -> 3 | D158: =IF($B158>0, Achievement_to_date_ongoing!D156, "") -> 1 | E158: =IF($B158>0, Achievement_to_date_ongoing!E156, "") -> O1 | F158: =IF($B158>0, Achievement_to_date_ongoing!F156, "") -> More developed | G158: 25980.65514 | H158: 134774.6486 | I158: 162379.0946 | J158: 162379.0946 | L158: =IF($B158>0,Achievement_to_date_ongoing!$K156*Achievement_to_date_ongoing!M156,"") -> 25980.65514 | M158: =IF($B158>0,Achievement_to_date_ongoing!$K156*Achievement_to_date_ongoing!N156,"") -> 134774.6486 | N158: =IF($B158>0,Achievement_to_date_ongoing!$K156*Achievement_to_date_ongoing!O156,"") -> 162379.0946 | O158: =IF($B158>0,Achievement_to_date_ongoing!$K156*Achievement_to_date_ongoing!P156,"") -> 162379.0946
B159: =Achievement_to_date_ongoing!B157 -> 137522 | C159: =IF($B159>0, Achievement_to_date_ongoing!C157, "") -> 3 | D159: =IF($B159>0, Achievement_to_date_ongoing!D157, "") -> 1 | E159: =IF($B159>0, Achievement_to_date_ongoing!E157, "") -> O1 | F159: =IF($B159>0, Achievement_to_date_ongoing!F157, "") -> More developed | G159: 15149.89935 | H159: 134665.772 | I159: 168332.215 | J159: 168332.215 | L159: =IF($B159>0,Achievement_to_date_ongoing!$K157*Achievement_to_date_ongoing!M157,"") -> 15149.89935 | M159: =IF($B159>0,Achievement_to_date_ongoing!$K157*Achievement_to_date_ongoing!N157,"") -> 134665.772 | N159: =IF($B159>0,Achievement_to_date_ongoing!$K157*Achievement_to_date_ongoing!O157,"") -> 168332.215 | O159: =IF($B159>0,Achievement_to_date_ongoing!$K157*Achievement_to_date_ongoing!P157,"") -> 168332.215
B160: =Achievement_to_date_ongoing!B158 -> 134945 | C160: =IF($B160>0, Achievement_to_date_ongoing!C158, "") -> 3 | D160: =IF($B160>0, Achievement_to_date_ongoing!D158, "") -> 3 | E160: =IF($B160>0, Achievement_to_date_ongoing!E158, "") -> O1 | F160: =IF($B160>0, Achievement_to_date_ongoing!F158, "") -> More developed | G160: 0 | H160: 0 | I160: 0 | J160: 0 | L160: =IF($B160>0,Achievement_to_date_ongoing!$K158*Achievement_to_date_ongoing!M158,"") -> 0 | M160: =IF($B160>0,Achievement_to_date_ongoing!$K158*Achievement_to_date_ongoing!N158,"") -> 0 | N160: =IF($B160>0,Achievement_to_date_ongoing!$K158*Achievement_to_date_ongoing!O158,"") -> 0 | O160: =IF($B160>0,Achievement_to_date_ongoing!$K158*Achievement_to_date_ongoing!P158,"") -> 0
B161: =Achievement_to_date_ongoing!B159 -> 135006 | C161: =IF($B161>0, Achievement_to_date_ongoing!C159, "") -> 3 | D161: =IF($B161>0, Achievement_to_date_ongoing!D159, "") -> 3 | E161: =IF($B161>0, Achievement_to_date_ongoing!E159, "") -> O1 | F161: =IF($B161>0, Achievement_to_date_ongoing!F159, "") -> More developed | G161: 0 | H161: 0 | I161: 0 | J161: 0 | L161: =IF($B161>0,Achievement_to_date_ongoing!$K159*Achievement_to_date_ongoing!M159,"") -> 0 | M161: =IF($B161>0,Achievement_to_date_ongoing!$K159*Achievement_to_date_ongoing!N159,"") -> 0 | N161: =IF($B161>0,Achievement_to_date_ongoing!$K159*Achievement_to_date_ongoing!O159,"") -> 0 | O161: =IF($B161>0,Achievement_to_date_ongoing!$K159*Achievement_to_date_ongoing!P159,"") -> 0
B162: =Achievement_to_date_ongoing!B160 -> 137521 | C162: =IF($B162>0, Achievement_to_date_ongoing!C160, "") -> 3 | D162: =IF($B162>0, Achievement_to_date_ongoing!D160, "") -> 1 | E162: =IF($B162>0, Achievement_to_date_ongoing!E160, "") -> O1 | F162: =IF($B162>0, Achievement_to_date_ongoing!F160, "") -> More developed | G162: 13528.24495 | H162: 125136.2658 | I162: 169103.0618 | J162: 169103.0618 | L162: =IF($B162>0,Achievement_to_date_ongoing!$K160*Achievement_to_date_ongoing!M160,"") -> 13528.24495 | M162: =IF($B162>0,Achievement_to_date_ongoing!$K160*Achievement_to_date_ongoing!N160,"") -> 125136.2658 | N162: =IF($B162>0,Achievement_to_date_ongoing!$K160*Achievement_to_date_ongoing!O160,"") -> 169103.0618 | O162: =IF($B162>0,Achievement_to_date_ongoing!$K160*Achievement_to_date_ongoing!P160,"") -> 169103.0618
B163: =Achievement_to_date_ongoing!B161 -> 139164 | C163: =IF($B163>0, Achievement_to_date_ongoing!C161, "") -> 3 | D163: =IF($B163>0, Achievement_to_date_ongoing!D161, "") -> 4 | E163: =IF($B163>0, Achievement_to_date_ongoing!E161, "") -> O1 | F163: =IF($B163>0, Achievement_to_date_ongoing!F161, "") -> More developed | G163: 55456.55504 | H163: 970489.7133 | I163: 1913251.149 | J163: 2772827.752 | L163: =IF($B163>0,Achievement_to_date_ongoing!$K161*Achievement_to_date_ongoing!M161,"") -> 55456.55504 | M163: =IF($B163>0,Achievement_to_date_ongoing!$K161*Achievement_to_date_ongoing!N161,"") -> 970489.7133 | N163: =IF($B163>0,Achievement_to_date_ongoing!$K161*Achievement_to_date_ongoing!O161,"") -> 1913251.149 | O163: =IF($B163>0,Achievement_to_date_ongoing!$K161*Achievement_to_date_ongoing!P161,"") -> 2772827.752
B164: =Achievement_to_date_ongoing!B162 -> 140092 | C164: =IF($B164>0, Achievement_to_date_ongoing!C162, "") -> 3 | D164: =IF($B164>0, Achievement_to_date_ongoing!D162, "") -> 4 | E164: =IF($B164>0, Achievement_to_date_ongoing!E162, "") -> O1 | F164: =IF($B164>0, Achievement_to_date_ongoing!F162, "") -> More developed | G164: 6109.957733 | H164: 274948.098 | I164: 543786.2383 | J164: 610995.7733 | L164: =IF($B164>0,Achievement_to_date_ongoing!$K162*Achievement_to_date_ongoing!M162,"") -> 6109.957733 | M164: =IF($B164>0,Achievement_to_date_ongoing!$K162*Achievement_to_date_ongoing!N162,"") -> 274948.098 | N164: =IF($B164>0,Achievement_to_date_ongoing!$K162*Achievement_to_date_ongoing!O162,"") -> 543786.2383 | O164: =IF($B164>0,Achievement_to_date_ongoing!$K162*Achievement_to_date_ongoing!P162,"") -> 610995.7733
B165: =Achievement_to_date_ongoing!B163 -> 128130 | C165: =IF($B165>0, Achievement_to_date_ongoing!C163, "") -> 3 | D165: =IF($B165>0, Achievement_to_date_ongoing!D163, "") -> 5 | E165: =IF($B165>0, Achievement_to_date_ongoing!E163, "") -> O1 | F165: =IF($B165>0, Achievement_to_date_ongoing!F163, "") -> More developed | G165: 0 | H165: 0 | I165: 0 | J165: 0 | L165: =IF($B165>0,Achievement_to_date_ongoing!$K163*Achievement_to_date_ongoing!M163,"") -> 0 | M165: =IF($B165>0,Achievement_to_date_ongoing!$K163*Achievement_to_date_ongoing!N163,"") -> 0 | N165: =IF($B165>0,Achievement_to_date_ongoing!$K163*Achievement_to_date_ongoing!O163,"") -> 0 | O165: =IF($B165>0,Achievement_to_date_ongoing!$K163*Achievement_to_date_ongoing!P163,"") -> 0
B166: =Achievement_to_date_ongoing!B164 -> 106435 | C166: =IF($B166>0, Achievement_to_date_ongoing!C164, "") -> 3 | D166: =IF($B166>0, Achievement_to_date_ongoing!D164, "") -> 2 | E166: =IF($B166>0, Achievement_to_date_ongoing!E164, "") -> O1 | F166: =IF($B166>0, Achievement_to_date_ongoing!F164, "") -> More developed | G166: 0 | H166: 0 | I166: 0 | J166: 0 | L166: =IF($B166>0,Achievement_to_date_ongoing!$K164*Achievement_to_date_ongoing!M164,"") -> 0 | M166: =IF($B166>0,Achievement_to_date_ongoing!$K164*Achievement_to_date_ongoing!N164,"") -> 0 | N166: =IF($B166>0,Achievement_to_date_ongoing!$K164*Achievement_to_date_ongoing!O164,"") -> 0 | O166: =IF($B166>0,Achievement_to_date_ongoing!$K164*Achievement_to_date_ongoing!P164,"") -> 0
B167: =Achievement_to_date_ongoing!B165 -> 144948 | C167: =IF($B167>0, Achievement_to_date_ongoing!C165, "") -> 3 | D167: =IF($B167>0, Achievement_to_date_ongoing!D165, "") -> 5 | E167: =IF($B167>0, Achievement_to_date_ongoing!E165, "") -> O1 | F167: =IF($B167>0, Achievement_to_date_ongoing!F165, "") -> More developed | G167: 0 | H167: 14250.12923 | I167: 37500.34007 | J167: 37500.34007 | L167: =IF($B167>0,Achievement_to_date_ongoing!$K165*Achievement_to_date_ongoing!M165,"") -> 0 | M167: =IF($B167>0,Achievement_to_date_ongoing!$K165*Achievement_to_date_ongoing!N165,"") -> 14250.12923 | N167: =IF($B167>0,Achievement_to_date_ongoing!$K165*Achievement_to_date_ongoing!O165,"") -> 37500.34007 | O167: =IF($B167>0,Achievement_to_date_ongoing!$K165*Achievement_to_date_ongoing!P165,"") -> 37500.34007
B168: =Achievement_to_date_ongoing!B166 -> 144433 | C168: =IF($B168>0, Achievement_to_date_ongoing!C166, "") -> 3 | D168: =IF($B168>0, Achievement_to_date_ongoing!D166, "") -> 5 | E168: =IF($B168>0, Achievement_to_date_ongoing!E166, "") -> O1 | F168: =IF($B168>0, Achievement_to_date_ongoing!F166, "") -> More developed | G168: 0 | H168: 18980.83883 | I168: 47452.09708 | J168: 47452.09708 | L168: =IF($B168>0,Achievement_to_date_ongoing!$K166*Achievement_to_date_ongoing!M166,"") -> 0 | M168: =IF($B168>0,Achievement_to_date_ongoing!$K166*Achievement_to_date_ongoing!N166,"") -> 18980.83883 | N168: =IF($B168>0,Achievement_to_date_ongoing!$K166*Achievement_to_date_ongoing!O166,"") -> 47452.09708 | O168: =IF($B168>0,Achievement_to_date_ongoing!$K166*Achievement_to_date_ongoing!P166,"") -> 47452.09708
B169: =Achievement_to_date_ongoing!B167 -> 127018 | C169: =IF($B169>0, Achievement_to_date_ongoing!C167, "") -> 3 | D169: =IF($B169>0, Achievement_to_date_ongoing!D167, "") -> 5 | E169: =IF($B169>0, Achievement_to_date_ongoing!E167, "") -> O1 | F169: =IF($B169>0, Achievement_to_date_ongoing!F167, "") -> More developed | G169: 0 | H169: 0 | I169: 0 | J169: 0 | L169: =IF($B169>0,Achievement_to_date_ongoing!$K167*Achievement_to_date_ongoing!M167,"") -> 0 | M169: =IF($B169>0,Achievement_to_date_ongoing!$K167*Achievement_to_date_ongoing!N167,"") -> 0 | N169: =IF($B169>0,Achievement_to_date_ongoing!$K167*Achievement_to_date_ongoing!O167,"") -> 0 | O169: =IF($B169>0,Achievement_to_date_ongoing!$K167*Achievement_to_date_ongoing!P167,"") -> 0
B170: =Achievement_to_date_ongoing!B168 -> 127019 | C170: =IF($B170>0, Achievement_to_date_ongoing!C168, "") -> 3 | D170: =IF($B170>0, Achievement_to_date_ongoing!D168, "") -> 5 | E170: =IF($B170>0, Achievement_to_date_ongoing!E168, "") -> O1 | F170: =IF($B170>0, Achievement_to_date_ongoing!F168, "") -> More developed | G170: 0 | H170: 0 | I170: 0 | J170: 0 | L170: =IF($B170>0,Achievement_to_date_ongoing!$K168*Achievement_to_date_ongoing!M168,"") -> 0 | M170: =IF($B170>0,Achievement_to_date_ongoing!$K168*Achievement_to_date_ongoing!N168,"") -> 0 | N170: =IF($B170>0,Achievement_to_date_ongoing!$K168*Achievement_to_date_ongoing!O168,"") -> 0 | O170: =IF($B170>0,Achievement_to_date_ongoing!$K168*Achievement_to_date_ongoing!P168,"") -> 0
B171: =Achievement_to_date_ongoing!B169 -> 127851 | C171: =IF($B171>0, Achievement_to_date_ongoing!C169, "") -> 3 | D171: =IF($B171>0, Achievement_to_date_ongoing!D169, "") -> 5 | E171: =IF($B171>0, Achievement_to_date_ongoing!E169, "") -> O1 | F171: =IF($B171>0, Achievement_to_date_ongoing!F169, "") -> More developed | G171: 0 | H171: 0 | I171: 0 | J171: 0 | L171: =IF($B171>0,Achievement_to_date_ongoing!$K169*Achievement_to_date_ongoing!M169,"") -> 0 | M171: =IF($B171>0,Achievement_to_date_ongoing!$K169*Achievement_to_date_ongoing!N169,"") -> 0 | N171: =IF($B171>0,Achievement_to_date_ongoing!$K169*Achievement_to_date_ongoing!O169,"") -> 0 | O171: =IF($B171>0,Achievement_to_date_ongoing!$K169*Achievement_to_date_ongoing!P169,"") -> 0
B172: =Achievement_to_date_ongoing!B170 -> 128282 | C172: =IF($B172>0, Achievement_to_date_ongoing!C170, "") -> 3 | D172: =IF($B172>0, Achievement_to_date_ongoing!D170, "") -> 5 | E172: =IF($B172>0, Achievement_to_date_ongoing!E170, "") -> O1 | F172: =IF($B172>0, Achievement_to_date_ongoing!F170, "") -> More developed | G172: 0 | H172: 0 | I172: 0 | J172: 0 | L172: =IF($B172>0,Achievement_to_date_ongoing!$K170*Achievement_to_date_ongoing!M170,"") -> 0 | M172: =IF($B172>0,Achievement_to_date_ongoing!$K170*Achievement_to_date_ongoing!N170,"") -> 0 | N172: =IF($B172>0,Achievement_to_date_ongoing!$K170*Achievement_to_date_ongoing!O170,"") -> 0 | O172: =IF($B172>0,Achievement_to_date_ongoing!$K170*Achievement_to_date_ongoing!P170,"") -> 0
B173: =Achievement_to_date_ongoing!B171 -> 128258 | C173: =IF($B173>0, Achievement_to_date_ongoing!C171, "") -> 3 | D173: =IF($B173>0, Achievement_to_date_ongoing!D171, "") -> 5 | E173: =IF($B173>0, Achievement_to_date_ongoing!E171, "") -> O1 | F173: =IF($B173>0, Achievement_to_date_ongoing!F171, "") -> More developed | G173: 0 | H173: 0 | I173: 0 | J173: 0 | L173: =IF($B173>0,Achievement_to_date_ongoing!$K171*Achievement_to_date_ongoing!M171,"") -> 0 | M173: =IF($B173>0,Achievement_to_date_ongoing!$K171*Achievement_to_date_ongoing!N171,"") -> 0 | N173: =IF($B173>0,Achievement_to_date_ongoing!$K171*Achievement_to_date_ongoing!O171,"") -> 0 | O173: =IF($B173>0,Achievement_to_date_ongoing!$K171*Achievement_to_date_ongoing!P171,"") -> 0
B174: =Achievement_to_date_ongoing!B172 -> 127802 | C174: =IF($B174>0, Achievement_to_date_ongoing!C172, "") -> 3 | D174: =IF($B174>0, Achievement_to_date_ongoing!D172, "") -> 5 | E174: =IF($B174>0, Achievement_to_date_ongoing!E172, "") -> O1 | F174: =IF($B174>0, Achievement_to_date_ongoing!F172, "") -> More developed | G174: 0 | H174: 0 | I174: 0 | J174: 0 | L174: =IF($B174>0,Achievement_to_date_ongoing!$K172*Achievement_to_date_ongoing!M172,"") -> 0 | M174: =IF($B174>0,Achievement_to_date_ongoing!$K172*Achievement_to_date_ongoing!N172,"") -> 0 | N174: =IF($B174>0,Achievement_to_date_ongoing!$K172*Achievement_to_date_ongoing!O172,"") -> 0 | O174: =IF($B174>0,Achievement_to_date_ongoing!$K172*Achievement_to_date_ongoing!P172,"") -> 0
B175: =Achievement_to_date_ongoing!B173 -> 129163 | C175: =IF($B175>0, Achievement_to_date_ongoing!C173, "") -> 3 | D175: =IF($B175>0, Achievement_to_date_ongoing!D173, "") -> 1 | E175: =IF($B175>0, Achievement_to_date_ongoing!E173, "") -> O1 | F175: =IF($B175>0, Achievement_to_date_ongoing!F173, "") -> More developed | G175: 27050960.11 | H175: 30770467.13 | I175: 33813700.14 | J175: 33813700.14 | L175: =IF($B175>0,Achievement_to_date_ongoing!$K173*Achievement_to_date_ongoing!M173,"") -> 27050960.11 | M175: =IF($B175>0,Achievement_to_date_ongoing!$K173*Achievement_to_date_ongoing!N173,"") -> 30770467.13 | N175: =IF($B175>0,Achievement_to_date_ongoing!$K173*Achievement_to_date_ongoing!O173,"") -> 33813700.14 | O175: =IF($B175>0,Achievement_to_date_ongoing!$K173*Achievement_to_date_ongoing!P173,"") -> 33813700.14
B176: =Achievement_to_date_ongoing!B174 -> 127204 | C176: =IF($B176>0, Achievement_to_date_ongoing!C174, "") -> 3 | D176: =IF($B176>0, Achievement_to_date_ongoing!D174, "") -> 1 | E176: =IF($B176>0, Achievement_to_date_ongoing!E174, "") -> O1 | F176: =IF($B176>0, Achievement_to_date_ongoing!F174, "") -> More developed | G176: 1848318.565 | H176: 2678722.557 | I176: 2678722.557 | J176: 2678722.557 | L176: =IF($B176>0,Achievement_to_date_ongoing!$K174*Achievement_to_date_ongoing!M174,"") -> 1848318.565 | M176: =IF($B176>0,Achievement_to_date_ongoing!$K174*Achievement_to_date_ongoing!N174,"") -> 2678722.557 | N176: =IF($B176>0,Achievement_to_date_ongoing!$K174*Achievement_to_date_ongoing!O174,"") -> 2678722.557 | O176: =IF($B176>0,Achievement_to_date_ongoing!$K174*Achievement_to_date_ongoing!P174,"") -> 2678722.557
B177: =Achievement_to_date_ongoing!B175 -> 145238 | C177: =IF($B177>0, Achievement_to_date_ongoing!C175, "") -> 3 | D177: =IF($B177>0, Achievement_to_date_ongoing!D175, "") -> 5 | E177: =IF($B177>0, Achievement_to_date_ongoing!E175, "") -> O1 | F177: =IF($B177>0, Achievement_to_date_ongoing!F175, "") -> More developed | G177: 0 | H177: 10806.8842 | I177: 27017.21051 | J177: 27017.21051 | L177: =IF($B177>0,Achievement_to_date_ongoing!$K175*Achievement_to_date_ongoing!M175,"") -> 0 | M177: =IF($B177>0,Achievement_to_date_ongoing!$K175*Achievement_to_date_ongoing!N175,"") -> 10806.8842 | N177: =IF($B177>0,Achievement_to_date_ongoing!$K175*Achievement_to_date_ongoing!O175,"") -> 27017.21051 | O177: =IF($B177>0,Achievement_to_date_ongoing!$K175*Achievement_to_date_ongoing!P175,"") -> 27017.21051
B178: =Achievement_to_date_ongoing!B176 -> 130164 | C178: =IF($B178>0, Achievement_to_date_ongoing!C176, "") -> 3 | D178: =IF($B178>0, Achievement_to_date_ongoing!D176, "") -> 1 | E178: =IF($B178>0, Achievement_to_date_ongoing!E176, "") -> O1 | F178: =IF($B178>0, Achievement_to_date_ongoing!F176, "") -> More developed | G178: 5746984.254 | H178: 9259030.187 | I178: 10642563.43 | J178: 10642563.43 | L178: =IF($B178>0,Achievement_to_date_ongoing!$K176*Achievement_to_date_ongoing!M176,"") -> 5746984.254 | M178: =IF($B178>0,Achievement_to_date_ongoing!$K176*Achievement_to_date_ongoing!N176,"") -> 9259030.187 | N178: =IF($B178>0,Achievement_to_date_ongoing!$K176*Achievement_to_date_ongoing!O176,"") -> 10642563.43 | O178: =IF($B178>0,Achievement_to_date_ongoing!$K176*Achievement_to_date_ongoing!P176,"") -> 10642563.43
B179: =Achievement_to_date_ongoing!B177 -> 128254 | C179: =IF($B179>0, Achievement_to_date_ongoing!C177, "") -> 3 | D179: =IF($B179>0, Achievement_to_date_ongoing!D177, "") -> 5 | E179: =IF($B179>0, Achievement_to_date_ongoing!E177, "") -> O1 | F179: =IF($B179>0, Achievement_to_date_ongoing!F177, "") -> More developed | G179: 138216.5844 | H179: 246815.3292 | I179: 246815.3292 | J179: 246815.3292 | L179: =IF($B179>0,Achievement_to_date_ongoing!$K177*Achievement_to_date_ongoing!M177,"") -> 138216.5844 | M179: =IF($B179>0,Achievement_to_date_ongoing!$K177*Achievement_to_date_ongoing!N177,"") -> 246815.3292 | N179: =IF($B179>0,Achievement_to_date_ongoing!$K177*Achievement_to_date_ongoing!O177,"") -> 246815.3292 | O179: =IF($B179>0,Achievement_to_date_ongoing!$K177*Achievement_to_date_ongoing!P177,"") -> 246815.3292
B180: =Achievement_to_date_ongoing!B178 -> 128064 | C180: =IF($B180>0, Achievement_to_date_ongoing!C178, "") -> 3 | D180: =IF($B180>0, Achievement_to_date_ongoing!D178, "") -> 5 | E180: =IF($B180>0, Achievement_to_date_ongoing!E178, "") -> O1 | F180: =IF($B180>0, Achievement_to_date_ongoing!F178, "") -> More developed | G180: 0 | H180: 0 | I180: 0 | J180: 0 | L180: =IF($B180>0,Achievement_to_date_ongoing!$K178*Achievement_to_date_ongoing!M178,"") -> 0 | M180: =IF($B180>0,Achievement_to_date_ongoing!$K178*Achievement_to_date_ongoing!N178,"") -> 0 | N180: =IF($B180>0,Achievement_to_date_ongoing!$K178*Achievement_to_date_ongoing!O178,"") -> 0 | O180: =IF($B180>0,Achievement_to_date_ongoing!$K178*Achievement_to_date_ongoing!P178,"") -> 0
B181: =Achievement_to_date_ongoing!B179 -> 128849 | C181: =IF($B181>0, Achievement_to_date_ongoing!C179, "") -> 3 | D181: =IF($B181>0, Achievement_to_date_ongoing!D179, "") -> 5 | E181: =IF($B181>0, Achievement_to_date_ongoing!E179, "") -> O1 | F181: =IF($B181>0, Achievement_to_date_ongoing!F179, "") -> More developed | G181: 0 | H181: 0 | I181: 0 | J181: 0 | L181: =IF($B181>0,Achievement_to_date_ongoing!$K179*Achievement_to_date_ongoing!M179,"") -> 0 | M181: =IF($B181>0,Achievement_to_date_ongoing!$K179*Achievement_to_date_ongoing!N179,"") -> 0 | N181: =IF($B181>0,Achievement_to_date_ongoing!$K179*Achievement_to_date_ongoing!O179,"") -> 0 | O181: =IF($B181>0,Achievement_to_date_ongoing!$K179*Achievement_to_date_ongoing!P179,"") -> 0
B182: =Achievement_to_date_ongoing!B180 -> 130167 | C182: =IF($B182>0, Achievement_to_date_ongoing!C180, "") -> 3 | D182: =IF($B182>0, Achievement_to_date_ongoing!D180, "") -> 1 | E182: =IF($B182>0, Achievement_to_date_ongoing!E180, "") -> O1 | F182: =IF($B182>0, Achievement_to_date_ongoing!F180, "") -> More developed | G182: 20578477.55 | H182: 27543500.73 | I182: 31659196.24 | J182: 31659196.24 | L182: =IF($B182>0,Achievement_to_date_ongoing!$K180*Achievement_to_date_ongoing!M180,"") -> 20578477.55 | M182: =IF($B182>0,Achievement_to_date_ongoing!$K180*Achievement_to_date_ongoing!N180,"") -> 27543500.73 | N182: =IF($B182>0,Achievement_to_date_ongoing!$K180*Achievement_to_date_ongoing!O180,"") -> 31659196.24 | O182: =IF($B182>0,Achievement_to_date_ongoing!$K180*Achievement_to_date_ongoing!P180,"") -> 31659196.24
B183: =Achievement_to_date_ongoing!B181 -> 150599 | C183: =IF($B183>0, Achievement_to_date_ongoing!C181, "") -> 3 | D183: =IF($B183>0, Achievement_to_date_ongoing!D181, "") -> 5 | E183: =IF($B183>0, Achievement_to_date_ongoing!E181, "") -> O1 | F183: =IF($B183>0, Achievement_to_date_ongoing!F181, "") -> More developed | G183: 0 | H183: 20288.87382 | I183: 47183.42749 | J183: 47183.42749 | L183: =IF($B183>0,Achievement_to_date_ongoing!$K181*Achievement_to_date_ongoing!M181,"") -> 0 | M183: =IF($B183>0,Achievement_to_date_ongoing!$K181*Achievement_to_date_ongoing!N181,"") -> 20288.87382 | N183: =IF($B183>0,Achievement_to_date_ongoing!$K181*Achievement_to_date_ongoing!O181,"") -> 47183.42749 | O183: =IF($B183>0,Achievement_to_date_ongoing!$K181*Achievement_to_date_ongoing!P181,"") -> 47183.42749
B184: =Achievement_to_date_ongoing!B182 -> 133778 | C184: =IF($B184>0, Achievement_to_date_ongoing!C182, "") -> 3 | D184: =IF($B184>0, Achievement_to_date_ongoing!D182, "") -> 3 | E184: =IF($B184>0, Achievement_to_date_ongoing!E182, "") -> O1 | F184: =IF($B184>0, Achievement_to_date_ongoing!F182, "") -> More developed | G184: 0 | H184: 0 | I184: 0 | J184: 0 | L184: =IF($B184>0,Achievement_to_date_ongoing!$K182*Achievement_to_date_ongoing!M182,"") -> 0 | M184: =IF($B184>0,Achievement_to_date_ongoing!$K182*Achievement_to_date_ongoing!N182,"") -> 0 | N184: =IF($B184>0,Achievement_to_date_ongoing!$K182*Achievement_to_date_ongoing!O182,"") -> 0 | O184: =IF($B184>0,Achievement_to_date_ongoing!$K182*Achievement_to_date_ongoing!P182,"") -> 0
B185: =Achievement_to_date_ongoing!B183 -> 127684 | C185: =IF($B185>0, Achievement_to_date_ongoing!C183, "") -> 3 | D185: =IF($B185>0, Achievement_to_date_ongoing!D183, "") -> 5 | E185: =IF($B185>0, Achievement_to_date_ongoing!E183, "") -> O1 | F185: =IF($B185>0, Achievement_to_date_ongoing!F183, "") -> More developed | G185: 0 | H185: 0 | I185: 0 | J185: 0 | L185: =IF($B185>0,Achievement_to_date_ongoing!$K183*Achievement_to_date_ongoing!M183,"") -> 0 | M185: =IF($B185>0,Achievement_to_date_ongoing!$K183*Achievement_to_date_ongoing!N183,"") -> 0 | N185: =IF($B185>0,Achievement_to_date_ongoing!$K183*Achievement_to_date_ongoing!O183,"") -> 0 | O185: =IF($B185>0,Achievement_to_date_ongoing!$K183*Achievement_to_date_ongoing!P183,"") -> 0
B186: =Achievement_to_date_ongoing!B184 -> 104206 | C186: =IF($B186>0, Achievement_to_date_ongoing!C184, "") -> 3 | D186: =IF($B186>0, Achievement_to_date_ongoing!D184, "") -> 2 | E186: =IF($B186>0, Achievement_to_date_ongoing!E184, "") -> O1 | F186: =IF($B186>0, Achievement_to_date_ongoing!F184, "") -> More developed | G186: 0 | H186: 0 | I186: 0 | J186: 0 | L186: =IF($B186>0,Achievement_to_date_ongoing!$K184*Achievement_to_date_ongoing!M184,"") -> 0 | M186: =IF($B186>0,Achievement_to_date_ongoing!$K184*Achievement_to_date_ongoing!N184,"") -> 0 | N186: =IF($B186>0,Achievement_to_date_ongoing!$K184*Achievement_to_date_ongoing!O184,"") -> 0 | O186: =IF($B186>0,Achievement_to_date_ongoing!$K184*Achievement_to_date_ongoing!P184,"") -> 0
B187: =Achievement_to_date_ongoing!B185 -> 104255 | C187: =IF($B187>0, Achievement_to_date_ongoing!C185, "") -> 3 | D187: =IF($B187>0, Achievement_to_date_ongoing!D185, "") -> 2 | E187: =IF($B187>0, Achievement_to_date_ongoing!E185, "") -> O1 | F187: =IF($B187>0, Achievement_to_date_ongoing!F185, "") -> More developed | G187: 0 | H187: 0 | I187: 0 | J187: 0 | L187: =IF($B187>0,Achievement_to_date_ongoing!$K185*Achievement_to_date_ongoing!M185,"") -> 0 | M187: =IF($B187>0,Achievement_to_date_ongoing!$K185*Achievement_to_date_ongoing!N185,"") -> 0 | N187: =IF($B187>0,Achievement_to_date_ongoing!$K185*Achievement_to_date_ongoing!O185,"") -> 0 | O187: =IF($B187>0,Achievement_to_date_ongoing!$K185*Achievement_to_date_ongoing!P185,"") -> 0
B188: =Achievement_to_date_ongoing!B186 -> 134944 | C188: =IF($B188>0, Achievement_to_date_ongoing!C186, "") -> 3 | D188: =IF($B188>0, Achievement_to_date_ongoing!D186, "") -> 3 | E188: =IF($B188>0, Achievement_to_date_ongoing!E186, "") -> O1 | F188: =IF($B188>0, Achievement_to_date_ongoing!F186, "") -> More developed | G188: 32289.41512 | H188: 92255.47179 | I188: 92255.47179 | J188: 92255.47179 | L188: =IF($B188>0,Achievement_to_date_ongoing!$K186*Achievement_to_date_ongoing!M186,"") -> 32289.41512 | M188: =IF($B188>0,Achievement_to_date_ongoing!$K186*Achievement_to_date_ongoing!N186,"") -> 92255.47179 | N188: =IF($B188>0,Achievement_to_date_ongoing!$K186*Achievement_to_date_ongoing!O186,"") -> 92255.47179 | O188: =IF($B188>0,Achievement_to_date_ongoing!$K186*Achievement_to_date_ongoing!P186,"") -> 92255.47179
B189: =Achievement_to_date_ongoing!B187 -> 103886 | C189: =IF($B189>0, Achievement_to_date_ongoing!C187, "") -> 3 | D189: =IF($B189>0, Achievement_to_date_ongoing!D187, "") -> 2 | E189: =IF($B189>0, Achievement_to_date_ongoing!E187, "") -> O1 | F189: =IF($B189>0, Achievement_to_date_ongoing!F187, "") -> More developed | G189: 0 | H189: 0 | I189: 0 | J189: 0 | L189: =IF($B189>0,Achievement_to_date_ongoing!$K187*Achievement_to_date_ongoing!M187,"") -> 0 | M189: =IF($B189>0,Achievement_to_date_ongoing!$K187*Achievement_to_date_ongoing!N187,"") -> 0 | N189: =IF($B189>0,Achievement_to_date_ongoing!$K187*Achievement_to_date_ongoing!O187,"") -> 0 | O189: =IF($B189>0,Achievement_to_date_ongoing!$K187*Achievement_to_date_ongoing!P187,"") -> 0
B190: =Achievement_to_date_ongoing!B188 -> 137397 | C190: =IF($B190>0, Achievement_to_date_ongoing!C188, "") -> 3 | D190: =IF($B190>0, Achievement_to_date_ongoing!D188, "") -> 1 | E190: =IF($B190>0, Achievement_to_date_ongoing!E188, "") -> O1 | F190: =IF($B190>0, Achievement_to_date_ongoing!F188, "") -> More developed | G190: 12253.73059 | H190: 96915.86922 | I190: 111397.5508 | J190: 111397.5508 | L190: =IF($B190>0,Achievement_to_date_ongoing!$K188*Achievement_to_date_ongoing!M188,"") -> 12253.73059 | M190: =IF($B190>0,Achievement_to_date_ongoing!$K188*Achievement_to_date_ongoing!N188,"") -> 96915.86922 | N190: =IF($B190>0,Achievement_to_date_ongoing!$K188*Achievement_to_date_ongoing!O188,"") -> 111397.5508 | O190: =IF($B190>0,Achievement_to_date_ongoing!$K188*Achievement_to_date_ongoing!P188,"") -> 111397.5508
